Workbook

Sheet Check List
B2: FALSE | C2: Lookups for ERRORS
B4: RAW DATA | T4: Renewal/enhancement | U4: Alternative Control Fee Based Services
B5: =IFERROR(VLOOKUP($B$2,'RAW data'!HY:HY,1,FALSE),"No False Errors") -> No False Errors | C5: Raw Data Total Included with Splits | F5: CAPEX Output Checks | G5: 2019/20 | H5: 2020/21 | I5: 2021/22 | J5: 2022/23 | K5: 2023/24 | L5: 2024/25 | M5: 2025/26 | N5: 2026/27 | O5: 2027/28 | P5: 2028/29 | T5: Customer initiated | U5: Alternative Control Public Lighting
B6: =IFERROR(VLOOKUP($B$2,'RAW data'!HZ:HZ,1,FALSE),"No False Errors") -> No False Errors | C6: Raw Data Total OH | F6: Dist RIN_Capex_Outputs | G6: =IFERROR(LOOKUP($B$2,'Dist RIN_Capex_Outputs'!$C146:$H146),"No False Errors") -> No False Errors | H6: =IFERROR(LOOKUP($B$2,'Dist RIN_Capex_Outputs'!$C236:$H236),"No False Errors") -> No False Errors | I6: =IFERROR(LOOKUP($B$2,'Dist RIN_Capex_Outputs'!$C326:$H326),"No False Errors") -> No False Errors | J6: =IFERROR(LOOKUP($B$2,'Dist RIN_Capex_Outputs'!$C416:$H416),"No False Errors") -> No False Errors | K6: =IFERROR(LOOKUP($B$2,'Dist RIN_Capex_Outputs'!$C506:$H506),"No False Errors") -> No False Errors | L6: =IFERROR(LOOKUP($B$2,'Dist RIN_Capex_Outputs'!$C596:$H596),"No False Errors") -> No False Errors | M6: =IFERROR(LOOKUP($B$2,'Dist RIN_Capex_Outputs'!$C686:$H686),"No False Errors") -> No False Errors | N6: =IFERROR(LOOKUP($B$2,'Dist RIN_Capex_Outputs'!$C776:$H776),"No False Errors") -> No False Errors | O6: =IFERROR(LOOKUP($B$2,'Dist RIN_Capex_Outputs'!$C866:$H866),"No False Errors") -> No False Errors | P6: =IFERROR(LOOKUP($B$2,'Dist RIN_Capex_Outputs'!$C956:$H956),"No False Errors") -> No False Errors | T6: Reinforcements | U6: Alternative Control Quoted Services
B7: =IFERROR(VLOOKUP($B$2,S31:S85,1,FALSE),"No False Errors") -> No False Errors | C7: All Costs are included in pivots | F7: Dist RIN_Capex_Outputs | G7: =IFERROR(LOOKUP($B$2,'Dist RIN_Capex_Outputs'!$K174:$U174),"No False Errors") -> No False Errors | H7: =IFERROR(LOOKUP($B$2,'Dist RIN_Capex_Outputs'!$K264:$U264),"No False Errors") -> No False Errors | I7: =IFERROR(LOOKUP($B$2,'Dist RIN_Capex_Outputs'!$K354:$U354),"No False Errors") -> No False Errors | J7: =IFERROR(LOOKUP($B$2,'Dist RIN_Capex_Outputs'!$K444:$U444),"No False Errors") -> No False Errors | K7: =IFERROR(LOOKUP($B$2,'Dist RIN_Capex_Outputs'!$K534:$U534),"No False Errors") -> No False Errors | L7: =IFERROR(LOOKUP($B$2,'Dist RIN_Capex_Outputs'!$K624:$U624),"No False Errors") -> No False Errors | M7: =IFERROR(LOOKUP($B$2,'Dist RIN_Capex_Outputs'!$K714:$U714),"No False Errors") -> No False Errors | N7: =IFERROR(LOOKUP($B$2,'Dist RIN_Capex_Outputs'!$K804:$U804),"No False Errors") -> No False Errors | O7: =IFERROR(LOOKUP($B$2,'Dist RIN_Capex_Outputs'!$K894:$U894),"No False Errors") -> No False Errors | P7: =IFERROR(LOOKUP($B$2,'Dist RIN_Capex_Outputs'!$K984:$U984),"No False Errors") -> No False Errors | T7: SCADA and Network Control | U7: Asset Renewal
B8: =IFERROR(VLOOKUP($B$2,E17:E19,1,FALSE),"No False Errors") -> No False Errors | C8: Allocations are 100% | F8: Trans RIN_Capex_Outputs | G8: =IFERROR(LOOKUP($B$2,'Trans RIN_Capex_Outputs'!$C73:$H73),"No False Errors") -> No False Errors | H8: =IFERROR(LOOKUP($B$2,'Trans RIN_Capex_Outputs'!$C121:$H121),"No False Errors") -> No False Errors | I8: =IFERROR(LOOKUP($B$2,'Trans RIN_Capex_Outputs'!$C169:$H169),"No False Errors") -> No False Errors | J8: =IFERROR(LOOKUP($B$2,'Trans RIN_Capex_Outputs'!$C217:$H217),"No False Errors") -> No False Errors | K8: =IFERROR(LOOKUP($B$2,'Trans RIN_Capex_Outputs'!$C265:$H265),"No False Errors") -> No False Errors | L8: =IFERROR(LOOKUP($B$2,'Trans RIN_Capex_Outputs'!$C313:$H313),"No False Errors") -> No False Errors | M8: =IFERROR(LOOKUP($B$2,'Trans RIN_Capex_Outputs'!$C361:$H361),"No False Errors") -> No False Errors | N8: =IFERROR(LOOKUP($B$2,'Trans RIN_Capex_Outputs'!$C409:$H409),"No False Errors") -> No False Errors | O8: =IFERROR(LOOKUP($B$2,'Trans RIN_Capex_Outputs'!$C457:$H457),"No False Errors") -> No False Errors | P8: =IFERROR(LOOKUP($B$2,'Trans RIN_Capex_Outputs'!$C505:$H505),"No False Errors") -> No False Errors | T8: Asset Management Systems | U8: Development
F9: Trans RIN_Capex_Outputs | G9: =IFERROR(LOOKUP($B$2,'Trans RIN_Capex_Outputs'!$K94:$W94),"No False Errors") -> No False Errors | H9: =IFERROR(LOOKUP($B$2,'Trans RIN_Capex_Outputs'!$K142:$W142),"No False Errors") -> No False Errors | I9: =IFERROR(LOOKUP($B$2,'Trans RIN_Capex_Outputs'!$K190:$W190),"No False Errors") -> No False Errors | J9: =IFERROR(LOOKUP($B$2,'Trans RIN_Capex_Outputs'!$K238:$W238),"No False Errors") -> No False Errors | K9: =IFERROR(LOOKUP($B$2,'Trans RIN_Capex_Outputs'!$K286:$W286),"No False Errors") -> No False Errors | L9: =IFERROR(LOOKUP($B$2,'Trans RIN_Capex_Outputs'!$K334:$W334),"No False Errors") -> No False Errors | M9: =IFERROR(LOOKUP($B$2,'Trans RIN_Capex_Outputs'!$K382:$W382),"No False Errors") -> No False Errors | N9: =IFERROR(LOOKUP($B$2,'Trans RIN_Capex_Outputs'!$K430:$W430),"No False Errors") -> No False Errors | O9: =IFERROR(LOOKUP($B$2,'Trans RIN_Capex_Outputs'!$K478:$W478),"No False Errors") -> No False Errors | P9: =IFERROR(LOOKUP($B$2,'Trans RIN_Capex_Outputs'!$K526:$W526),"No False Errors") -> No False Errors | T9: IT and Communications | U9: NCIPAP
F10: Trans RIN_Capex_Outputs Commiss | G10: =IFERROR(LOOKUP($B$2,'Trans RIN_Capex_Outputs Commiss'!C73:H73),"No False Errors") -> No False Errors | H10: =IFERROR(LOOKUP($B$2,'Trans RIN_Capex_Outputs Commiss'!C121:H121),"No False Errors") -> No False Errors | I10: =IFERROR(LOOKUP($B$2,'Trans RIN_Capex_Outputs Commiss'!C169:H169),"No False Errors") -> No False Errors | J10: =IFERROR(LOOKUP($B$2,'Trans RIN_Capex_Outputs Commiss'!C217:H217),"No False Errors") -> No False Errors | K10: =IFERROR(LOOKUP($B$2,'Trans RIN_Capex_Outputs Commiss'!C265:H265),"No False Errors") -> No False Errors | L10: =IFERROR(LOOKUP($B$2,'Trans RIN_Capex_Outputs Commiss'!C313:H313),"No False Errors") -> No False Errors | M10: =IFERROR(LOOKUP($B$2,'Trans RIN_Capex_Outputs Commiss'!C360:H360),"No False Errors") -> No False Errors | N10: =IFERROR(LOOKUP($B$2,'Trans RIN_Capex_Outputs Commiss'!C409:H409),"No False Errors") -> No False Errors | O10: =IFERROR(LOOKUP($B$2,'Trans RIN_Capex_Outputs Commiss'!C457:H457),"No False Errors") -> No False Errors | P10: =IFERROR(LOOKUP($B$2,'Trans RIN_Capex_Outputs Commiss'!C505:H505),"No False Errors") -> No False Errors | T10: Non-Network Other | U10: Operational Support Systems
F11: Trans RIN_Capex_Outputs Commiss | G11: =IFERROR(LOOKUP($B$2,'Trans RIN_Capex_Outputs Commiss'!K94:W94),"No False Errors") -> No False Errors | H11: =IFERROR(LOOKUP($B$2,'Trans RIN_Capex_Outputs Commiss'!K142:W142),"No False Errors") -> No False Errors | I11: =IFERROR(LOOKUP($B$2,'Trans RIN_Capex_Outputs Commiss'!K190:W190),"No False Errors") -> No False Errors | J11: =IFERROR(LOOKUP($B$2,'Trans RIN_Capex_Outputs Commiss'!K238:W238),"No False Errors") -> No False Errors | K11: =IFERROR(LOOKUP($B$2,'Trans RIN_Capex_Outputs Commiss'!K286:W286),"No False Errors") -> No False Errors | L11: =IFERROR(LOOKUP($B$2,'Trans RIN_Capex_Outputs Commiss'!K326:W326),"No False Errors") -> No False Errors | M11: =IFERROR(LOOKUP($B$2,'Trans RIN_Capex_Outputs Commiss'!K382:W382),"No False Errors") -> No False Errors | N11: =IFERROR(LOOKUP($B$2,'Trans RIN_Capex_Outputs Commiss'!K430:W430),"No False Errors") -> No False Errors | O11: =IFERROR(LOOKUP($B$2,'Trans RIN_Capex_Outputs Commiss'!K478:W478),"No False Errors") -> No False Errors | P11: =IFERROR(LOOKUP($B$2,'Trans RIN_Capex_Outputs Commiss'!K526:W526),"No False Errors") -> No False Errors | U11: Renewal
B12: =IFERROR(VLOOKUP($B$2,'Raw Data OH analysis '!C13:O13,1,FALSE),"No False Errors") -> No False Errors | C12: ='Raw Data OH analysis '!A4 -> CHECK THAT Overheads - Works and Service Delivery allocated as % of labour hours EXPENDITURE IS ALLOCATED FOR THE YEAR | U12: Customer Initiated Works | V12: =T5 -> Customer initiated
B13: =IFERROR(VLOOKUP($B$2,'Raw Data OH analysis '!C38:O38,1,FALSE),"No False Errors") -> No False Errors | C13: ='Raw Data OH analysis '!A29 -> CHECK THAT Overheads - Shared Services allocated as % of Spend EXPENDITURE IS ALLOCATED FOR THE YEAR | U13: Other Standard Control Capex
U14: Regulatory & Network Management | V14: =T4 -> Renewal/enhancement
U15: Reinforcement | V15: =T6 -> Reinforcements
B16: Allocations should be Rounded to 100%'s | U16: Reliability & Quality Maintained | V16: =T4 -> Renewal/enhancement
B17: ='RAW data'!AU1 -> 10 | C17: =ROUND(B17/100%,0) -> 10 | D17: =ROUND(B17/100%,4) -> 10 | E17: =C17=D17 -> TRUE | F17: ='RAW data'!AU2 -> % of Total Expenditure per year | G17: Check Extraction Template (for Reset RINS)
B18: ='RAW data'!AV1 -> 40 | C18: =ROUND(B18/100%,0) -> 40 | D18: =ROUND(B18/100%,4) -> 40 | E18: =C18=D18 -> TRUE | F18: ='RAW data'!AV2 -> % of Total CAPEX Labour hours (based on forms of control) | G18: 0 | H18: 0 | I18: 0 | J18: 0 | K18: 0
G19: =G18=0 -> TRUE | H19: =H18=0 -> TRUE | I19: TRUE | J19: TRUE | K19: TRUE
E21: CHECK that there are no services classifications without a name | H21: 1560429293 | I21: Top Down
B22: Input Tab checks | H22: =SUM('RAW data'!Q1:U1) -> 1560429293 | I22: POW
B23: =IFERROR(HLOOKUP($B$2,Inputs!E82:R82,1,FALSE),"No False Errors") -> No False Errors | F23: POW Year | H23: =H22=H21 -> TRUE
B24: =IFERROR(HLOOKUP($B$2,Inputs!E90:R90,1,FALSE),"No False Errors") -> No False Errors | E24: Service Classification | F24: Grand Total
B25: =IFERROR(HLOOKUP($B$2,Inputs!E95:R95,1,FALSE),"No False Errors") -> No False Errors | E25: Grand Total | H25: Incurred and Commissioned all allocated
B26: =IFERROR(HLOOKUP($B$2,Inputs!E98:R98,1,FALSE),"No False Errors") -> No False Errors | H26: =IFERROR(VLOOKUP($B$2,'INCURRED & COMMISSIONED'!AA6:AA89,1,FALSE),"No False Errors") -> No False Errors | I26: =IFERROR(VLOOKUP($B$2,'INCURRED & COMMISSIONED'!AB6:AB89,1,FALSE),"No False Errors") -> No False Errors
B27: =IFERROR(HLOOKUP($B$2,Inputs!E116:R116,1,FALSE),"No False Errors") -> No False Errors
B28: =IFERROR(HLOOKUP($B$2,Inputs!E134:R134,1,FALSE),"No False Errors") -> No False Errors
B29: =IFERROR(HLOOKUP($B$2,Inputs!E169:R169,1,FALSE),"No False Errors") -> No False Errors | E29: TOTAL DIRECT EXPENDITURE
B30: =IFERROR(HLOOKUP($B$2,Inputs!E170:R170,1,FALSE),"No False Errors") -> No False Errors
B31: =IFERROR(HLOOKUP($B$2,Inputs!E178:R178,1,FALSE),"No False Errors") -> No False Errors
B32: =IFERROR(HLOOKUP($B$2,Inputs!E182:R182,1,FALSE),"No False Errors") -> No False Errors | E32: Sum of Total Real Escalation | H32: POW Year
B33: =IFERROR(HLOOKUP($B$2,Inputs!E185:R185,1,FALSE),"No False Errors") -> No False Errors | E33: Capex Opex | F33: Regulatory Business Segment | G33: Service Classification | H33: 2019/20 | I33: 2020/21 | J33: 2021/22 | K33: 2022/23 | L33: 2023/24 | M33: 2024/25 | N33: 2025/26 | O33: 2026/27 | P33: 2027/28 | Q33: 2028/29 | R33: Grand Total
B34: =IFERROR(HLOOKUP($B$2,Inputs!E193:R193,1,FALSE),"No False Errors") -> No False Errors | E34: CAPEX | F34: Distribution | G34: Alternative Control Services | H34: 3430213.47 | I34: 3232537.361 | J34: 1729931.971 | K34: 1725932.516 | L34: 1755591.764 | M34: 1752026.369 | N34: 1775933.589 | O34: 1777755.304 | P34: 1774120.758 | Q34: 1775933.589 | R34: 20729976.69 | S34: =SUM(H34:L34) -> 11874207.08 | T34: =S34/5 -> 2374841.416
B35: =IFERROR(HLOOKUP($B$2,Inputs!E199:R199,1,FALSE),"No False Errors") -> No False Errors | E35: CAPEX | F35: Distribution | G35: Standard Control Services | H35: 91328924.87 | I35: 92601026.35 | J35: 88645302.09 | K35: 85031533.6 | L35: 82792584.31 | M35: 81451398.59 | N35: 81172737.63 | O35: 81851160.81 | P35: 81488944.13 | Q35: 82782552.81 | R35: 849146165.2 | S35: =SUM(H35:L35) -> 440399371.2 | T35: =S35/5 -> 88079874.24
E36: CAPEX | F36: Distribution | G36: Unclassified | H36: 115761 | I36: 116242.9542 | J36: 116727.27 | K36: 117213.9589 | L36: 117703.0326 | M36: 116727.27 | N36: 117213.9589 | O36: 117703.0326 | P36: 116727.27 | Q36: 117213.9589 | R36: 1169233.706 | S36: 583648.2157 | T36: 116729.6431
E37: CAPEX | F37: Transmission | G37: Prescribed Services | H37: 23402586.67 | I37: 45240624.88 | J37: 48720059.55 | K37: 32909882.52 | L37: 28872859.9 | M37: 35515622.47 | N37: 29389578.81 | O37: 33580529.46 | P37: 38117157.92 | Q37: 29951102.98 | R37: 345700005.2 | S37: 179146013.5 | T37: 35829202.71
E38: CAPEX | F38: Shared Business Services | G38: Shared Business Services | H38: 32345718 | I38: 28216125.09 | J38: 17838547.57 | K38: 32201533.31 | L38: 34534274.05 | M38: 45744688.03 | N38: 37644456.57 | O38: 25218847.32 | P38: 33212540.08 | Q38: 27786968.57 | R38: 314743698.6 | S38: 145136198 | T38: 29027239.6
E39: CAPEX Total | H39: 150623204 | I39: 169406556.6 | J39: 157050568.5 | K39: 151986095.9 | L39: 148073013.1 | M39: 164580462.7 | N39: 150099920.6 | O39: 142545995.9 | P39: 154709490.2 | Q39: 142413771.9 | R39: 1531489079 | S39: 777139438.1 | T39: 155427887.6
E40: OPEX | F40: Transmission | G40: Non Regulated | H40: 3118137 | I40: 3124248.549 | J40: 3130390.044 | K40: 3136561.632 | L40: 3142763.461 | M40: 3130390.044 | N40: 3136561.632 | O40: 3142763.461 | P40: 3130390.044 | Q40: 3136561.632 | R40: 31328767.5
E41: OPEX Total | H41: 3118137 | I41: 3124248.549 | J41: 3130390.044 | K41: 3136561.632 | L41: 3142763.461 | M41: 3130390.044 | N41: 3136561.632 | O41: 3142763.461 | P41: 3130390.044 | Q41: 3136561.632 | R41: 31328767.5
E42: Grand Total | H42: 153741341 | I42: 172530805.2 | J42: 160180958.5 | K42: 155122657.5 | L42: 151215776.5 | M42: 167710852.8 | N42: 153236482.2 | O42: 145688759.4 | P42: 157839880.2 | Q42: 145550333.5 | R42: 1562817847 | S42: ='RAW data'!BD1 -> 1562817847
E43: TOTAL W & S D OH EXPENDITURE | S43: =ROUND(S42,0)=ROUND(R42,0) -> TRUE
E45: Sum of Overheads - Works and Service Delivery allocated as % of labour hours | H45: POW Year
E46: Capex Opex | F46: Regulatory Business Segment | G46: Service Classification | H46: 2019/20 | I46: 2020/21 | J46: 2021/22 | K46: 2022/23 | L46: 2023/24 | M46: 2024/25 | N46: 2025/26 | O46: 2026/27 | P46: 2027/28 | Q46: 2028/29 | R46: Grand Total
E47: CAPEX | F47: Distribution | G47: Alternative Control Services | H47: 430341.0203 | I47: 428189.3152 | J47: 423907.422 | K47: 419668.3478 | L47: 415471.6643 | M47: 415471.6643 | N47: 415471.6643 | O47: 415471.6643 | P47: 415471.6643 | Q47: 415471.6643 | R47: 4194936.091 | S47: =SUM(H47:L47) -> 2117577.77 | T47: =S47/5 -> 423515.5539
E48: CAPEX | F48: Distribution | G48: Standard Control Services | H48: 9825928.863 | I48: 9776799.218 | J48: 9679031.226 | K48: 9582240.914 | L48: 9486418.505 | M48: 9486418.505 | N48: 9486418.505 | O48: 9486418.505 | P48: 9486418.505 | Q48: 9486418.505 | R48: 95782511.25 | S48: =SUM(H48:L48) -> 48350418.73 | T48: =S48/5 -> 9670083.745
E49: CAPEX | F49: Distribution | G49: Unclassified | H49: 0 | I49: 0 | J49: 0 | K49: 0 | L49: 0 | M49: 0 | N49: 0 | O49: 0 | P49: 0 | Q49: 0 | R49: 0 | S49: 0 | T49: 0
E50: CAPEX | F50: Transmission | G50: Prescribed Services | H50: 2611160.41 | I50: 2598104.608 | J50: 2572123.562 | K50: 2546402.327 | L50: 2520938.303 | M50: 2520938.303 | N50: 2520938.303 | O50: 2520938.303 | P50: 2520938.303 | Q50: 2520938.303 | R50: 25453420.73 | S50: 12848729.21 | T50: 2569745.842
E51: CAPEX | F51: Shared Business Services | G51: Shared Business Services | H51: 0 | I51: 0 | J51: 0 | K51: 0 | L51: 0 | M51: 0 | N51: 0 | O51: 0 | P51: 0 | Q51: 0 | R51: 0 | S51: 0 | T51: 0
E52: CAPEX Total | H52: 12867430.29 | I52: 12803093.14 | J52: 12675062.21 | K52: 12548311.59 | L52: 12422828.47 | M52: 12422828.47 | N52: 12422828.47 | O52: 12422828.47 | P52: 12422828.47 | Q52: 12422828.47 | R52: 125430868.1 | S52: 63316725.71 | T52: 12663345.14
E53: OPEX | F53: Transmission | G53: Non Regulated | H53: 0 | I53: 0 | J53: 0 | K53: 0 | L53: 0 | M53: 0 | N53: 0 | O53: 0 | P53: 0 | Q53: 0 | R53: 0
E54: OPEX Total | H54: 0 | I54: 0 | J54: 0 | K54: 0 | L54: 0 | M54: 0 | N54: 0 | O54: 0 | P54: 0 | Q54: 0 | R54: 0
E55: Grand Total | H55: 12867430.29 | I55: 12803093.14 | J55: 12675062.21 | K55: 12548311.59 | L55: 12422828.47 | M55: 12422828.47 | N55: 12422828.47 | O55: 12422828.47 | P55: 12422828.47 | Q55: 12422828.47 | R55: 125430868.1 | S55: ='RAW data'!BE1 -> 125430868.1
E56: TOTAL SHARED SERVICES OVERHEADS EXPENDITURE | S56: =ROUND(S55,0)=ROUND(R55,0) -> TRUE
E58: Sum of Shared Services Allocate based on % spend | H58: POW Year
E59: Capex Opex | F59: Regulatory Business Segment | G59: Service Classification | H59: 2019/20 | I59: 2020/21 | J59: 2021/22 | K59: 2022/23 | L59: 2023/24 | M59: 2024/25 | N59: 2025/26 | O59: 2026/27 | P59: 2027/28 | Q59: 2028/29 | R59: Grand Total
E60: CAPEX | F60: Distribution | G60: Alternative Control Services | H60: 1170059.174 | I60: 1164208.878 | J60: 1152566.789 | K60: 1141041.121 | L60: 1129630.71 | M60: 1129630.71 | N60: 1129630.71 | O60: 1129630.71 | P60: 1129630.71 | Q60: 1129630.71 | R60: 11405660.22 | S60: =SUM(H60:L60) -> 5757506.672 | T60: =S60/5 -> 1151501.334
E61: CAPEX | F61: Distribution | G61: Standard Control Services | H61: 24693585.97 | I61: 24570118.04 | J61: 24324416.86 | K61: 24081172.69 | L61: 23840360.97 | M61: 23840360.97 | N61: 23840360.97 | O61: 23840360.97 | P61: 23840360.97 | Q61: 23840360.97 | R61: 240711459.4 | S61: =SUM(H61:L61) -> 121509654.5 | T61: =S61/5 -> 24301930.91
E62: CAPEX | F62: Distribution | G62: Unclassified | H62: 0 | I62: 0 | J62: 0 | K62: 0 | L62: 0 | M62: 0 | N62: 0 | O62: 0 | P62: 0 | Q62: 0 | R62: 0 | S62: 0 | T62: 0
E63: CAPEX | F63: Transmission | G63: Prescribed Services | H63: 7248802.701 | I63: 7212558.688 | J63: 7140433.101 | K63: 7069028.77 | L63: 6998338.482 | M63: 6998338.482 | N63: 6998338.482 | O63: 6998338.482 | P63: 6998338.482 | Q63: 6998338.482 | R63: 70660854.15 | S63: 35669161.74 | T63: 7133832.349
E64: CAPEX | F64: Shared Business Services | G64: Shared Business Services | H64: 0 | I64: 0 | J64: 0 | K64: 0 | L64: 0 | M64: 0 | N64: 0 | O64: 0 | P64: 0 | Q64: 0 | R64: 0 | S64: 0 | T64: 0
E65: CAPEX Total | H65: 33112447.85 | I65: 32946885.61 | J65: 32617416.75 | K65: 32291242.59 | L65: 31968330.16 | M65: 31968330.16 | N65: 31968330.16 | O65: 31968330.16 | P65: 31968330.16 | Q65: 31968330.16 | R65: 322777973.8 | S65: 162936323 | T65: 32587264.59
E66: OPEX | F66: Transmission | G66: Non Regulated | H66: 3799465.608 | I66: 3780468.28 | J66: 3742663.597 | K66: 3705236.961 | L66: 3668184.592 | M66: 3668184.592 | N66: 3668184.592 | O66: 3668184.592 | P66: 3668184.592 | Q66: 3668184.592 | R66: 37036942
E67: OPEX Total | H67: 3799465.608 | I67: 3780468.28 | J67: 3742663.597 | K67: 3705236.961 | L67: 3668184.592 | M67: 3668184.592 | N67: 3668184.592 | O67: 3668184.592 | P67: 3668184.592 | Q67: 3668184.592 | R67: 37036942
E68: Grand Total | H68: 36911913.46 | I68: 36727353.89 | J68: 36360080.35 | K68: 35996479.55 | L68: 35636514.75 | M68: 35636514.75 | N68: 35636514.75 | O68: 35636514.75 | P68: 35636514.75 | Q68: 35636514.75 | R68: 359814915.7 | S68: ='RAW data'!BF1 -> 359814915.7
E69: TOTAL TOTAL INCLUDING OVERHEADS EXPENDITURE | S69: =ROUND(S68,0)=ROUND(R68,0) -> TRUE
E71: Sum of Total Including Real Escalation | H71: POW Year
E72: Capex Opex | F72: Regulatory Business Segment | G72: Service Classification | H72: 2019/20 | I72: 2020/21 | J72: 2021/22 | K72: 2022/23 | L72: 2023/24 | M72: 2024/25 | N72: 2025/26 | O72: 2026/27 | P72: 2027/28 | Q72: 2028/29 | R72: Grand Total
E73: CAPEX | F73: Distribution | G73: Alternative Control Services | H73: 5030613.664 | I73: 4824935.554 | J73: 3306406.182 | K73: 3286641.985 | L73: 3300694.138 | M73: 3297128.743 | N73: 3321035.964 | O73: 3322857.678 | P73: 3319223.132 | Q73: 3321035.964 | R73: 36330573 | S73: =SUM(H73:L73) -> 19749291.52 | T73: =S73/5 -> 3949858.305
E74: CAPEX | F74: Distribution | G74: Standard Control Services | H74: 125848439.7 | I74: 126947943.6 | J74: 122648750.2 | K74: 118694947.2 | L74: 116119363.8 | M74: 114778178.1 | N74: 114499517.1 | O74: 115177940.3 | P74: 114815723.6 | Q74: 116109332.3 | R74: 1185640136 | S74: =SUM(H74:L74) -> 610259444.5 | T74: =S74/5 -> 122051888.9
E75: CAPEX | F75: Distribution | G75: Unclassified | H75: 115761 | I75: 116242.9542 | J75: 116727.27 | K75: 117213.9589 | L75: 117703.0326 | M75: 116727.27 | N75: 117213.9589 | O75: 117703.0326 | P75: 116727.27 | Q75: 117213.9589 | R75: 1169233.706 | S75: 583648.2157 | T75: 116729.6431
E76: CAPEX | F76: Transmission | G76: Prescribed Services | H76: 33262549.78 | I76: 55051288.18 | J76: 58432616.21 | K76: 42525313.62 | L76: 38392136.69 | M76: 45034899.25 | N76: 38908855.6 | O76: 43099806.25 | P76: 47636434.7 | Q76: 39470379.77 | R76: 441814280.1 | S76: 227663904.5 | T76: 45532780.9
E77: CAPEX | F77: Shared Business Services | G77: Shared Business Services | H77: 32345718 | I77: 28216125.09 | J77: 17838547.57 | K77: 32201533.31 | L77: 34534274.05 | M77: 45744688.03 | N77: 37644456.57 | O77: 25218847.32 | P77: 33212540.08 | Q77: 27786968.57 | R77: 314743698.6 | S77: 145136198 | T77: 29027239.6
E78: CAPEX Total | H78: 196603082.2 | I78: 215156535.4 | J78: 202343047.4 | K78: 196825650.1 | L78: 192464171.7 | M78: 208971621.4 | N78: 194491079.2 | O78: 186937154.6 | P78: 199100648.8 | Q78: 186804930.5 | R78: 1979697921 | S78: 1003392487 | T78: 200678497.3
E79: OPEX | F79: Transmission | G79: Non Regulated | H79: 6917602.608 | I79: 6904716.829 | J79: 6873053.641 | K79: 6841798.593 | L79: 6810948.053 | M79: 6798574.635 | N79: 6804746.224 | O79: 6810948.053 | P79: 6798574.635 | Q79: 6804746.224 | R79: 68365709.49
E80: OPEX Total | H80: 6917602.608 | I80: 6904716.829 | J80: 6873053.641 | K80: 6841798.593 | L80: 6810948.053 | M80: 6798574.635 | N80: 6804746.224 | O80: 6810948.053 | P80: 6798574.635 | Q80: 6804746.224 | R80: 68365709.49
E81: Grand Total | H81: 203520684.8 | I81: 222061252.2 | J81: 209216101.1 | K81: 203667448.7 | L81: 199275119.7 | M81: 215770196 | N81: 201295825.4 | O81: 193748102.6 | P81: 205899223.4 | Q81: 193609676.8 | R81: 2048063631 | S81: ='RAW data'!BH1 -> 2048063631
S82: =ROUND(S81,0)=ROUND(R81,0) -> TRUE

Sheet RAW data
O1: =SUM(O3:O7814) -> 1742719192 | Q1: 204315287.8 | R1: 411978942 | S1: 888008026.8 | T1: 34636442.25 | U1: 21490594.48 | V1: 182289899.4 | W1: 3245272.41 | AU1: =SUM(AU3:AU7814) -> 10 | AV1: =SUM(AV3:AV7814) -> 40 | AW1: =SUM(AW3:AW7814) -> 0 | AX1: =SUM(AX3:AX7814) -> 60 | BD1: =SUM(BD3:BD2814) -> 1562817847 | BE1: 125430868.1 | BF1: 359814915.7 | BG1: 485245783.8 | BH1: 2048063631 | BI1: 318074354.5 | BJ1: 2366137985 | BL1: 2018/19 | BM1: POW Conversion to Nominal Dollars | ET1: =BO2 -> Overhead Subtransmission Lines (Urban) | EU1: Underground Subtransmission Lines (Urban) | EV1: Urban Zone Substations | EW1: Rural Zone Substations | EX1: SCADA | EY1: Distribution Switching Stations (Ground) | EZ1: Overhead High Voltage Lines Urban | FA1: Overhead High Voltage Lines Rural | FB1: Voltage Regulators on Distribution Feeders | FC1: Underground High Voltage Lines | FD1: Underground High Voltage Lines SWER | FE1: Distribution Substations HV (Pole) | FF1: Distribution Substations HV (Ground) | FG1: Distribution Substations LV (Pole) | FH1: Distribution Substations LV (Ground) | FI1: Overhead Low Voltage Lines Underbuilt Urban | FJ1: Overhead Low Voltage Lines Underbuilt Rural | FK1: Overhead Low Voltage Lines Urban | FL1: Overhead Low Voltage Lines Rural | FM1: Underground Low Voltage Lines | FN1: Underground Low Voltage Common Trench | FO1: HVST Service Connections | FP1: HV Service Connections | FQ1: HV Metering CA Service Connections | FR1: HV/LV Service Connections | FS1: Business LV Service Connections | FT1: Business LV Metering CA Service Connections | FU1: Domestic LV Service Connections | FV1: Domestic LV Metering CA Service Connections | FW1: Wholesale Metering | FX1: HV Metering | FY1: HV/LV Metering | FZ1: =CU2 -> Business LV Metering | GA1: Domestic LV Metering | GB1: Off Peak Metering | GC1: Emergency Network Spares | GD1: System Property | GE1: Land | GF1: Motor Vehicles | GG1: Minor Assets | GH1: Non-System Property | GI1: Non-System Land | GJ1: NEM Assets | GK1: Streetlighting | GL1: Easements | GM1: Meters - Contestable | GN1: Negotiated Services | GO1: Capex Unclassified Other | GP1: Ancillary Service Fees | GQ1: Cable PI Fault Tracking | GR1: DBill 4 Testing Project | GS1: DINIS Replacement | GT1: MDMS - Gentrack BAU Defects | GU1: MVRS Version U/G | GV1: NECF System Implementation | GW1: Process Maturity Project | GX1: TVD-CSC Upgrade v 7.14 | GY1: Rosny Zone - Site Acquisition | GZ1: AVL | HA1: DB Communications Smart TV | HB1: Spare Parts | HC1: Switchgear Installation Guide | HD1: Isolation Equipment | HE1: Field Tool - Stage 1 | HF1: =EA2 -> Business Management Systems | HG1: Transmission line assets - long life (60) | HH1: Transmission line assets - medium life (45) | HI1: Transmission line assets - short life (10) | HJ1: Substation assets - long life (60) | HK1: Substation assets - medium life (45) | HL1: Substation assets - short life (15) | HM1: Protection and control - short life (15) | HN1: Protection and control - short life (4) | HO1: Transmission operations - short life (10) | HP1: Transmission operations - short life (4) | HQ1: Other - medium life (40) | HR1: Other - short life (9) | HS1: Other - short life (4) | HT1: Land and Easements | HU1: Communication assets - long life (45) | HV1: Communication assets - medium life (10) | HW1: Communication assets - short life (5)
A2: DD Tool ID | B2: Capex Opex | C2: Thread | E2: Service Class | F2: RIN Sub Category | G2: RIN Sub Sub Category | H2: Work Category Description | I2: Work Category Code | J2: Project Title | K2: Scope Type | L2: POW Year | M2: Volume | N2: Unit Rate | O2: Total Cost | Q2: Labour Cost | R2: Material Cost | S2: Contractor Cost | T2: Plant Cost | U2: Other Cost | V2: Overheads | W2: Labour Hours | Y2: Unit Type | AA2: Internal Classification | AB2: Internal Sub Category | AC2: Internal Sub Sub Category | AD2: Work Program Code | AE2: Development Status | AF2: Is Ncipap | AG2: %POW For LRMC | AH2: Cost Allocation Category | AI2: Description | AJ2: Additional Information | AK2: COMMISSIONED | AL2: Regulatory Business Segment | AM2: Service Classification | AN2: Work Level Description (RIN Sub Category) | AO2: Work Program Description (RIN Sub Sub category) | AP2: (RIN Sub Sub Sub Category) Work Level Description | AQ2: Level 1 | AR2: Level 2 | AS2: Level 3 | AT2: Level 4 | AU2: % of Total Expenditure per year | AV2: % of Total CAPEX Labour hours (based on forms of control) | AW2: % of Total OPEX Labour hours (based on forms of control) | AX2: % of Total Spend (based on forms of control) | AY2: Labour cost Real Escalation | AZ2: Material Cost Real Escalation | BA2: Contractor Cost Real Escalation | BB2: Plant Cost Real Escalation | BC2: Other Cost | BD2: Total Real Escalation | BE2: Overheads - Works and Service Delivery allocated as % of labour hours | BF2: Shared Services Allocate based on % spend | BG2: Total Overheads | BH2: Total Including Real Escalation | BI2: Overheads - Shared Capex (IT, Fleet & Facilities) | BJ2: Total Including OH and Shared Capex Real Escalation | BK2: Name of expenditure | BL2: Total WITH Real Escalation | BM2: Total Overheads WITH Real Escalation | BN2: Total Including OH WITH Real Escalation | BO2: Overhead Subtransmission Lines (Urban) | BP2: Underground Subtransmission Lines (Urban) | BQ2: Urban Zone Substations | BR2: Rural Zone Substations | BS2: SCADA | BT2: Distribution Switching Stations (Ground) | BU2: Overhead High Voltage Lines Urban | BV2: Overhead High Voltage Lines Rural | BW2: Voltage Regulators on Distribution Feeders | BX2: Underground High Voltage Lines | BY2: Underground High Voltage Lines SWER | BZ2: Distribution Substations HV (Pole) | CA2: Distribution Substations HV (Ground) | CB2: Distribution Substations LV (Pole) | CC2: Distribution Substations LV (Ground) | CD2: Overhead Low Voltage Lines Underbuilt Urban | CE2: Overhead Low Voltage Lines Underbuilt Rural | CF2: Overhead Low Voltage Lines Urban | CG2: Overhead Low Voltage Lines Rural | CH2: Underground Low Voltage Lines | CI2: Underground Low Voltage Common Trench | CJ2: HVST Service Connections | CK2: HV Service Connections | CL2: HV Metering CA Service Connections | CM2: HV/LV Service Connections | CN2: Business LV Service Connections | CO2: Business LV Metering CA Service Connections | CP2: Domestic LV Service Connections | CQ2: Domestic LV Metering CA Service Connections | CR2: Wholesale Metering | CS2: HV Metering | CT2: HV/LV Metering | CU2: Business LV Metering | CV2: Domestic LV Metering | CW2: Off Peak Metering | CX2: Emergency Network Spares | CY2: System Property | CZ2: Land | DA2: Motor Vehicles | DB2: Minor Assets | DC2: Non-System Property | DD2: Non-System Land | DE2: NEM Assets | DF2: Streetlighting | DG2: Easements | DH2: Meters - Contestable | DI2: Negotiated Services | DJ2: Capex Unclassified Other | DK2: Ancillary Service Fees | DL2: Cable PI Fault Tracking | DM2: DBill 4 Testing Project | DN2: DINIS Replacement | DO2: MDMS - Gentrack BAU Defects | DP2: MVRS Version U/G | DQ2: NECF System Implementation | DR2: Process Maturity Project | DS2: TVD-CSC Upgrade v 7.14 | DT2: Rosny Zone - Site Acquisition | DU2: AVL | DV2: DB Communications Smart TV | DW2: Spare Parts | DX2: Switchgear Installation Guide | DY2: Isolation Equipment | DZ2: Field Tool - Stage 1 | EA2: Business Management Systems | EB2: Transmission line assets - long life (60) | EC2: Transmission line assets - medium life (45) | ED2: Transmission line assets - short life (10) | EE2: Substation assets - long life (60) | EF2: Substation assets - medium life (45) | EG2: Substation assets - short life (15) | EH2: Protection and control - short life (15) | EI2: Protection and control - short life (4) | EJ2: Transmission operations - short life (10) | EK2: Transmission operations - short life (4) | EL2: Other - medium life (40) | EM2: Other - short life (9) | EN2: Other - short life (4) | EO2: Land and Easements | EP2: Communication assets - long life (45) | EQ2: Communication assets - medium life (10) | ER2: Communication assets - short life (5) | ES2: Total Allocation | ET2: =BO2&" OH" -> Overhead Subtransmission Lines (Urban) OH | EU2: Underground Subtransmission Lines (Urban) OH | EV2: Urban Zone Substations OH | EW2: Rural Zone Substations OH | EX2: SCADA OH | EY2: Distribution Switching Stations (Ground) OH | EZ2: Overhead High Voltage Lines Urban OH | FA2: Overhead High Voltage Lines Rural OH | FB2: Voltage Regulators on Distribution Feeders OH | FC2: Underground High Voltage Lines OH | FD2: Underground High Voltage Lines SWER OH | FE2: Distribution Substations HV (Pole) OH | FF2: Distribution Substations HV (Ground) OH | FG2: Distribution Substations LV (Pole) OH | FH2: Distribution Substations LV (Ground) OH | FI2: Overhead Low Voltage Lines Underbuilt Urban OH | FJ2: Overhead Low Voltage Lines Underbuilt Rural OH | FK2: Overhead Low Voltage Lines Urban OH | FL2: Overhead Low Voltage Lines Rural OH | FM2: Underground Low Voltage Lines OH | FN2: Underground Low Voltage Common Trench OH | FO2: HVST Service Connections OH | FP2: HV Service Connections OH | FQ2: HV Metering CA Service Connections OH | FR2: HV/LV Service Connections OH | FS2: Business LV Service Connections OH | FT2: Business LV Metering CA Service Connections OH | FU2: Domestic LV Service Connections OH | FV2: Domestic LV Metering CA Service Connections OH | FW2: Wholesale Metering OH | FX2: HV Metering OH | FY2: HV/LV Metering OH | FZ2: =CU2&" OH" -> Business LV Metering OH | GA2: Domestic LV Metering OH | GB2: Off Peak Metering OH | GC2: Emergency Network Spares OH | GD2: System Property OH | GE2: Land OH | GF2: Motor Vehicles OH | GG2: Minor Assets OH | GH2: Non-System Property OH | GI2: Non-System Land OH | GJ2: NEM Assets OH | GK2: Streetlighting OH | GL2: Easements OH | GM2: Meters - Contestable OH | GN2: Negotiated Services OH | GO2: Capex Unclassified Other OH | GP2: Ancillary Service Fees OH | GQ2: Cable PI Fault Tracking OH | GR2: DBill 4 Testing Project OH | GS2: DINIS Replacement OH | GT2: MDMS - Gentrack BAU Defects OH | GU2: MVRS Version U/G OH | GV2: NECF System Implementation OH | GW2: Process Maturity Project OH | GX2: TVD-CSC Upgrade v 7.14 OH | GY2: Rosny Zone - Site Acquisition OH | GZ2: AVL OH | HA2: DB Communications Smart TV OH | HB2: Spare Parts OH | HC2: Switchgear Installation Guide OH | HD2: Isolation Equipment OH | HE2: Field Tool - Stage 1 OH | HF2: =EA2&" OH" -> Business Management Systems OH | HG2: Transmission line assets - long life (60) OH | HH2: Transmission line assets - medium life (45) OH | HI2: Transmission line assets - short life (10) OH | HJ2: Substation assets - long life (60) OH | HK2: Substation assets - medium life (45) OH | HL2: Substation assets - short life (15) OH | HM2: Protection and control - short life (15) OH | HN2: Protection and control - short life (4) OH | HO2: Transmission operations - short life (10) OH | HP2: Transmission operations - short life (4) OH | HQ2: Other - medium life (40) OH | HR2: Other - short life (9) OH | HS2: Other - short life (4) OH | HT2: Land and Easements OH | HU2: Communication assets - long life (45) OH | HV2: Communication assets - medium life (10) OH | HW2: Communication assets - short life (5) OH | HX2: Total Allocation OH | HY2: Total Included with Splits | HZ2: Total OH Included with Splits | IA2: OPEX | IB2: OPEX
A3: 1021 | B3: CAPEX | C3: Customer | E3: Standard Control | H3: Customer Initiated Non-Major Works Commercial | I3: CNMAC | J3: Customer Initiated Non-Major Works Commercial | K3: D | L3: 2019/20 | M3: 187 | N3: 35482.68 | O3: 6303498.102 | Q3: 1297890.256 | R3: 1933913.214 | S3: 1226030.385 | T3: 259073.7685 | U3: 15758.7425 | V3: 1570831.726 | W3: 23295.51 | Y3: Unit | AD3: CUS | AK3: =IFERROR(IF(AL3="Transmission",VLOOKUP(J3,'INCURRED & COMMISSIONED'!$B:$Z,13,FALSE),""),"") ->  | AL3: Distribution | AM3: Standard Control Services | AN3: Standard Control Services | AO3: Customer Initiated Works | AP3: Customer Initiated Non-Major Works Commercial | AQ3: CAPEX | AR3: Network | AS3: Development | AT3: Connection | AU3: =IFERROR($BD3/VLOOKUP("Grand Total",'Raw Data Expenditure analysis '!$A$5:$M$17,MATCH($L3,'Raw Data Expenditure analysis '!$A$5:$M$5,0),FALSE),0) -> 0.03078330354 | AV3: =IFERROR(IF(B3="Capex",$W3/VLOOKUP($AM3,'Raw Data Hrs analysis'!$A$33:$M$42,MATCH($L3,'Raw Data Hrs analysis'!$A$34:$M$34,0),FALSE),0),0) -> 0.07527750277 | AW3: =IFERROR(IF(B3="Opex",0,0),0) -> 0 | AX3: =IFERROR(IF(B3="Opex",$BD3/VLOOKUP($AM3,'Raw Data Expenditure analysis '!$B$69:$M$80,MATCH($L3,'Raw Data Expenditure analysis '!$B$69:$M$69,0),FALSE),$BD3/VLOOKUP($AM3,'Raw Data Expenditure analysis '!$B$54:$M$65,MATCH($L3,'Raw Data Expenditure analysis '!$B$54:$M$54,0),FALSE)),0) -> 0.0518200162 | AY3: =IF(Inputs!$C$203=Inputs!$Q$204,((Q3)*(HLOOKUP($L3,Inputs!$E$208:$R$210,3,FALSE))),(Q3)) -> 1297890.256 | AZ3: =IF(Inputs!$C$203=Inputs!$Q$204,((R3)*(HLOOKUP($L3,Inputs!$E$214:$R$216,3,FALSE))),(R3)) -> 1933913.214 | BA3: =IF(Inputs!$C$203=Inputs!$Q$204,((S3)*(HLOOKUP($L3,Inputs!$E$220:$R$222,3,FALSE))),(S3)) -> 1226030.385 | BB3: =IF(Inputs!$C$203=Inputs!$Q$204,((T3)*(HLOOKUP($L3,Inputs!$E$226:$R$228,3,FALSE))),(T3)) -> 259073.7685 | BC3: =IF(Inputs!$C$203=Inputs!$Q$204,((U3)*(HLOOKUP($L3,Inputs!$E$226:$R$228,3,FALSE))),(U3)) -> 15758.7425 | BD3: =IFERROR(SUM(AY3:BC3),0) -> 4732666.366 | BE3: =IFERROR(IF(B3="Opex",0,VLOOKUP($AM3,Inputs!$B$46:$R$54,MATCH(L3,Inputs!$B$46:$R$46,0),FALSE)*AV3),0) -> 739671.3871 | BF3: =IFERROR(IF(B3="Opex",0,VLOOKUP($AM3,Inputs!$B$101:$R$111,MATCH(L3,Inputs!$B$63:$R$63,0),FALSE))*AX3,0) -> 1279622.025 | BG3: =SUM(BE3:BF3) -> 2019293.412 | BH3: =SUM(BD3,BG3) -> 6751959.779 | BI3: =IFERROR(IF(B3="Opex",0,VLOOKUP($AM3,Inputs!$B$173:$R$181,MATCH(L3,Inputs!$B$123:$R$123,0),FALSE)*AX3),0) -> 1416963.455 | BJ3: =SUM(BH3:BI3) -> 8168923.234 | BK3: =AL3&" - "&B3 -> Distribution - CAPEX | BL3: =(($BD3)*(HLOOKUP($BL$1,Inputs!$B$32:$R$37,MATCH($BM$1,Inputs!$B$32:$B$37,0),FALSE))) -> 4967407.801 | BM3: =(($BG3)*(HLOOKUP($BL$1,Inputs!$B$32:$R$37,MATCH($BM$1,Inputs!$B$32:$B$37,0),FALSE))) -> 2119450.87 | BN3: =SUM(BL3:BM3) -> 7086858.672 | BO3: 0 | BP3: 0 | BQ3: 0 | BR3: 0 | BS3: 0 | BT3: 0 | BU3: 263086.3278 | BV3: 1052345.311 | BW3: 0 | BX3: 2101803.088 | BY3: 0 | BZ3: 0 | CA3: 263086.3278 | CB3: 526172.6557 | CC3: 0 | CD3: 0 | CE3: 0 | CF3: 263086.3278 | CG3: 263086.3278 | CH3: 0 | CI3: 0 | CJ3: 0 | CK3: 0 | CL3: 0 | CM3: 0 | CN3: 0 | CO3: 0 | CP3: 0 | CQ3: 0 | CR3: 0 | CS3: 0 | CT3: 0 | CU3: 0 | CV3: 0 | CW3: 0 | CX3: 0 | CY3: 0 | CZ3: 0 | DA3: 0 | DB3: 0 | DC3: 0 | DD3: 0 | DE3: 0 | DF3: 0 | DG3: 0 | DH3: 0 | DI3: 0 | DJ3: 0 | DK3: 0 | DL3: 0 | DM3: 0 | DN3: 0 | DO3: 0 | DP3: 0 | DQ3: 0 | DR3: 0 | DS3: 0 | DT3: 0 | DU3: 0 | DV3: 0 | DW3: 0 | DX3: 0 | DY3: 0 | DZ3: 0 | EA3: 0 | EB3: 0 | EC3: 0 | ED3: 0 | EE3: 0 | EF3: 0 | EG3: 0 | EH3: 0 | EI3: 0 | EJ3: 0 | EK3: 0 | EL3: 0 | EM3: 0 | EN3: 0 | EO3: 0 | EP3: 0 | EQ3: 0 | ER3: 0 | ES3: =SUM(BO3:ER3) -> 4732666.366 | ET3: 0 | EU3: 0 | EV3: 0 | EW3: 0 | EX3: 0 | EY3: 0 | EZ3: 112251.4134 | FA3: 449005.6535 | FB3: 0 | FC3: 896779.2786 | FD3: 0 | FE3: 0 | FF3: 112251.4134 | FG3: 224502.8268 | FH3: 0 | FI3: 0 | FJ3: 0 | FK3: 112251.4134 | FL3: 112251.4134 | FM3: 0 | FN3: 0 | FO3: 0 | FP3: 0 | FQ3: 0 | FR3: 0 | FS3: 0 | FT3: 0 | FU3: 0 | FV3: 0 | FW3: 0 | FX3: 0 | FY3: 0 | FZ3: 0 | GA3: 0 | GB3: 0 | GC3: 0 | GD3: 0 | GE3: 0 | GF3: 0 | GG3: 0 | GH3: 0 | GI3: 0 | GJ3: 0 | GK3: 0 | GL3: 0 | GM3: 0 | GN3: 0 | GO3: 0 | GP3: 0 | GQ3: 0 | GR3: 0 | GS3: 0 | GT3: 0 | GU3: 0 | GV3: 0 | GW3: 0 | GX3: 0 | GY3: 0 | GZ3: 0 | HA3: 0 | HB3: 0 | HC3: 0 | HD3: 0 | HE3: 0 | HF3: 0 | HG3: 0 | HH3: 0 | HI3: 0 | HJ3: 0 | HK3: 0 | HL3: 0 | HM3: 0 | HN3: 0 | HO3: 0 | HP3: 0 | HQ3: 0 | HR3: 0 | HS3: 0 | HT3: 0 | HU3: 0 | HV3: 0 | HW3: 0 | HX3: =SUM(ET3:HW3) -> 2019293.412 | HY3: =ROUND(ES3+IA3,2)=ROUND(BD3,2) -> TRUE | HZ3: =ROUND(HX3+IB3,2)=ROUND(BG3,2) -> TRUE | IA3: 0 | IB3: 0
A4: 1021 | B4: CAPEX | C4: Customer | E4: Standard Control | H4: Customer Initiated Non-Major Works Commercial | I4: CNMAC | J4: Customer Initiated Non-Major Works Commercial | K4: D | L4: 2020/21 | M4: 209 | N4: 35482.68 | O4: 7045086.114 | Q4: 1450583.234 | R4: 2161432.419 | S4: 1370269.246 | T4: 289553.0365 | U4: 17612.715 | V4: 1755635.464 | W4: 26036.16 | Y4: Unit | AD4: CUS | AK4: =IFERROR(IF(AL4="Transmission",VLOOKUP(J4,'INCURRED & COMMISSIONED'!$B:$Z,13,FALSE),""),"") ->  | AL4: Distribution | AM4: Standard Control Services | AN4: Standard Control Services | AO4: Customer Initiated Works | AP4: Customer Initiated Non-Major Works Commercial | AQ4: CAPEX | AR4: Network | AS4: Development | AT4: Connection | AU4: =IFERROR($BD4/VLOOKUP("Grand Total",'Raw Data Expenditure analysis '!$A$5:$M$17,MATCH($L4,'Raw Data Expenditure analysis '!$A$5:$M$5,0),FALSE),0) -> 0.03069920472 | AV4: =IFERROR(IF(B4="Capex",$W4/VLOOKUP($AM4,'Raw Data Hrs analysis'!$A$33:$M$42,MATCH($L4,'Raw Data Hrs analysis'!$A$34:$M$34,0),FALSE),0),0) -> 0.08413799736 | AW4: =IFERROR(IF(B4="Opex",0,0),0) -> 0 | AX4: =IFERROR(IF(B4="Opex",$BD4/VLOOKUP($AM4,'Raw Data Expenditure analysis '!$B$69:$M$80,MATCH($L4,'Raw Data Expenditure analysis '!$B$69:$M$69,0),FALSE),$BD4/VLOOKUP($AM4,'Raw Data Expenditure analysis '!$B$54:$M$65,MATCH($L4,'Raw Data Expenditure analysis '!$B$54:$M$54,0),FALSE)),0) -> 0.05719762207 | AY4: =IF(Inputs!$C$203=Inputs!$Q$204,((Q4)*(HLOOKUP($L4,Inputs!$E$208:$R$210,3,FALSE))),(Q4)) -> 1457691.092 | AZ4: =IF(Inputs!$C$203=Inputs!$Q$204,((R4)*(HLOOKUP($L4,Inputs!$E$214:$R$216,3,FALSE))),(R4)) -> 2161432.419 | BA4: =IF(Inputs!$C$203=Inputs!$Q$204,((S4)*(HLOOKUP($L4,Inputs!$E$220:$R$222,3,FALSE))),(S4)) -> 1370269.246 | BB4: =IF(Inputs!$C$203=Inputs!$Q$204,((T4)*(HLOOKUP($L4,Inputs!$E$226:$R$228,3,FALSE))),(T4)) -> 289553.0365 | BC4: =IF(Inputs!$C$203=Inputs!$Q$204,((U4)*(HLOOKUP($L4,Inputs!$E$226:$R$228,3,FALSE))),(U4)) -> 17612.715 | BD4: 5296558.508 | BE4: =IFERROR(IF(B4="Opex",0,VLOOKUP($AM4,Inputs!$B$46:$R$54,MATCH(L4,Inputs!$B$46:$R$46,0),FALSE)*AV4),0) -> 822600.3068 | BF4: =IFERROR(IF(B4="Opex",0,VLOOKUP($AM4,Inputs!$B$101:$R$111,MATCH(L4,Inputs!$B$63:$R$63,0),FALSE))*AX4,0) -> 1405352.326 | BG4: 2227952.633 | BH4: 7524511.141 | BI4: =IFERROR(IF(B4="Opex",0,VLOOKUP($AM4,Inputs!$B$173:$R$181,MATCH(L4,Inputs!$B$123:$R$123,0),FALSE)*AX4),0) -> 1234401.684 | BJ4: 8758912.825 | BK4: Distribution - CAPEX | BL4: =(($BD4)*(HLOOKUP($BL$1,Inputs!$B$32:$R$37,MATCH($BM$1,Inputs!$B$32:$B$37,0),FALSE))) -> 5559269.135 | BM4: =(($BG4)*(HLOOKUP($BL$1,Inputs!$B$32:$R$37,MATCH($BM$1,Inputs!$B$32:$B$37,0),FALSE))) -> 2338459.64 | BN4: 7897728.775 | BO4: 0 | BP4: 0 | BQ4: 0 | BR4: 0 | BS4: 0 | BT4: 0 | BU4: 294432.7827 | BV4: 1177731.131 | BW4: 0 | BX4: 2352230.681 | BY4: 0 | BZ4: 0 | CA4: 294432.7827 | CB4: 588865.5655 | CC4: 0 | CD4: 0 | CE4: 0 | CF4: 294432.7827 | CG4: 294432.7827 | CH4: 0 | CI4: 0 | CJ4: 0 | CK4: 0 | CL4: 0 | CM4: 0 | CN4: 0 | CO4: 0 | CP4: 0 | CQ4: 0 | CR4: 0 | CS4: 0 | CT4: 0 | CU4: 0 | CV4: 0 | CW4: 0 | CX4: 0 | CY4: 0 | CZ4: 0 | DA4: 0 | DB4: 0 | DC4: 0 | DD4: 0 | DE4: 0 | DF4: 0 | DG4: 0 | DH4: 0 | DI4: 0 | DJ4: 0 | DK4: 0 | DL4: 0 | DM4: 0 | DN4: 0 | DO4: 0 | DP4: 0 | DQ4: 0 | DR4: 0 | DS4: 0 | DT4: 0 | DU4: 0 | DV4: 0 | DW4: 0 | DX4: 0 | DY4: 0 | DZ4: 0 | EA4: 0 | EB4: 0 | EC4: 0 | ED4: 0 | EE4: 0 | EF4: 0 | EG4: 0 | EH4: 0 | EI4: 0 | EJ4: 0 | EK4: 0 | EL4: 0 | EM4: 0 | EN4: 0 | EO4: 0 | EP4: 0 | EQ4: 0 | ER4: 0 | ES4: 5296558.508 | ET4: 0 | EU4: 0 | EV4: 0 | EW4: 0 | EX4: 0 | EY4: 0 | EZ4: 123850.665 | FA4: 495402.6601 | FB4: 0 | FC4: 989445.9828 | FD4: 0 | FE4: 0 | FF4: 123850.665 | FG4: 247701.33 | FH4: 0 | FI4: 0 | FJ4: 0 | FK4: 123850.665 | FL4: 123850.665 | FM4: 0 | FN4: 0 | FO4: 0 | FP4: 0 | FQ4: 0 | FR4: 0 | FS4: 0 | FT4: 0 | FU4: 0 | FV4: 0 | FW4: 0 | FX4: 0 | FY4: 0 | FZ4: 0 | GA4: 0 | GB4: 0 | GC4: 0 | GD4: 0 | GE4: 0 | GF4: 0 | GG4: 0 | GH4: 0 | GI4: 0 | GJ4: 0 | GK4: 0 | GL4: 0 | GM4: 0 | GN4: 0 | GO4: 0 | GP4: 0 | GQ4: 0 | GR4: 0 | GS4: 0 | GT4: 0 | GU4: 0 | GV4: 0 | GW4: 0 | GX4: 0 | GY4: 0 | GZ4: 0 | HA4: 0 | HB4: 0 | HC4: 0 | HD4: 0 | HE4: 0 | HF4: 0 | HG4: 0 | HH4: 0 | HI4: 0 | HJ4: 0 | HK4: 0 | HL4: 0 | HM4: 0 | HN4: 0 | HO4: 0 | HP4: 0 | HQ4: 0 | HR4: 0 | HS4: 0 | HT4: 0 | HU4: 0 | HV4: 0 | HW4: 0 | HX4: 2227952.633 | HY4: TRUE | HZ4: TRUE | IA4: 0 | IB4: 0
A5: 1021 | B5: CAPEX | C5: Customer | E5: Standard Control | H5: Customer Initiated Non-Major Works Commercial | I5: CNMAC | J5: Customer Initiated Non-Major Works Commercial | K5: D | L5: 2021/22 | M5: 208 | N5: 35482.68 | O5: 7011377.568 | Q5: 1443642.639 | R5: 2151090.633 | S5: 1363712.935 | T5: 288167.6135 | U5: 17528.4405 | V5: 1747235.288 | W5: 25911.59 | Y5: Unit | AD5: CUS | AK5: =IFERROR(IF(AL5="Transmission",VLOOKUP(J5,'INCURRED & COMMISSIONED'!$B:$Z,13,FALSE),""),"") ->  | AL5: Distribution | AM5: Standard Control Services | AN5: Standard Control Services | AO5: Customer Initiated Works | AP5: Customer Initiated Non-Major Works Commercial | AQ5: CAPEX | AR5: Network | AS5: Development | AT5: Connection | AU5: =IFERROR($BD5/VLOOKUP("Grand Total",'Raw Data Expenditure analysis '!$A$5:$M$17,MATCH($L5,'Raw Data Expenditure analysis '!$A$5:$M$5,0),FALSE),0) -> 0.03295226018 | AV5: =IFERROR(IF(B5="Capex",$W5/VLOOKUP($AM5,'Raw Data Hrs analysis'!$A$33:$M$42,MATCH($L5,'Raw Data Hrs analysis'!$A$34:$M$34,0),FALSE),0),0) -> 0.08922414126 | AW5: 0 | AX5: =IFERROR(IF(B5="Opex",$BD5/VLOOKUP($AM5,'Raw Data Expenditure analysis '!$B$69:$M$80,MATCH($L5,'Raw Data Expenditure analysis '!$B$69:$M$69,0),FALSE),$BD5/VLOOKUP($AM5,'Raw Data Expenditure analysis '!$B$54:$M$65,MATCH($L5,'Raw Data Expenditure analysis '!$B$54:$M$54,0),FALSE)),0) -> 0.05954432436 | AY5: =IF(Inputs!$C$203=Inputs!$Q$204,((Q5)*(HLOOKUP($L5,Inputs!$E$208:$R$210,3,FALSE))),(Q5)) -> 1457824.998 | AZ5: =IF(Inputs!$C$203=Inputs!$Q$204,((R5)*(HLOOKUP($L5,Inputs!$E$214:$R$216,3,FALSE))),(R5)) -> 2151090.633 | BA5: =IF(Inputs!$C$203=Inputs!$Q$204,((S5)*(HLOOKUP($L5,Inputs!$E$220:$R$222,3,FALSE))),(S5)) -> 1363712.935 | BB5: =IF(Inputs!$C$203=Inputs!$Q$204,((T5)*(HLOOKUP($L5,Inputs!$E$226:$R$228,3,FALSE))),(T5)) -> 288167.6135 | BC5: =IF(Inputs!$C$203=Inputs!$Q$204,((U5)*(HLOOKUP($L5,Inputs!$E$226:$R$228,3,FALSE))),(U5)) -> 17528.4405 | BD5: 5278324.621 | BE5: =IFERROR(IF(B5="Opex",0,VLOOKUP($AM5,Inputs!$B$46:$R$54,MATCH(L5,Inputs!$B$46:$R$46,0),FALSE)*AV5),0) -> 863603.2493 | BF5: =IFERROR(IF(B5="Opex",0,VLOOKUP($AM5,Inputs!$B$101:$R$111,MATCH(L5,Inputs!$B$63:$R$63,0),FALSE))*AX5,0) -> 1448380.968 | BG5: 2311984.217 | BH5: 7590308.838 | BI5: =IFERROR(IF(B5="Opex",0,VLOOKUP($AM5,Inputs!$B$173:$R$181,MATCH(L5,Inputs!$B$123:$R$123,0),FALSE)*AX5),0) -> 827896.725 | BJ5: 8418205.563 | BK5: Distribution - CAPEX | BL5: =(($BD5)*(HLOOKUP($BL$1,Inputs!$B$32:$R$37,MATCH($BM$1,Inputs!$B$32:$B$37,0),FALSE))) -> 5540130.841 | BM5: =(($BG5)*(HLOOKUP($BL$1,Inputs!$B$32:$R$37,MATCH($BM$1,Inputs!$B$32:$B$37,0),FALSE))) -> 2426659.212 | BN5: 7966790.054 | BO5: 0 | BP5: 0 | BQ5: 0 | BR5: 0 | BS5: 0 | BT5: 0 | BU5: 293419.1709 | BV5: 1173676.684 | BW5: 0 | BX5: 2344132.911 | BY5: 0 | BZ5: 0 | CA5: 293419.1709 | CB5: 586838.3419 | CC5: 0 | CD5: 0 | CE5: 0 | CF5: 293419.1709 | CG5: 293419.1709 | CH5: 0 | CI5: 0 | CJ5: 0 | CK5: 0 | CL5: 0 | CM5: 0 | CN5: 0 | CO5: 0 | CP5: 0 | CQ5: 0 | CR5: 0 | CS5: 0 | CT5: 0 | CU5: 0 | CV5: 0 | CW5: 0 | CX5: 0 | CY5: 0 | CZ5: 0 | DA5: 0 | DB5: 0 | DC5: 0 | DD5: 0 | DE5: 0 | DF5: 0 | DG5: 0 | DH5: 0 | DI5: 0 | DJ5: 0 | DK5: 0 | DL5: 0 | DM5: 0 | DN5: 0 | DO5: 0 | DP5: 0 | DQ5: 0 | DR5: 0 | DS5: 0 | DT5: 0 | DU5: 0 | DV5: 0 | DW5: 0 | DX5: 0 | DY5: 0 | DZ5: 0 | EA5: 0 | EB5: 0 | EC5: 0 | ED5: 0 | EE5: 0 | EF5: 0 | EG5: 0 | EH5: 0 | EI5: 0 | EJ5: 0 | EK5: 0 | EL5: 0 | EM5: 0 | EN5: 0 | EO5: 0 | EP5: 0 | EQ5: 0 | ER5: 0 | ES5: 5278324.621 | ET5: 0 | EU5: 0 | EV5: 0 | EW5: 0 | EX5: 0 | EY5: 0 | EZ5: 128521.9347 | FA5: 514087.7387 | FB5: 0 | FC5: 1026764.87 | FD5: 0 | FE5: 0 | FF5: 128521.9347 | FG5: 257043.8694 | FH5: 0 | FI5: 0 | FJ5: 0 | FK5: 128521.9347 | FL5: 128521.9347 | FM5: 0 | FN5: 0 | FO5: 0 | FP5: 0 | FQ5: 0 | FR5: 0 | FS5: 0 | FT5: 0 | FU5: 0 | FV5: 0 | FW5: 0 | FX5: 0 | FY5: 0 | FZ5: 0 | GA5: 0 | GB5: 0 | GC5: 0 | GD5: 0 | GE5: 0 | GF5: 0 | GG5: 0 | GH5: 0 | GI5: 0 | GJ5: 0 | GK5: 0 | GL5: 0 | GM5: 0 | GN5: 0 | GO5: 0 | GP5: 0 | GQ5: 0 | GR5: 0 | GS5: 0 | GT5: 0 | GU5: 0 | GV5: 0 | GW5: 0 | GX5: 0 | GY5: 0 | GZ5: 0 | HA5: 0 | HB5: 0 | HC5: 0 | HD5: 0 | HE5: 0 | HF5: 0 | HG5: 0 | HH5: 0 | HI5: 0 | HJ5: 0 | HK5: 0 | HL5: 0 | HM5: 0 | HN5: 0 | HO5: 0 | HP5: 0 | HQ5: 0 | HR5: 0 | HS5: 0 | HT5: 0 | HU5: 0 | HV5: 0 | HW5: 0 | HX5: 2311984.217 | HY5: TRUE | HZ5: TRUE | IA5: 0 | IB5: 0
A6: 1021 | B6: CAPEX | C6: Customer | E6: Standard Control | H6: Customer Initiated Non-Major Works Commercial | I6: CNMAC | J6: Customer Initiated Non-Major Works Commercial | K6: D | L6: 2022/23 | M6: 219 | N6: 35482.68 | O6: 7382171.574 | Q6: 1519989.123 | R6: 2264850.236 | S6: 1435832.375 | T6: 303407.2475 | U6: 18455.4315 | V6: 1839637.152 | W6: 27281.91 | Y6: Unit | AD6: CUS | AK6: =IFERROR(IF(AL6="Transmission",VLOOKUP(J6,'INCURRED & COMMISSIONED'!$B:$Z,13,FALSE),""),"") ->  | AL6: Distribution | AM6: Standard Control Services | AN6: Standard Control Services | AO6: Customer Initiated Works | AP6: Customer Initiated Non-Major Works Commercial | AQ6: CAPEX | AR6: Network | AS6: Development | AT6: Connection | AU6: =IFERROR($BD6/VLOOKUP("Grand Total",'Raw Data Expenditure analysis '!$A$5:$M$17,MATCH($L6,'Raw Data Expenditure analysis '!$A$5:$M$5,0),FALSE),0) -> 0.03587475875 | AV6: =IFERROR(IF(B6="Capex",$W6/VLOOKUP($AM6,'Raw Data Hrs analysis'!$A$33:$M$42,MATCH($L6,'Raw Data Hrs analysis'!$A$34:$M$34,0),FALSE),0),0) -> 0.09554906994 | AW6: 0 | AX6: =IFERROR(IF(B6="Opex",$BD6/VLOOKUP($AM6,'Raw Data Expenditure analysis '!$B$69:$M$80,MATCH($L6,'Raw Data Expenditure analysis '!$B$69:$M$69,0),FALSE),$BD6/VLOOKUP($AM6,'Raw Data Expenditure analysis '!$B$54:$M$65,MATCH($L6,'Raw Data Expenditure analysis '!$B$54:$M$54,0),FALSE)),0) -> 0.06544616663 | AY6: =IF(Inputs!$C$203=Inputs!$Q$204,((Q6)*(HLOOKUP($L6,Inputs!$E$208:$R$210,3,FALSE))),(Q6)) -> 1542442.626 | AZ6: =IF(Inputs!$C$203=Inputs!$Q$204,((R6)*(HLOOKUP($L6,Inputs!$E$214:$R$216,3,FALSE))),(R6)) -> 2264850.236 | BA6: =IF(Inputs!$C$203=Inputs!$Q$204,((S6)*(HLOOKUP($L6,Inputs!$E$220:$R$222,3,FALSE))),(S6)) -> 1435832.375 | BB6: =IF(Inputs!$C$203=Inputs!$Q$204,((T6)*(HLOOKUP($L6,Inputs!$E$226:$R$228,3,FALSE))),(T6)) -> 303407.2475 | BC6: =IF(Inputs!$C$203=Inputs!$Q$204,((U6)*(HLOOKUP($L6,Inputs!$E$226:$R$228,3,FALSE))),(U6)) -> 18455.4315 | BD6: 5564987.916 | BE6: =IFERROR(IF(B6="Opex",0,VLOOKUP($AM6,Inputs!$B$46:$R$54,MATCH(L6,Inputs!$B$46:$R$46,0),FALSE)*AV6),0) -> 915574.2073 | BF6: =IFERROR(IF(B6="Opex",0,VLOOKUP($AM6,Inputs!$B$101:$R$111,MATCH(L6,Inputs!$B$63:$R$63,0),FALSE))*AX6,0) -> 1576020.441 | BG6: 2491594.648 | BH6: 8056582.564 | BI6: =IFERROR(IF(B6="Opex",0,VLOOKUP($AM6,Inputs!$B$173:$R$181,MATCH(L6,Inputs!$B$123:$R$123,0),FALSE)*AX6),0) -> 1904548.678 | BJ6: 9961131.243 | BK6: Distribution - CAPEX | BL6: =(($BD6)*(HLOOKUP($BL$1,Inputs!$B$32:$R$37,MATCH($BM$1,Inputs!$B$32:$B$37,0),FALSE))) -> 5841012.708 | BM6: =(($BG6)*(HLOOKUP($BL$1,Inputs!$B$32:$R$37,MATCH($BM$1,Inputs!$B$32:$B$37,0),FALSE))) -> 2615178.365 | BN6: 8456191.074 | BO6: 0 | BP6: 0 | BQ6: 0 | BR6: 0 | BS6: 0 | BT6: 0 | BU6: 309354.6263 | BV6: 1237418.505 | BW6: 0 | BX6: 2471441.653 | BY6: 0 | BZ6: 0 | CA6: 309354.6263 | CB6: 618709.2526 | CC6: 0 | CD6: 0 | CE6: 0 | CF6: 309354.6263 | CG6: 309354.6263 | CH6: 0 | CI6: 0 | CJ6: 0 | CK6: 0 | CL6: 0 | CM6: 0 | CN6: 0 | CO6: 0 | CP6: 0 | CQ6: 0 | CR6: 0 | CS6: 0 | CT6: 0 | CU6: 0 | CV6: 0 | CW6: 0 | CX6: 0 | CY6: 0 | CZ6: 0 | DA6: 0 | DB6: 0 | DC6: 0 | DD6: 0 | DE6: 0 | DF6: 0 | DG6: 0 | DH6: 0 | DI6: 0 | DJ6: 0 | DK6: 0 | DL6: 0 | DM6: 0 | DN6: 0 | DO6: 0 | DP6: 0 | DQ6: 0 | DR6: 0 | DS6: 0 | DT6: 0 | DU6: 0 | DV6: 0 | DW6: 0 | DX6: 0 | DY6: 0 | DZ6: 0 | EA6: 0 | EB6: 0 | EC6: 0 | ED6: 0 | EE6: 0 | EF6: 0 | EG6: 0 | EH6: 0 | EI6: 0 | EJ6: 0 | EK6: 0 | EL6: 0 | EM6: 0 | EN6: 0 | EO6: 0 | EP6: 0 | EQ6: 0 | ER6: 0 | ES6: 5564987.916 | ET6: 0 | EU6: 0 | EV6: 0 | EW6: 0 | EX6: 0 | EY6: 0 | EZ6: 138506.38 | FA6: 554025.5202 | FB6: 0 | FC6: 1106530.848 | FD6: 0 | FE6: 0 | FF6: 138506.38 | FG6: 277012.7601 | FH6: 0 | FI6: 0 | FJ6: 0 | FK6: 138506.38 | FL6: 138506.38 | FM6: 0 | FN6: 0 | FO6: 0 | FP6: 0 | FQ6: 0 | FR6: 0 | FS6: 0 | FT6: 0 | FU6: 0 | FV6: 0 | FW6: 0 | FX6: 0 | FY6: 0 | FZ6: 0 | GA6: 0 | GB6: 0 | GC6: 0 | GD6: 0 | GE6: 0 | GF6: 0 | GG6: 0 | GH6: 0 | GI6: 0 | GJ6: 0 | GK6: 0 | GL6: 0 | GM6: 0 | GN6: 0 | GO6: 0 | GP6: 0 | GQ6: 0 | GR6: 0 | GS6: 0 | GT6: 0 | GU6: 0 | GV6: 0 | GW6: 0 | GX6: 0 | GY6: 0 | GZ6: 0 | HA6: 0 | HB6: 0 | HC6: 0 | HD6: 0 | HE6: 0 | HF6: 0 | HG6: 0 | HH6: 0 | HI6: 0 | HJ6: 0 | HK6: 0 | HL6: 0 | HM6: 0 | HN6: 0 | HO6: 0 | HP6: 0 | HQ6: 0 | HR6: 0 | HS6: 0 | HT6: 0 | HU6: 0 | HV6: 0 | HW6: 0 | HX6: 2491594.648 | HY6: TRUE | HZ6: TRUE | IA6: 0 | IB6: 0
A7: 1021 | B7: CAPEX | C7: Customer | E7: Standard Control | H7: Customer Initiated Non-Major Works Commercial | I7: CNMAC | J7: Customer Initiated Non-Major Works Commercial | K7: D | L7: 2023/24 | M7: 223 | N7: 35482.68 | O7: 7517005.758 | Q7: 1547751.485 | R7: 2306217.368 | S7: 1462057.619 | T7: 308948.9395 | U7: 18792.5105 | V7: 1873237.835 | W7: 27780.21 | Y7: Unit | AD7: CUS | AK7: =IFERROR(IF(AL7="Transmission",VLOOKUP(J7,'INCURRED & COMMISSIONED'!$B:$Z,13,FALSE),""),"") ->  | AL7: Distribution | AM7: Standard Control Services | AN7: Standard Control Services | AO7: Customer Initiated Works | AP7: Customer Initiated Non-Major Works Commercial | AQ7: CAPEX | AR7: Network | AS7: Development | AT7: Connection | AU7: =IFERROR($BD7/VLOOKUP("Grand Total",'Raw Data Expenditure analysis '!$A$5:$M$17,MATCH($L7,'Raw Data Expenditure analysis '!$A$5:$M$5,0),FALSE),0) -> 0.03752470596 | AV7: =IFERROR(IF(B7="Capex",$W7/VLOOKUP($AM7,'Raw Data Hrs analysis'!$A$33:$M$42,MATCH($L7,'Raw Data Hrs analysis'!$A$34:$M$34,0),FALSE),0),0) -> 0.09424282787 | AW7: 0 | AX7: =IFERROR(IF(B7="Opex",$BD7/VLOOKUP($AM7,'Raw Data Expenditure analysis '!$B$69:$M$80,MATCH($L7,'Raw Data Expenditure analysis '!$B$69:$M$69,0),FALSE),$BD7/VLOOKUP($AM7,'Raw Data Expenditure analysis '!$B$54:$M$65,MATCH($L7,'Raw Data Expenditure analysis '!$B$54:$M$54,0),FALSE)),0) -> 0.06853666421 | AY7: =IF(Inputs!$C$203=Inputs!$Q$204,((Q7)*(HLOOKUP($L7,Inputs!$E$208:$R$210,3,FALSE))),(Q7)) -> 1578311.113 | AZ7: =IF(Inputs!$C$203=Inputs!$Q$204,((R7)*(HLOOKUP($L7,Inputs!$E$214:$R$216,3,FALSE))),(R7)) -> 2306217.368 | BA7: =IF(Inputs!$C$203=Inputs!$Q$204,((S7)*(HLOOKUP($L7,Inputs!$E$220:$R$222,3,FALSE))),(S7)) -> 1462057.619 | BB7: =IF(Inputs!$C$203=Inputs!$Q$204,((T7)*(HLOOKUP($L7,Inputs!$E$226:$R$228,3,FALSE))),(T7)) -> 308948.9395 | BC7: =IF(Inputs!$C$203=Inputs!$Q$204,((U7)*(HLOOKUP($L7,Inputs!$E$226:$R$228,3,FALSE))),(U7)) -> 18792.5105 | BD7: 5674327.55 | BE7: =IFERROR(IF(B7="Opex",0,VLOOKUP($AM7,Inputs!$B$46:$R$54,MATCH(L7,Inputs!$B$46:$R$46,0),FALSE)*AV7),0) -> 894026.9063 | BF7: =IFERROR(IF(B7="Opex",0,VLOOKUP($AM7,Inputs!$B$101:$R$111,MATCH(L7,Inputs!$B$63:$R$63,0),FALSE))*AX7,0) -> 1633938.814 | BG7: 2527965.721 | BH7: 8202293.271 | BI7: =IFERROR(IF(B7="Opex",0,VLOOKUP($AM7,Inputs!$B$173:$R$181,MATCH(L7,Inputs!$B$123:$R$123,0),FALSE)*AX7),0) -> 2164718.498 | BJ7: 10367011.77 | BK7: Distribution - CAPEX | BL7: =(($BD7)*(HLOOKUP($BL$1,Inputs!$B$32:$R$37,MATCH($BM$1,Inputs!$B$32:$B$37,0),FALSE))) -> 5955775.616 | BM7: =(($BG7)*(HLOOKUP($BL$1,Inputs!$B$32:$R$37,MATCH($BM$1,Inputs!$B$32:$B$37,0),FALSE))) -> 2653353.452 | BN7: 8609129.068 | BO7: 0 | BP7: 0 | BQ7: 0 | BR7: 0 | BS7: 0 | BT7: 0 | BU7: 315432.7566 | BV7: 1261731.027 | BW7: 0 | BX7: 2519999.984 | BY7: 0 | BZ7: 0 | CA7: 315432.7566 | CB7: 630865.5133 | CC7: 0 | CD7: 0 | CE7: 0 | CF7: 315432.7566 | CG7: 315432.7566 | CH7: 0 | CI7: 0 | CJ7: 0 | CK7: 0 | CL7: 0 | CM7: 0 | CN7: 0 | CO7: 0 | CP7: 0 | CQ7: 0 | CR7: 0 | CS7: 0 | CT7: 0 | CU7: 0 | CV7: 0 | CW7: 0 | CX7: 0 | CY7: 0 | CZ7: 0 | DA7: 0 | DB7: 0 | DC7: 0 | DD7: 0 | DE7: 0 | DF7: 0 | DG7: 0 | DH7: 0 | DI7: 0 | DJ7: 0 | DK7: 0 | DL7: 0 | DM7: 0 | DN7: 0 | DO7: 0 | DP7: 0 | DQ7: 0 | DR7: 0 | DS7: 0 | DT7: 0 | DU7: 0 | DV7: 0 | DW7: 0 | DX7: 0 | DY7: 0 | DZ7: 0 | EA7: 0 | EB7: 0 | EC7: 0 | ED7: 0 | EE7: 0 | EF7: 0 | EG7: 0 | EH7: 0 | EI7: 0 | EJ7: 0 | EK7: 0 | EL7: 0 | EM7: 0 | EN7: 0 | EO7: 0 | EP7: 0 | EQ7: 0 | ER7: 0 | ES7: 5674327.55 | ET7: 0 | EU7: 0 | EV7: 0 | EW7: 0 | EX7: 0 | EY7: 0 | EZ7: 140528.228 | FA7: 562112.9121 | FB7: 0 | FC7: 1122683.44 | FD7: 0 | FE7: 0 | FF7: 140528.228 | FG7: 281056.4561 | FH7: 0 | FI7: 0 | FJ7: 0 | FK7: 140528.228 | FL7: 140528.228 | FM7: 0 | FN7: 0 | FO7: 0 | FP7: 0 | FQ7: 0 | FR7: 0 | FS7: 0 | FT7: 0 | FU7: 0 | FV7: 0 | FW7: 0 | FX7: 0 | FY7: 0 | FZ7: 0 | GA7: 0 | GB7: 0 | GC7: 0 | GD7: 0 | GE7: 0 | GF7: 0 | GG7: 0 | GH7: 0 | GI7: 0 | GJ7: 0 | GK7: 0 | GL7: 0 | GM7: 0 | GN7: 0 | GO7: 0 | GP7: 0 | GQ7: 0 | GR7: 0 | GS7: 0 | GT7: 0 | GU7: 0 | GV7: 0 | GW7: 0 | GX7: 0 | GY7: 0 | GZ7: 0 | HA7: 0 | HB7: 0 | HC7: 0 | HD7: 0 | HE7: 0 | HF7: 0 | HG7: 0 | HH7: 0 | HI7: 0 | HJ7: 0 | HK7: 0 | HL7: 0 | HM7: 0 | HN7: 0 | HO7: 0 | HP7: 0 | HQ7: 0 | HR7: 0 | HS7: 0 | HT7: 0 | HU7: 0 | HV7: 0 | HW7: 0 | HX7: 2527965.721 | HY7: TRUE | HZ7: TRUE | IA7: 0 | IB7: 0
A8: 1021 | B8: CAPEX | C8: Customer | E8: Standard Control | H8: Customer Initiated Non-Major Works Commercial | I8: CNMAC | J8: Customer Initiated Non-Major Works Commercial | K8: D | L8: 2024/25 | M8: 228 | N8: 35482.68 | O8: 7685548.488 | Q8: 1582454.434 | R8: 2357926.277 | S8: 1494839.183 | T8: 315876.045 | U8: 19213.8735 | V8: 1915238.684 | W8: 28403.09 | Y8: Unit | AD8: CUS | AK8: =IFERROR(IF(AL8="Transmission",VLOOKUP(J8,'INCURRED & COMMISSIONED'!$B:$Z,13,FALSE),""),"") ->  | AL8: Distribution | AM8: Standard Control Services | AN8: Standard Control Services | AO8: Customer Initiated Works | AP8: Customer Initiated Non-Major Works Commercial | AQ8: CAPEX | AR8: Network | AS8: Development | AT8: Connection | AU8: =IFERROR($BD8/VLOOKUP("Grand Total",'Raw Data Expenditure analysis '!$A$5:$M$17,MATCH($L8,'Raw Data Expenditure analysis '!$A$5:$M$5,0),FALSE),0) -> 0.03449899494 | AV8: =IFERROR(IF(B8="Capex",$W8/VLOOKUP($AM8,'Raw Data Hrs analysis'!$A$33:$M$42,MATCH($L8,'Raw Data Hrs analysis'!$A$34:$M$34,0),FALSE),0),0) -> 0.105636995 | AW8: 0 | AX8: =IFERROR(IF(B8="Opex",$BD8/VLOOKUP($AM8,'Raw Data Expenditure analysis '!$B$69:$M$80,MATCH($L8,'Raw Data Expenditure analysis '!$B$69:$M$69,0),FALSE),$BD8/VLOOKUP($AM8,'Raw Data Expenditure analysis '!$B$54:$M$65,MATCH($L8,'Raw Data Expenditure analysis '!$B$54:$M$54,0),FALSE)),0) -> 0.07103445689 | AY8: =IF(Inputs!$C$203=Inputs!$Q$204,((Q8)*(HLOOKUP($L8,Inputs!$E$208:$R$210,3,FALSE))),(Q8)) -> 1598000.483 | AZ8: =IF(Inputs!$C$203=Inputs!$Q$204,((R8)*(HLOOKUP($L8,Inputs!$E$214:$R$216,3,FALSE))),(R8)) -> 2357926.277 | BA8: =IF(Inputs!$C$203=Inputs!$Q$204,((S8)*(HLOOKUP($L8,Inputs!$E$220:$R$222,3,FALSE))),(S8)) -> 1494839.183 | BB8: =IF(Inputs!$C$203=Inputs!$Q$204,((T8)*(HLOOKUP($L8,Inputs!$E$226:$R$228,3,FALSE))),(T8)) -> 315876.045 | BC8: =IF(Inputs!$C$203=Inputs!$Q$204,((U8)*(HLOOKUP($L8,Inputs!$E$226:$R$228,3,FALSE))),(U8)) -> 19213.8735 | BD8: 5785855.862 | BE8: =IFERROR(IF(B8="Opex",0,VLOOKUP($AM8,Inputs!$B$46:$R$54,MATCH(L8,Inputs!$B$46:$R$46,0),FALSE)*AV8),0) -> 1002116.745 | BF8: =IFERROR(IF(B8="Opex",0,VLOOKUP($AM8,Inputs!$B$101:$R$111,MATCH(L8,Inputs!$B$63:$R$63,0),FALSE))*AX8,0) -> 1693487.093 | BG8: 2695603.838 | BH8: 8481459.7 | BI8: =IFERROR(IF(B8="Opex",0,VLOOKUP($AM8,Inputs!$B$173:$R$181,MATCH(L8,Inputs!$B$123:$R$123,0),FALSE)*AX8),0) -> 2804345.875 | BJ8: 11285805.57 | BK8: Distribution - CAPEX | BL8: =(($BD8)*(HLOOKUP($BL$1,Inputs!$B$32:$R$37,MATCH($BM$1,Inputs!$B$32:$B$37,0),FALSE))) -> 6072835.759 | BM8: =(($BG8)*(HLOOKUP($BL$1,Inputs!$B$32:$R$37,MATCH($BM$1,Inputs!$B$32:$B$37,0),FALSE))) -> 2829306.462 | BN8: 8902142.221 | BO8: 0 | BP8: 0 | BQ8: 0 | BR8: 0 | BS8: 0 | BT8: 0 | BU8: 321632.5543 | BV8: 1286530.217 | BW8: 0 | BX8: 2569530.319 | BY8: 0 | BZ8: 0 | CA8: 321632.5543 | CB8: 643265.1086 | CC8: 0 | CD8: 0 | CE8: 0 | CF8: 321632.5543 | CG8: 321632.5543 | CH8: 0 | CI8: 0 | CJ8: 0 | CK8: 0 | CL8: 0 | CM8: 0 | CN8: 0 | CO8: 0 | CP8: 0 | CQ8: 0 | CR8: 0 | CS8: 0 | CT8: 0 | CU8: 0 | CV8: 0 | CW8: 0 | CX8: 0 | CY8: 0 | CZ8: 0 | DA8: 0 | DB8: 0 | DC8: 0 | DD8: 0 | DE8: 0 | DF8: 0 | DG8: 0 | DH8: 0 | DI8: 0 | DJ8: 0 | DK8: 0 | DL8: 0 | DM8: 0 | DN8: 0 | DO8: 0 | DP8: 0 | DQ8: 0 | DR8: 0 | DS8: 0 | DT8: 0 | DU8: 0 | DV8: 0 | DW8: 0 | DX8: 0 | DY8: 0 | DZ8: 0 | EA8: 0 | EB8: 0 | EC8: 0 | ED8: 0 | EE8: 0 | EF8: 0 | EG8: 0 | EH8: 0 | EI8: 0 | EJ8: 0 | EK8: 0 | EL8: 0 | EM8: 0 | EN8: 0 | EO8: 0 | EP8: 0 | EQ8: 0 | ER8: 0 | ES8: 5785855.862 | ET8: 0 | EU8: 0 | EV8: 0 | EW8: 0 | EX8: 0 | EY8: 0 | EZ8: 149847.139 | FA8: 599388.5561 | FB8: 0 | FC8: 1197132.448 | FD8: 0 | FE8: 0 | FF8: 149847.139 | FG8: 299694.2781 | FH8: 0 | FI8: 0 | FJ8: 0 | FK8: 149847.139 | FL8: 149847.139 | FM8: 0 | FN8: 0 | FO8: 0 | FP8: 0 | FQ8: 0 | FR8: 0 | FS8: 0 | FT8: 0 | FU8: 0 | FV8: 0 | FW8: 0 | FX8: 0 | FY8: 0 | FZ8: 0 | GA8: 0 | GB8: 0 | GC8: 0 | GD8: 0 | GE8: 0 | GF8: 0 | GG8: 0 | GH8: 0 | GI8: 0 | GJ8: 0 | GK8: 0 | GL8: 0 | GM8: 0 | GN8: 0 | GO8: 0 | GP8: 0 | GQ8: 0 | GR8: 0 | GS8: 0 | GT8: 0 | GU8: 0 | GV8: 0 | GW8: 0 | GX8: 0 | GY8: 0 | GZ8: 0 | HA8: 0 | HB8: 0 | HC8: 0 | HD8: 0 | HE8: 0 | HF8: 0 | HG8: 0 | HH8: 0 | HI8: 0 | HJ8: 0 | HK8: 0 | HL8: 0 | HM8: 0 | HN8: 0 | HO8: 0 | HP8: 0 | HQ8: 0 | HR8: 0 | HS8: 0 | HT8: 0 | HU8: 0 | HV8: 0 | HW8: 0 | HX8: 2695603.838 | HY8: TRUE | HZ8: TRUE | IA8: 0 | IB8: 0
A9: 1021 | B9: CAPEX | C9: Customer | E9: Standard Control | H9: Customer Initiated Non-Major Works Commercial | I9: CNMAC | J9: Customer Initiated Non-Major Works Commercial | K9: D | L9: 2025/26 | M9: 228 | N9: 35482.68 | O9: 7685548.488 | Q9: 1582454.434 | R9: 2357926.277 | S9: 1494839.183 | T9: 315876.045 | U9: 19213.8735 | V9: 1915238.684 | W9: 28403.09 | Y9: Unit | AD9: CUS | AK9: =IFERROR(IF(AL9="Transmission",VLOOKUP(J9,'INCURRED & COMMISSIONED'!$B:$Z,13,FALSE),""),"") ->  | AL9: Distribution | AM9: Standard Control Services | AN9: Standard Control Services | AO9: Customer Initiated Works | AP9: Customer Initiated Non-Major Works Commercial | AQ9: CAPEX | AR9: Network | AS9: Development | AT9: Connection | AU9: =IFERROR($BD9/VLOOKUP("Grand Total",'Raw Data Expenditure analysis '!$A$5:$M$17,MATCH($L9,'Raw Data Expenditure analysis '!$A$5:$M$5,0),FALSE),0) -> 0.03780879058 | AV9: =IFERROR(IF(B9="Capex",$W9/VLOOKUP($AM9,'Raw Data Hrs analysis'!$A$33:$M$42,MATCH($L9,'Raw Data Hrs analysis'!$A$34:$M$34,0),FALSE),0),0) -> 0.1033351841 | AW9: 0 | AX9: =IFERROR(IF(B9="Opex",$BD9/VLOOKUP($AM9,'Raw Data Expenditure analysis '!$B$69:$M$80,MATCH($L9,'Raw Data Expenditure analysis '!$B$69:$M$69,0),FALSE),$BD9/VLOOKUP($AM9,'Raw Data Expenditure analysis '!$B$54:$M$65,MATCH($L9,'Raw Data Expenditure analysis '!$B$54:$M$54,0),FALSE)),0) -> 0.07137477721 | AY9: =IF(Inputs!$C$203=Inputs!$Q$204,((Q9)*(HLOOKUP($L9,Inputs!$E$208:$R$210,3,FALSE))),(Q9)) -> 1605830.685 | AZ9: =IF(Inputs!$C$203=Inputs!$Q$204,((R9)*(HLOOKUP($L9,Inputs!$E$214:$R$216,3,FALSE))),(R9)) -> 2357926.277 | BA9: =IF(Inputs!$C$203=Inputs!$Q$204,((S9)*(HLOOKUP($L9,Inputs!$E$220:$R$222,3,FALSE))),(S9)) -> 1494839.183 | BB9: =IF(Inputs!$C$203=Inputs!$Q$204,((T9)*(HLOOKUP($L9,Inputs!$E$226:$R$228,3,FALSE))),(T9)) -> 315876.045 | BC9: =IF(Inputs!$C$203=Inputs!$Q$204,((U9)*(HLOOKUP($L9,Inputs!$E$226:$R$228,3,FALSE))),(U9)) -> 19213.8735 | BD9: 5793686.064 | BE9: =IFERROR(IF(B9="Opex",0,VLOOKUP($AM9,Inputs!$B$46:$R$54,MATCH(L9,Inputs!$B$46:$R$46,0),FALSE)*AV9),0) -> 980280.8023 | BF9: =IFERROR(IF(B9="Opex",0,VLOOKUP($AM9,Inputs!$B$101:$R$111,MATCH(L9,Inputs!$B$63:$R$63,0),FALSE))*AX9,0) -> 1701600.453 | BG9: 2681881.255 | BH9: 8475567.319 | BI9: =IFERROR(IF(B9="Opex",0,VLOOKUP($AM9,Inputs!$B$173:$R$181,MATCH(L9,Inputs!$B$123:$R$123,0),FALSE)*AX9),0) -> 2371002.211 | BJ9: 10846569.53 | BK9: Distribution - CAPEX | BL9: =(($BD9)*(HLOOKUP($BL$1,Inputs!$B$32:$R$37,MATCH($BM$1,Inputs!$B$32:$B$37,0),FALSE))) -> 6081054.341 | BM9: =(($BG9)*(HLOOKUP($BL$1,Inputs!$B$32:$R$37,MATCH($BM$1,Inputs!$B$32:$B$37,0),FALSE))) -> 2814903.236 | BN9: 8895957.577 | BO9: 0 | BP9: 0 | BQ9: 0 | BR9: 0 | BS9: 0 | BT9: 0 | BU9: 322067.8309 | BV9: 1288271.324 | BW9: 0 | BX9: 2573007.755 | BY9: 0 | BZ9: 0 | CA9: 322067.8309 | CB9: 644135.6619 | CC9: 0 | CD9: 0 | CE9: 0 | CF9: 322067.8309 | CG9: 322067.8309 | CH9: 0 | CI9: 0 | CJ9: 0 | CK9: 0 | CL9: 0 | CM9: 0 | CN9: 0 | CO9: 0 | CP9: 0 | CQ9: 0 | CR9: 0 | CS9: 0 | CT9: 0 | CU9: 0 | CV9: 0 | CW9: 0 | CX9: 0 | CY9: 0 | CZ9: 0 | DA9: 0 | DB9: 0 | DC9: 0 | DD9: 0 | DE9: 0 | DF9: 0 | DG9: 0 | DH9: 0 | DI9: 0 | DJ9: 0 | DK9: 0 | DL9: 0 | DM9: 0 | DN9: 0 | DO9: 0 | DP9: 0 | DQ9: 0 | DR9: 0 | DS9: 0 | DT9: 0 | DU9: 0 | DV9: 0 | DW9: 0 | DX9: 0 | DY9: 0 | DZ9: 0 | EA9: 0 | EB9: 0 | EC9: 0 | ED9: 0 | EE9: 0 | EF9: 0 | EG9: 0 | EH9: 0 | EI9: 0 | EJ9: 0 | EK9: 0 | EL9: 0 | EM9: 0 | EN9: 0 | EO9: 0 | EP9: 0 | EQ9: 0 | ER9: 0 | ES9: 5793686.064 | ET9: 0 | EU9: 0 | EV9: 0 | EW9: 0 | EX9: 0 | EY9: 0 | EZ9: 149084.3082 | FA9: 596337.2327 | FB9: 0 | FC9: 1191038.173 | FD9: 0 | FE9: 0 | FF9: 149084.3082 | FG9: 298168.6163 | FH9: 0 | FI9: 0 | FJ9: 0 | FK9: 149084.3082 | FL9: 149084.3082 | FM9: 0 | FN9: 0 | FO9: 0 | FP9: 0 | FQ9: 0 | FR9: 0 | FS9: 0 | FT9: 0 | FU9: 0 | FV9: 0 | FW9: 0 | FX9: 0 | FY9: 0 | FZ9: 0 | GA9: 0 | GB9: 0 | GC9: 0 | GD9: 0 | GE9: 0 | GF9: 0 | GG9: 0 | GH9: 0 | GI9: 0 | GJ9: 0 | GK9: 0 | GL9: 0 | GM9: 0 | GN9: 0 | GO9: 0 | GP9: 0 | GQ9: 0 | GR9: 0 | GS9: 0 | GT9: 0 | GU9: 0 | GV9: 0 | GW9: 0 | GX9: 0 | GY9: 0 | GZ9: 0 | HA9: 0 | HB9: 0 | HC9: 0 | HD9: 0 | HE9: 0 | HF9: 0 | HG9: 0 | HH9: 0 | HI9: 0 | HJ9: 0 | HK9: 0 | HL9: 0 | HM9: 0 | HN9: 0 | HO9: 0 | HP9: 0 | HQ9: 0 | HR9: 0 | HS9: 0 | HT9: 0 | HU9: 0 | HV9: 0 | HW9: 0 | HX9: 2681881.255 | HY9: TRUE | HZ9: TRUE | IA9: 0 | IB9: 0
A10: 1021 | B10: CAPEX | C10: Customer | E10: Standard Control | H10: Customer Initiated Non-Major Works Commercial | I10: CNMAC | J10: Customer Initiated Non-Major Works Commercial | K10: D | L10: 2026/27 | M10: 223 | N10: 35482.68 | O10: 7517005.758 | Q10: 1547751.485 | R10: 2306217.368 | S10: 1462057.619 | T10: 308948.9395 | U10: 18792.5105 | V10: 1873237.835 | W10: 27780.21 | Y10: Unit | AD10: CUS | AK10: =IFERROR(IF(AL10="Transmission",VLOOKUP(J10,'INCURRED & COMMISSIONED'!$B:$Z,13,FALSE),""),"") ->  | AL10: Distribution | AM10: Standard Control Services | AN10: Standard Control Services | AO10: Customer Initiated Works | AP10: Customer Initiated Non-Major Works Commercial | AQ10: CAPEX | AR10: Network | AS10: Development | AT10: Connection | AU10: =IFERROR($BD10/VLOOKUP("Grand Total",'Raw Data Expenditure analysis '!$A$5:$M$17,MATCH($L10,'Raw Data Expenditure analysis '!$A$5:$M$5,0),FALSE),0) -> 0.03894828657 | AV10: =IFERROR(IF(B10="Capex",$W10/VLOOKUP($AM10,'Raw Data Hrs analysis'!$A$33:$M$42,MATCH($L10,'Raw Data Hrs analysis'!$A$34:$M$34,0),FALSE),0),0) -> 0.1011768734 | AW10: 0 | AX10: =IFERROR(IF(B10="Opex",$BD10/VLOOKUP($AM10,'Raw Data Expenditure analysis '!$B$69:$M$80,MATCH($L10,'Raw Data Expenditure analysis '!$B$69:$M$69,0),FALSE),$BD10/VLOOKUP($AM10,'Raw Data Expenditure analysis '!$B$54:$M$65,MATCH($L10,'Raw Data Expenditure analysis '!$B$54:$M$54,0),FALSE)),0) -> 0.06932494902 | AY10: =IF(Inputs!$C$203=Inputs!$Q$204,((Q10)*(HLOOKUP($L10,Inputs!$E$208:$R$210,3,FALSE))),(Q10)) -> 1578311.113 | AZ10: =IF(Inputs!$C$203=Inputs!$Q$204,((R10)*(HLOOKUP($L10,Inputs!$E$214:$R$216,3,FALSE))),(R10)) -> 2306217.368 | BA10: =IF(Inputs!$C$203=Inputs!$Q$204,((S10)*(HLOOKUP($L10,Inputs!$E$220:$R$222,3,FALSE))),(S10)) -> 1462057.619 | BB10: =IF(Inputs!$C$203=Inputs!$Q$204,((T10)*(HLOOKUP($L10,Inputs!$E$226:$R$228,3,FALSE))),(T10)) -> 308948.9395 | BC10: =IF(Inputs!$C$203=Inputs!$Q$204,((U10)*(HLOOKUP($L10,Inputs!$E$226:$R$228,3,FALSE))),(U10)) -> 18792.5105 | BD10: 5674327.55 | BE10: =IFERROR(IF(B10="Opex",0,VLOOKUP($AM10,Inputs!$B$46:$R$54,MATCH(L10,Inputs!$B$46:$R$46,0),FALSE)*AV10),0) -> 959806.1637 | BF10: =IFERROR(IF(B10="Opex",0,VLOOKUP($AM10,Inputs!$B$101:$R$111,MATCH(L10,Inputs!$B$63:$R$63,0),FALSE))*AX10,0) -> 1652731.809 | BG10: 2612537.972 | BH10: 8286865.523 | BI10: =IFERROR(IF(B10="Opex",0,VLOOKUP($AM10,Inputs!$B$173:$R$181,MATCH(L10,Inputs!$B$123:$R$123,0),FALSE)*AX10),0) -> 1381733.469 | BJ10: 9668598.992 | BK10: Distribution - CAPEX | BL10: =(($BD10)*(HLOOKUP($BL$1,Inputs!$B$32:$R$37,MATCH($BM$1,Inputs!$B$32:$B$37,0),FALSE))) -> 5955775.616 | BM10: =(($BG10)*(HLOOKUP($BL$1,Inputs!$B$32:$R$37,MATCH($BM$1,Inputs!$B$32:$B$37,0),FALSE))) -> 2742120.509 | BN10: 8697896.125 | BO10: 0 | BP10: 0 | BQ10: 0 | BR10: 0 | BS10: 0 | BT10: 0 | BU10: 315432.7566 | BV10: 1261731.027 | BW10: 0 | BX10: 2519999.984 | BY10: 0 | BZ10: 0 | CA10: 315432.7566 | CB10: 630865.5133 | CC10: 0 | CD10: 0 | CE10: 0 | CF10: 315432.7566 | CG10: 315432.7566 | CH10: 0 | CI10: 0 | CJ10: 0 | CK10: 0 | CL10: 0 | CM10: 0 | CN10: 0 | CO10: 0 | CP10: 0 | CQ10: 0 | CR10: 0 | CS10: 0 | CT10: 0 | CU10: 0 | CV10: 0 | CW10: 0 | CX10: 0 | CY10: 0 | CZ10: 0 | DA10: 0 | DB10: 0 | DC10: 0 | DD10: 0 | DE10: 0 | DF10: 0 | DG10: 0 | DH10: 0 | DI10: 0 | DJ10: 0 | DK10: 0 | DL10: 0 | DM10: 0 | DN10: 0 | DO10: 0 | DP10: 0 | DQ10: 0 | DR10: 0 | DS10: 0 | DT10: 0 | DU10: 0 | DV10: 0 | DW10: 0 | DX10: 0 | DY10: 0 | DZ10: 0 | EA10: 0 | EB10: 0 | EC10: 0 | ED10: 0 | EE10: 0 | EF10: 0 | EG10: 0 | EH10: 0 | EI10: 0 | EJ10: 0 | EK10: 0 | EL10: 0 | EM10: 0 | EN10: 0 | EO10: 0 | EP10: 0 | EQ10: 0 | ER10: 0 | ES10: 5674327.55 | ET10: 0 | EU10: 0 | EV10: 0 | EW10: 0 | EX10: 0 | EY10: 0 | EZ10: 145229.5531 | FA10: 580918.2125 | FB10: 0 | FC10: 1160242.441 | FD10: 0 | FE10: 0 | FF10: 145229.5531 | FG10: 290459.1062 | FH10: 0 | FI10: 0 | FJ10: 0 | FK10: 145229.5531 | FL10: 145229.5531 | FM10: 0 | FN10: 0 | FO10: 0 | FP10: 0 | FQ10: 0 | FR10: 0 | FS10: 0 | FT10: 0 | FU10: 0 | FV10: 0 | FW10: 0 | FX10: 0 | FY10: 0 | FZ10: 0 | GA10: 0 | GB10: 0 | GC10: 0 | GD10: 0 | GE10: 0 | GF10: 0 | GG10: 0 | GH10: 0 | GI10: 0 | GJ10: 0 | GK10: 0 | GL10: 0 | GM10: 0 | GN10: 0 | GO10: 0 | GP10: 0 | GQ10: 0 | GR10: 0 | GS10: 0 | GT10: 0 | GU10: 0 | GV10: 0 | GW10: 0 | GX10: 0 | GY10: 0 | GZ10: 0 | HA10: 0 | HB10: 0 | HC10: 0 | HD10: 0 | HE10: 0 | HF10: 0 | HG10: 0 | HH10: 0 | HI10: 0 | HJ10: 0 | HK10: 0 | HL10: 0 | HM10: 0 | HN10: 0 | HO10: 0 | HP10: 0 | HQ10: 0 | HR10: 0 | HS10: 0 | HT10: 0 | HU10: 0 | HV10: 0 | HW10: 0 | HX10: 2612537.972 | HY10: TRUE | HZ10: TRUE | IA10: 0 | IB10: 0
A11: 1021 | B11: CAPEX | C11: Customer | E11: Standard Control | H11: Customer Initiated Non-Major Works Commercial | I11: CNMAC | J11: Customer Initiated Non-Major Works Commercial | K11: D | L11: 2027/28 | M11: 223 | N11: 35482.68 | O11: 7517005.758 | Q11: 1547751.485 | R11: 2306217.368 | S11: 1462057.619 | T11: 308948.9395 | U11: 18792.5105 | V11: 1873237.835 | W11: 27780.21 | Y11: Unit | AD11: CUS | AK11: =IFERROR(IF(AL11="Transmission",VLOOKUP(J11,'INCURRED & COMMISSIONED'!$B:$Z,13,FALSE),""),"") ->  | AL11: Distribution | AM11: Standard Control Services | AN11: Standard Control Services | AO11: Customer Initiated Works | AP11: Customer Initiated Non-Major Works Commercial | AQ11: CAPEX | AR11: Network | AS11: Development | AT11: Connection | AU11: =IFERROR($BD11/VLOOKUP("Grand Total",'Raw Data Expenditure analysis '!$A$5:$M$17,MATCH($L11,'Raw Data Expenditure analysis '!$A$5:$M$5,0),FALSE),0) -> 0.03585261875 | AV11: =IFERROR(IF(B11="Capex",$W11/VLOOKUP($AM11,'Raw Data Hrs analysis'!$A$33:$M$42,MATCH($L11,'Raw Data Hrs analysis'!$A$34:$M$34,0),FALSE),0),0) -> 0.09986808381 | AW11: 0 | AX11: =IFERROR(IF(B11="Opex",$BD11/VLOOKUP($AM11,'Raw Data Expenditure analysis '!$B$69:$M$80,MATCH($L11,'Raw Data Expenditure analysis '!$B$69:$M$69,0),FALSE),$BD11/VLOOKUP($AM11,'Raw Data Expenditure analysis '!$B$54:$M$65,MATCH($L11,'Raw Data Expenditure analysis '!$B$54:$M$54,0),FALSE)),0) -> 0.06944467264 | AY11: =IF(Inputs!$C$203=Inputs!$Q$204,((Q11)*(HLOOKUP($L11,Inputs!$E$208:$R$210,3,FALSE))),(Q11)) -> 1562956.612 | AZ11: =IF(Inputs!$C$203=Inputs!$Q$204,((R11)*(HLOOKUP($L11,Inputs!$E$214:$R$216,3,FALSE))),(R11)) -> 2306217.368 | BA11: =IF(Inputs!$C$203=Inputs!$Q$204,((S11)*(HLOOKUP($L11,Inputs!$E$220:$R$222,3,FALSE))),(S11)) -> 1462057.619 | BB11: =IF(Inputs!$C$203=Inputs!$Q$204,((T11)*(HLOOKUP($L11,Inputs!$E$226:$R$228,3,FALSE))),(T11)) -> 308948.9395 | BC11: =IF(Inputs!$C$203=Inputs!$Q$204,((U11)*(HLOOKUP($L11,Inputs!$E$226:$R$228,3,FALSE))),(U11)) -> 18792.5105 | BD11: 5658973.049 | BE11: =IFERROR(IF(B11="Opex",0,VLOOKUP($AM11,Inputs!$B$46:$R$54,MATCH(L11,Inputs!$B$46:$R$46,0),FALSE)*AV11),0) -> 947390.4383 | BF11: =IFERROR(IF(B11="Opex",0,VLOOKUP($AM11,Inputs!$B$101:$R$111,MATCH(L11,Inputs!$B$63:$R$63,0),FALSE))*AX11,0) -> 1655586.063 | BG11: 2602976.501 | BH11: 8261949.55 | BI11: =IFERROR(IF(B11="Opex",0,VLOOKUP($AM11,Inputs!$B$173:$R$181,MATCH(L11,Inputs!$B$123:$R$123,0),FALSE)*AX11),0) -> 1724137.788 | BJ11: 9986087.338 | BK11: Distribution - CAPEX | BL11: =(($BD11)*(HLOOKUP($BL$1,Inputs!$B$32:$R$37,MATCH($BM$1,Inputs!$B$32:$B$37,0),FALSE))) -> 5939659.527 | BM11: =(($BG11)*(HLOOKUP($BL$1,Inputs!$B$32:$R$37,MATCH($BM$1,Inputs!$B$32:$B$37,0),FALSE))) -> 2732084.786 | BN11: 8671744.314 | BO11: 0 | BP11: 0 | BQ11: 0 | BR11: 0 | BS11: 0 | BT11: 0 | BU11: 314579.2083 | BV11: 1258316.833 | BW11: 0 | BX11: 2513180.966 | BY11: 0 | BZ11: 0 | CA11: 314579.2083 | CB11: 629158.4166 | CC11: 0 | CD11: 0 | CE11: 0 | CF11: 314579.2083 | CG11: 314579.2083 | CH11: 0 | CI11: 0 | CJ11: 0 | CK11: 0 | CL11: 0 | CM11: 0 | CN11: 0 | CO11: 0 | CP11: 0 | CQ11: 0 | CR11: 0 | CS11: 0 | CT11: 0 | CU11: 0 | CV11: 0 | CW11: 0 | CX11: 0 | CY11: 0 | CZ11: 0 | DA11: 0 | DB11: 0 | DC11: 0 | DD11: 0 | DE11: 0 | DF11: 0 | DG11: 0 | DH11: 0 | DI11: 0 | DJ11: 0 | DK11: 0 | DL11: 0 | DM11: 0 | DN11: 0 | DO11: 0 | DP11: 0 | DQ11: 0 | DR11: 0 | DS11: 0 | DT11: 0 | DU11: 0 | DV11: 0 | DW11: 0 | DX11: 0 | DY11: 0 | DZ11: 0 | EA11: 0 | EB11: 0 | EC11: 0 | ED11: 0 | EE11: 0 | EF11: 0 | EG11: 0 | EH11: 0 | EI11: 0 | EJ11: 0 | EK11: 0 | EL11: 0 | EM11: 0 | EN11: 0 | EO11: 0 | EP11: 0 | EQ11: 0 | ER11: 0 | ES11: 5658973.049 | ET11: 0 | EU11: 0 | EV11: 0 | EW11: 0 | EX11: 0 | EY11: 0 | EZ11: 144698.0362 | FA11: 578792.1447 | FB11: 0 | FC11: 1155996.139 | FD11: 0 | FE11: 0 | FF11: 144698.0362 | FG11: 289396.0724 | FH11: 0 | FI11: 0 | FJ11: 0 | FK11: 144698.0362 | FL11: 144698.0362 | FM11: 0 | FN11: 0 | FO11: 0 | FP11: 0 | FQ11: 0 | FR11: 0 | FS11: 0 | FT11: 0 | FU11: 0 | FV11: 0 | FW11: 0 | FX11: 0 | FY11: 0 | FZ11: 0 | GA11: 0 | GB11: 0 | GC11: 0 | GD11: 0 | GE11: 0 | GF11: 0 | GG11: 0 | GH11: 0 | GI11: 0 | GJ11: 0 | GK11: 0 | GL11: 0 | GM11: 0 | GN11: 0 | GO11: 0 | GP11: 0 | GQ11: 0 | GR11: 0 | GS11: 0 | GT11: 0 | GU11: 0 | GV11: 0 | GW11: 0 | GX11: 0 | GY11: 0 | GZ11: 0 | HA11: 0 | HB11: 0 | HC11: 0 | HD11: 0 | HE11: 0 | HF11: 0 | HG11: 0 | HH11: 0 | HI11: 0 | HJ11: 0 | HK11: 0 | HL11: 0 | HM11: 0 | HN11: 0 | HO11: 0 | HP11: 0 | HQ11: 0 | HR11: 0 | HS11: 0 | HT11: 0 | HU11: 0 | HV11: 0 | HW11: 0 | HX11: 2602976.501 | HY11: TRUE | HZ11: TRUE | IA11: 0 | IB11: 0
A12: 1021 | B12: CAPEX | C12: Customer | E12: Standard Control | H12: Customer Initiated Non-Major Works Commercial | I12: CNMAC | J12: Customer Initiated Non-Major Works Commercial | K12: D | L12: 2028/29 | M12: 223 | N12: 35482.68 | O12: 7517005.758 | Q12: 1547751.485 | R12: 2306217.368 | S12: 1462057.619 | T12: 308948.9395 | U12: 18792.5105 | V12: 1873237.835 | W12: 27780.21 | Y12: Unit | AD12: CUS | AK12: =IFERROR(IF(AL12="Transmission",VLOOKUP(J12,'INCURRED & COMMISSIONED'!$B:$Z,13,FALSE),""),"") ->  | AL12: Distribution | AM12: Standard Control Services | AN12: Standard Control Services | AO12: Customer Initiated Works | AP12: Customer Initiated Non-Major Works Commercial | AQ12: CAPEX | AR12: Network | AS12: Development | AT12: Connection | AU12: =IFERROR($BD12/VLOOKUP("Grand Total",'Raw Data Expenditure analysis '!$A$5:$M$17,MATCH($L12,'Raw Data Expenditure analysis '!$A$5:$M$5,0),FALSE),0) -> 0.03893245311 | AV12: =IFERROR(IF(B12="Capex",$W12/VLOOKUP($AM12,'Raw Data Hrs analysis'!$A$33:$M$42,MATCH($L12,'Raw Data Hrs analysis'!$A$34:$M$34,0),FALSE),0),0) -> 0.09219174969 | AW12: 0 | AX12: =IFERROR(IF(B12="Opex",$BD12/VLOOKUP($AM12,'Raw Data Expenditure analysis '!$B$69:$M$80,MATCH($L12,'Raw Data Expenditure analysis '!$B$69:$M$69,0),FALSE),$BD12/VLOOKUP($AM12,'Raw Data Expenditure analysis '!$B$54:$M$65,MATCH($L12,'Raw Data Expenditure analysis '!$B$54:$M$54,0),FALSE)),0) -> 0.06845200279 | AY12: =IF(Inputs!$C$203=Inputs!$Q$204,((Q12)*(HLOOKUP($L12,Inputs!$E$208:$R$210,3,FALSE))),(Q12)) -> 1570615.099 | AZ12: =IF(Inputs!$C$203=Inputs!$Q$204,((R12)*(HLOOKUP($L12,Inputs!$E$214:$R$216,3,FALSE))),(R12)) -> 2306217.368 | BA12: =IF(Inputs!$C$203=Inputs!$Q$204,((S12)*(HLOOKUP($L12,Inputs!$E$220:$R$222,3,FALSE))),(S12)) -> 1462057.619 | BB12: =IF(Inputs!$C$203=Inputs!$Q$204,((T12)*(HLOOKUP($L12,Inputs!$E$226:$R$228,3,FALSE))),(T12)) -> 308948.9395 | BC12: =IF(Inputs!$C$203=Inputs!$Q$204,((U12)*(HLOOKUP($L12,Inputs!$E$226:$R$228,3,FALSE))),(U12)) -> 18792.5105 | BD12: 5666631.536 | BE12: =IFERROR(IF(B12="Opex",0,VLOOKUP($AM12,Inputs!$B$46:$R$54,MATCH(L12,Inputs!$B$46:$R$46,0),FALSE)*AV12),0) -> 874569.5203 | BF12: =IFERROR(IF(B12="Opex",0,VLOOKUP($AM12,Inputs!$B$101:$R$111,MATCH(L12,Inputs!$B$63:$R$63,0),FALSE))*AX12,0) -> 1631920.456 | BG12: 2506489.976 | BH12: 8173121.512 | BI12: =IFERROR(IF(B12="Opex",0,VLOOKUP($AM12,Inputs!$B$173:$R$181,MATCH(L12,Inputs!$B$123:$R$123,0),FALSE)*AX12),0) -> 1539125.168 | BJ12: 9712246.68 | BK12: Distribution - CAPEX | BL12: =(($BD12)*(HLOOKUP($BL$1,Inputs!$B$32:$R$37,MATCH($BM$1,Inputs!$B$32:$B$37,0),FALSE))) -> 5947697.877 | BM12: =(($BG12)*(HLOOKUP($BL$1,Inputs!$B$32:$R$37,MATCH($BM$1,Inputs!$B$32:$B$37,0),FALSE))) -> 2630812.505 | BN12: 8578510.383 | BO12: 0 | BP12: 0 | BQ12: 0 | BR12: 0 | BS12: 0 | BT12: 0 | BU12: 315004.9394 | BV12: 1260019.758 | BW12: 0 | BX12: 2516582.142 | BY12: 0 | BZ12: 0 | CA12: 315004.9394 | CB12: 630009.8789 | CC12: 0 | CD12: 0 | CE12: 0 | CF12: 315004.9394 | CG12: 315004.9394 | CH12: 0 | CI12: 0 | CJ12: 0 | CK12: 0 | CL12: 0 | CM12: 0 | CN12: 0 | CO12: 0 | CP12: 0 | CQ12: 0 | CR12: 0 | CS12: 0 | CT12: 0 | CU12: 0 | CV12: 0 | CW12: 0 | CX12: 0 | CY12: 0 | CZ12: 0 | DA12: 0 | DB12: 0 | DC12: 0 | DD12: 0 | DE12: 0 | DF12: 0 | DG12: 0 | DH12: 0 | DI12: 0 | DJ12: 0 | DK12: 0 | DL12: 0 | DM12: 0 | DN12: 0 | DO12: 0 | DP12: 0 | DQ12: 0 | DR12: 0 | DS12: 0 | DT12: 0 | DU12: 0 | DV12: 0 | DW12: 0 | DX12: 0 | DY12: 0 | DZ12: 0 | EA12: 0 | EB12: 0 | EC12: 0 | ED12: 0 | EE12: 0 | EF12: 0 | EG12: 0 | EH12: 0 | EI12: 0 | EJ12: 0 | EK12: 0 | EL12: 0 | EM12: 0 | EN12: 0 | EO12: 0 | EP12: 0 | EQ12: 0 | ER12: 0 | ES12: 5666631.536 | ET12: 0 | EU12: 0 | EV12: 0 | EW12: 0 | EX12: 0 | EY12: 0 | EZ12: 139334.4032 | FA12: 557337.6126 | FB12: 0 | FC12: 1113145.944 | FD12: 0 | FE12: 0 | FF12: 139334.4032 | FG12: 278668.8063 | FH12: 0 | FI12: 0 | FJ12: 0 | FK12: 139334.4032 | FL12: 139334.4032 | FM12: 0 | FN12: 0 | FO12: 0 | FP12: 0 | FQ12: 0 | FR12: 0 | FS12: 0 | FT12: 0 | FU12: 0 | FV12: 0 | FW12: 0 | FX12: 0 | FY12: 0 | FZ12: 0 | GA12: 0 | GB12: 0 | GC12: 0 | GD12: 0 | GE12: 0 | GF12: 0 | GG12: 0 | GH12: 0 | GI12: 0 | GJ12: 0 | GK12: 0 | GL12: 0 | GM12: 0 | GN12: 0 | GO12: 0 | GP12: 0 | GQ12: 0 | GR12: 0 | GS12: 0 | GT12: 0 | GU12: 0 | GV12: 0 | GW12: 0 | GX12: 0 | GY12: 0 | GZ12: 0 | HA12: 0 | HB12: 0 | HC12: 0 | HD12: 0 | HE12: 0 | HF12: 0 | HG12: 0 | HH12: 0 | HI12: 0 | HJ12: 0 | HK12: 0 | HL12: 0 | HM12: 0 | HN12: 0 | HO12: 0 | HP12: 0 | HQ12: 0 | HR12: 0 | HS12: 0 | HT12: 0 | HU12: 0 | HV12: 0 | HW12: 0 | HX12: 2506489.976 | HY12: TRUE | HZ12: TRUE | IA12: 0 | IB12: 0
A13: 1022 | B13: CAPEX | C13: Customer | E13: Standard Control | H13: Customer Initiated Non-Major Works Irrigation | I13: CNMAI | J13: Customer Initiated Non-Major Works Irrigation | K13: D | L13: 2019/20 | M13: 105 | N13: 18476.38 | O13: 1843018.905 | Q13: 338378.2675 | R13: 862348.5445 | S13: 148363.02 | T13: 82935.855 | U13: 1843.019 | V13: 409150.199 | W13: 6142.02 | Y13: Unit | AD13: CUS | AK13: =IFERROR(IF(AL13="Transmission",VLOOKUP(J13,'INCURRED & COMMISSIONED'!$B:$Z,13,FALSE),""),"") ->  | AL13: Distribution | AM13: Standard Control Services | AN13: Standard Control Services | AO13: Customer Initiated Works | AP13: Customer Initiated Non-Major Works Irrigation | AQ13: CAPEX | AR13: Network | AS13: Development | AT13: Connection | AU13: =IFERROR($BD13/VLOOKUP("Grand Total",'Raw Data Expenditure analysis '!$A$5:$M$17,MATCH($L13,'Raw Data Expenditure analysis '!$A$5:$M$5,0),FALSE),0) -> 0.009326500579 | AV13: =IFERROR(IF(B13="Capex",$W13/VLOOKUP($AM13,'Raw Data Hrs analysis'!$A$33:$M$42,MATCH($L13,'Raw Data Hrs analysis'!$A$34:$M$34,0),FALSE),0),0) -> 0.01984742672 | AW13: 0 | AX13: =IFERROR(IF(B13="Opex",$BD13/VLOOKUP($AM13,'Raw Data Expenditure analysis '!$B$69:$M$80,MATCH($L13,'Raw Data Expenditure analysis '!$B$69:$M$69,0),FALSE),$BD13/VLOOKUP($AM13,'Raw Data Expenditure analysis '!$B$54:$M$65,MATCH($L13,'Raw Data Expenditure analysis '!$B$54:$M$54,0),FALSE)),0) -> 0.01570005021 | AY13: =IF(Inputs!$C$203=Inputs!$Q$204,((Q13)*(HLOOKUP($L13,Inputs!$E$208:$R$210,3,FALSE))),(Q13)) -> 338378.2675 | AZ13: =IF(Inputs!$C$203=Inputs!$Q$204,((R13)*(HLOOKUP($L13,Inputs!$E$214:$R$216,3,FALSE))),(R13)) -> 862348.5445 | BA13: =IF(Inputs!$C$203=Inputs!$Q$204,((S13)*(HLOOKUP($L13,Inputs!$E$220:$R$222,3,FALSE))),(S13)) -> 148363.02 | BB13: =IF(Inputs!$C$203=Inputs!$Q$204,((T13)*(HLOOKUP($L13,Inputs!$E$226:$R$228,3,FALSE))),(T13)) -> 82935.855 | BC13: =IF(Inputs!$C$203=Inputs!$Q$204,((U13)*(HLOOKUP($L13,Inputs!$E$226:$R$228,3,FALSE))),(U13)) -> 1843.019 | BD13: 1433868.706 | BE13: =IFERROR(IF(B13="Opex",0,VLOOKUP($AM13,Inputs!$B$46:$R$54,MATCH(L13,Inputs!$B$46:$R$46,0),FALSE)*AV13),0) -> 195019.403 | BF13: =IFERROR(IF(B13="Opex",0,VLOOKUP($AM13,Inputs!$B$101:$R$111,MATCH(L13,Inputs!$B$63:$R$63,0),FALSE))*AX13,0) -> 387690.5396 | BG13: 582709.9426 | BH13: 2016578.649 | BI13: =IFERROR(IF(B13="Opex",0,VLOOKUP($AM13,Inputs!$B$173:$R$181,MATCH(L13,Inputs!$B$123:$R$123,0),FALSE)*AX13),0) -> 429301.2433 | BJ13: 2445879.892 | BK13: Distribution - CAPEX | BL13: =(($BD13)*(HLOOKUP($BL$1,Inputs!$B$32:$R$37,MATCH($BM$1,Inputs!$B$32:$B$37,0),FALSE))) -> 1504988.952 | BM13: =(($BG13)*(HLOOKUP($BL$1,Inputs!$B$32:$R$37,MATCH($BM$1,Inputs!$B$32:$B$37,0),FALSE))) -> 611612.5015 | BN13: 2116601.454 | BO13: 0 | BP13: 0 | BQ13: 0 | BR13: 0 | BS13: 0 | BT13: 0 | BU13: 0 | BV13: 788627.7883 | BW13: 0 | BX13: 0 | BY13: 0 | BZ13: 0 | CA13: 0 | CB13: 215080.3059 | CC13: 0 | CD13: 0 | CE13: 143386.8706 | CF13: 0 | CG13: 286773.7412 | CH13: 0 | CI13: 0 | CJ13: 0 | CK13: 0 | CL13: 0 | CM13: 0 | CN13: 0 | CO13: 0 | CP13: 0 | CQ13: 0 | CR13: 0 | CS13: 0 | CT13: 0 | CU13: 0 | CV13: 0 | CW13: 0 | CX13: 0 | CY13: 0 | CZ13: 0 | DA13: 0 | DB13: 0 | DC13: 0 | DD13: 0 | DE13: 0 | DF13: 0 | DG13: 0 | DH13: 0 | DI13: 0 | DJ13: 0 | DK13: 0 | DL13: 0 | DM13: 0 | DN13: 0 | DO13: 0 | DP13: 0 | DQ13: 0 | DR13: 0 | DS13: 0 | DT13: 0 | DU13: 0 | DV13: 0 | DW13: 0 | DX13: 0 | DY13: 0 | DZ13: 0 | EA13: 0 | EB13: 0 | EC13: 0 | ED13: 0 | EE13: 0 | EF13: 0 | EG13: 0 | EH13: 0 | EI13: 0 | EJ13: 0 | EK13: 0 | EL13: 0 | EM13: 0 | EN13: 0 | EO13: 0 | EP13: 0 | EQ13: 0 | ER13: 0 | ES13: 1433868.706 | ET13: 0 | EU13: 0 | EV13: 0 | EW13: 0 | EX13: 0 | EY13: 0 | EZ13: 0 | FA13: 320490.4685 | FB13: 0 | FC13: 0 | FD13: 0 | FE13: 0 | FF13: 0 | FG13: 87406.4914 | FH13: 0 | FI13: 0 | FJ13: 58270.99426 | FK13: 0 | FL13: 116541.9885 | FM13: 0 | FN13: 0 | FO13: 0 | FP13: 0 | FQ13: 0 | FR13: 0 | FS13: 0 | FT13: 0 | FU13: 0 | FV13: 0 | FW13: 0 | FX13: 0 | FY13: 0 | FZ13: 0 | GA13: 0 | GB13: 0 | GC13: 0 | GD13: 0 | GE13: 0 | GF13: 0 | GG13: 0 | GH13: 0 | GI13: 0 | GJ13: 0 | GK13: 0 | GL13: 0 | GM13: 0 | GN13: 0 | GO13: 0 | GP13: 0 | GQ13: 0 | GR13: 0 | GS13: 0 | GT13: 0 | GU13: 0 | GV13: 0 | GW13: 0 | GX13: 0 | GY13: 0 | GZ13: 0 | HA13: 0 | HB13: 0 | HC13: 0 | HD13: 0 | HE13: 0 | HF13: 0 | HG13: 0 | HH13: 0 | HI13: 0 | HJ13: 0 | HK13: 0 | HL13: 0 | HM13: 0 | HN13: 0 | HO13: 0 | HP13: 0 | HQ13: 0 | HR13: 0 | HS13: 0 | HT13: 0 | HU13: 0 | HV13: 0 | HW13: 0 | HX13: 582709.9426 | HY13: TRUE | HZ13: TRUE | IA13: 0 | IB13: 0
A14: 1022 | B14: CAPEX | C14: Customer | E14: Standard Control | H14: Customer Initiated Non-Major Works Irrigation | I14: CNMAI | J14: Customer Initiated Non-Major Works Irrigation | K14: D | L14: 2020/21 | M14: 98 | N14: 18476.38 | O14: 1720150.978 | Q14: 315819.7195 | R14: 804858.639 | S14: 138472.152 | T14: 77406.798 | U14: 1720.1555 | V14: 381873.514 | W14: 5732.56 | Y14: Unit | AD14: CUS | AK14: =IFERROR(IF(AL14="Transmission",VLOOKUP(J14,'INCURRED & COMMISSIONED'!$B:$Z,13,FALSE),""),"") ->  | AL14: Distribution | AM14: Standard Control Services | AN14: Standard Control Services | AO14: Customer Initiated Works | AP14: Customer Initiated Non-Major Works Irrigation | AQ14: CAPEX | AR14: Network | AS14: Development | AT14: Connection | AU14: =IFERROR($BD14/VLOOKUP("Grand Total",'Raw Data Expenditure analysis '!$A$5:$M$17,MATCH($L14,'Raw Data Expenditure analysis '!$A$5:$M$5,0),FALSE),0) -> 0.00776571453 | AV14: =IFERROR(IF(B14="Capex",$W14/VLOOKUP($AM14,'Raw Data Hrs analysis'!$A$33:$M$42,MATCH($L14,'Raw Data Hrs analysis'!$A$34:$M$34,0),FALSE),0),0) -> 0.01852524021 | AW14: 0 | AX14: =IFERROR(IF(B14="Opex",$BD14/VLOOKUP($AM14,'Raw Data Expenditure analysis '!$B$69:$M$80,MATCH($L14,'Raw Data Expenditure analysis '!$B$69:$M$69,0),FALSE),$BD14/VLOOKUP($AM14,'Raw Data Expenditure analysis '!$B$54:$M$65,MATCH($L14,'Raw Data Expenditure analysis '!$B$54:$M$54,0),FALSE)),0) -> 0.01446879191 | AY14: =IF(Inputs!$C$203=Inputs!$Q$204,((Q14)*(HLOOKUP($L14,Inputs!$E$208:$R$210,3,FALSE))),(Q14)) -> 317367.2361 | AZ14: =IF(Inputs!$C$203=Inputs!$Q$204,((R14)*(HLOOKUP($L14,Inputs!$E$214:$R$216,3,FALSE))),(R14)) -> 804858.639 | BA14: =IF(Inputs!$C$203=Inputs!$Q$204,((S14)*(HLOOKUP($L14,Inputs!$E$220:$R$222,3,FALSE))),(S14)) -> 138472.152 | BB14: =IF(Inputs!$C$203=Inputs!$Q$204,((T14)*(HLOOKUP($L14,Inputs!$E$226:$R$228,3,FALSE))),(T14)) -> 77406.798 | BC14: =IF(Inputs!$C$203=Inputs!$Q$204,((U14)*(HLOOKUP($L14,Inputs!$E$226:$R$228,3,FALSE))),(U14)) -> 1720.1555 | BD14: 1339824.981 | BE14: =IFERROR(IF(B14="Opex",0,VLOOKUP($AM14,Inputs!$B$46:$R$54,MATCH(L14,Inputs!$B$46:$R$46,0),FALSE)*AV14),0) -> 181117.554 | BF14: =IFERROR(IF(B14="Opex",0,VLOOKUP($AM14,Inputs!$B$101:$R$111,MATCH(L14,Inputs!$B$63:$R$63,0),FALSE))*AX14,0) -> 355499.9251 | BG14: 536617.4791 | BH14: 1876442.46 | BI14: =IFERROR(IF(B14="Opex",0,VLOOKUP($AM14,Inputs!$B$173:$R$181,MATCH(L14,Inputs!$B$123:$R$123,0),FALSE)*AX14),0) -> 312256.0072 | BJ14: 2188698.467 | BK14: Distribution - CAPEX | BL14: =(($BD14)*(HLOOKUP($BL$1,Inputs!$B$32:$R$37,MATCH($BM$1,Inputs!$B$32:$B$37,0),FALSE))) -> 1406280.635 | BM14: =(($BG14)*(HLOOKUP($BL$1,Inputs!$B$32:$R$37,MATCH($BM$1,Inputs!$B$32:$B$37,0),FALSE))) -> 563233.8402 | BN14: 1969514.475 | BO14: 0 | BP14: 0 | BQ14: 0 | BR14: 0 | BS14: 0 | BT14: 0 | BU14: 0 | BV14: 736903.7393 | BW14: 0 | BX14: 0 | BY14: 0 | BZ14: 0 | CA14: 0 | CB14: 200973.7471 | CC14: 0 | CD14: 0 | CE14: 133982.4981 | CF14: 0 | CG14: 267964.9961 | CH14: 0 | CI14: 0 | CJ14: 0 | CK14: 0 | CL14: 0 | CM14: 0 | CN14: 0 | CO14: 0 | CP14: 0 | CQ14: 0 | CR14: 0 | CS14: 0 | CT14: 0 | CU14: 0 | CV14: 0 | CW14: 0 | CX14: 0 | CY14: 0 | CZ14: 0 | DA14: 0 | DB14: 0 | DC14: 0 | DD14: 0 | DE14: 0 | DF14: 0 | DG14: 0 | DH14: 0 | DI14: 0 | DJ14: 0 | DK14: 0 | DL14: 0 | DM14: 0 | DN14: 0 | DO14: 0 | DP14: 0 | DQ14: 0 | DR14: 0 | DS14: 0 | DT14: 0 | DU14: 0 | DV14: 0 | DW14: 0 | DX14: 0 | DY14: 0 | DZ14: 0 | EA14: 0 | EB14: 0 | EC14: 0 | ED14: 0 | EE14: 0 | EF14: 0 | EG14: 0 | EH14: 0 | EI14: 0 | EJ14: 0 | EK14: 0 | EL14: 0 | EM14: 0 | EN14: 0 | EO14: 0 | EP14: 0 | EQ14: 0 | ER14: 0 | ES14: 1339824.981 | ET14: 0 | EU14: 0 | EV14: 0 | EW14: 0 | EX14: 0 | EY14: 0 | EZ14: 0 | FA14: 295139.6135 | FB14: 0 | FC14: 0 | FD14: 0 | FE14: 0 | FF14: 0 | FG14: 80492.62187 | FH14: 0 | FI14: 0 | FJ14: 53661.74791 | FK14: 0 | FL14: 107323.4958 | FM14: 0 | FN14: 0 | FO14: 0 | FP14: 0 | FQ14: 0 | FR14: 0 | FS14: 0 | FT14: 0 | FU14: 0 | FV14: 0 | FW14: 0 | FX14: 0 | FY14: 0 | FZ14: 0 | GA14: 0 | GB14: 0 | GC14: 0 | GD14: 0 | GE14: 0 | GF14: 0 | GG14: 0 | GH14: 0 | GI14: 0 | GJ14: 0 | GK14: 0 | GL14: 0 | GM14: 0 | GN14: 0 | GO14: 0 | GP14: 0 | GQ14: 0 | GR14: 0 | GS14: 0 | GT14: 0 | GU14: 0 | GV14: 0 | GW14: 0 | GX14: 0 | GY14: 0 | GZ14: 0 | HA14: 0 | HB14: 0 | HC14: 0 | HD14: 0 | HE14: 0 | HF14: 0 | HG14: 0 | HH14: 0 | HI14: 0 | HJ14: 0 | HK14: 0 | HL14: 0 | HM14: 0 | HN14: 0 | HO14: 0 | HP14: 0 | HQ14: 0 | HR14: 0 | HS14: 0 | HT14: 0 | HU14: 0 | HV14: 0 | HW14: 0 | HX14: 536617.4791 | HY14: TRUE | HZ14: TRUE | IA14: 0 | IB14: 0
A15: 1022 | B15: CAPEX | C15: Customer | E15: Standard Control | H15: Customer Initiated Non-Major Works Irrigation | I15: CNMAI | J15: Customer Initiated Non-Major Works Irrigation | K15: D | L15: 2021/22 | M15: 112 | N15: 18476.38 | O15: 1965886.832 | Q15: 360936.825 | R15: 919838.45 | S15: 158253.888 | T15: 88464.912 | U15: 1965.8825 | V15: 436426.8745 | W15: 6551.49 | Y15: Unit | AD15: CUS | AK15: =IFERROR(IF(AL15="Transmission",VLOOKUP(J15,'INCURRED & COMMISSIONED'!$B:$Z,13,FALSE),""),"") ->  | AL15: Distribution | AM15: Standard Control Services | AN15: Standard Control Services | AO15: Customer Initiated Works | AP15: Customer Initiated Non-Major Works Irrigation | AQ15: CAPEX | AR15: Network | AS15: Development | AT15: Connection | AU15: =IFERROR($BD15/VLOOKUP("Grand Total",'Raw Data Expenditure analysis '!$A$5:$M$17,MATCH($L15,'Raw Data Expenditure analysis '!$A$5:$M$5,0),FALSE),0) -> 0.009570462175 | AV15: =IFERROR(IF(B15="Capex",$W15/VLOOKUP($AM15,'Raw Data Hrs analysis'!$A$33:$M$42,MATCH($L15,'Raw Data Hrs analysis'!$A$34:$M$34,0),FALSE),0),0) -> 0.02255944422 | AW15: 0 | AX15: =IFERROR(IF(B15="Opex",$BD15/VLOOKUP($AM15,'Raw Data Expenditure analysis '!$B$69:$M$80,MATCH($L15,'Raw Data Expenditure analysis '!$B$69:$M$69,0),FALSE),$BD15/VLOOKUP($AM15,'Raw Data Expenditure analysis '!$B$54:$M$65,MATCH($L15,'Raw Data Expenditure analysis '!$B$54:$M$54,0),FALSE)),0) -> 0.01729370613 | AY15: =IF(Inputs!$C$203=Inputs!$Q$204,((Q15)*(HLOOKUP($L15,Inputs!$E$208:$R$210,3,FALSE))),(Q15)) -> 364482.672 | AZ15: =IF(Inputs!$C$203=Inputs!$Q$204,((R15)*(HLOOKUP($L15,Inputs!$E$214:$R$216,3,FALSE))),(R15)) -> 919838.45 | BA15: =IF(Inputs!$C$203=Inputs!$Q$204,((S15)*(HLOOKUP($L15,Inputs!$E$220:$R$222,3,FALSE))),(S15)) -> 158253.888 | BB15: =IF(Inputs!$C$203=Inputs!$Q$204,((T15)*(HLOOKUP($L15,Inputs!$E$226:$R$228,3,FALSE))),(T15)) -> 88464.912 | BC15: =IF(Inputs!$C$203=Inputs!$Q$204,((U15)*(HLOOKUP($L15,Inputs!$E$226:$R$228,3,FALSE))),(U15)) -> 1965.8825 | BD15: 1533005.804 | BE15: =IFERROR(IF(B15="Opex",0,VLOOKUP($AM15,Inputs!$B$46:$R$54,MATCH(L15,Inputs!$B$46:$R$46,0),FALSE)*AV15),0) -> 218353.565 | BF15: =IFERROR(IF(B15="Opex",0,VLOOKUP($AM15,Inputs!$B$101:$R$111,MATCH(L15,Inputs!$B$63:$R$63,0),FALSE))*AX15,0) -> 420659.3171 | BG15: 639012.8821 | BH15: 2172018.687 | BI15: =IFERROR(IF(B15="Opex",0,VLOOKUP($AM15,Inputs!$B$173:$R$181,MATCH(L15,Inputs!$B$123:$R$123,0),FALSE)*AX15),0) -> 240449.4941 | BJ15: 2412468.181 | BK15: Distribution - CAPEX | BL15: =(($BD15)*(HLOOKUP($BL$1,Inputs!$B$32:$R$37,MATCH($BM$1,Inputs!$B$32:$B$37,0),FALSE))) -> 1609043.276 | BM15: =(($BG15)*(HLOOKUP($BL$1,Inputs!$B$32:$R$37,MATCH($BM$1,Inputs!$B$32:$B$37,0),FALSE))) -> 670708.0808 | BN15: 2279751.356 | BO15: 0 | BP15: 0 | BQ15: 0 | BR15: 0 | BS15: 0 | BT15: 0 | BU15: 0 | BV15: 843153.1925 | BW15: 0 | BX15: 0 | BY15: 0 | BZ15: 0 | CA15: 0 | CB15: 229950.8707 | CC15: 0 | CD15: 0 | CE15: 153300.5804 | CF15: 0 | CG15: 306601.1609 | CH15: 0 | CI15: 0 | CJ15: 0 | CK15: 0 | CL15: 0 | CM15: 0 | CN15: 0 | CO15: 0 | CP15: 0 | CQ15: 0 | CR15: 0 | CS15: 0 | CT15: 0 | CU15: 0 | CV15: 0 | CW15: 0 | CX15: 0 | CY15: 0 | CZ15: 0 | DA15: 0 | DB15: 0 | DC15: 0 | DD15: 0 | DE15: 0 | DF15: 0 | DG15: 0 | DH15: 0 | DI15: 0 | DJ15: 0 | DK15: 0 | DL15: 0 | DM15: 0 | DN15: 0 | DO15: 0 | DP15: 0 | DQ15: 0 | DR15: 0 | DS15: 0 | DT15: 0 | DU15: 0 | DV15: 0 | DW15: 0 | DX15: 0 | DY15: 0 | DZ15: 0 | EA15: 0 | EB15: 0 | EC15: 0 | ED15: 0 | EE15: 0 | EF15: 0 | EG15: 0 | EH15: 0 | EI15: 0 | EJ15: 0 | EK15: 0 | EL15: 0 | EM15: 0 | EN15: 0 | EO15: 0 | EP15: 0 | EQ15: 0 | ER15: 0 | ES15: 1533005.804 | ET15: 0 | EU15: 0 | EV15: 0 | EW15: 0 | EX15: 0 | EY15: 0 | EZ15: 0 | FA15: 351457.0852 | FB15: 0 | FC15: 0 | FD15: 0 | FE15: 0 | FF15: 0 | FG15: 95851.93232 | FH15: 0 | FI15: 0 | FJ15: 63901.28821 | FK15: 0 | FL15: 127802.5764 | FM15: 0 | FN15: 0 | FO15: 0 | FP15: 0 | FQ15: 0 | FR15: 0 | FS15: 0 | FT15: 0 | FU15: 0 | FV15: 0 | FW15: 0 | FX15: 0 | FY15: 0 | FZ15: 0 | GA15: 0 | GB15: 0 | GC15: 0 | GD15: 0 | GE15: 0 | GF15: 0 | GG15: 0 | GH15: 0 | GI15: 0 | GJ15: 0 | GK15: 0 | GL15: 0 | GM15: 0 | GN15: 0 | GO15: 0 | GP15: 0 | GQ15: 0 | GR15: 0 | GS15: 0 | GT15: 0 | GU15: 0 | GV15: 0 | GW15: 0 | GX15: 0 | GY15: 0 | GZ15: 0 | HA15: 0 | HB15: 0 | HC15: 0 | HD15: 0 | HE15: 0 | HF15: 0 | HG15: 0 | HH15: 0 | HI15: 0 | HJ15: 0 | HK15: 0 | HL15: 0 | HM15: 0 | HN15: 0 | HO15: 0 | HP15: 0 | HQ15: 0 | HR15: 0 | HS15: 0 | HT15: 0 | HU15: 0 | HV15: 0 | HW15: 0 | HX15: 639012.8821 | HY15: TRUE | HZ15: TRUE | IA15: 0 | IB15: 0
A16: 1022 | B16: CAPEX | C16: Customer | E16: Standard Control | H16: Customer Initiated Non-Major Works Irrigation | I16: CNMAI | J16: Customer Initiated Non-Major Works Irrigation | K16: D | L16: 2022/23 | M16: 111 | N16: 18476.38 | O16: 1948334.271 | Q16: 357714.1685 | R16: 911625.605 | S16: 156840.9055 | T16: 87675.044 | U16: 1948.336 | V16: 432530.212 | W16: 6493 | Y16: Unit | AD16: CUS | AK16: =IFERROR(IF(AL16="Transmission",VLOOKUP(J16,'INCURRED & COMMISSIONED'!$B:$Z,13,FALSE),""),"") ->  | AL16: Distribution | AM16: Standard Control Services | AN16: Standard Control Services | AO16: Customer Initiated Works | AP16: Customer Initiated Non-Major Works Irrigation | AQ16: CAPEX | AR16: Network | AS16: Development | AT16: Connection | AU16: =IFERROR($BD16/VLOOKUP("Grand Total",'Raw Data Expenditure analysis '!$A$5:$M$17,MATCH($L16,'Raw Data Expenditure analysis '!$A$5:$M$5,0),FALSE),0) -> 0.009805713038 | AV16: =IFERROR(IF(B16="Capex",$W16/VLOOKUP($AM16,'Raw Data Hrs analysis'!$A$33:$M$42,MATCH($L16,'Raw Data Hrs analysis'!$A$34:$M$34,0),FALSE),0),0) -> 0.0227403474 | AW16: 0 | AX16: =IFERROR(IF(B16="Opex",$BD16/VLOOKUP($AM16,'Raw Data Expenditure analysis '!$B$69:$M$80,MATCH($L16,'Raw Data Expenditure analysis '!$B$69:$M$69,0),FALSE),$BD16/VLOOKUP($AM16,'Raw Data Expenditure analysis '!$B$54:$M$65,MATCH($L16,'Raw Data Expenditure analysis '!$B$54:$M$54,0),FALSE)),0) -> 0.01788851972 | AY16: =IF(Inputs!$C$203=Inputs!$Q$204,((Q16)*(HLOOKUP($L16,Inputs!$E$208:$R$210,3,FALSE))),(Q16)) -> 362998.375 | AZ16: =IF(Inputs!$C$203=Inputs!$Q$204,((R16)*(HLOOKUP($L16,Inputs!$E$214:$R$216,3,FALSE))),(R16)) -> 911625.605 | BA16: =IF(Inputs!$C$203=Inputs!$Q$204,((S16)*(HLOOKUP($L16,Inputs!$E$220:$R$222,3,FALSE))),(S16)) -> 156840.9055 | BB16: =IF(Inputs!$C$203=Inputs!$Q$204,((T16)*(HLOOKUP($L16,Inputs!$E$226:$R$228,3,FALSE))),(T16)) -> 87675.044 | BC16: =IF(Inputs!$C$203=Inputs!$Q$204,((U16)*(HLOOKUP($L16,Inputs!$E$226:$R$228,3,FALSE))),(U16)) -> 1948.336 | BD16: 1521088.266 | BE16: =IFERROR(IF(B16="Opex",0,VLOOKUP($AM16,Inputs!$B$46:$R$54,MATCH(L16,Inputs!$B$46:$R$46,0),FALSE)*AV16),0) -> 217903.4873 | BF16: =IFERROR(IF(B16="Opex",0,VLOOKUP($AM16,Inputs!$B$101:$R$111,MATCH(L16,Inputs!$B$63:$R$63,0),FALSE))*AX16,0) -> 430776.5326 | BG16: 648680.0199 | BH16: 2169768.285 | BI16: =IFERROR(IF(B16="Opex",0,VLOOKUP($AM16,Inputs!$B$173:$R$181,MATCH(L16,Inputs!$B$123:$R$123,0),FALSE)*AX16),0) -> 520573.7532 | BJ16: 2690342.039 | BK16: Distribution - CAPEX | BL16: =(($BD16)*(HLOOKUP($BL$1,Inputs!$B$32:$R$37,MATCH($BM$1,Inputs!$B$32:$B$37,0),FALSE))) -> 1596534.624 | BM16: =(($BG16)*(HLOOKUP($BL$1,Inputs!$B$32:$R$37,MATCH($BM$1,Inputs!$B$32:$B$37,0),FALSE))) -> 680854.711 | BN16: 2277389.335 | BO16: 0 | BP16: 0 | BQ16: 0 | BR16: 0 | BS16: 0 | BT16: 0 | BU16: 0 | BV16: 836598.546 | BW16: 0 | BX16: 0 | BY16: 0 | BZ16: 0 | CA16: 0 | CB16: 228163.2398 | CC16: 0 | CD16: 0 | CE16: 152108.8266 | CF16: 0 | CG16: 304217.6531 | CH16: 0 | CI16: 0 | CJ16: 0 | CK16: 0 | CL16: 0 | CM16: 0 | CN16: 0 | CO16: 0 | CP16: 0 | CQ16: 0 | CR16: 0 | CS16: 0 | CT16: 0 | CU16: 0 | CV16: 0 | CW16: 0 | CX16: 0 | CY16: 0 | CZ16: 0 | DA16: 0 | DB16: 0 | DC16: 0 | DD16: 0 | DE16: 0 | DF16: 0 | DG16: 0 | DH16: 0 | DI16: 0 | DJ16: 0 | DK16: 0 | DL16: 0 | DM16: 0 | DN16: 0 | DO16: 0 | DP16: 0 | DQ16: 0 | DR16: 0 | DS16: 0 | DT16: 0 | DU16: 0 | DV16: 0 | DW16: 0 | DX16: 0 | DY16: 0 | DZ16: 0 | EA16: 0 | EB16: 0 | EC16: 0 | ED16: 0 | EE16: 0 | EF16: 0 | EG16: 0 | EH16: 0 | EI16: 0 | EJ16: 0 | EK16: 0 | EL16: 0 | EM16: 0 | EN16: 0 | EO16: 0 | EP16: 0 | EQ16: 0 | ER16: 0 | ES16: 1521088.266 | ET16: 0 | EU16: 0 | EV16: 0 | EW16: 0 | EX16: 0 | EY16: 0 | EZ16: 0 | FA16: 356774.0109 | FB16: 0 | FC16: 0 | FD16: 0 | FE16: 0 | FF16: 0 | FG16: 97302.00298 | FH16: 0 | FI16: 0 | FJ16: 64868.00199 | FK16: 0 | FL16: 129736.004 | FM16: 0 | FN16: 0 | FO16: 0 | FP16: 0 | FQ16: 0 | FR16: 0 | FS16: 0 | FT16: 0 | FU16: 0 | FV16: 0 | FW16: 0 | FX16: 0 | FY16: 0 | FZ16: 0 | GA16: 0 | GB16: 0 | GC16: 0 | GD16: 0 | GE16: 0 | GF16: 0 | GG16: 0 | GH16: 0 | GI16: 0 | GJ16: 0 | GK16: 0 | GL16: 0 | GM16: 0 | GN16: 0 | GO16: 0 | GP16: 0 | GQ16: 0 | GR16: 0 | GS16: 0 | GT16: 0 | GU16: 0 | GV16: 0 | GW16: 0 | GX16: 0 | GY16: 0 | GZ16: 0 | HA16: 0 | HB16: 0 | HC16: 0 | HD16: 0 | HE16: 0 | HF16: 0 | HG16: 0 | HH16: 0 | HI16: 0 | HJ16: 0 | HK16: 0 | HL16: 0 | HM16: 0 | HN16: 0 | HO16: 0 | HP16: 0 | HQ16: 0 | HR16: 0 | HS16: 0 | HT16: 0 | HU16: 0 | HV16: 0 | HW16: 0 | HX16: 648680.0199 | HY16: TRUE | HZ16: TRUE | IA16: 0 | IB16: 0
A17: 1022 | B17: CAPEX | C17: Customer | E17: Standard Control | H17: Customer Initiated Non-Major Works Irrigation | I17: CNMAI | J17: Customer Initiated Non-Major Works Irrigation | K17: D | L17: 2023/24 | M17: 118 | N17: 18476.38 | O17: 2071202.198 | Q17: 380272.726 | R17: 969115.5105 | S17: 166731.7735 | T17: 93204.101 | U17: 2071.1995 | V17: 459806.8875 | W17: 6902.47 | Y17: Unit | AD17: CUS | AK17: =IFERROR(IF(AL17="Transmission",VLOOKUP(J17,'INCURRED & COMMISSIONED'!$B:$Z,13,FALSE),""),"") ->  | AL17: Distribution | AM17: Standard Control Services | AN17: Standard Control Services | AO17: Customer Initiated Works | AP17: Customer Initiated Non-Major Works Irrigation | AQ17: CAPEX | AR17: Network | AS17: Development | AT17: Connection | AU17: =IFERROR($BD17/VLOOKUP("Grand Total",'Raw Data Expenditure analysis '!$A$5:$M$17,MATCH($L17,'Raw Data Expenditure analysis '!$A$5:$M$5,0),FALSE),0) -> 0.01070591743 | AV17: =IFERROR(IF(B17="Capex",$W17/VLOOKUP($AM17,'Raw Data Hrs analysis'!$A$33:$M$42,MATCH($L17,'Raw Data Hrs analysis'!$A$34:$M$34,0),FALSE),0),0) -> 0.02341624819 | AW17: 0 | AX17: =IFERROR(IF(B17="Opex",$BD17/VLOOKUP($AM17,'Raw Data Expenditure analysis '!$B$69:$M$80,MATCH($L17,'Raw Data Expenditure analysis '!$B$69:$M$69,0),FALSE),$BD17/VLOOKUP($AM17,'Raw Data Expenditure analysis '!$B$54:$M$65,MATCH($L17,'Raw Data Expenditure analysis '!$B$54:$M$54,0),FALSE)),0) -> 0.01955372731 | AY17: =IF(Inputs!$C$203=Inputs!$Q$204,((Q17)*(HLOOKUP($L17,Inputs!$E$208:$R$210,3,FALSE))),(Q17)) -> 387781.0327 | AZ17: =IF(Inputs!$C$203=Inputs!$Q$204,((R17)*(HLOOKUP($L17,Inputs!$E$214:$R$216,3,FALSE))),(R17)) -> 969115.5105 | BA17: =IF(Inputs!$C$203=Inputs!$Q$204,((S17)*(HLOOKUP($L17,Inputs!$E$220:$R$222,3,FALSE))),(S17)) -> 166731.7735 | BB17: =IF(Inputs!$C$203=Inputs!$Q$204,((T17)*(HLOOKUP($L17,Inputs!$E$226:$R$228,3,FALSE))),(T17)) -> 93204.101 | BC17: =IF(Inputs!$C$203=Inputs!$Q$204,((U17)*(HLOOKUP($L17,Inputs!$E$226:$R$228,3,FALSE))),(U17)) -> 2071.1995 | BD17: 1618903.617 | BE17: =IFERROR(IF(B17="Opex",0,VLOOKUP($AM17,Inputs!$B$46:$R$54,MATCH(L17,Inputs!$B$46:$R$46,0),FALSE)*AV17),0) -> 222136.3301 | BF17: =IFERROR(IF(B17="Opex",0,VLOOKUP($AM17,Inputs!$B$101:$R$111,MATCH(L17,Inputs!$B$63:$R$63,0),FALSE))*AX17,0) -> 466167.9174 | BG17: 688304.2475 | BH17: 2307207.865 | BI17: =IFERROR(IF(B17="Opex",0,VLOOKUP($AM17,Inputs!$B$173:$R$181,MATCH(L17,Inputs!$B$123:$R$123,0),FALSE)*AX17),0) -> 617601.0417 | BJ17: 2924808.906 | BK17: Distribution - CAPEX | BL17: =(($BD17)*(HLOOKUP($BL$1,Inputs!$B$32:$R$37,MATCH($BM$1,Inputs!$B$32:$B$37,0),FALSE))) -> 1699201.641 | BM17: =(($BG17)*(HLOOKUP($BL$1,Inputs!$B$32:$R$37,MATCH($BM$1,Inputs!$B$32:$B$37,0),FALSE))) -> 722444.3103 | BN17: 2421645.952 | BO17: 0 | BP17: 0 | BQ17: 0 | BR17: 0 | BS17: 0 | BT17: 0 | BU17: 0 | BV17: 890396.9895 | BW17: 0 | BX17: 0 | BY17: 0 | BZ17: 0 | CA17: 0 | CB17: 242835.5426 | CC17: 0 | CD17: 0 | CE17: 161890.3617 | CF17: 0 | CG17: 323780.7234 | CH17: 0 | CI17: 0 | CJ17: 0 | CK17: 0 | CL17: 0 | CM17: 0 | CN17: 0 | CO17: 0 | CP17: 0 | CQ17: 0 | CR17: 0 | CS17: 0 | CT17: 0 | CU17: 0 | CV17: 0 | CW17: 0 | CX17: 0 | CY17: 0 | CZ17: 0 | DA17: 0 | DB17: 0 | DC17: 0 | DD17: 0 | DE17: 0 | DF17: 0 | DG17: 0 | DH17: 0 | DI17: 0 | DJ17: 0 | DK17: 0 | DL17: 0 | DM17: 0 | DN17: 0 | DO17: 0 | DP17: 0 | DQ17: 0 | DR17: 0 | DS17: 0 | DT17: 0 | DU17: 0 | DV17: 0 | DW17: 0 | DX17: 0 | DY17: 0 | DZ17: 0 | EA17: 0 | EB17: 0 | EC17: 0 | ED17: 0 | EE17: 0 | EF17: 0 | EG17: 0 | EH17: 0 | EI17: 0 | EJ17: 0 | EK17: 0 | EL17: 0 | EM17: 0 | EN17: 0 | EO17: 0 | EP17: 0 | EQ17: 0 | ER17: 0 | ES17: 1618903.617 | ET17: 0 | EU17: 0 | EV17: 0 | EW17: 0 | EX17: 0 | EY17: 0 | EZ17: 0 | FA17: 378567.3361 | FB17: 0 | FC17: 0 | FD17: 0 | FE17: 0 | FF17: 0 | FG17: 103245.6371 | FH17: 0 | FI17: 0 | FJ17: 68830.42475 | FK17: 0 | FL17: 137660.8495 | FM17: 0 | FN17: 0 | FO17: 0 | FP17: 0 | FQ17: 0 | FR17: 0 | FS17: 0 | FT17: 0 | FU17: 0 | FV17: 0 | FW17: 0 | FX17: 0 | FY17: 0 | FZ17: 0 | GA17: 0 | GB17: 0 | GC17: 0 | GD17: 0 | GE17: 0 | GF17: 0 | GG17: 0 | GH17: 0 | GI17: 0 | GJ17: 0 | GK17: 0 | GL17: 0 | GM17: 0 | GN17: 0 | GO17: 0 | GP17: 0 | GQ17: 0 | GR17: 0 | GS17: 0 | GT17: 0 | GU17: 0 | GV17: 0 | GW17: 0 | GX17: 0 | GY17: 0 | GZ17: 0 | HA17: 0 | HB17: 0 | HC17: 0 | HD17: 0 | HE17: 0 | HF17: 0 | HG17: 0 | HH17: 0 | HI17: 0 | HJ17: 0 | HK17: 0 | HL17: 0 | HM17: 0 | HN17: 0 | HO17: 0 | HP17: 0 | HQ17: 0 | HR17: 0 | HS17: 0 | HT17: 0 | HU17: 0 | HV17: 0 | HW17: 0 | HX17: 688304.2475 | HY17: TRUE | HZ17: TRUE | IA17: 0 | IB17: 0
A18: 1022 | B18: CAPEX | C18: Customer | E18: Standard Control | H18: Customer Initiated Non-Major Works Irrigation | I18: CNMAI | J18: Customer Initiated Non-Major Works Irrigation | K18: D | L18: 2024/25 | M18: 121 | N18: 18476.38 | O18: 2123859.881 | Q18: 389940.6765 | R18: 993754.036 | S18: 170970.721 | T18: 95573.6955 | U18: 2123.858 | V18: 471496.894 | W18: 7077.95 | Y18: Unit | AD18: CUS | AK18: =IFERROR(IF(AL18="Transmission",VLOOKUP(J18,'INCURRED & COMMISSIONED'!$B:$Z,13,FALSE),""),"") ->  | AL18: Distribution | AM18: Standard Control Services | AN18: Standard Control Services | AO18: Customer Initiated Works | AP18: Customer Initiated Non-Major Works Irrigation | AQ18: CAPEX | AR18: Network | AS18: Development | AT18: Connection | AU18: =IFERROR($BD18/VLOOKUP("Grand Total",'Raw Data Expenditure analysis '!$A$5:$M$17,MATCH($L18,'Raw Data Expenditure analysis '!$A$5:$M$5,0),FALSE),0) -> 0.009875292748 | AV18: =IFERROR(IF(B18="Capex",$W18/VLOOKUP($AM18,'Raw Data Hrs analysis'!$A$33:$M$42,MATCH($L18,'Raw Data Hrs analysis'!$A$34:$M$34,0),FALSE),0),0) -> 0.02632436714 | AW18: 0 | AX18: =IFERROR(IF(B18="Opex",$BD18/VLOOKUP($AM18,'Raw Data Expenditure analysis '!$B$69:$M$80,MATCH($L18,'Raw Data Expenditure analysis '!$B$69:$M$69,0),FALSE),$BD18/VLOOKUP($AM18,'Raw Data Expenditure analysis '!$B$54:$M$65,MATCH($L18,'Raw Data Expenditure analysis '!$B$54:$M$54,0),FALSE)),0) -> 0.02033352154 | AY18: =IF(Inputs!$C$203=Inputs!$Q$204,((Q18)*(HLOOKUP($L18,Inputs!$E$208:$R$210,3,FALSE))),(Q18)) -> 393771.4576 | AZ18: =IF(Inputs!$C$203=Inputs!$Q$204,((R18)*(HLOOKUP($L18,Inputs!$E$214:$R$216,3,FALSE))),(R18)) -> 993754.036 | BA18: =IF(Inputs!$C$203=Inputs!$Q$204,((S18)*(HLOOKUP($L18,Inputs!$E$220:$R$222,3,FALSE))),(S18)) -> 170970.721 | BB18: =IF(Inputs!$C$203=Inputs!$Q$204,((T18)*(HLOOKUP($L18,Inputs!$E$226:$R$228,3,FALSE))),(T18)) -> 95573.6955 | BC18: =IF(Inputs!$C$203=Inputs!$Q$204,((U18)*(HLOOKUP($L18,Inputs!$E$226:$R$228,3,FALSE))),(U18)) -> 2123.858 | BD18: 1656193.768 | BE18: =IFERROR(IF(B18="Opex",0,VLOOKUP($AM18,Inputs!$B$46:$R$54,MATCH(L18,Inputs!$B$46:$R$46,0),FALSE)*AV18),0) -> 249723.9636 | BF18: =IFERROR(IF(B18="Opex",0,VLOOKUP($AM18,Inputs!$B$101:$R$111,MATCH(L18,Inputs!$B$63:$R$63,0),FALSE))*AX18,0) -> 484758.4934 | BG18: 734482.4569 | BH18: 2390676.225 | BI18: =IFERROR(IF(B18="Opex",0,VLOOKUP($AM18,Inputs!$B$173:$R$181,MATCH(L18,Inputs!$B$123:$R$123,0),FALSE)*AX18),0) -> 802740.385 | BJ18: 3193416.61 | BK18: Distribution - CAPEX | BL18: =(($BD18)*(HLOOKUP($BL$1,Inputs!$B$32:$R$37,MATCH($BM$1,Inputs!$B$32:$B$37,0),FALSE))) -> 1738341.393 | BM18: =(($BG18)*(HLOOKUP($BL$1,Inputs!$B$32:$R$37,MATCH($BM$1,Inputs!$B$32:$B$37,0),FALSE))) -> 770912.9704 | BN18: 2509254.363 | BO18: 0 | BP18: 0 | BQ18: 0 | BR18: 0 | BS18: 0 | BT18: 0 | BU18: 0 | BV18: 910906.5725 | BW18: 0 | BX18: 0 | BY18: 0 | BZ18: 0 | CA18: 0 | CB18: 248429.0652 | CC18: 0 | CD18: 0 | CE18: 165619.3768 | CF18: 0 | CG18: 331238.7536 | CH18: 0 | CI18: 0 | CJ18: 0 | CK18: 0 | CL18: 0 | CM18: 0 | CN18: 0 | CO18: 0 | CP18: 0 | CQ18: 0 | CR18: 0 | CS18: 0 | CT18: 0 | CU18: 0 | CV18: 0 | CW18: 0 | CX18: 0 | CY18: 0 | CZ18: 0 | DA18: 0 | DB18: 0 | DC18: 0 | DD18: 0 | DE18: 0 | DF18: 0 | DG18: 0 | DH18: 0 | DI18: 0 | DJ18: 0 | DK18: 0 | DL18: 0 | DM18: 0 | DN18: 0 | DO18: 0 | DP18: 0 | DQ18: 0 | DR18: 0 | DS18: 0 | DT18: 0 | DU18: 0 | DV18: 0 | DW18: 0 | DX18: 0 | DY18: 0 | DZ18: 0 | EA18: 0 | EB18: 0 | EC18: 0 | ED18: 0 | EE18: 0 | EF18: 0 | EG18: 0 | EH18: 0 | EI18: 0 | EJ18: 0 | EK18: 0 | EL18: 0 | EM18: 0 | EN18: 0 | EO18: 0 | EP18: 0 | EQ18: 0 | ER18: 0 | ES18: 1656193.768 | ET18: 0 | EU18: 0 | EV18: 0 | EW18: 0 | EX18: 0 | EY18: 0 | EZ18: 0 | FA18: 403965.3513 | FB18: 0 | FC18: 0 | FD18: 0 | FE18: 0 | FF18: 0 | FG18: 110172.3685 | FH18: 0 | FI18: 0 | FJ18: 73448.24569 | FK18: 0 | FL18: 146896.4914 | FM18: 0 | FN18: 0 | FO18: 0 | FP18: 0 | FQ18: 0 | FR18: 0 | FS18: 0 | FT18: 0 | FU18: 0 | FV18: 0 | FW18: 0 | FX18: 0 | FY18: 0 | FZ18: 0 | GA18: 0 | GB18: 0 | GC18: 0 | GD18: 0 | GE18: 0 | GF18: 0 | GG18: 0 | GH18: 0 | GI18: 0 | GJ18: 0 | GK18: 0 | GL18: 0 | GM18: 0 | GN18: 0 | GO18: 0 | GP18: 0 | GQ18: 0 | GR18: 0 | GS18: 0 | GT18: 0 | GU18: 0 | GV18: 0 | GW18: 0 | GX18: 0 | GY18: 0 | GZ18: 0 | HA18: 0 | HB18: 0 | HC18: 0 | HD18: 0 | HE18: 0 | HF18: 0 | HG18: 0 | HH18: 0 | HI18: 0 | HJ18: 0 | HK18: 0 | HL18: 0 | HM18: 0 | HN18: 0 | HO18: 0 | HP18: 0 | HQ18: 0 | HR18: 0 | HS18: 0 | HT18: 0 | HU18: 0 | HV18: 0 | HW18: 0 | HX18: 734482.4569 | HY18: TRUE | HZ18: TRUE | IA18: 0 | IB18: 0
A19: 1022 | B19: CAPEX | C19: Customer | E19: Standard Control | H19: Customer Initiated Non-Major Works Irrigation | I19: CNMAI | J19: Customer Initiated Non-Major Works Irrigation | K19: D | L19: 2025/26 | M19: 124 | N19: 18476.38 | O19: 2176517.564 | Q19: 399608.627 | R19: 1018392.571 | S19: 175209.6685 | T19: 97943.29 | U19: 2176.5165 | V19: 483186.9005 | W19: 7253.44 | Y19: Unit | AD19: CUS | AK19: =IFERROR(IF(AL19="Transmission",VLOOKUP(J19,'INCURRED & COMMISSIONED'!$B:$Z,13,FALSE),""),"") ->  | AL19: Distribution | AM19: Standard Control Services | AN19: Standard Control Services | AO19: Customer Initiated Works | AP19: Customer Initiated Non-Major Works Irrigation | AQ19: CAPEX | AR19: Network | AS19: Development | AT19: Connection | AU19: =IFERROR($BD19/VLOOKUP("Grand Total",'Raw Data Expenditure analysis '!$A$5:$M$17,MATCH($L19,'Raw Data Expenditure analysis '!$A$5:$M$5,0),FALSE),0) -> 0.01108896345 | AV19: =IFERROR(IF(B19="Capex",$W19/VLOOKUP($AM19,'Raw Data Hrs analysis'!$A$33:$M$42,MATCH($L19,'Raw Data Hrs analysis'!$A$34:$M$34,0),FALSE),0),0) -> 0.02638922587 | AW19: 0 | AX19: =IFERROR(IF(B19="Opex",$BD19/VLOOKUP($AM19,'Raw Data Expenditure analysis '!$B$69:$M$80,MATCH($L19,'Raw Data Expenditure analysis '!$B$69:$M$69,0),FALSE),$BD19/VLOOKUP($AM19,'Raw Data Expenditure analysis '!$B$54:$M$65,MATCH($L19,'Raw Data Expenditure analysis '!$B$54:$M$54,0),FALSE)),0) -> 0.02093355232 | AY19: =IF(Inputs!$C$203=Inputs!$Q$204,((Q19)*(HLOOKUP($L19,Inputs!$E$208:$R$210,3,FALSE))),(Q19)) -> 405511.7046 | AZ19: =IF(Inputs!$C$203=Inputs!$Q$204,((R19)*(HLOOKUP($L19,Inputs!$E$214:$R$216,3,FALSE))),(R19)) -> 1018392.571 | BA19: =IF(Inputs!$C$203=Inputs!$Q$204,((S19)*(HLOOKUP($L19,Inputs!$E$220:$R$222,3,FALSE))),(S19)) -> 175209.6685 | BB19: =IF(Inputs!$C$203=Inputs!$Q$204,((T19)*(HLOOKUP($L19,Inputs!$E$226:$R$228,3,FALSE))),(T19)) -> 97943.29 | BC19: =IF(Inputs!$C$203=Inputs!$Q$204,((U19)*(HLOOKUP($L19,Inputs!$E$226:$R$228,3,FALSE))),(U19)) -> 2176.5165 | BD19: 1699233.751 | BE19: =IFERROR(IF(B19="Opex",0,VLOOKUP($AM19,Inputs!$B$46:$R$54,MATCH(L19,Inputs!$B$46:$R$46,0),FALSE)*AV19),0) -> 250339.2407 | BF19: =IFERROR(IF(B19="Opex",0,VLOOKUP($AM19,Inputs!$B$101:$R$111,MATCH(L19,Inputs!$B$63:$R$63,0),FALSE))*AX19,0) -> 499063.4438 | BG19: 749402.6844 | BH19: 2448636.435 | BI19: =IFERROR(IF(B19="Opex",0,VLOOKUP($AM19,Inputs!$B$173:$R$181,MATCH(L19,Inputs!$B$123:$R$123,0),FALSE)*AX19),0) -> 695392.6973 | BJ19: 3144029.132 | BK19: Distribution - CAPEX | BL19: =(($BD19)*(HLOOKUP($BL$1,Inputs!$B$32:$R$37,MATCH($BM$1,Inputs!$B$32:$B$37,0),FALSE))) -> 1783516.169 | BM19: =(($BG19)*(HLOOKUP($BL$1,Inputs!$B$32:$R$37,MATCH($BM$1,Inputs!$B$32:$B$37,0),FALSE))) -> 786573.2449 | BN19: 2570089.414 | BO19: 0 | BP19: 0 | BQ19: 0 | BR19: 0 | BS19: 0 | BT19: 0 | BU19: 0 | BV19: 934578.5629 | BW19: 0 | BX19: 0 | BY19: 0 | BZ19: 0 | CA19: 0 | CB19: 254885.0626 | CC19: 0 | CD19: 0 | CE19: 169923.3751 | CF19: 0 | CG19: 339846.7501 | CH19: 0 | CI19: 0 | CJ19: 0 | CK19: 0 | CL19: 0 | CM19: 0 | CN19: 0 | CO19: 0 | CP19: 0 | CQ19: 0 | CR19: 0 | CS19: 0 | CT19: 0 | CU19: 0 | CV19: 0 | CW19: 0 | CX19: 0 | CY19: 0 | CZ19: 0 | DA19: 0 | DB19: 0 | DC19: 0 | DD19: 0 | DE19: 0 | DF19: 0 | DG19: 0 | DH19: 0 | DI19: 0 | DJ19: 0 | DK19: 0 | DL19: 0 | DM19: 0 | DN19: 0 | DO19: 0 | DP19: 0 | DQ19: 0 | DR19: 0 | DS19: 0 | DT19: 0 | DU19: 0 | DV19: 0 | DW19: 0 | DX19: 0 | DY19: 0 | DZ19: 0 | EA19: 0 | EB19: 0 | EC19: 0 | ED19: 0 | EE19: 0 | EF19: 0 | EG19: 0 | EH19: 0 | EI19: 0 | EJ19: 0 | EK19: 0 | EL19: 0 | EM19: 0 | EN19: 0 | EO19: 0 | EP19: 0 | EQ19: 0 | ER19: 0 | ES19: 1699233.751 | ET19: 0 | EU19: 0 | EV19: 0 | EW19: 0 | EX19: 0 | EY19: 0 | EZ19: 0 | FA19: 412171.4764 | FB19: 0 | FC19: 0 | FD19: 0 | FE19: 0 | FF19: 0 | FG19: 112410.4027 | FH19: 0 | FI19: 0 | FJ19: 74940.26844 | FK19: 0 | FL19: 149880.5369 | FM19: 0 | FN19: 0 | FO19: 0 | FP19: 0 | FQ19: 0 | FR19: 0 | FS19: 0 | FT19: 0 | FU19: 0 | FV19: 0 | FW19: 0 | FX19: 0 | FY19: 0 | FZ19: 0 | GA19: 0 | GB19: 0 | GC19: 0 | GD19: 0 | GE19: 0 | GF19: 0 | GG19: 0 | GH19: 0 | GI19: 0 | GJ19: 0 | GK19: 0 | GL19: 0 | GM19: 0 | GN19: 0 | GO19: 0 | GP19: 0 | GQ19: 0 | GR19: 0 | GS19: 0 | GT19: 0 | GU19: 0 | GV19: 0 | GW19: 0 | GX19: 0 | GY19: 0 | GZ19: 0 | HA19: 0 | HB19: 0 | HC19: 0 | HD19: 0 | HE19: 0 | HF19: 0 | HG19: 0 | HH19: 0 | HI19: 0 | HJ19: 0 | HK19: 0 | HL19: 0 | HM19: 0 | HN19: 0 | HO19: 0 | HP19: 0 | HQ19: 0 | HR19: 0 | HS19: 0 | HT19: 0 | HU19: 0 | HV19: 0 | HW19: 0 | HX19: 749402.6844 | HY19: TRUE | HZ19: TRUE | IA19: 0 | IB19: 0
A20: 1022 | B20: CAPEX | C20: Customer | E20: Standard Control | H20: Customer Initiated Non-Major Works Irrigation | I20: CNMAI | J20: Customer Initiated Non-Major Works Irrigation | K20: D | L20: 2026/27 | M20: 121 | N20: 18476.38 | O20: 2123859.881 | Q20: 389940.6765 | R20: 993754.036 | S20: 170970.721 | T20: 95573.6955 | U20: 2123.858 | V20: 471496.894 | W20: 7077.95 | Y20: Unit | AD20: CUS | AK20: =IFERROR(IF(AL20="Transmission",VLOOKUP(J20,'INCURRED & COMMISSIONED'!$B:$Z,13,FALSE),""),"") ->  | AL20: Distribution | AM20: Standard Control Services | AN20: Standard Control Services | AO20: Customer Initiated Works | AP20: Customer Initiated Non-Major Works Irrigation | AQ20: CAPEX | AR20: Network | AS20: Development | AT20: Connection | AU20: =IFERROR($BD20/VLOOKUP("Grand Total",'Raw Data Expenditure analysis '!$A$5:$M$17,MATCH($L20,'Raw Data Expenditure analysis '!$A$5:$M$5,0),FALSE),0) -> 0.01139457972 | AV20: =IFERROR(IF(B20="Capex",$W20/VLOOKUP($AM20,'Raw Data Hrs analysis'!$A$33:$M$42,MATCH($L20,'Raw Data Hrs analysis'!$A$34:$M$34,0),FALSE),0),0) -> 0.02577823749 | AW20: 0 | AX20: =IFERROR(IF(B20="Opex",$BD20/VLOOKUP($AM20,'Raw Data Expenditure analysis '!$B$69:$M$80,MATCH($L20,'Raw Data Expenditure analysis '!$B$69:$M$69,0),FALSE),$BD20/VLOOKUP($AM20,'Raw Data Expenditure analysis '!$B$54:$M$65,MATCH($L20,'Raw Data Expenditure analysis '!$B$54:$M$54,0),FALSE)),0) -> 0.02028147392 | AY20: =IF(Inputs!$C$203=Inputs!$Q$204,((Q20)*(HLOOKUP($L20,Inputs!$E$208:$R$210,3,FALSE))),(Q20)) -> 397639.8723 | AZ20: =IF(Inputs!$C$203=Inputs!$Q$204,((R20)*(HLOOKUP($L20,Inputs!$E$214:$R$216,3,FALSE))),(R20)) -> 993754.036 | BA20: =IF(Inputs!$C$203=Inputs!$Q$204,((S20)*(HLOOKUP($L20,Inputs!$E$220:$R$222,3,FALSE))),(S20)) -> 170970.721 | BB20: =IF(Inputs!$C$203=Inputs!$Q$204,((T20)*(HLOOKUP($L20,Inputs!$E$226:$R$228,3,FALSE))),(T20)) -> 95573.6955 | BC20: =IF(Inputs!$C$203=Inputs!$Q$204,((U20)*(HLOOKUP($L20,Inputs!$E$226:$R$228,3,FALSE))),(U20)) -> 2123.858 | BD20: 1660062.183 | BE20: =IFERROR(IF(B20="Opex",0,VLOOKUP($AM20,Inputs!$B$46:$R$54,MATCH(L20,Inputs!$B$46:$R$46,0),FALSE)*AV20),0) -> 244543.1491 | BF20: =IFERROR(IF(B20="Opex",0,VLOOKUP($AM20,Inputs!$B$101:$R$111,MATCH(L20,Inputs!$B$63:$R$63,0),FALSE))*AX20,0) -> 483517.6591 | BG20: 728060.8082 | BH20: 2388122.991 | BI20: =IFERROR(IF(B20="Opex",0,VLOOKUP($AM20,Inputs!$B$173:$R$181,MATCH(L20,Inputs!$B$123:$R$123,0),FALSE)*AX20),0) -> 404235.2963 | BJ20: 2792358.287 | BK20: Distribution - CAPEX | BL20: =(($BD20)*(HLOOKUP($BL$1,Inputs!$B$32:$R$37,MATCH($BM$1,Inputs!$B$32:$B$37,0),FALSE))) -> 1742401.682 | BM20: =(($BG20)*(HLOOKUP($BL$1,Inputs!$B$32:$R$37,MATCH($BM$1,Inputs!$B$32:$B$37,0),FALSE))) -> 764172.8063 | BN20: 2506574.488 | BO20: 0 | BP20: 0 | BQ20: 0 | BR20: 0 | BS20: 0 | BT20: 0 | BU20: 0 | BV20: 913034.2006 | BW20: 0 | BX20: 0 | BY20: 0 | BZ20: 0 | CA20: 0 | CB20: 249009.3274 | CC20: 0 | CD20: 0 | CE20: 166006.2183 | CF20: 0 | CG20: 332012.4366 | CH20: 0 | CI20: 0 | CJ20: 0 | CK20: 0 | CL20: 0 | CM20: 0 | CN20: 0 | CO20: 0 | CP20: 0 | CQ20: 0 | CR20: 0 | CS20: 0 | CT20: 0 | CU20: 0 | CV20: 0 | CW20: 0 | CX20: 0 | CY20: 0 | CZ20: 0 | DA20: 0 | DB20: 0 | DC20: 0 | DD20: 0 | DE20: 0 | DF20: 0 | DG20: 0 | DH20: 0 | DI20: 0 | DJ20: 0 | DK20: 0 | DL20: 0 | DM20: 0 | DN20: 0 | DO20: 0 | DP20: 0 | DQ20: 0 | DR20: 0 | DS20: 0 | DT20: 0 | DU20: 0 | DV20: 0 | DW20: 0 | DX20: 0 | DY20: 0 | DZ20: 0 | EA20: 0 | EB20: 0 | EC20: 0 | ED20: 0 | EE20: 0 | EF20: 0 | EG20: 0 | EH20: 0 | EI20: 0 | EJ20: 0 | EK20: 0 | EL20: 0 | EM20: 0 | EN20: 0 | EO20: 0 | EP20: 0 | EQ20: 0 | ER20: 0 | ES20: 1660062.183 | ET20: 0 | EU20: 0 | EV20: 0 | EW20: 0 | EX20: 0 | EY20: 0 | EZ20: 0 | FA20: 400433.4445 | FB20: 0 | FC20: 0 | FD20: 0 | FE20: 0 | FF20: 0 | FG20: 109209.1212 | FH20: 0 | FI20: 0 | FJ20: 72806.08082 | FK20: 0 | FL20: 145612.1616 | FM20: 0 | FN20: 0 | FO20: 0 | FP20: 0 | FQ20: 0 | FR20: 0 | FS20: 0 | FT20: 0 | FU20: 0 | FV20: 0 | FW20: 0 | FX20: 0 | FY20: 0 | FZ20: 0 | GA20: 0 | GB20: 0 | GC20: 0 | GD20: 0 | GE20: 0 | GF20: 0 | GG20: 0 | GH20: 0 | GI20: 0 | GJ20: 0 | GK20: 0 | GL20: 0 | GM20: 0 | GN20: 0 | GO20: 0 | GP20: 0 | GQ20: 0 | GR20: 0 | GS20: 0 | GT20: 0 | GU20: 0 | GV20: 0 | GW20: 0 | GX20: 0 | GY20: 0 | GZ20: 0 | HA20: 0 | HB20: 0 | HC20: 0 | HD20: 0 | HE20: 0 | HF20: 0 | HG20: 0 | HH20: 0 | HI20: 0 | HJ20: 0 | HK20: 0 | HL20: 0 | HM20: 0 | HN20: 0 | HO20: 0 | HP20: 0 | HQ20: 0 | HR20: 0 | HS20: 0 | HT20: 0 | HU20: 0 | HV20: 0 | HW20: 0 | HX20: 728060.8082 | HY20: TRUE | HZ20: TRUE | IA20: 0 | IB20: 0
A21: 1022 | B21: CAPEX | C21: Customer | E21: Standard Control | H21: Customer Initiated Non-Major Works Irrigation | I21: CNMAI | J21: Customer Initiated Non-Major Works Irrigation | K21: D | L21: 2027/28 | M21: 121 | N21: 18476.38 | O21: 2123859.881 | Q21: 389940.6765 | R21: 993754.036 | S21: 170970.721 | T21: 95573.6955 | U21: 2123.858 | V21: 471496.894 | W21: 7077.95 | Y21: Unit | AD21: CUS | AK21: =IFERROR(IF(AL21="Transmission",VLOOKUP(J21,'INCURRED & COMMISSIONED'!$B:$Z,13,FALSE),""),"") ->  | AL21: Distribution | AM21: Standard Control Services | AN21: Standard Control Services | AO21: Customer Initiated Works | AP21: Customer Initiated Non-Major Works Irrigation | AQ21: CAPEX | AR21: Network | AS21: Development | AT21: Connection | AU21: =IFERROR($BD21/VLOOKUP("Grand Total",'Raw Data Expenditure analysis '!$A$5:$M$17,MATCH($L21,'Raw Data Expenditure analysis '!$A$5:$M$5,0),FALSE),0) -> 0.01049287269 | AV21: =IFERROR(IF(B21="Capex",$W21/VLOOKUP($AM21,'Raw Data Hrs analysis'!$A$33:$M$42,MATCH($L21,'Raw Data Hrs analysis'!$A$34:$M$34,0),FALSE),0),0) -> 0.02544477899 | AW21: 0 | AX21: =IFERROR(IF(B21="Opex",$BD21/VLOOKUP($AM21,'Raw Data Expenditure analysis '!$B$69:$M$80,MATCH($L21,'Raw Data Expenditure analysis '!$B$69:$M$69,0),FALSE),$BD21/VLOOKUP($AM21,'Raw Data Expenditure analysis '!$B$54:$M$65,MATCH($L21,'Raw Data Expenditure analysis '!$B$54:$M$54,0),FALSE)),0) -> 0.020324153 | AY21: =IF(Inputs!$C$203=Inputs!$Q$204,((Q21)*(HLOOKUP($L21,Inputs!$E$208:$R$210,3,FALSE))),(Q21)) -> 393771.4576 | AZ21: =IF(Inputs!$C$203=Inputs!$Q$204,((R21)*(HLOOKUP($L21,Inputs!$E$214:$R$216,3,FALSE))),(R21)) -> 993754.036 | BA21: =IF(Inputs!$C$203=Inputs!$Q$204,((S21)*(HLOOKUP($L21,Inputs!$E$220:$R$222,3,FALSE))),(S21)) -> 170970.721 | BB21: =IF(Inputs!$C$203=Inputs!$Q$204,((T21)*(HLOOKUP($L21,Inputs!$E$226:$R$228,3,FALSE))),(T21)) -> 95573.6955 | BC21: =IF(Inputs!$C$203=Inputs!$Q$204,((U21)*(HLOOKUP($L21,Inputs!$E$226:$R$228,3,FALSE))),(U21)) -> 2123.858 | BD21: 1656193.768 | BE21: =IFERROR(IF(B21="Opex",0,VLOOKUP($AM21,Inputs!$B$46:$R$54,MATCH(L21,Inputs!$B$46:$R$46,0),FALSE)*AV21),0) -> 241379.8223 | BF21: =IFERROR(IF(B21="Opex",0,VLOOKUP($AM21,Inputs!$B$101:$R$111,MATCH(L21,Inputs!$B$63:$R$63,0),FALSE))*AX21,0) -> 484535.1438 | BG21: 725914.9661 | BH21: 2382108.734 | BI21: =IFERROR(IF(B21="Opex",0,VLOOKUP($AM21,Inputs!$B$173:$R$181,MATCH(L21,Inputs!$B$123:$R$123,0),FALSE)*AX21),0) -> 504597.9606 | BJ21: 2886706.695 | BK21: Distribution - CAPEX | BL21: =(($BD21)*(HLOOKUP($BL$1,Inputs!$B$32:$R$37,MATCH($BM$1,Inputs!$B$32:$B$37,0),FALSE))) -> 1738341.393 | BM21: =(($BG21)*(HLOOKUP($BL$1,Inputs!$B$32:$R$37,MATCH($BM$1,Inputs!$B$32:$B$37,0),FALSE))) -> 761920.5299 | BN21: 2500261.923 | BO21: 0 | BP21: 0 | BQ21: 0 | BR21: 0 | BS21: 0 | BT21: 0 | BU21: 0 | BV21: 910906.5725 | BW21: 0 | BX21: 0 | BY21: 0 | BZ21: 0 | CA21: 0 | CB21: 248429.0652 | CC21: 0 | CD21: 0 | CE21: 165619.3768 | CF21: 0 | CG21: 331238.7536 | CH21: 0 | CI21: 0 | CJ21: 0 | CK21: 0 | CL21: 0 | CM21: 0 | CN21: 0 | CO21: 0 | CP21: 0 | CQ21: 0 | CR21: 0 | CS21: 0 | CT21: 0 | CU21: 0 | CV21: 0 | CW21: 0 | CX21: 0 | CY21: 0 | CZ21: 0 | DA21: 0 | DB21: 0 | DC21: 0 | DD21: 0 | DE21: 0 | DF21: 0 | DG21: 0 | DH21: 0 | DI21: 0 | DJ21: 0 | DK21: 0 | DL21: 0 | DM21: 0 | DN21: 0 | DO21: 0 | DP21: 0 | DQ21: 0 | DR21: 0 | DS21: 0 | DT21: 0 | DU21: 0 | DV21: 0 | DW21: 0 | DX21: 0 | DY21: 0 | DZ21: 0 | EA21: 0 | EB21: 0 | EC21: 0 | ED21: 0 | EE21: 0 | EF21: 0 | EG21: 0 | EH21: 0 | EI21: 0 | EJ21: 0 | EK21: 0 | EL21: 0 | EM21: 0 | EN21: 0 | EO21: 0 | EP21: 0 | EQ21: 0 | ER21: 0 | ES21: 1656193.768 | ET21: 0 | EU21: 0 | EV21: 0 | EW21: 0 | EX21: 0 | EY21: 0 | EZ21: 0 | FA21: 399253.2313 | FB21: 0 | FC21: 0 | FD21: 0 | FE21: 0 | FF21: 0 | FG21: 108887.2449 | FH21: 0 | FI21: 0 | FJ21: 72591.49661 | FK21: 0 | FL21: 145182.9932 | FM21: 0 | FN21: 0 | FO21: 0 | FP21: 0 | FQ21: 0 | FR21: 0 | FS21: 0 | FT21: 0 | FU21: 0 | FV21: 0 | FW21: 0 | FX21: 0 | FY21: 0 | FZ21: 0 | GA21: 0 | GB21: 0 | GC21: 0 | GD21: 0 | GE21: 0 | GF21: 0 | GG21: 0 | GH21: 0 | GI21: 0 | GJ21: 0 | GK21: 0 | GL21: 0 | GM21: 0 | GN21: 0 | GO21: 0 | GP21: 0 | GQ21: 0 | GR21: 0 | GS21: 0 | GT21: 0 | GU21: 0 | GV21: 0 | GW21: 0 | GX21: 0 | GY21: 0 | GZ21: 0 | HA21: 0 | HB21: 0 | HC21: 0 | HD21: 0 | HE21: 0 | HF21: 0 | HG21: 0 | HH21: 0 | HI21: 0 | HJ21: 0 | HK21: 0 | HL21: 0 | HM21: 0 | HN21: 0 | HO21: 0 | HP21: 0 | HQ21: 0 | HR21: 0 | HS21: 0 | HT21: 0 | HU21: 0 | HV21: 0 | HW21: 0 | HX21: 725914.9661 | HY21: TRUE | HZ21: TRUE | IA21: 0 | IB21: 0
A22: 1022 | B22: CAPEX | C22: Customer | E22: Standard Control | H22: Customer Initiated Non-Major Works Irrigation | I22: CNMAI | J22: Customer Initiated Non-Major Works Irrigation | K22: D | L22: 2028/29 | M22: 121 | N22: 18476.38 | O22: 2123859.881 | Q22: 389940.6765 | R22: 993754.036 | S22: 170970.721 | T22: 95573.6955 | U22: 2123.858 | V22: 471496.894 | W22: 7077.95 | Y22: Unit | AD22: CUS | AK22: =IFERROR(IF(AL22="Transmission",VLOOKUP(J22,'INCURRED & COMMISSIONED'!$B:$Z,13,FALSE),""),"") ->  | AL22: Distribution | AM22: Standard Control Services | AN22: Standard Control Services | AO22: Customer Initiated Works | AP22: Customer Initiated Non-Major Works Irrigation | AQ22: CAPEX | AR22: Network | AS22: Development | AT22: Connection | AU22: =IFERROR($BD22/VLOOKUP("Grand Total",'Raw Data Expenditure analysis '!$A$5:$M$17,MATCH($L22,'Raw Data Expenditure analysis '!$A$5:$M$5,0),FALSE),0) -> 0.01139209515 | AV22: =IFERROR(IF(B22="Capex",$W22/VLOOKUP($AM22,'Raw Data Hrs analysis'!$A$33:$M$42,MATCH($L22,'Raw Data Hrs analysis'!$A$34:$M$34,0),FALSE),0),0) -> 0.02348897272 | AW22: 0 | AX22: =IFERROR(IF(B22="Opex",$BD22/VLOOKUP($AM22,'Raw Data Expenditure analysis '!$B$69:$M$80,MATCH($L22,'Raw Data Expenditure analysis '!$B$69:$M$69,0),FALSE),$BD22/VLOOKUP($AM22,'Raw Data Expenditure analysis '!$B$54:$M$65,MATCH($L22,'Raw Data Expenditure analysis '!$B$54:$M$54,0),FALSE)),0) -> 0.02002986368 | AY22: =IF(Inputs!$C$203=Inputs!$Q$204,((Q22)*(HLOOKUP($L22,Inputs!$E$208:$R$210,3,FALSE))),(Q22)) -> 395700.9377 | AZ22: =IF(Inputs!$C$203=Inputs!$Q$204,((R22)*(HLOOKUP($L22,Inputs!$E$214:$R$216,3,FALSE))),(R22)) -> 993754.036 | BA22: =IF(Inputs!$C$203=Inputs!$Q$204,((S22)*(HLOOKUP($L22,Inputs!$E$220:$R$222,3,FALSE))),(S22)) -> 170970.721 | BB22: =IF(Inputs!$C$203=Inputs!$Q$204,((T22)*(HLOOKUP($L22,Inputs!$E$226:$R$228,3,FALSE))),(T22)) -> 95573.6955 | BC22: =IF(Inputs!$C$203=Inputs!$Q$204,((U22)*(HLOOKUP($L22,Inputs!$E$226:$R$228,3,FALSE))),(U22)) -> 2123.858 | BD22: 1658123.248 | BE22: =IFERROR(IF(B22="Opex",0,VLOOKUP($AM22,Inputs!$B$46:$R$54,MATCH(L22,Inputs!$B$46:$R$46,0),FALSE)*AV22),0) -> 222826.2254 | BF22: =IFERROR(IF(B22="Opex",0,VLOOKUP($AM22,Inputs!$B$101:$R$111,MATCH(L22,Inputs!$B$63:$R$63,0),FALSE))*AX22,0) -> 477519.1804 | BG22: 700345.4058 | BH22: 2358468.654 | BI22: =IFERROR(IF(B22="Opex",0,VLOOKUP($AM22,Inputs!$B$173:$R$181,MATCH(L22,Inputs!$B$123:$R$123,0),FALSE)*AX22),0) -> 450366.1843 | BJ22: 2808834.838 | BK22: Distribution - CAPEX | BL22: =(($BD22)*(HLOOKUP($BL$1,Inputs!$B$32:$R$37,MATCH($BM$1,Inputs!$B$32:$B$37,0),FALSE))) -> 1740366.576 | BM22: =(($BG22)*(HLOOKUP($BL$1,Inputs!$B$32:$R$37,MATCH($BM$1,Inputs!$B$32:$B$37,0),FALSE))) -> 735082.713 | BN22: 2475449.289 | BO22: 0 | BP22: 0 | BQ22: 0 | BR22: 0 | BS22: 0 | BT22: 0 | BU22: 0 | BV22: 911967.7865 | BW22: 0 | BX22: 0 | BY22: 0 | BZ22: 0 | CA22: 0 | CB22: 248718.4872 | CC22: 0 | CD22: 0 | CE22: 165812.3248 | CF22: 0 | CG22: 331624.6496 | CH22: 0 | CI22: 0 | CJ22: 0 | CK22: 0 | CL22: 0 | CM22: 0 | CN22: 0 | CO22: 0 | CP22: 0 | CQ22: 0 | CR22: 0 | CS22: 0 | CT22: 0 | CU22: 0 | CV22: 0 | CW22: 0 | CX22: 0 | CY22: 0 | CZ22: 0 | DA22: 0 | DB22: 0 | DC22: 0 | DD22: 0 | DE22: 0 | DF22: 0 | DG22: 0 | DH22: 0 | DI22: 0 | DJ22: 0 | DK22: 0 | DL22: 0 | DM22: 0 | DN22: 0 | DO22: 0 | DP22: 0 | DQ22: 0 | DR22: 0 | DS22: 0 | DT22: 0 | DU22: 0 | DV22: 0 | DW22: 0 | DX22: 0 | DY22: 0 | DZ22: 0 | EA22: 0 | EB22: 0 | EC22: 0 | ED22: 0 | EE22: 0 | EF22: 0 | EG22: 0 | EH22: 0 | EI22: 0 | EJ22: 0 | EK22: 0 | EL22: 0 | EM22: 0 | EN22: 0 | EO22: 0 | EP22: 0 | EQ22: 0 | ER22: 0 | ES22: 1658123.248 | ET22: 0 | EU22: 0 | EV22: 0 | EW22: 0 | EX22: 0 | EY22: 0 | EZ22: 0 | FA22: 385189.9732 | FB22: 0 | FC22: 0 | FD22: 0 | FE22: 0 | FF22: 0 | FG22: 105051.8109 | FH22: 0 | FI22: 0 | FJ22: 70034.54058 | FK22: 0 | FL22: 140069.0812 | FM22: 0 | FN22: 0 | FO22: 0 | FP22: 0 | FQ22: 0 | FR22: 0 | FS22: 0 | FT22: 0 | FU22: 0 | FV22: 0 | FW22: 0 | FX22: 0 | FY22: 0 | FZ22: 0 | GA22: 0 | GB22: 0 | GC22: 0 | GD22: 0 | GE22: 0 | GF22: 0 | GG22: 0 | GH22: 0 | GI22: 0 | GJ22: 0 | GK22: 0 | GL22: 0 | GM22: 0 | GN22: 0 | GO22: 0 | GP22: 0 | GQ22: 0 | GR22: 0 | GS22: 0 | GT22: 0 | GU22: 0 | GV22: 0 | GW22: 0 | GX22: 0 | GY22: 0 | GZ22: 0 | HA22: 0 | HB22: 0 | HC22: 0 | HD22: 0 | HE22: 0 | HF22: 0 | HG22: 0 | HH22: 0 | HI22: 0 | HJ22: 0 | HK22: 0 | HL22: 0 | HM22: 0 | HN22: 0 | HO22: 0 | HP22: 0 | HQ22: 0 | HR22: 0 | HS22: 0 | HT22: 0 | HU22: 0 | HV22: 0 | HW22: 0 | HX22: 700345.4058 | HY22: TRUE | HZ22: TRUE | IA22: 0 | IB22: 0
A23: 1023 | B23: CAPEX | C23: Customer | E23: Standard Control | H23: Customer Initiated Subdivisions | I23: CSUDN | J23: Customer Initiated Subdivisions | K23: D | L23: 2019/20 | M23: 1255 | N23: 5664.59 | O23: 6753607.428 | Q23: 823940.1015 | R23: 2588657.726 | S23: 2099696.546 | T23: 156683.69 | U23: 6753.607 | V23: 1077875.748 | W23: 15349.04 | Y23: Unit | AD23: CUS | AK23: =IFERROR(IF(AL23="Transmission",VLOOKUP(J23,'INCURRED & COMMISSIONED'!$B:$Z,13,FALSE),""),"") ->  | AL23: Distribution | AM23: Standard Control Services | AN23: Standard Control Services | AO23: Customer Initiated Works | AP23: Customer Initiated Subdivisions | AQ23: CAPEX | AR23: Network | AS23: Development | AT23: Connection | AU23: =IFERROR($BD23/VLOOKUP("Grand Total",'Raw Data Expenditure analysis '!$A$5:$M$17,MATCH($L23,'Raw Data Expenditure analysis '!$A$5:$M$5,0),FALSE),0) -> 0.03691740708 | AV23: =IFERROR(IF(B23="Capex",$W23/VLOOKUP($AM23,'Raw Data Hrs analysis'!$A$33:$M$42,MATCH($L23,'Raw Data Hrs analysis'!$A$34:$M$34,0),FALSE),0),0) -> 0.04959914598 | AW23: 0 | AX23: =IFERROR(IF(B23="Opex",$BD23/VLOOKUP($AM23,'Raw Data Expenditure analysis '!$B$69:$M$80,MATCH($L23,'Raw Data Expenditure analysis '!$B$69:$M$69,0),FALSE),$BD23/VLOOKUP($AM23,'Raw Data Expenditure analysis '!$B$54:$M$65,MATCH($L23,'Raw Data Expenditure analysis '!$B$54:$M$54,0),FALSE)),0) -> 0.06214604714 | AY23: =IF(Inputs!$C$203=Inputs!$Q$204,((Q23)*(HLOOKUP($L23,Inputs!$E$208:$R$210,3,FALSE))),(Q23)) -> 823940.1015 | AZ23: =IF(Inputs!$C$203=Inputs!$Q$204,((R23)*(HLOOKUP($L23,Inputs!$E$214:$R$216,3,FALSE))),(R23)) -> 2588657.726 | BA23: =IF(Inputs!$C$203=Inputs!$Q$204,((S23)*(HLOOKUP($L23,Inputs!$E$220:$R$222,3,FALSE))),(S23)) -> 2099696.546 | BB23: =IF(Inputs!$C$203=Inputs!$Q$204,((T23)*(HLOOKUP($L23,Inputs!$E$226:$R$228,3,FALSE))),(T23)) -> 156683.69 | BC23: =IF(Inputs!$C$203=Inputs!$Q$204,((U23)*(HLOOKUP($L23,Inputs!$E$226:$R$228,3,FALSE))),(U23)) -> 6753.607 | BD23: 5675731.671 | BE23: =IFERROR(IF(B23="Opex",0,VLOOKUP($AM23,Inputs!$B$46:$R$54,MATCH(L23,Inputs!$B$46:$R$46,0),FALSE)*AV23),0) -> 487357.68 | BF23: =IFERROR(IF(B23="Opex",0,VLOOKUP($AM23,Inputs!$B$101:$R$111,MATCH(L23,Inputs!$B$63:$R$63,0),FALSE))*AX23,0) -> 1534608.758 | BG23: 2021966.438 | BH23: 7697698.109 | BI23: =IFERROR(IF(B23="Opex",0,VLOOKUP($AM23,Inputs!$B$173:$R$181,MATCH(L23,Inputs!$B$123:$R$123,0),FALSE)*AX23),0) -> 1699317.833 | BJ23: 9397015.942 | BK23: Distribution - CAPEX | BL23: =(($BD23)*(HLOOKUP($BL$1,Inputs!$B$32:$R$37,MATCH($BM$1,Inputs!$B$32:$B$37,0),FALSE))) -> 5957249.38 | BM23: =(($BG23)*(HLOOKUP($BL$1,Inputs!$B$32:$R$37,MATCH($BM$1,Inputs!$B$32:$B$37,0),FALSE))) -> 2122256.479 | BN23: 8079505.859 | BO23: 0 | BP23: 0 | BQ23: 0 | BR23: 0 | BS23: 0 | BT23: 0 | BU23: 0 | BV23: 263970.4796 | BW23: 0 | BX23: 1024002.844 | BY23: 0 | BZ23: 0 | CA23: 0 | CB23: 0 | CC23: 1024002.844 | CD23: 0 | CE23: 135457.3011 | CF23: 0 | CG23: 156289.6689 | CH23: 1536004.266 | CI23: 1536004.266 | CJ23: 0 | CK23: 0 | CL23: 0 | CM23: 0 | CN23: 0 | CO23: 0 | CP23: 0 | CQ23: 0 | CR23: 0 | CS23: 0 | CT23: 0 | CU23: 0 | CV23: 0 | CW23: 0 | CX23: 0 | CY23: 0 | CZ23: 0 | DA23: 0 | DB23: 0 | DC23: 0 | DD23: 0 | DE23: 0 | DF23: 0 | DG23: 0 | DH23: 0 | DI23: 0 | DJ23: 0 | DK23: 0 | DL23: 0 | DM23: 0 | DN23: 0 | DO23: 0 | DP23: 0 | DQ23: 0 | DR23: 0 | DS23: 0 | DT23: 0 | DU23: 0 | DV23: 0 | DW23: 0 | DX23: 0 | DY23: 0 | DZ23: 0 | EA23: 0 | EB23: 0 | EC23: 0 | ED23: 0 | EE23: 0 | EF23: 0 | EG23: 0 | EH23: 0 | EI23: 0 | EJ23: 0 | EK23: 0 | EL23: 0 | EM23: 0 | EN23: 0 | EO23: 0 | EP23: 0 | EQ23: 0 | ER23: 0 | ES23: 5675731.671 | ET23: 0 | EU23: 0 | EV23: 0 | EW23: 0 | EX23: 0 | EY23: 0 | EZ23: 0 | FA23: 94038.88017 | FB23: 0 | FC23: 364798.6733 | FD23: 0 | FE23: 0 | FF23: 0 | FG23: 0 | FH23: 364798.6733 | FI23: 0 | FJ23: 48256.35399 | FK23: 0 | FL23: 55677.83742 | FM23: 547198.0099 | FN23: 547198.0099 | FO23: 0 | FP23: 0 | FQ23: 0 | FR23: 0 | FS23: 0 | FT23: 0 | FU23: 0 | FV23: 0 | FW23: 0 | FX23: 0 | FY23: 0 | FZ23: 0 | GA23: 0 | GB23: 0 | GC23: 0 | GD23: 0 | GE23: 0 | GF23: 0 | GG23: 0 | GH23: 0 | GI23: 0 | GJ23: 0 | GK23: 0 | GL23: 0 | GM23: 0 | GN23: 0 | GO23: 0 | GP23: 0 | GQ23: 0 | GR23: 0 | GS23: 0 | GT23: 0 | GU23: 0 | GV23: 0 | GW23: 0 | GX23: 0 | GY23: 0 | GZ23: 0 | HA23: 0 | HB23: 0 | HC23: 0 | HD23: 0 | HE23: 0 | HF23: 0 | HG23: 0 | HH23: 0 | HI23: 0 | HJ23: 0 | HK23: 0 | HL23: 0 | HM23: 0 | HN23: 0 | HO23: 0 | HP23: 0 | HQ23: 0 | HR23: 0 | HS23: 0 | HT23: 0 | HU23: 0 | HV23: 0 | HW23: 0 | HX23: 2021966.438 | HY23: TRUE | HZ23: TRUE | IA23: 0 | IB23: 0
A24: 1023 | B24: CAPEX | C24: Customer | E24: Standard Control | H24: Customer Initiated Subdivisions | I24: CSUDN | J24: Customer Initiated Subdivisions | K24: D | L24: 2020/21 | M24: 1347 | N24: 5664.59 | O24: 7248692.594 | Q24: 884340.4935 | R24: 2778423.874 | S24: 2253618.528 | T24: 168169.665 | U24: 7248.69 | V24: 1156891.342 | W24: 16474.23 | Y24: Unit | AD24: CUS | AK24: =IFERROR(IF(AL24="Transmission",VLOOKUP(J24,'INCURRED & COMMISSIONED'!$B:$Z,13,FALSE),""),"") ->  | AL24: Distribution | AM24: Standard Control Services | AN24: Standard Control Services | AO24: Customer Initiated Works | AP24: Customer Initiated Subdivisions | AQ24: CAPEX | AR24: Network | AS24: Development | AT24: Connection | AU24: =IFERROR($BD24/VLOOKUP("Grand Total",'Raw Data Expenditure analysis '!$A$5:$M$17,MATCH($L24,'Raw Data Expenditure analysis '!$A$5:$M$5,0),FALSE),0) -> 0.03533360036 | AV24: =IFERROR(IF(B24="Capex",$W24/VLOOKUP($AM24,'Raw Data Hrs analysis'!$A$33:$M$42,MATCH($L24,'Raw Data Hrs analysis'!$A$34:$M$34,0),FALSE),0),0) -> 0.05323783232 | AW24: 0 | AX24: =IFERROR(IF(B24="Opex",$BD24/VLOOKUP($AM24,'Raw Data Expenditure analysis '!$B$69:$M$80,MATCH($L24,'Raw Data Expenditure analysis '!$B$69:$M$69,0),FALSE),$BD24/VLOOKUP($AM24,'Raw Data Expenditure analysis '!$B$54:$M$65,MATCH($L24,'Raw Data Expenditure analysis '!$B$54:$M$54,0),FALSE)),0) -> 0.06583225651 | AY24: =IF(Inputs!$C$203=Inputs!$Q$204,((Q24)*(HLOOKUP($L24,Inputs!$E$208:$R$210,3,FALSE))),(Q24)) -> 888673.7619 | AZ24: =IF(Inputs!$C$203=Inputs!$Q$204,((R24)*(HLOOKUP($L24,Inputs!$E$214:$R$216,3,FALSE))),(R24)) -> 2778423.874 | BA24: =IF(Inputs!$C$203=Inputs!$Q$204,((S24)*(HLOOKUP($L24,Inputs!$E$220:$R$222,3,FALSE))),(S24)) -> 2253618.528 | BB24: =IF(Inputs!$C$203=Inputs!$Q$204,((T24)*(HLOOKUP($L24,Inputs!$E$226:$R$228,3,FALSE))),(T24)) -> 168169.665 | BC24: =IF(Inputs!$C$203=Inputs!$Q$204,((U24)*(HLOOKUP($L24,Inputs!$E$226:$R$228,3,FALSE))),(U24)) -> 7248.69 | BD24: 6096134.52 | BE24: =IFERROR(IF(B24="Opex",0,VLOOKUP($AM24,Inputs!$B$46:$R$54,MATCH(L24,Inputs!$B$46:$R$46,0),FALSE)*AV24),0) -> 520495.5974 | BF24: =IFERROR(IF(B24="Opex",0,VLOOKUP($AM24,Inputs!$B$101:$R$111,MATCH(L24,Inputs!$B$63:$R$63,0),FALSE))*AX24,0) -> 1617506.314 | BG24: 2138001.911 | BH24: 8234136.431 | BI24: =IFERROR(IF(B24="Opex",0,VLOOKUP($AM24,Inputs!$B$173:$R$181,MATCH(L24,Inputs!$B$123:$R$123,0),FALSE)*AX24),0) -> 1420748.719 | BJ24: 9654885.15 | BK24: Distribution - CAPEX | BL24: =(($BD24)*(HLOOKUP($BL$1,Inputs!$B$32:$R$37,MATCH($BM$1,Inputs!$B$32:$B$37,0),FALSE))) -> 6398504.316 | BM24: =(($BG24)*(HLOOKUP($BL$1,Inputs!$B$32:$R$37,MATCH($BM$1,Inputs!$B$32:$B$37,0),FALSE))) -> 2244047.34 | BN24: 8642551.656 | BO24: 0 | BP24: 0 | BQ24: 0 | BR24: 0 | BS24: 0 | BT24: 0 | BU24: 0 | BV24: 283522.8384 | BW24: 0 | BX24: 1099850.988 | BY24: 0 | BZ24: 0 | CA24: 0 | CB24: 0 | CC24: 1099850.988 | CD24: 0 | CE24: 145490.6569 | CF24: 0 | CG24: 167866.0834 | CH24: 1649776.482 | CI24: 1649776.482 | CJ24: 0 | CK24: 0 | CL24: 0 | CM24: 0 | CN24: 0 | CO24: 0 | CP24: 0 | CQ24: 0 | CR24: 0 | CS24: 0 | CT24: 0 | CU24: 0 | CV24: 0 | CW24: 0 | CX24: 0 | CY24: 0 | CZ24: 0 | DA24: 0 | DB24: 0 | DC24: 0 | DD24: 0 | DE24: 0 | DF24: 0 | DG24: 0 | DH24: 0 | DI24: 0 | DJ24: 0 | DK24: 0 | DL24: 0 | DM24: 0 | DN24: 0 | DO24: 0 | DP24: 0 | DQ24: 0 | DR24: 0 | DS24: 0 | DT24: 0 | DU24: 0 | DV24: 0 | DW24: 0 | DX24: 0 | DY24: 0 | DZ24: 0 | EA24: 0 | EB24: 0 | EC24: 0 | ED24: 0 | EE24: 0 | EF24: 0 | EG24: 0 | EH24: 0 | EI24: 0 | EJ24: 0 | EK24: 0 | EL24: 0 | EM24: 0 | EN24: 0 | EO24: 0 | EP24: 0 | EQ24: 0 | ER24: 0 | ES24: 6096134.52 | ET24: 0 | EU24: 0 | EV24: 0 | EW24: 0 | EX24: 0 | EY24: 0 | EZ24: 0 | FA24: 99435.53055 | FB24: 0 | FC24: 385733.5344 | FD24: 0 | FE24: 0 | FF24: 0 | FG24: 0 | FH24: 385733.5344 | FI24: 0 | FJ24: 51025.6625 | FK24: 0 | FL24: 58873.04584 | FM24: 578600.3016 | FN24: 578600.3016 | FO24: 0 | FP24: 0 | FQ24: 0 | FR24: 0 | FS24: 0 | FT24: 0 | FU24: 0 | FV24: 0 | FW24: 0 | FX24: 0 | FY24: 0 | FZ24: 0 | GA24: 0 | GB24: 0 | GC24: 0 | GD24: 0 | GE24: 0 | GF24: 0 | GG24: 0 | GH24: 0 | GI24: 0 | GJ24: 0 | GK24: 0 | GL24: 0 | GM24: 0 | GN24: 0 | GO24: 0 | GP24: 0 | GQ24: 0 | GR24: 0 | GS24: 0 | GT24: 0 | GU24: 0 | GV24: 0 | GW24: 0 | GX24: 0 | GY24: 0 | GZ24: 0 | HA24: 0 | HB24: 0 | HC24: 0 | HD24: 0 | HE24: 0 | HF24: 0 | HG24: 0 | HH24: 0 | HI24: 0 | HJ24: 0 | HK24: 0 | HL24: 0 | HM24: 0 | HN24: 0 | HO24: 0 | HP24: 0 | HQ24: 0 | HR24: 0 | HS24: 0 | HT24: 0 | HU24: 0 | HV24: 0 | HW24: 0 | HX24: 2138001.911 | HY24: TRUE | HZ24: TRUE | IA24: 0 | IB24: 0
A25: 1023 | B25: CAPEX | C25: Customer | E25: Standard Control | H25: Customer Initiated Subdivisions | I25: CSUDN | J25: Customer Initiated Subdivisions | K25: D | L25: 2021/22 | M25: 1341 | N25: 5664.59 | O25: 7216404.43 | Q25: 880401.3375 | R25: 2766047.816 | S25: 2243580.135 | T25: 167420.5805 | U25: 7216.409 | V25: 1151738.143 | W25: 16400.84 | Y25: Unit | AD25: CUS | AK25: =IFERROR(IF(AL25="Transmission",VLOOKUP(J25,'INCURRED & COMMISSIONED'!$B:$Z,13,FALSE),""),"") ->  | AL25: Distribution | AM25: Standard Control Services | AN25: Standard Control Services | AO25: Customer Initiated Works | AP25: Customer Initiated Subdivisions | AQ25: CAPEX | AR25: Network | AS25: Development | AT25: Connection | AU25: =IFERROR($BD25/VLOOKUP("Grand Total",'Raw Data Expenditure analysis '!$A$5:$M$17,MATCH($L25,'Raw Data Expenditure analysis '!$A$5:$M$5,0),FALSE),0) -> 0.03791533904 | AV25: =IFERROR(IF(B25="Capex",$W25/VLOOKUP($AM25,'Raw Data Hrs analysis'!$A$33:$M$42,MATCH($L25,'Raw Data Hrs analysis'!$A$34:$M$34,0),FALSE),0),0) -> 0.05647476148 | AW25: 0 | AX25: =IFERROR(IF(B25="Opex",$BD25/VLOOKUP($AM25,'Raw Data Expenditure analysis '!$B$69:$M$80,MATCH($L25,'Raw Data Expenditure analysis '!$B$69:$M$69,0),FALSE),$BD25/VLOOKUP($AM25,'Raw Data Expenditure analysis '!$B$54:$M$65,MATCH($L25,'Raw Data Expenditure analysis '!$B$54:$M$54,0),FALSE)),0) -> 0.06851254614 | AY25: =IF(Inputs!$C$203=Inputs!$Q$204,((Q25)*(HLOOKUP($L25,Inputs!$E$208:$R$210,3,FALSE))),(Q25)) -> 889050.409 | AZ25: =IF(Inputs!$C$203=Inputs!$Q$204,((R25)*(HLOOKUP($L25,Inputs!$E$214:$R$216,3,FALSE))),(R25)) -> 2766047.816 | BA25: =IF(Inputs!$C$203=Inputs!$Q$204,((S25)*(HLOOKUP($L25,Inputs!$E$220:$R$222,3,FALSE))),(S25)) -> 2243580.135 | BB25: =IF(Inputs!$C$203=Inputs!$Q$204,((T25)*(HLOOKUP($L25,Inputs!$E$226:$R$228,3,FALSE))),(T25)) -> 167420.5805 | BC25: =IF(Inputs!$C$203=Inputs!$Q$204,((U25)*(HLOOKUP($L25,Inputs!$E$226:$R$228,3,FALSE))),(U25)) -> 7216.409 | BD25: 6073315.35 | BE25: =IFERROR(IF(B25="Opex",0,VLOOKUP($AM25,Inputs!$B$46:$R$54,MATCH(L25,Inputs!$B$46:$R$46,0),FALSE)*AV25),0) -> 546620.9799 | BF25: =IFERROR(IF(B25="Opex",0,VLOOKUP($AM25,Inputs!$B$101:$R$111,MATCH(L25,Inputs!$B$63:$R$63,0),FALSE))*AX25,0) -> 1666527.733 | BG25: 2213148.713 | BH25: 8286464.062 | BI25: =IFERROR(IF(B25="Opex",0,VLOOKUP($AM25,Inputs!$B$173:$R$181,MATCH(L25,Inputs!$B$123:$R$123,0),FALSE)*AX25),0) -> 952589.7418 | BJ25: 9239053.804 | BK25: Distribution - CAPEX | BL25: =(($BD25)*(HLOOKUP($BL$1,Inputs!$B$32:$R$37,MATCH($BM$1,Inputs!$B$32:$B$37,0),FALSE))) -> 6374553.309 | BM25: =(($BG25)*(HLOOKUP($BL$1,Inputs!$B$32:$R$37,MATCH($BM$1,Inputs!$B$32:$B$37,0),FALSE))) -> 2322921.442 | BN25: 8697474.751 | BO25: 0 | BP25: 0 | BQ25: 0 | BR25: 0 | BS25: 0 | BT25: 0 | BU25: 0 | BV25: 282461.5501 | BW25: 0 | BX25: 1095734.004 | BY25: 0 | BZ25: 0 | CA25: 0 | CB25: 0 | CC25: 1095734.004 | CD25: 0 | CE25: 144946.0535 | CF25: 0 | CG25: 167237.7238 | CH25: 1643601.007 | CI25: 1643601.007 | CJ25: 0 | CK25: 0 | CL25: 0 | CM25: 0 | CN25: 0 | CO25: 0 | CP25: 0 | CQ25: 0 | CR25: 0 | CS25: 0 | CT25: 0 | CU25: 0 | CV25: 0 | CW25: 0 | CX25: 0 | CY25: 0 | CZ25: 0 | DA25: 0 | DB25: 0 | DC25: 0 | DD25: 0 | DE25: 0 | DF25: 0 | DG25: 0 | DH25: 0 | DI25: 0 | DJ25: 0 | DK25: 0 | DL25: 0 | DM25: 0 | DN25: 0 | DO25: 0 | DP25: 0 | DQ25: 0 | DR25: 0 | DS25: 0 | DT25: 0 | DU25: 0 | DV25: 0 | DW25: 0 | DX25: 0 | DY25: 0 | DZ25: 0 | EA25: 0 | EB25: 0 | EC25: 0 | ED25: 0 | EE25: 0 | EF25: 0 | EG25: 0 | EH25: 0 | EI25: 0 | EJ25: 0 | EK25: 0 | EL25: 0 | EM25: 0 | EN25: 0 | EO25: 0 | EP25: 0 | EQ25: 0 | ER25: 0 | ES25: 6073315.35 | ET25: 0 | EU25: 0 | EV25: 0 | EW25: 0 | EX25: 0 | EY25: 0 | EZ25: 0 | FA25: 102930.505 | FB25: 0 | FC25: 399291.3527 | FD25: 0 | FE25: 0 | FF25: 0 | FG25: 0 | FH25: 399291.3527 | FI25: 0 | FJ25: 52819.11989 | FK25: 0 | FL25: 60942.32421 | FM25: 598937.029 | FN25: 598937.029 | FO25: 0 | FP25: 0 | FQ25: 0 | FR25: 0 | FS25: 0 | FT25: 0 | FU25: 0 | FV25: 0 | FW25: 0 | FX25: 0 | FY25: 0 | FZ25: 0 | GA25: 0 | GB25: 0 | GC25: 0 | GD25: 0 | GE25: 0 | GF25: 0 | GG25: 0 | GH25: 0 | GI25: 0 | GJ25: 0 | GK25: 0 | GL25: 0 | GM25: 0 | GN25: 0 | GO25: 0 | GP25: 0 | GQ25: 0 | GR25: 0 | GS25: 0 | GT25: 0 | GU25: 0 | GV25: 0 | GW25: 0 | GX25: 0 | GY25: 0 | GZ25: 0 | HA25: 0 | HB25: 0 | HC25: 0 | HD25: 0 | HE25: 0 | HF25: 0 | HG25: 0 | HH25: 0 | HI25: 0 | HJ25: 0 | HK25: 0 | HL25: 0 | HM25: 0 | HN25: 0 | HO25: 0 | HP25: 0 | HQ25: 0 | HR25: 0 | HS25: 0 | HT25: 0 | HU25: 0 | HV25: 0 | HW25: 0 | HX25: 2213148.713 | HY25: TRUE | HZ25: TRUE | IA25: 0 | IB25: 0
A26: 1023 | B26: CAPEX | C26: Customer | E26: Standard Control | H26: Customer Initiated Subdivisions | I26: CSUDN | J26: Customer Initiated Subdivisions | K26: D | L26: 2022/23 | M26: 1384 | N26: 5664.59 | O26: 7447802.932 | Q26: 908631.9555 | R26: 2854742.866 | S26: 2315521.934 | T26: 172789.0305 | U26: 7447.8005 | V26: 1188669.345 | W26: 16926.75 | Y26: Unit | AD26: CUS | AK26: =IFERROR(IF(AL26="Transmission",VLOOKUP(J26,'INCURRED & COMMISSIONED'!$B:$Z,13,FALSE),""),"") ->  | AL26: Distribution | AM26: Standard Control Services | AN26: Standard Control Services | AO26: Customer Initiated Works | AP26: Customer Initiated Subdivisions | AQ26: CAPEX | AR26: Network | AS26: Development | AT26: Connection | AU26: =IFERROR($BD26/VLOOKUP("Grand Total",'Raw Data Expenditure analysis '!$A$5:$M$17,MATCH($L26,'Raw Data Expenditure analysis '!$A$5:$M$5,0),FALSE),0) -> 0.04043610477 | AV26: =IFERROR(IF(B26="Capex",$W26/VLOOKUP($AM26,'Raw Data Hrs analysis'!$A$33:$M$42,MATCH($L26,'Raw Data Hrs analysis'!$A$34:$M$34,0),FALSE),0),0) -> 0.05928233103 | AW26: 0 | AX26: =IFERROR(IF(B26="Opex",$BD26/VLOOKUP($AM26,'Raw Data Expenditure analysis '!$B$69:$M$80,MATCH($L26,'Raw Data Expenditure analysis '!$B$69:$M$69,0),FALSE),$BD26/VLOOKUP($AM26,'Raw Data Expenditure analysis '!$B$54:$M$65,MATCH($L26,'Raw Data Expenditure analysis '!$B$54:$M$54,0),FALSE)),0) -> 0.07376741035 | AY26: =IF(Inputs!$C$203=Inputs!$Q$204,((Q26)*(HLOOKUP($L26,Inputs!$E$208:$R$210,3,FALSE))),(Q26)) -> 922054.4009 | AZ26: =IF(Inputs!$C$203=Inputs!$Q$204,((R26)*(HLOOKUP($L26,Inputs!$E$214:$R$216,3,FALSE))),(R26)) -> 2854742.866 | BA26: =IF(Inputs!$C$203=Inputs!$Q$204,((S26)*(HLOOKUP($L26,Inputs!$E$220:$R$222,3,FALSE))),(S26)) -> 2315521.934 | BB26: =IF(Inputs!$C$203=Inputs!$Q$204,((T26)*(HLOOKUP($L26,Inputs!$E$226:$R$228,3,FALSE))),(T26)) -> 172789.0305 | BC26: =IF(Inputs!$C$203=Inputs!$Q$204,((U26)*(HLOOKUP($L26,Inputs!$E$226:$R$228,3,FALSE))),(U26)) -> 7447.8005 | BD26: 6272556.032 | BE26: =IFERROR(IF(B26="Opex",0,VLOOKUP($AM26,Inputs!$B$46:$R$54,MATCH(L26,Inputs!$B$46:$R$46,0),FALSE)*AV26),0) -> 568057.5778 | BF26: =IFERROR(IF(B26="Opex",0,VLOOKUP($AM26,Inputs!$B$101:$R$111,MATCH(L26,Inputs!$B$63:$R$63,0),FALSE))*AX26,0) -> 1776405.748 | BG26: 2344463.326 | BH26: 8617019.358 | BI26: =IFERROR(IF(B26="Opex",0,VLOOKUP($AM26,Inputs!$B$173:$R$181,MATCH(L26,Inputs!$B$123:$R$123,0),FALSE)*AX26),0) -> 2146705.165 | BJ26: 10763724.52 | BK26: Distribution - CAPEX | BL26: =(($BD26)*(HLOOKUP($BL$1,Inputs!$B$32:$R$37,MATCH($BM$1,Inputs!$B$32:$B$37,0),FALSE))) -> 6583676.379 | BM26: =(($BG26)*(HLOOKUP($BL$1,Inputs!$B$32:$R$37,MATCH($BM$1,Inputs!$B$32:$B$37,0),FALSE))) -> 2460749.293 | BN26: 9044425.672 | BO26: 0 | BP26: 0 | BQ26: 0 | BR26: 0 | BS26: 0 | BT26: 0 | BU26: 0 | BV26: 291727.9605 | BW26: 0 | BX26: 1131680.564 | BY26: 0 | BZ26: 0 | CA26: 0 | CB26: 0 | CC26: 1131680.564 | CD26: 0 | CE26: 149701.1417 | CF26: 0 | CG26: 172724.1107 | CH26: 1697520.846 | CI26: 1697520.846 | CJ26: 0 | CK26: 0 | CL26: 0 | CM26: 0 | CN26: 0 | CO26: 0 | CP26: 0 | CQ26: 0 | CR26: 0 | CS26: 0 | CT26: 0 | CU26: 0 | CV26: 0 | CW26: 0 | CX26: 0 | CY26: 0 | CZ26: 0 | DA26: 0 | DB26: 0 | DC26: 0 | DD26: 0 | DE26: 0 | DF26: 0 | DG26: 0 | DH26: 0 | DI26: 0 | DJ26: 0 | DK26: 0 | DL26: 0 | DM26: 0 | DN26: 0 | DO26: 0 | DP26: 0 | DQ26: 0 | DR26: 0 | DS26: 0 | DT26: 0 | DU26: 0 | DV26: 0 | DW26: 0 | DX26: 0 | DY26: 0 | DZ26: 0 | EA26: 0 | EB26: 0 | EC26: 0 | ED26: 0 | EE26: 0 | EF26: 0 | EG26: 0 | EH26: 0 | EI26: 0 | EJ26: 0 | EK26: 0 | EL26: 0 | EM26: 0 | EN26: 0 | EO26: 0 | EP26: 0 | EQ26: 0 | ER26: 0 | ES26: 6272556.032 | ET26: 0 | EU26: 0 | EV26: 0 | EW26: 0 | EX26: 0 | EY26: 0 | EZ26: 0 | FA26: 109037.7672 | FB26: 0 | FC26: 422982.8422 | FD26: 0 | FE26: 0 | FF26: 0 | FG26: 0 | FH26: 422982.8422 | FI26: 0 | FJ26: 55953.08114 | FK26: 0 | FL26: 64558.26636 | FM26: 634474.2633 | FN26: 634474.2633 | FO26: 0 | FP26: 0 | FQ26: 0 | FR26: 0 | FS26: 0 | FT26: 0 | FU26: 0 | FV26: 0 | FW26: 0 | FX26: 0 | FY26: 0 | FZ26: 0 | GA26: 0 | GB26: 0 | GC26: 0 | GD26: 0 | GE26: 0 | GF26: 0 | GG26: 0 | GH26: 0 | GI26: 0 | GJ26: 0 | GK26: 0 | GL26: 0 | GM26: 0 | GN26: 0 | GO26: 0 | GP26: 0 | GQ26: 0 | GR26: 0 | GS26: 0 | GT26: 0 | GU26: 0 | GV26: 0 | GW26: 0 | GX26: 0 | GY26: 0 | GZ26: 0 | HA26: 0 | HB26: 0 | HC26: 0 | HD26: 0 | HE26: 0 | HF26: 0 | HG26: 0 | HH26: 0 | HI26: 0 | HJ26: 0 | HK26: 0 | HL26: 0 | HM26: 0 | HN26: 0 | HO26: 0 | HP26: 0 | HQ26: 0 | HR26: 0 | HS26: 0 | HT26: 0 | HU26: 0 | HV26: 0 | HW26: 0 | HX26: 2344463.326 | HY26: TRUE | HZ26: TRUE | IA26: 0 | IB26: 0
A27: 1023 | B27: CAPEX | C27: Customer | E27: Standard Control | H27: Customer Initiated Subdivisions | I27: CSUDN | J27: Customer Initiated Subdivisions | K27: D | L27: 2023/24 | M27: 1403 | N27: 5664.59 | O27: 7550048.781 | Q27: 921105.9495 | R27: 2893933.7 | S27: 2347310.169 | T27: 175161.133 | U27: 7550.049 | V27: 1204987.79 | W27: 17159.12 | Y27: Unit | AD27: CUS | AK27: =IFERROR(IF(AL27="Transmission",VLOOKUP(J27,'INCURRED & COMMISSIONED'!$B:$Z,13,FALSE),""),"") ->  | AL27: Distribution | AM27: Standard Control Services | AN27: Standard Control Services | AO27: Customer Initiated Works | AP27: Customer Initiated Subdivisions | AQ27: CAPEX | AR27: Network | AS27: Development | AT27: Connection | AU27: =IFERROR($BD27/VLOOKUP("Grand Total",'Raw Data Expenditure analysis '!$A$5:$M$17,MATCH($L27,'Raw Data Expenditure analysis '!$A$5:$M$5,0),FALSE),0) -> 0.04208058149 | AV27: =IFERROR(IF(B27="Capex",$W27/VLOOKUP($AM27,'Raw Data Hrs analysis'!$A$33:$M$42,MATCH($L27,'Raw Data Hrs analysis'!$A$34:$M$34,0),FALSE),0),0) -> 0.05821136675 | AW27: 0 | AX27: =IFERROR(IF(B27="Opex",$BD27/VLOOKUP($AM27,'Raw Data Expenditure analysis '!$B$69:$M$80,MATCH($L27,'Raw Data Expenditure analysis '!$B$69:$M$69,0),FALSE),$BD27/VLOOKUP($AM27,'Raw Data Expenditure analysis '!$B$54:$M$65,MATCH($L27,'Raw Data Expenditure analysis '!$B$54:$M$54,0),FALSE)),0) -> 0.0768577024 | AY27: =IF(Inputs!$C$203=Inputs!$Q$204,((Q27)*(HLOOKUP($L27,Inputs!$E$208:$R$210,3,FALSE))),(Q27)) -> 939292.7546 | AZ27: =IF(Inputs!$C$203=Inputs!$Q$204,((R27)*(HLOOKUP($L27,Inputs!$E$214:$R$216,3,FALSE))),(R27)) -> 2893933.7 | BA27: =IF(Inputs!$C$203=Inputs!$Q$204,((S27)*(HLOOKUP($L27,Inputs!$E$220:$R$222,3,FALSE))),(S27)) -> 2347310.169 | BB27: =IF(Inputs!$C$203=Inputs!$Q$204,((T27)*(HLOOKUP($L27,Inputs!$E$226:$R$228,3,FALSE))),(T27)) -> 175161.133 | BC27: =IF(Inputs!$C$203=Inputs!$Q$204,((U27)*(HLOOKUP($L27,Inputs!$E$226:$R$228,3,FALSE))),(U27)) -> 7550.049 | BD27: 6363247.806 | BE27: =IFERROR(IF(B27="Opex",0,VLOOKUP($AM27,Inputs!$B$46:$R$54,MATCH(L27,Inputs!$B$46:$R$46,0),FALSE)*AV27),0) -> 552217.3867 | BF27: =IFERROR(IF(B27="Opex",0,VLOOKUP($AM27,Inputs!$B$101:$R$111,MATCH(L27,Inputs!$B$63:$R$63,0),FALSE))*AX27,0) -> 1832315.368 | BG27: 2384532.755 | BH27: 8747780.561 | BI27: =IFERROR(IF(B27="Opex",0,VLOOKUP($AM27,Inputs!$B$173:$R$181,MATCH(L27,Inputs!$B$123:$R$123,0),FALSE)*AX27),0) -> 2427537.027 | BJ27: 11175317.59 | BK27: Distribution - CAPEX | BL27: =(($BD27)*(HLOOKUP($BL$1,Inputs!$B$32:$R$37,MATCH($BM$1,Inputs!$B$32:$B$37,0),FALSE))) -> 6678866.488 | BM27: =(($BG27)*(HLOOKUP($BL$1,Inputs!$B$32:$R$37,MATCH($BM$1,Inputs!$B$32:$B$37,0),FALSE))) -> 2502806.176 | BN27: 9181672.664 | BO27: 0 | BP27: 0 | BQ27: 0 | BR27: 0 | BS27: 0 | BT27: 0 | BU27: 0 | BV27: 295945.9102 | BW27: 0 | BX27: 1148042.971 | BY27: 0 | BZ27: 0 | CA27: 0 | CB27: 0 | CC27: 1148042.971 | CD27: 0 | CE27: 151865.5962 | CF27: 0 | CG27: 175221.4429 | CH27: 1722064.457 | CI27: 1722064.457 | CJ27: 0 | CK27: 0 | CL27: 0 | CM27: 0 | CN27: 0 | CO27: 0 | CP27: 0 | CQ27: 0 | CR27: 0 | CS27: 0 | CT27: 0 | CU27: 0 | CV27: 0 | CW27: 0 | CX27: 0 | CY27: 0 | CZ27: 0 | DA27: 0 | DB27: 0 | DC27: 0 | DD27: 0 | DE27: 0 | DF27: 0 | DG27: 0 | DH27: 0 | DI27: 0 | DJ27: 0 | DK27: 0 | DL27: 0 | DM27: 0 | DN27: 0 | DO27: 0 | DP27: 0 | DQ27: 0 | DR27: 0 | DS27: 0 | DT27: 0 | DU27: 0 | DV27: 0 | DW27: 0 | DX27: 0 | DY27: 0 | DZ27: 0 | EA27: 0 | EB27: 0 | EC27: 0 | ED27: 0 | EE27: 0 | EF27: 0 | EG27: 0 | EH27: 0 | EI27: 0 | EJ27: 0 | EK27: 0 | EL27: 0 | EM27: 0 | EN27: 0 | EO27: 0 | EP27: 0 | EQ27: 0 | ER27: 0 | ES27: 6363247.806 | ET27: 0 | EU27: 0 | EV27: 0 | EW27: 0 | EX27: 0 | EY27: 0 | EZ27: 0 | FA27: 110901.3413 | FB27: 0 | FC27: 430212.0792 | FD27: 0 | FE27: 0 | FF27: 0 | FG27: 0 | FH27: 430212.0792 | FI27: 0 | FJ27: 56909.38018 | FK27: 0 | FL27: 65661.63738 | FM27: 645318.1189 | FN27: 645318.1189 | FO27: 0 | FP27: 0 | FQ27: 0 | FR27: 0 | FS27: 0 | FT27: 0 | FU27: 0 | FV27: 0 | FW27: 0 | FX27: 0 | FY27: 0 | FZ27: 0 | GA27: 0 | GB27: 0 | GC27: 0 | GD27: 0 | GE27: 0 | GF27: 0 | GG27: 0 | GH27: 0 | GI27: 0 | GJ27: 0 | GK27: 0 | GL27: 0 | GM27: 0 | GN27: 0 | GO27: 0 | GP27: 0 | GQ27: 0 | GR27: 0 | GS27: 0 | GT27: 0 | GU27: 0 | GV27: 0 | GW27: 0 | GX27: 0 | GY27: 0 | GZ27: 0 | HA27: 0 | HB27: 0 | HC27: 0 | HD27: 0 | HE27: 0 | HF27: 0 | HG27: 0 | HH27: 0 | HI27: 0 | HJ27: 0 | HK27: 0 | HL27: 0 | HM27: 0 | HN27: 0 | HO27: 0 | HP27: 0 | HQ27: 0 | HR27: 0 | HS27: 0 | HT27: 0 | HU27: 0 | HV27: 0 | HW27: 0 | HX27: 2384532.755 | HY27: TRUE | HZ27: TRUE | IA27: 0 | IB27: 0
A28: 1023 | B28: CAPEX | C28: Customer | E28: Standard Control | H28: Customer Initiated Subdivisions | I28: CSUDN | J28: Customer Initiated Subdivisions | K28: D | L28: 2024/25 | M28: 1421 | N28: 5664.59 | O28: 7646913.27 | Q28: 932923.4175 | R28: 2931061.856 | S28: 2377425.34 | T28: 177408.3865 | U28: 7646.911 | V28: 1220447.358 | W28: 17379.27 | Y28: Unit | AD28: CUS | AK28: =IFERROR(IF(AL28="Transmission",VLOOKUP(J28,'INCURRED & COMMISSIONED'!$B:$Z,13,FALSE),""),"") ->  | AL28: Distribution | AM28: Standard Control Services | AN28: Standard Control Services | AO28: Customer Initiated Works | AP28: Customer Initiated Subdivisions | AQ28: CAPEX | AR28: Network | AS28: Development | AT28: Connection | AU28: =IFERROR($BD28/VLOOKUP("Grand Total",'Raw Data Expenditure analysis '!$A$5:$M$17,MATCH($L28,'Raw Data Expenditure analysis '!$A$5:$M$5,0),FALSE),0) -> 0.03837337211 | AV28: =IFERROR(IF(B28="Capex",$W28/VLOOKUP($AM28,'Raw Data Hrs analysis'!$A$33:$M$42,MATCH($L28,'Raw Data Hrs analysis'!$A$34:$M$34,0),FALSE),0),0) -> 0.06463711726 | AW28: 0 | AX28: =IFERROR(IF(B28="Opex",$BD28/VLOOKUP($AM28,'Raw Data Expenditure analysis '!$B$69:$M$80,MATCH($L28,'Raw Data Expenditure analysis '!$B$69:$M$69,0),FALSE),$BD28/VLOOKUP($AM28,'Raw Data Expenditure analysis '!$B$54:$M$65,MATCH($L28,'Raw Data Expenditure analysis '!$B$54:$M$54,0),FALSE)),0) -> 0.07901191474 | AY28: =IF(Inputs!$C$203=Inputs!$Q$204,((Q28)*(HLOOKUP($L28,Inputs!$E$208:$R$210,3,FALSE))),(Q28)) -> 942088.4665 | AZ28: =IF(Inputs!$C$203=Inputs!$Q$204,((R28)*(HLOOKUP($L28,Inputs!$E$214:$R$216,3,FALSE))),(R28)) -> 2931061.856 | BA28: =IF(Inputs!$C$203=Inputs!$Q$204,((S28)*(HLOOKUP($L28,Inputs!$E$220:$R$222,3,FALSE))),(S28)) -> 2377425.34 | BB28: =IF(Inputs!$C$203=Inputs!$Q$204,((T28)*(HLOOKUP($L28,Inputs!$E$226:$R$228,3,FALSE))),(T28)) -> 177408.3865 | BC28: =IF(Inputs!$C$203=Inputs!$Q$204,((U28)*(HLOOKUP($L28,Inputs!$E$226:$R$228,3,FALSE))),(U28)) -> 7646.911 | BD28: 6435630.961 | BE28: =IFERROR(IF(B28="Opex",0,VLOOKUP($AM28,Inputs!$B$46:$R$54,MATCH(L28,Inputs!$B$46:$R$46,0),FALSE)*AV28),0) -> 613174.7453 | BF28: =IFERROR(IF(B28="Opex",0,VLOOKUP($AM28,Inputs!$B$101:$R$111,MATCH(L28,Inputs!$B$63:$R$63,0),FALSE))*AX28,0) -> 1883672.568 | BG28: 2496847.313 | BH28: 8932478.274 | BI28: =IFERROR(IF(B28="Opex",0,VLOOKUP($AM28,Inputs!$B$173:$R$181,MATCH(L28,Inputs!$B$123:$R$123,0),FALSE)*AX28),0) -> 3119285.3 | BJ28: 12051763.57 | BK28: Distribution - CAPEX | BL28: =(($BD28)*(HLOOKUP($BL$1,Inputs!$B$32:$R$37,MATCH($BM$1,Inputs!$B$32:$B$37,0),FALSE))) -> 6754839.866 | BM28: =(($BG28)*(HLOOKUP($BL$1,Inputs!$B$32:$R$37,MATCH($BM$1,Inputs!$B$32:$B$37,0),FALSE))) -> 2620691.564 | BN28: 9375531.43 | BO28: 0 | BP28: 0 | BQ28: 0 | BR28: 0 | BS28: 0 | BT28: 0 | BU28: 0 | BV28: 299312.3513 | BW28: 0 | BX28: 1161102.179 | BY28: 0 | BZ28: 0 | CA28: 0 | CB28: 0 | CC28: 1161102.179 | CD28: 0 | CE28: 153593.0963 | CF28: 0 | CG28: 177214.6202 | CH28: 1741653.268 | CI28: 1741653.268 | CJ28: 0 | CK28: 0 | CL28: 0 | CM28: 0 | CN28: 0 | CO28: 0 | CP28: 0 | CQ28: 0 | CR28: 0 | CS28: 0 | CT28: 0 | CU28: 0 | CV28: 0 | CW28: 0 | CX28: 0 | CY28: 0 | CZ28: 0 | DA28: 0 | DB28: 0 | DC28: 0 | DD28: 0 | DE28: 0 | DF28: 0 | DG28: 0 | DH28: 0 | DI28: 0 | DJ28: 0 | DK28: 0 | DL28: 0 | DM28: 0 | DN28: 0 | DO28: 0 | DP28: 0 | DQ28: 0 | DR28: 0 | DS28: 0 | DT28: 0 | DU28: 0 | DV28: 0 | DW28: 0 | DX28: 0 | DY28: 0 | DZ28: 0 | EA28: 0 | EB28: 0 | EC28: 0 | ED28: 0 | EE28: 0 | EF28: 0 | EG28: 0 | EH28: 0 | EI28: 0 | EJ28: 0 | EK28: 0 | EL28: 0 | EM28: 0 | EN28: 0 | EO28: 0 | EP28: 0 | EQ28: 0 | ER28: 0 | ES28: 6435630.961 | ET28: 0 | EU28: 0 | EV28: 0 | EW28: 0 | EX28: 0 | EY28: 0 | EZ28: 0 | FA28: 116124.937 | FB28: 0 | FC28: 450475.6213 | FD28: 0 | FE28: 0 | FF28: 0 | FG28: 0 | FH28: 450475.6213 | FI28: 0 | FJ28: 59589.88515 | FK28: 0 | FL28: 68754.38492 | FM28: 675713.4319 | FN28: 675713.4319 | FO28: 0 | FP28: 0 | FQ28: 0 | FR28: 0 | FS28: 0 | FT28: 0 | FU28: 0 | FV28: 0 | FW28: 0 | FX28: 0 | FY28: 0 | FZ28: 0 | GA28: 0 | GB28: 0 | GC28: 0 | GD28: 0 | GE28: 0 | GF28: 0 | GG28: 0 | GH28: 0 | GI28: 0 | GJ28: 0 | GK28: 0 | GL28: 0 | GM28: 0 | GN28: 0 | GO28: 0 | GP28: 0 | GQ28: 0 | GR28: 0 | GS28: 0 | GT28: 0 | GU28: 0 | GV28: 0 | GW28: 0 | GX28: 0 | GY28: 0 | GZ28: 0 | HA28: 0 | HB28: 0 | HC28: 0 | HD28: 0 | HE28: 0 | HF28: 0 | HG28: 0 | HH28: 0 | HI28: 0 | HJ28: 0 | HK28: 0 | HL28: 0 | HM28: 0 | HN28: 0 | HO28: 0 | HP28: 0 | HQ28: 0 | HR28: 0 | HS28: 0 | HT28: 0 | HU28: 0 | HV28: 0 | HW28: 0 | HX28: 2496847.313 | HY28: TRUE | HZ28: TRUE | IA28: 0 | IB28: 0
A29: 1023 | B29: CAPEX | C29: Customer | E29: Standard Control | H29: Customer Initiated Subdivisions | I29: CSUDN | J29: Customer Initiated Subdivisions | K29: D | L29: 2025/26 | M29: 1421 | N29: 5664.59 | O29: 7646913.27 | Q29: 932923.4175 | R29: 2931061.856 | S29: 2377425.34 | T29: 177408.3865 | U29: 7646.911 | V29: 1220447.358 | W29: 17379.27 | Y29: Unit | AD29: CUS | AK29: =IFERROR(IF(AL29="Transmission",VLOOKUP(J29,'INCURRED & COMMISSIONED'!$B:$Z,13,FALSE),""),"") ->  | AL29: Distribution | AM29: Standard Control Services | AN29: Standard Control Services | AO29: Customer Initiated Works | AP29: Customer Initiated Subdivisions | AQ29: CAPEX | AR29: Network | AS29: Development | AT29: Connection | AU29: =IFERROR($BD29/VLOOKUP("Grand Total",'Raw Data Expenditure analysis '!$A$5:$M$17,MATCH($L29,'Raw Data Expenditure analysis '!$A$5:$M$5,0),FALSE),0) -> 0.04202815871 | AV29: =IFERROR(IF(B29="Capex",$W29/VLOOKUP($AM29,'Raw Data Hrs analysis'!$A$33:$M$42,MATCH($L29,'Raw Data Hrs analysis'!$A$34:$M$34,0),FALSE),0),0) -> 0.06322868619 | AW29: 0 | AX29: =IFERROR(IF(B29="Opex",$BD29/VLOOKUP($AM29,'Raw Data Expenditure analysis '!$B$69:$M$80,MATCH($L29,'Raw Data Expenditure analysis '!$B$69:$M$69,0),FALSE),$BD29/VLOOKUP($AM29,'Raw Data Expenditure analysis '!$B$54:$M$65,MATCH($L29,'Raw Data Expenditure analysis '!$B$54:$M$54,0),FALSE)),0) -> 0.07934002699 | AY29: =IF(Inputs!$C$203=Inputs!$Q$204,((Q29)*(HLOOKUP($L29,Inputs!$E$208:$R$210,3,FALSE))),(Q29)) -> 946704.7 | AZ29: =IF(Inputs!$C$203=Inputs!$Q$204,((R29)*(HLOOKUP($L29,Inputs!$E$214:$R$216,3,FALSE))),(R29)) -> 2931061.856 | BA29: =IF(Inputs!$C$203=Inputs!$Q$204,((S29)*(HLOOKUP($L29,Inputs!$E$220:$R$222,3,FALSE))),(S29)) -> 2377425.34 | BB29: =IF(Inputs!$C$203=Inputs!$Q$204,((T29)*(HLOOKUP($L29,Inputs!$E$226:$R$228,3,FALSE))),(T29)) -> 177408.3865 | BC29: =IF(Inputs!$C$203=Inputs!$Q$204,((U29)*(HLOOKUP($L29,Inputs!$E$226:$R$228,3,FALSE))),(U29)) -> 7646.911 | BD29: 6440247.194 | BE29: =IFERROR(IF(B29="Opex",0,VLOOKUP($AM29,Inputs!$B$46:$R$54,MATCH(L29,Inputs!$B$46:$R$46,0),FALSE)*AV29),0) -> 599813.7787 | BF29: =IFERROR(IF(B29="Opex",0,VLOOKUP($AM29,Inputs!$B$101:$R$111,MATCH(L29,Inputs!$B$63:$R$63,0),FALSE))*AX29,0) -> 1891494.883 | BG29: 2491308.661 | BH29: 8931555.856 | BI29: =IFERROR(IF(B29="Opex",0,VLOOKUP($AM29,Inputs!$B$173:$R$181,MATCH(L29,Inputs!$B$123:$R$123,0),FALSE)*AX29),0) -> 2635600.232 | BJ29: 11567156.09 | BK29: Distribution - CAPEX | BL29: =(($BD29)*(HLOOKUP($BL$1,Inputs!$B$32:$R$37,MATCH($BM$1,Inputs!$B$32:$B$37,0),FALSE))) -> 6759685.065 | BM29: =(($BG29)*(HLOOKUP($BL$1,Inputs!$B$32:$R$37,MATCH($BM$1,Inputs!$B$32:$B$37,0),FALSE))) -> 2614878.194 | BN29: 9374563.259 | BO29: 0 | BP29: 0 | BQ29: 0 | BR29: 0 | BS29: 0 | BT29: 0 | BU29: 0 | BV29: 299527.046 | BW29: 0 | BX29: 1161935.029 | BY29: 0 | BZ29: 0 | CA29: 0 | CB29: 0 | CC29: 1161935.029 | CD29: 0 | CE29: 153703.2676 | CF29: 0 | CG29: 177341.735 | CH29: 1742902.544 | CI29: 1742902.544 | CJ29: 0 | CK29: 0 | CL29: 0 | CM29: 0 | CN29: 0 | CO29: 0 | CP29: 0 | CQ29: 0 | CR29: 0 | CS29: 0 | CT29: 0 | CU29: 0 | CV29: 0 | CW29: 0 | CX29: 0 | CY29: 0 | CZ29: 0 | DA29: 0 | DB29: 0 | DC29: 0 | DD29: 0 | DE29: 0 | DF29: 0 | DG29: 0 | DH29: 0 | DI29: 0 | DJ29: 0 | DK29: 0 | DL29: 0 | DM29: 0 | DN29: 0 | DO29: 0 | DP29: 0 | DQ29: 0 | DR29: 0 | DS29: 0 | DT29: 0 | DU29: 0 | DV29: 0 | DW29: 0 | DX29: 0 | DY29: 0 | DZ29: 0 | EA29: 0 | EB29: 0 | EC29: 0 | ED29: 0 | EE29: 0 | EF29: 0 | EG29: 0 | EH29: 0 | EI29: 0 | EJ29: 0 | EK29: 0 | EL29: 0 | EM29: 0 | EN29: 0 | EO29: 0 | EP29: 0 | EQ29: 0 | ER29: 0 | ES29: 6440247.194 | ET29: 0 | EU29: 0 | EV29: 0 | EW29: 0 | EX29: 0 | EY29: 0 | EZ29: 0 | FA29: 115867.3419 | FB29: 0 | FC29: 449476.35 | FD29: 0 | FE29: 0 | FF29: 0 | FG29: 0 | FH29: 449476.35 | FI29: 0 | FJ29: 59457.69939 | FK29: 0 | FL29: 68601.86994 | FM29: 674214.525 | FN29: 674214.525 | FO29: 0 | FP29: 0 | FQ29: 0 | FR29: 0 | FS29: 0 | FT29: 0 | FU29: 0 | FV29: 0 | FW29: 0 | FX29: 0 | FY29: 0 | FZ29: 0 | GA29: 0 | GB29: 0 | GC29: 0 | GD29: 0 | GE29: 0 | GF29: 0 | GG29: 0 | GH29: 0 | GI29: 0 | GJ29: 0 | GK29: 0 | GL29: 0 | GM29: 0 | GN29: 0 | GO29: 0 | GP29: 0 | GQ29: 0 | GR29: 0 | GS29: 0 | GT29: 0 | GU29: 0 | GV29: 0 | GW29: 0 | GX29: 0 | GY29: 0 | GZ29: 0 | HA29: 0 | HB29: 0 | HC29: 0 | HD29: 0 | HE29: 0 | HF29: 0 | HG29: 0 | HH29: 0 | HI29: 0 | HJ29: 0 | HK29: 0 | HL29: 0 | HM29: 0 | HN29: 0 | HO29: 0 | HP29: 0 | HQ29: 0 | HR29: 0 | HS29: 0 | HT29: 0 | HU29: 0 | HV29: 0 | HW29: 0 | HX29: 2491308.661 | HY29: TRUE | HZ29: TRUE | IA29: 0 | IB29: 0
A30: 1023 | B30: CAPEX | C30: Customer | E30: Standard Control | H30: Customer Initiated Subdivisions | I30: CSUDN | J30: Customer Initiated Subdivisions | K30: D | L30: 2026/27 | M30: 1403 | N30: 5664.59 | O30: 7550048.781 | Q30: 921105.9495 | R30: 2893933.7 | S30: 2347310.169 | T30: 175161.133 | U30: 7550.049 | V30: 1204987.79 | W30: 17159.12 | Y30: Unit | AD30: CUS | AK30: =IFERROR(IF(AL30="Transmission",VLOOKUP(J30,'INCURRED & COMMISSIONED'!$B:$Z,13,FALSE),""),"") ->  | AL30: Distribution | AM30: Standard Control Services | AN30: Standard Control Services | AO30: Customer Initiated Works | AP30: Customer Initiated Subdivisions | AQ30: CAPEX | AR30: Network | AS30: Development | AT30: Connection | AU30: =IFERROR($BD30/VLOOKUP("Grand Total",'Raw Data Expenditure analysis '!$A$5:$M$17,MATCH($L30,'Raw Data Expenditure analysis '!$A$5:$M$5,0),FALSE),0) -> 0.04367699906 | AV30: =IFERROR(IF(B30="Capex",$W30/VLOOKUP($AM30,'Raw Data Hrs analysis'!$A$33:$M$42,MATCH($L30,'Raw Data Hrs analysis'!$A$34:$M$34,0),FALSE),0),0) -> 0.062494348 | AW30: 0 | AX30: =IFERROR(IF(B30="Opex",$BD30/VLOOKUP($AM30,'Raw Data Expenditure analysis '!$B$69:$M$80,MATCH($L30,'Raw Data Expenditure analysis '!$B$69:$M$69,0),FALSE),$BD30/VLOOKUP($AM30,'Raw Data Expenditure analysis '!$B$54:$M$65,MATCH($L30,'Raw Data Expenditure analysis '!$B$54:$M$54,0),FALSE)),0) -> 0.07774169289 | AY30: =IF(Inputs!$C$203=Inputs!$Q$204,((Q30)*(HLOOKUP($L30,Inputs!$E$208:$R$210,3,FALSE))),(Q30)) -> 939292.7546 | AZ30: =IF(Inputs!$C$203=Inputs!$Q$204,((R30)*(HLOOKUP($L30,Inputs!$E$214:$R$216,3,FALSE))),(R30)) -> 2893933.7 | BA30: =IF(Inputs!$C$203=Inputs!$Q$204,((S30)*(HLOOKUP($L30,Inputs!$E$220:$R$222,3,FALSE))),(S30)) -> 2347310.169 | BB30: =IF(Inputs!$C$203=Inputs!$Q$204,((T30)*(HLOOKUP($L30,Inputs!$E$226:$R$228,3,FALSE))),(T30)) -> 175161.133 | BC30: =IF(Inputs!$C$203=Inputs!$Q$204,((U30)*(HLOOKUP($L30,Inputs!$E$226:$R$228,3,FALSE))),(U30)) -> 7550.049 | BD30: 6363247.806 | BE30: =IFERROR(IF(B30="Opex",0,VLOOKUP($AM30,Inputs!$B$46:$R$54,MATCH(L30,Inputs!$B$46:$R$46,0),FALSE)*AV30),0) -> 592847.5393 | BF30: =IFERROR(IF(B30="Opex",0,VLOOKUP($AM30,Inputs!$B$101:$R$111,MATCH(L30,Inputs!$B$63:$R$63,0),FALSE))*AX30,0) -> 1853390.021 | BG30: 2446237.56 | BH30: 8809485.366 | BI30: =IFERROR(IF(B30="Opex",0,VLOOKUP($AM30,Inputs!$B$173:$R$181,MATCH(L30,Inputs!$B$123:$R$123,0),FALSE)*AX30),0) -> 1549489.765 | BJ30: 10358975.13 | BK30: Distribution - CAPEX | BL30: =(($BD30)*(HLOOKUP($BL$1,Inputs!$B$32:$R$37,MATCH($BM$1,Inputs!$B$32:$B$37,0),FALSE))) -> 6678866.488 | BM30: =(($BG30)*(HLOOKUP($BL$1,Inputs!$B$32:$R$37,MATCH($BM$1,Inputs!$B$32:$B$37,0),FALSE))) -> 2567571.554 | BN30: 9246438.043 | BO30: 0 | BP30: 0 | BQ30: 0 | BR30: 0 | BS30: 0 | BT30: 0 | BU30: 0 | BV30: 295945.9102 | BW30: 0 | BX30: 1148042.971 | BY30: 0 | BZ30: 0 | CA30: 0 | CB30: 0 | CC30: 1148042.971 | CD30: 0 | CE30: 151865.5962 | CF30: 0 | CG30: 175221.4429 | CH30: 1722064.457 | CI30: 1722064.457 | CJ30: 0 | CK30: 0 | CL30: 0 | CM30: 0 | CN30: 0 | CO30: 0 | CP30: 0 | CQ30: 0 | CR30: 0 | CS30: 0 | CT30: 0 | CU30: 0 | CV30: 0 | CW30: 0 | CX30: 0 | CY30: 0 | CZ30: 0 | DA30: 0 | DB30: 0 | DC30: 0 | DD30: 0 | DE30: 0 | DF30: 0 | DG30: 0 | DH30: 0 | DI30: 0 | DJ30: 0 | DK30: 0 | DL30: 0 | DM30: 0 | DN30: 0 | DO30: 0 | DP30: 0 | DQ30: 0 | DR30: 0 | DS30: 0 | DT30: 0 | DU30: 0 | DV30: 0 | DW30: 0 | DX30: 0 | DY30: 0 | DZ30: 0 | EA30: 0 | EB30: 0 | EC30: 0 | ED30: 0 | EE30: 0 | EF30: 0 | EG30: 0 | EH30: 0 | EI30: 0 | EJ30: 0 | EK30: 0 | EL30: 0 | EM30: 0 | EN30: 0 | EO30: 0 | EP30: 0 | EQ30: 0 | ER30: 0 | ES30: 6363247.806 | ET30: 0 | EU30: 0 | EV30: 0 | EW30: 0 | EX30: 0 | EY30: 0 | EZ30: 0 | FA30: 113771.147 | FB30: 0 | FC30: 441344.7225 | FD30: 0 | FE30: 0 | FF30: 0 | FG30: 0 | FH30: 441344.7225 | FI30: 0 | FJ30: 58382.0302 | FK30: 0 | FL30: 67360.77048 | FM30: 662017.0837 | FN30: 662017.0837 | FO30: 0 | FP30: 0 | FQ30: 0 | FR30: 0 | FS30: 0 | FT30: 0 | FU30: 0 | FV30: 0 | FW30: 0 | FX30: 0 | FY30: 0 | FZ30: 0 | GA30: 0 | GB30: 0 | GC30: 0 | GD30: 0 | GE30: 0 | GF30: 0 | GG30: 0 | GH30: 0 | GI30: 0 | GJ30: 0 | GK30: 0 | GL30: 0 | GM30: 0 | GN30: 0 | GO30: 0 | GP30: 0 | GQ30: 0 | GR30: 0 | GS30: 0 | GT30: 0 | GU30: 0 | GV30: 0 | GW30: 0 | GX30: 0 | GY30: 0 | GZ30: 0 | HA30: 0 | HB30: 0 | HC30: 0 | HD30: 0 | HE30: 0 | HF30: 0 | HG30: 0 | HH30: 0 | HI30: 0 | HJ30: 0 | HK30: 0 | HL30: 0 | HM30: 0 | HN30: 0 | HO30: 0 | HP30: 0 | HQ30: 0 | HR30: 0 | HS30: 0 | HT30: 0 | HU30: 0 | HV30: 0 | HW30: 0 | HX30: 2446237.56 | HY30: TRUE | HZ30: TRUE | IA30: 0 | IB30: 0
A31: 1023 | B31: CAPEX | C31: Customer | E31: Standard Control | H31: Customer Initiated Subdivisions | I31: CSUDN | J31: Customer Initiated Subdivisions | K31: D | L31: 2027/28 | M31: 1403 | N31: 5664.59 | O31: 7550048.781 | Q31: 921105.9495 | R31: 2893933.7 | S31: 2347310.169 | T31: 175161.133 | U31: 7550.049 | V31: 1204987.79 | W31: 17159.12 | Y31: Unit | AD31: CUS | AK31: =IFERROR(IF(AL31="Transmission",VLOOKUP(J31,'INCURRED & COMMISSIONED'!$B:$Z,13,FALSE),""),"") ->  | AL31: Distribution | AM31: Standard Control Services | AN31: Standard Control Services | AO31: Customer Initiated Works | AP31: Customer Initiated Subdivisions | AQ31: CAPEX | AR31: Network | AS31: Development | AT31: Connection | AU31: =IFERROR($BD31/VLOOKUP("Grand Total",'Raw Data Expenditure analysis '!$A$5:$M$17,MATCH($L31,'Raw Data Expenditure analysis '!$A$5:$M$5,0),FALSE),0) -> 0.04025668257 | AV31: =IFERROR(IF(B31="Capex",$W31/VLOOKUP($AM31,'Raw Data Hrs analysis'!$A$33:$M$42,MATCH($L31,'Raw Data Hrs analysis'!$A$34:$M$34,0),FALSE),0),0) -> 0.06168594242 | AW31: 0 | AX31: =IFERROR(IF(B31="Opex",$BD31/VLOOKUP($AM31,'Raw Data Expenditure analysis '!$B$69:$M$80,MATCH($L31,'Raw Data Expenditure analysis '!$B$69:$M$69,0),FALSE),$BD31/VLOOKUP($AM31,'Raw Data Expenditure analysis '!$B$54:$M$65,MATCH($L31,'Raw Data Expenditure analysis '!$B$54:$M$54,0),FALSE)),0) -> 0.07797511702 | AY31: =IF(Inputs!$C$203=Inputs!$Q$204,((Q31)*(HLOOKUP($L31,Inputs!$E$208:$R$210,3,FALSE))),(Q31)) -> 930154.9036 | AZ31: =IF(Inputs!$C$203=Inputs!$Q$204,((R31)*(HLOOKUP($L31,Inputs!$E$214:$R$216,3,FALSE))),(R31)) -> 2893933.7 | BA31: =IF(Inputs!$C$203=Inputs!$Q$204,((S31)*(HLOOKUP($L31,Inputs!$E$220:$R$222,3,FALSE))),(S31)) -> 2347310.169 | BB31: =IF(Inputs!$C$203=Inputs!$Q$204,((T31)*(HLOOKUP($L31,Inputs!$E$226:$R$228,3,FALSE))),(T31)) -> 175161.133 | BC31: =IF(Inputs!$C$203=Inputs!$Q$204,((U31)*(HLOOKUP($L31,Inputs!$E$226:$R$228,3,FALSE))),(U31)) -> 7550.049 | BD31: 6354109.955 | BE31: =IFERROR(IF(B31="Opex",0,VLOOKUP($AM31,Inputs!$B$46:$R$54,MATCH(L31,Inputs!$B$46:$R$46,0),FALSE)*AV31),0) -> 585178.6656 | BF31: =IFERROR(IF(B31="Opex",0,VLOOKUP($AM31,Inputs!$B$101:$R$111,MATCH(L31,Inputs!$B$63:$R$63,0),FALSE))*AX31,0) -> 1858954.936 | BG31: 2444133.602 | BH31: 8798243.557 | BI31: =IFERROR(IF(B31="Opex",0,VLOOKUP($AM31,Inputs!$B$173:$R$181,MATCH(L31,Inputs!$B$123:$R$123,0),FALSE)*AX31),0) -> 1935927.418 | BJ31: 10734170.97 | BK31: Distribution - CAPEX | BL31: =(($BD31)*(HLOOKUP($BL$1,Inputs!$B$32:$R$37,MATCH($BM$1,Inputs!$B$32:$B$37,0),FALSE))) -> 6669275.397 | BM31: =(($BG31)*(HLOOKUP($BL$1,Inputs!$B$32:$R$37,MATCH($BM$1,Inputs!$B$32:$B$37,0),FALSE))) -> 2565363.24 | BN31: 9234638.637 | BO31: 0 | BP31: 0 | BQ31: 0 | BR31: 0 | BS31: 0 | BT31: 0 | BU31: 0 | BV31: 295520.9213 | BW31: 0 | BX31: 1146394.341 | BY31: 0 | BZ31: 0 | CA31: 0 | CB31: 0 | CC31: 1146394.341 | CD31: 0 | CE31: 151647.5118 | CF31: 0 | CG31: 174969.8187 | CH31: 1719591.511 | CI31: 1719591.511 | CJ31: 0 | CK31: 0 | CL31: 0 | CM31: 0 | CN31: 0 | CO31: 0 | CP31: 0 | CQ31: 0 | CR31: 0 | CS31: 0 | CT31: 0 | CU31: 0 | CV31: 0 | CW31: 0 | CX31: 0 | CY31: 0 | CZ31: 0 | DA31: 0 | DB31: 0 | DC31: 0 | DD31: 0 | DE31: 0 | DF31: 0 | DG31: 0 | DH31: 0 | DI31: 0 | DJ31: 0 | DK31: 0 | DL31: 0 | DM31: 0 | DN31: 0 | DO31: 0 | DP31: 0 | DQ31: 0 | DR31: 0 | DS31: 0 | DT31: 0 | DU31: 0 | DV31: 0 | DW31: 0 | DX31: 0 | DY31: 0 | DZ31: 0 | EA31: 0 | EB31: 0 | EC31: 0 | ED31: 0 | EE31: 0 | EF31: 0 | EG31: 0 | EH31: 0 | EI31: 0 | EJ31: 0 | EK31: 0 | EL31: 0 | EM31: 0 | EN31: 0 | EO31: 0 | EP31: 0 | EQ31: 0 | ER31: 0 | ES31: 6354109.955 | ET31: 0 | EU31: 0 | EV31: 0 | EW31: 0 | EX31: 0 | EY31: 0 | EZ31: 0 | FA31: 113673.2948 | FB31: 0 | FC31: 440965.131 | FD31: 0 | FE31: 0 | FF31: 0 | FG31: 0 | FH31: 440965.131 | FI31: 0 | FJ31: 58331.81703 | FK31: 0 | FL31: 67302.83488 | FM31: 661447.6966 | FN31: 661447.6966 | FO31: 0 | FP31: 0 | FQ31: 0 | FR31: 0 | FS31: 0 | FT31: 0 | FU31: 0 | FV31: 0 | FW31: 0 | FX31: 0 | FY31: 0 | FZ31: 0 | GA31: 0 | GB31: 0 | GC31: 0 | GD31: 0 | GE31: 0 | GF31: 0 | GG31: 0 | GH31: 0 | GI31: 0 | GJ31: 0 | GK31: 0 | GL31: 0 | GM31: 0 | GN31: 0 | GO31: 0 | GP31: 0 | GQ31: 0 | GR31: 0 | GS31: 0 | GT31: 0 | GU31: 0 | GV31: 0 | GW31: 0 | GX31: 0 | GY31: 0 | GZ31: 0 | HA31: 0 | HB31: 0 | HC31: 0 | HD31: 0 | HE31: 0 | HF31: 0 | HG31: 0 | HH31: 0 | HI31: 0 | HJ31: 0 | HK31: 0 | HL31: 0 | HM31: 0 | HN31: 0 | HO31: 0 | HP31: 0 | HQ31: 0 | HR31: 0 | HS31: 0 | HT31: 0 | HU31: 0 | HV31: 0 | HW31: 0 | HX31: 2444133.602 | HY31: TRUE | HZ31: TRUE | IA31: 0 | IB31: 0
A32: 1023 | B32: CAPEX | C32: Customer | E32: Standard Control | H32: Customer Initiated Subdivisions | I32: CSUDN | J32: Customer Initiated Subdivisions | K32: D | L32: 2028/29 | M32: 1403 | N32: 5664.59 | O32: 7550048.781 | Q32: 921105.9495 | R32: 2893933.7 | S32: 2347310.169 | T32: 175161.133 | U32: 7550.049 | V32: 1204987.79 | W32: 17159.12 | Y32: Unit | AD32: CUS | AK32: =IFERROR(IF(AL32="Transmission",VLOOKUP(J32,'INCURRED & COMMISSIONED'!$B:$Z,13,FALSE),""),"") ->  | AL32: Distribution | AM32: Standard Control Services | AN32: Standard Control Services | AO32: Customer Initiated Works | AP32: Customer Initiated Subdivisions | AQ32: CAPEX | AR32: Network | AS32: Development | AT32: Connection | AU32: =IFERROR($BD32/VLOOKUP("Grand Total",'Raw Data Expenditure analysis '!$A$5:$M$17,MATCH($L32,'Raw Data Expenditure analysis '!$A$5:$M$5,0),FALSE),0) -> 0.04368707071 | AV32: =IFERROR(IF(B32="Capex",$W32/VLOOKUP($AM32,'Raw Data Hrs analysis'!$A$33:$M$42,MATCH($L32,'Raw Data Hrs analysis'!$A$34:$M$34,0),FALSE),0),0) -> 0.0569444686 | AW32: 0 | AX32: =IFERROR(IF(B32="Opex",$BD32/VLOOKUP($AM32,'Raw Data Expenditure analysis '!$B$69:$M$80,MATCH($L32,'Raw Data Expenditure analysis '!$B$69:$M$69,0),FALSE),$BD32/VLOOKUP($AM32,'Raw Data Expenditure analysis '!$B$54:$M$65,MATCH($L32,'Raw Data Expenditure analysis '!$B$54:$M$54,0),FALSE)),0) -> 0.07681168916 | AY32: =IF(Inputs!$C$203=Inputs!$Q$204,((Q32)*(HLOOKUP($L32,Inputs!$E$208:$R$210,3,FALSE))),(Q32)) -> 934712.6626 | AZ32: =IF(Inputs!$C$203=Inputs!$Q$204,((R32)*(HLOOKUP($L32,Inputs!$E$214:$R$216,3,FALSE))),(R32)) -> 2893933.7 | BA32: =IF(Inputs!$C$203=Inputs!$Q$204,((S32)*(HLOOKUP($L32,Inputs!$E$220:$R$222,3,FALSE))),(S32)) -> 2347310.169 | BB32: =IF(Inputs!$C$203=Inputs!$Q$204,((T32)*(HLOOKUP($L32,Inputs!$E$226:$R$228,3,FALSE))),(T32)) -> 175161.133 | BC32: =IF(Inputs!$C$203=Inputs!$Q$204,((U32)*(HLOOKUP($L32,Inputs!$E$226:$R$228,3,FALSE))),(U32)) -> 7550.049 | BD32: 6358667.714 | BE32: =IFERROR(IF(B32="Opex",0,VLOOKUP($AM32,Inputs!$B$46:$R$54,MATCH(L32,Inputs!$B$46:$R$46,0),FALSE)*AV32),0) -> 540199.0606 | BF32: =IFERROR(IF(B32="Opex",0,VLOOKUP($AM32,Inputs!$B$101:$R$111,MATCH(L32,Inputs!$B$63:$R$63,0),FALSE))*AX32,0) -> 1831218.396 | BG32: 2371417.457 | BH32: 8730085.171 | BI32: =IFERROR(IF(B32="Opex",0,VLOOKUP($AM32,Inputs!$B$173:$R$181,MATCH(L32,Inputs!$B$123:$R$123,0),FALSE)*AX32),0) -> 1727090.503 | BJ32: 10457175.67 | BK32: Distribution - CAPEX | BL32: =(($BD32)*(HLOOKUP($BL$1,Inputs!$B$32:$R$37,MATCH($BM$1,Inputs!$B$32:$B$37,0),FALSE))) -> 6674059.222 | BM32: =(($BG32)*(HLOOKUP($BL$1,Inputs!$B$32:$R$37,MATCH($BM$1,Inputs!$B$32:$B$37,0),FALSE))) -> 2489040.355 | BN32: 9163099.578 | BO32: 0 | BP32: 0 | BQ32: 0 | BR32: 0 | BS32: 0 | BT32: 0 | BU32: 0 | BV32: 295732.8964 | BW32: 0 | BX32: 1147216.641 | BY32: 0 | BZ32: 0 | CA32: 0 | CB32: 0 | CC32: 1147216.641 | CD32: 0 | CE32: 151756.2875 | CF32: 0 | CG32: 175095.3233 | CH32: 1720824.962 | CI32: 1720824.962 | CJ32: 0 | CK32: 0 | CL32: 0 | CM32: 0 | CN32: 0 | CO32: 0 | CP32: 0 | CQ32: 0 | CR32: 0 | CS32: 0 | CT32: 0 | CU32: 0 | CV32: 0 | CW32: 0 | CX32: 0 | CY32: 0 | CZ32: 0 | DA32: 0 | DB32: 0 | DC32: 0 | DD32: 0 | DE32: 0 | DF32: 0 | DG32: 0 | DH32: 0 | DI32: 0 | DJ32: 0 | DK32: 0 | DL32: 0 | DM32: 0 | DN32: 0 | DO32: 0 | DP32: 0 | DQ32: 0 | DR32: 0 | DS32: 0 | DT32: 0 | DU32: 0 | DV32: 0 | DW32: 0 | DX32: 0 | DY32: 0 | DZ32: 0 | EA32: 0 | EB32: 0 | EC32: 0 | ED32: 0 | EE32: 0 | EF32: 0 | EG32: 0 | EH32: 0 | EI32: 0 | EJ32: 0 | EK32: 0 | EL32: 0 | EM32: 0 | EN32: 0 | EO32: 0 | EP32: 0 | EQ32: 0 | ER32: 0 | ES32: 6358667.714 | ET32: 0 | EU32: 0 | EV32: 0 | EW32: 0 | EX32: 0 | EY32: 0 | EZ32: 0 | FA32: 110291.3668 | FB32: 0 | FC32: 427845.8464 | FD32: 0 | FE32: 0 | FF32: 0 | FG32: 0 | FH32: 427845.8464 | FI32: 0 | FJ32: 56596.3698 | FK32: 0 | FL32: 65300.48824 | FM32: 641768.7695 | FN32: 641768.7695 | FO32: 0 | FP32: 0 | FQ32: 0 | FR32: 0 | FS32: 0 | FT32: 0 | FU32: 0 | FV32: 0 | FW32: 0 | FX32: 0 | FY32: 0 | FZ32: 0 | GA32: 0 | GB32: 0 | GC32: 0 | GD32: 0 | GE32: 0 | GF32: 0 | GG32: 0 | GH32: 0 | GI32: 0 | GJ32: 0 | GK32: 0 | GL32: 0 | GM32: 0 | GN32: 0 | GO32: 0 | GP32: 0 | GQ32: 0 | GR32: 0 | GS32: 0 | GT32: 0 | GU32: 0 | GV32: 0 | GW32: 0 | GX32: 0 | GY32: 0 | GZ32: 0 | HA32: 0 | HB32: 0 | HC32: 0 | HD32: 0 | HE32: 0 | HF32: 0 | HG32: 0 | HH32: 0 | HI32: 0 | HJ32: 0 | HK32: 0 | HL32: 0 | HM32: 0 | HN32: 0 | HO32: 0 | HP32: 0 | HQ32: 0 | HR32: 0 | HS32: 0 | HT32: 0 | HU32: 0 | HV32: 0 | HW32: 0 | HX32: 2371417.457 | HY32: TRUE | HZ32: TRUE | IA32: 0 | IB32: 0
A33: 1025 | B33: CAPEX | C33: Customer | E33: Standard Control | H33: Customer Initiated Major Works | I33: CMAJC | J33: Customer Initiated Major Works Commercial | K33: D | L33: 2019/20 | M33: 1 | N33: 0 | O33: 952725.113 | Q33: 222556.5855 | R33: 250376.1575 | S33: 162249.0845 | T33: 47636.2585 | U33: 1905.453 | V33: 268001.574 | W33: 4108.43 | Y33: Unit | AD33: CUS | AK33: =IFERROR(IF(AL33="Transmission",VLOOKUP(J33,'INCURRED & COMMISSIONED'!$B:$Z,13,FALSE),""),"") ->  | AL33: Distribution | AM33: Standard Control Services | AN33: Standard Control Services | AO33: Customer Initiated Works | AP33: Customer Initiated Major Works | AQ33: CAPEX | AR33: Network | AS33: Development | AT33: Connection | AU33: =IFERROR($BD33/VLOOKUP("Grand Total",'Raw Data Expenditure analysis '!$A$5:$M$17,MATCH($L33,'Raw Data Expenditure analysis '!$A$5:$M$5,0),FALSE),0) -> 0.004453737261 | AV33: =IFERROR(IF(B33="Capex",$W33/VLOOKUP($AM33,'Raw Data Hrs analysis'!$A$33:$M$42,MATCH($L33,'Raw Data Hrs analysis'!$A$34:$M$34,0),FALSE),0),0) -> 0.01327604979 | AW33: 0 | AX33: =IFERROR(IF(B33="Opex",$BD33/VLOOKUP($AM33,'Raw Data Expenditure analysis '!$B$69:$M$80,MATCH($L33,'Raw Data Expenditure analysis '!$B$69:$M$69,0),FALSE),$BD33/VLOOKUP($AM33,'Raw Data Expenditure analysis '!$B$54:$M$65,MATCH($L33,'Raw Data Expenditure analysis '!$B$54:$M$54,0),FALSE)),0) -> 0.007497334935 | AY33: =IF(Inputs!$C$203=Inputs!$Q$204,((Q33)*(HLOOKUP($L33,Inputs!$E$208:$R$210,3,FALSE))),(Q33)) -> 222556.5855 | AZ33: =IF(Inputs!$C$203=Inputs!$Q$204,((R33)*(HLOOKUP($L33,Inputs!$E$214:$R$216,3,FALSE))),(R33)) -> 250376.1575 | BA33: =IF(Inputs!$C$203=Inputs!$Q$204,((S33)*(HLOOKUP($L33,Inputs!$E$220:$R$222,3,FALSE))),(S33)) -> 162249.0845 | BB33: =IF(Inputs!$C$203=Inputs!$Q$204,((T33)*(HLOOKUP($L33,Inputs!$E$226:$R$228,3,FALSE))),(T33)) -> 47636.2585 | BC33: =IF(Inputs!$C$203=Inputs!$Q$204,((U33)*(HLOOKUP($L33,Inputs!$E$226:$R$228,3,FALSE))),(U33)) -> 1905.453 | BD33: 684723.539 | BE33: =IFERROR(IF(B33="Opex",0,VLOOKUP($AM33,Inputs!$B$46:$R$54,MATCH(L33,Inputs!$B$46:$R$46,0),FALSE)*AV33),0) -> 130449.5208 | BF33: =IFERROR(IF(B33="Opex",0,VLOOKUP($AM33,Inputs!$B$101:$R$111,MATCH(L33,Inputs!$B$63:$R$63,0),FALSE))*AX33,0) -> 185136.0848 | BG33: 315585.6056 | BH33: 1000309.145 | BI33: =IFERROR(IF(B33="Opex",0,VLOOKUP($AM33,Inputs!$B$173:$R$181,MATCH(L33,Inputs!$B$123:$R$123,0),FALSE)*AX33),0) -> 205006.6825 | BJ33: 1205315.827 | BK33: Distribution - CAPEX | BL33: =(($BD33)*(HLOOKUP($BL$1,Inputs!$B$32:$R$37,MATCH($BM$1,Inputs!$B$32:$B$37,0),FALSE))) -> 718685.9977 | BM33: =(($BG33)*(HLOOKUP($BL$1,Inputs!$B$32:$R$37,MATCH($BM$1,Inputs!$B$32:$B$37,0),FALSE))) -> 331238.7306 | BN33: 1049924.728 | BO33: 6364.595304 | BP33: 0 | BQ33: 2121.531768 | BR33: 0 | BS33: 4243.063536 | BT33: 14850.72238 | BU33: 120442.0399 | BV33: 158386.9763 | BW33: 0 | BX33: 290321.8452 | BY33: 0 | BZ33: 35197.10584 | CA33: 52795.65876 | CB33: 0 | CC33: 0 | CD33: 0 | CE33: 0 | CF33: 0 | CG33: 0 | CH33: 0 | CI33: 0 | CJ33: 0 | CK33: 0 | CL33: 0 | CM33: 0 | CN33: 0 | CO33: 0 | CP33: 0 | CQ33: 0 | CR33: 0 | CS33: 0 | CT33: 0 | CU33: 0 | CV33: 0 | CW33: 0 | CX33: 0 | CY33: 0 | CZ33: 0 | DA33: 0 | DB33: 0 | DC33: 0 | DD33: 0 | DE33: 0 | DF33: 0 | DG33: 0 | DH33: 0 | DI33: 0 | DJ33: 0 | DK33: 0 | DL33: 0 | DM33: 0 | DN33: 0 | DO33: 0 | DP33: 0 | DQ33: 0 | DR33: 0 | DS33: 0 | DT33: 0 | DU33: 0 | DV33: 0 | DW33: 0 | DX33: 0 | DY33: 0 | DZ33: 0 | EA33: 0 | EB33: 0 | EC33: 0 | ED33: 0 | EE33: 0 | EF33: 0 | EG33: 0 | EH33: 0 | EI33: 0 | EJ33: 0 | EK33: 0 | EL33: 0 | EM33: 0 | EN33: 0 | EO33: 0 | EP33: 0 | EQ33: 0 | ER33: 0 | ES33: 684723.539 | ET33: 2933.409689 | EU33: 0 | EV33: 977.8032297 | EW33: 0 | EX33: 1955.606459 | EY33: 6844.622608 | EZ33: 55511.1252 | FA33: 72999.75389 | FB33: 0 | FC33: 133807.8657 | FD33: 0 | FE33: 16222.16753 | FF33: 24333.2513 | FG33: 0 | FH33: 0 | FI33: 0 | FJ33: 0 | FK33: 0 | FL33: 0 | FM33: 0 | FN33: 0 | FO33: 0 | FP33: 0 | FQ33: 0 | FR33: 0 | FS33: 0 | FT33: 0 | FU33: 0 | FV33: 0 | FW33: 0 | FX33: 0 | FY33: 0 | FZ33: 0 | GA33: 0 | GB33: 0 | GC33: 0 | GD33: 0 | GE33: 0 | GF33: 0 | GG33: 0 | GH33: 0 | GI33: 0 | GJ33: 0 | GK33: 0 | GL33: 0 | GM33: 0 | GN33: 0 | GO33: 0 | GP33: 0 | GQ33: 0 | GR33: 0 | GS33: 0 | GT33: 0 | GU33: 0 | GV33: 0 | GW33: 0 | GX33: 0 | GY33: 0 | GZ33: 0 | HA33: 0 | HB33: 0 | HC33: 0 | HD33: 0 | HE33: 0 | HF33: 0 | HG33: 0 | HH33: 0 | HI33: 0 | HJ33: 0 | HK33: 0 | HL33: 0 | HM33: 0 | HN33: 0 | HO33: 0 | HP33: 0 | HQ33: 0 | HR33: 0 | HS33: 0 | HT33: 0 | HU33: 0 | HV33: 0 | HW33: 0 | HX33: 315585.6056 | HY33: TRUE | HZ33: TRUE | IA33: 0 | IB33: 0
A34: 1025 | B34: CAPEX | C34: Customer | E34: Standard Control | H34: Customer Initiated Major Works | I34: CMAJC | J34: Customer Initiated Major Works Commercial | K34: D | L34: 2020/21 | M34: 1 | N34: 0 | O34: 952725.113 | Q34: 222556.5855 | R34: 250376.1575 | S34: 162249.0845 | T34: 47636.2585 | U34: 1905.453 | V34: 268001.574 | W34: 4108.43 | Y34: Unit | AD34: CUS | AK34: =IFERROR(IF(AL34="Transmission",VLOOKUP(J34,'INCURRED & COMMISSIONED'!$B:$Z,13,FALSE),""),"") ->  | AL34: Distribution | AM34: Standard Control Services | AN34: Standard Control Services | AO34: Customer Initiated Works | AP34: Customer Initiated Major Works | AQ34: CAPEX | AR34: Network | AS34: Development | AT34: Connection | AU34: =IFERROR($BD34/VLOOKUP("Grand Total",'Raw Data Expenditure analysis '!$A$5:$M$17,MATCH($L34,'Raw Data Expenditure analysis '!$A$5:$M$5,0),FALSE),0) -> 0.003975023855 | AV34: =IFERROR(IF(B34="Capex",$W34/VLOOKUP($AM34,'Raw Data Hrs analysis'!$A$33:$M$42,MATCH($L34,'Raw Data Hrs analysis'!$A$34:$M$34,0),FALSE),0),0) -> 0.01327673023 | AW34: 0 | AX34: =IFERROR(IF(B34="Opex",$BD34/VLOOKUP($AM34,'Raw Data Expenditure analysis '!$B$69:$M$80,MATCH($L34,'Raw Data Expenditure analysis '!$B$69:$M$69,0),FALSE),$BD34/VLOOKUP($AM34,'Raw Data Expenditure analysis '!$B$54:$M$65,MATCH($L34,'Raw Data Expenditure analysis '!$B$54:$M$54,0),FALSE)),0) -> 0.007406117333 | AY34: =IF(Inputs!$C$203=Inputs!$Q$204,((Q34)*(HLOOKUP($L34,Inputs!$E$208:$R$210,3,FALSE))),(Q34)) -> 223647.1128 | AZ34: =IF(Inputs!$C$203=Inputs!$Q$204,((R34)*(HLOOKUP($L34,Inputs!$E$214:$R$216,3,FALSE))),(R34)) -> 250376.1575 | BA34: =IF(Inputs!$C$203=Inputs!$Q$204,((S34)*(HLOOKUP($L34,Inputs!$E$220:$R$222,3,FALSE))),(S34)) -> 162249.0845 | BB34: =IF(Inputs!$C$203=Inputs!$Q$204,((T34)*(HLOOKUP($L34,Inputs!$E$226:$R$228,3,FALSE))),(T34)) -> 47636.2585 | BC34: =IF(Inputs!$C$203=Inputs!$Q$204,((U34)*(HLOOKUP($L34,Inputs!$E$226:$R$228,3,FALSE))),(U34)) -> 1905.453 | BD34: 685814.0663 | BE34: =IFERROR(IF(B34="Opex",0,VLOOKUP($AM34,Inputs!$B$46:$R$54,MATCH(L34,Inputs!$B$46:$R$46,0),FALSE)*AV34),0) -> 129803.9257 | BF34: =IFERROR(IF(B34="Opex",0,VLOOKUP($AM34,Inputs!$B$101:$R$111,MATCH(L34,Inputs!$B$63:$R$63,0),FALSE))*AX34,0) -> 181969.1771 | BG34: 311773.1028 | BH34: 997587.1691 | BI34: =IFERROR(IF(B34="Opex",0,VLOOKUP($AM34,Inputs!$B$173:$R$181,MATCH(L34,Inputs!$B$123:$R$123,0),FALSE)*AX34),0) -> 159833.9821 | BJ34: 1157421.151 | BK34: Distribution - CAPEX | BL34: =(($BD34)*(HLOOKUP($BL$1,Inputs!$B$32:$R$37,MATCH($BM$1,Inputs!$B$32:$B$37,0),FALSE))) -> 719830.6154 | BM34: =(($BG34)*(HLOOKUP($BL$1,Inputs!$B$32:$R$37,MATCH($BM$1,Inputs!$B$32:$B$37,0),FALSE))) -> 327237.1267 | BN34: 1047067.742 | BO34: 6374.731898 | BP34: 0 | BQ34: 2124.910633 | BR34: 0 | BS34: 4249.821266 | BT34: 14874.37443 | BU34: 120633.8623 | BV34: 158639.2318 | BW34: 0 | BX34: 290784.2273 | BY34: 0 | BZ34: 35253.16263 | CA34: 52879.74395 | CB34: 0 | CC34: 0 | CD34: 0 | CE34: 0 | CF34: 0 | CG34: 0 | CH34: 0 | CI34: 0 | CJ34: 0 | CK34: 0 | CL34: 0 | CM34: 0 | CN34: 0 | CO34: 0 | CP34: 0 | CQ34: 0 | CR34: 0 | CS34: 0 | CT34: 0 | CU34: 0 | CV34: 0 | CW34: 0 | CX34: 0 | CY34: 0 | CZ34: 0 | DA34: 0 | DB34: 0 | DC34: 0 | DD34: 0 | DE34: 0 | DF34: 0 | DG34: 0 | DH34: 0 | DI34: 0 | DJ34: 0 | DK34: 0 | DL34: 0 | DM34: 0 | DN34: 0 | DO34: 0 | DP34: 0 | DQ34: 0 | DR34: 0 | DS34: 0 | DT34: 0 | DU34: 0 | DV34: 0 | DW34: 0 | DX34: 0 | DY34: 0 | DZ34: 0 | EA34: 0 | EB34: 0 | EC34: 0 | ED34: 0 | EE34: 0 | EF34: 0 | EG34: 0 | EH34: 0 | EI34: 0 | EJ34: 0 | EK34: 0 | EL34: 0 | EM34: 0 | EN34: 0 | EO34: 0 | EP34: 0 | EQ34: 0 | ER34: 0 | ES34: 685814.0663 | ET34: 2897.971974 | EU34: 0 | EV34: 965.9906581 | EW34: 0 | EX34: 1931.981316 | EY34: 6761.934607 | EZ34: 54840.51059 | FA34: 72117.86397 | FB34: 0 | FC34: 132191.3697 | FD34: 0 | FE34: 16026.19199 | FF34: 24039.28799 | FG34: 0 | FH34: 0 | FI34: 0 | FJ34: 0 | FK34: 0 | FL34: 0 | FM34: 0 | FN34: 0 | FO34: 0 | FP34: 0 | FQ34: 0 | FR34: 0 | FS34: 0 | FT34: 0 | FU34: 0 | FV34: 0 | FW34: 0 | FX34: 0 | FY34: 0 | FZ34: 0 | GA34: 0 | GB34: 0 | GC34: 0 | GD34: 0 | GE34: 0 | GF34: 0 | GG34: 0 | GH34: 0 | GI34: 0 | GJ34: 0 | GK34: 0 | GL34: 0 | GM34: 0 | GN34: 0 | GO34: 0 | GP34: 0 | GQ34: 0 | GR34: 0 | GS34: 0 | GT34: 0 | GU34: 0 | GV34: 0 | GW34: 0 | GX34: 0 | GY34: 0 | GZ34: 0 | HA34: 0 | HB34: 0 | HC34: 0 | HD34: 0 | HE34: 0 | HF34: 0 | HG34: 0 | HH34: 0 | HI34: 0 | HJ34: 0 | HK34: 0 | HL34: 0 | HM34: 0 | HN34: 0 | HO34: 0 | HP34: 0 | HQ34: 0 | HR34: 0 | HS34: 0 | HT34: 0 | HU34: 0 | HV34: 0 | HW34: 0 | HX34: 311773.1028 | HY34: TRUE | HZ34: TRUE | IA34: 0 | IB34: 0
A35: 1025 | B35: CAPEX | C35: Customer | E35: Standard Control | H35: Customer Initiated Major Works | I35: CMAJC | J35: Customer Initiated Major Works Commercial | K35: D | L35: 2021/22 | M35: 1 | N35: 0 | O35: 952725.113 | Q35: 222556.5855 | R35: 250376.1575 | S35: 162249.0845 | T35: 47636.2585 | U35: 1905.453 | V35: 268001.574 | W35: 4108.43 | Y35: Unit | AD35: CUS | AK35: =IFERROR(IF(AL35="Transmission",VLOOKUP(J35,'INCURRED & COMMISSIONED'!$B:$Z,13,FALSE),""),"") ->  | AL35: Distribution | AM35: Standard Control Services | AN35: Standard Control Services | AO35: Customer Initiated Works | AP35: Customer Initiated Major Works | AQ35: CAPEX | AR35: Network | AS35: Development | AT35: Connection | AU35: =IFERROR($BD35/VLOOKUP("Grand Total",'Raw Data Expenditure analysis '!$A$5:$M$17,MATCH($L35,'Raw Data Expenditure analysis '!$A$5:$M$5,0),FALSE),0) -> 0.004288337038 | AV35: =IFERROR(IF(B35="Capex",$W35/VLOOKUP($AM35,'Raw Data Hrs analysis'!$A$33:$M$42,MATCH($L35,'Raw Data Hrs analysis'!$A$34:$M$34,0),FALSE),0),0) -> 0.01414699517 | AW35: 0 | AX35: =IFERROR(IF(B35="Opex",$BD35/VLOOKUP($AM35,'Raw Data Expenditure analysis '!$B$69:$M$80,MATCH($L35,'Raw Data Expenditure analysis '!$B$69:$M$69,0),FALSE),$BD35/VLOOKUP($AM35,'Raw Data Expenditure analysis '!$B$54:$M$65,MATCH($L35,'Raw Data Expenditure analysis '!$B$54:$M$54,0),FALSE)),0) -> 0.007748971699 | AY35: =IF(Inputs!$C$203=Inputs!$Q$204,((Q35)*(HLOOKUP($L35,Inputs!$E$208:$R$210,3,FALSE))),(Q35)) -> 224742.9836 | AZ35: =IF(Inputs!$C$203=Inputs!$Q$204,((R35)*(HLOOKUP($L35,Inputs!$E$214:$R$216,3,FALSE))),(R35)) -> 250376.1575 | BA35: =IF(Inputs!$C$203=Inputs!$Q$204,((S35)*(HLOOKUP($L35,Inputs!$E$220:$R$222,3,FALSE))),(S35)) -> 162249.0845 | BB35: =IF(Inputs!$C$203=Inputs!$Q$204,((T35)*(HLOOKUP($L35,Inputs!$E$226:$R$228,3,FALSE))),(T35)) -> 47636.2585 | BC35: =IF(Inputs!$C$203=Inputs!$Q$204,((U35)*(HLOOKUP($L35,Inputs!$E$226:$R$228,3,FALSE))),(U35)) -> 1905.453 | BD35: 686909.9371 | BE35: =IFERROR(IF(B35="Opex",0,VLOOKUP($AM35,Inputs!$B$46:$R$54,MATCH(L35,Inputs!$B$46:$R$46,0),FALSE)*AV35),0) -> 136929.208 | BF35: =IFERROR(IF(B35="Opex",0,VLOOKUP($AM35,Inputs!$B$101:$R$111,MATCH(L35,Inputs!$B$63:$R$63,0),FALSE))*AX35,0) -> 188489.2179 | BG35: 325418.4259 | BH35: 1012328.363 | BI35: =IFERROR(IF(B35="Opex",0,VLOOKUP($AM35,Inputs!$B$173:$R$181,MATCH(L35,Inputs!$B$123:$R$123,0),FALSE)*AX35),0) -> 107740.7185 | BJ35: 1120069.082 | BK35: Distribution - CAPEX | BL35: =(($BD35)*(HLOOKUP($BL$1,Inputs!$B$32:$R$37,MATCH($BM$1,Inputs!$B$32:$B$37,0),FALSE))) -> 720980.8417 | BM35: =(($BG35)*(HLOOKUP($BL$1,Inputs!$B$32:$R$37,MATCH($BM$1,Inputs!$B$32:$B$37,0),FALSE))) -> 341559.2612 | BN35: 1062540.103 | BO35: 6384.918162 | BP35: 0 | BQ35: 2128.306054 | BR35: 0 | BS35: 4256.612108 | BT35: 14898.14238 | BU35: 120826.6247 | BV35: 158892.7234 | BW35: 0 | BX35: 291248.8751 | BY35: 0 | BZ35: 35309.4941 | CA35: 52964.24115 | CB35: 0 | CC35: 0 | CD35: 0 | CE35: 0 | CF35: 0 | CG35: 0 | CH35: 0 | CI35: 0 | CJ35: 0 | CK35: 0 | CL35: 0 | CM35: 0 | CN35: 0 | CO35: 0 | CP35: 0 | CQ35: 0 | CR35: 0 | CS35: 0 | CT35: 0 | CU35: 0 | CV35: 0 | CW35: 0 | CX35: 0 | CY35: 0 | CZ35: 0 | DA35: 0 | DB35: 0 | DC35: 0 | DD35: 0 | DE35: 0 | DF35: 0 | DG35: 0 | DH35: 0 | DI35: 0 | DJ35: 0 | DK35: 0 | DL35: 0 | DM35: 0 | DN35: 0 | DO35: 0 | DP35: 0 | DQ35: 0 | DR35: 0 | DS35: 0 | DT35: 0 | DU35: 0 | DV35: 0 | DW35: 0 | DX35: 0 | DY35: 0 | DZ35: 0 | EA35: 0 | EB35: 0 | EC35: 0 | ED35: 0 | EE35: 0 | EF35: 0 | EG35: 0 | EH35: 0 | EI35: 0 | EJ35: 0 | EK35: 0 | EL35: 0 | EM35: 0 | EN35: 0 | EO35: 0 | EP35: 0 | EQ35: 0 | ER35: 0 | ES35: 686909.9371 | ET35: 3024.807046 | EU35: 0 | EV35: 1008.269015 | EW35: 0 | EX35: 2016.538031 | EY35: 7057.883107 | EZ35: 57240.70636 | FA35: 75274.23488 | FB35: 0 | FC35: 137976.9681 | FD35: 0 | FE35: 16727.60775 | FF35: 25091.41163 | FG35: 0 | FH35: 0 | FI35: 0 | FJ35: 0 | FK35: 0 | FL35: 0 | FM35: 0 | FN35: 0 | FO35: 0 | FP35: 0 | FQ35: 0 | FR35: 0 | FS35: 0 | FT35: 0 | FU35: 0 | FV35: 0 | FW35: 0 | FX35: 0 | FY35: 0 | FZ35: 0 | GA35: 0 | GB35: 0 | GC35: 0 | GD35: 0 | GE35: 0 | GF35: 0 | GG35: 0 | GH35: 0 | GI35: 0 | GJ35: 0 | GK35: 0 | GL35: 0 | GM35: 0 | GN35: 0 | GO35: 0 | GP35: 0 | GQ35: 0 | GR35: 0 | GS35: 0 | GT35: 0 | GU35: 0 | GV35: 0 | GW35: 0 | GX35: 0 | GY35: 0 | GZ35: 0 | HA35: 0 | HB35: 0 | HC35: 0 | HD35: 0 | HE35: 0 | HF35: 0 | HG35: 0 | HH35: 0 | HI35: 0 | HJ35: 0 | HK35: 0 | HL35: 0 | HM35: 0 | HN35: 0 | HO35: 0 | HP35: 0 | HQ35: 0 | HR35: 0 | HS35: 0 | HT35: 0 | HU35: 0 | HV35: 0 | HW35: 0 | HX35: 325418.4259 | HY35: TRUE | HZ35: TRUE | IA35: 0 | IB35: 0
A36: 1025 | B36: CAPEX | C36: Customer | E36: Standard Control | H36: Customer Initiated Major Works | I36: CMAJC | J36: Customer Initiated Major Works Commercial | K36: D | L36: 2022/23 | M36: 1 | N36: 0 | O36: 952725.113 | Q36: 222556.5855 | R36: 250376.1575 | S36: 162249.0845 | T36: 47636.2585 | U36: 1905.453 | V36: 268001.574 | W36: 4108.43 | Y36: Unit | AD36: CUS | AK36: =IFERROR(IF(AL36="Transmission",VLOOKUP(J36,'INCURRED & COMMISSIONED'!$B:$Z,13,FALSE),""),"") ->  | AL36: Distribution | AM36: Standard Control Services | AN36: Standard Control Services | AO36: Customer Initiated Works | AP36: Customer Initiated Major Works | AQ36: CAPEX | AR36: Network | AS36: Development | AT36: Connection | AU36: =IFERROR($BD36/VLOOKUP("Grand Total",'Raw Data Expenditure analysis '!$A$5:$M$17,MATCH($L36,'Raw Data Expenditure analysis '!$A$5:$M$5,0),FALSE),0) -> 0.004435271989 | AV36: =IFERROR(IF(B36="Capex",$W36/VLOOKUP($AM36,'Raw Data Hrs analysis'!$A$33:$M$42,MATCH($L36,'Raw Data Hrs analysis'!$A$34:$M$34,0),FALSE),0),0) -> 0.01438889966 | AW36: 0 | AX36: =IFERROR(IF(B36="Opex",$BD36/VLOOKUP($AM36,'Raw Data Expenditure analysis '!$B$69:$M$80,MATCH($L36,'Raw Data Expenditure analysis '!$B$69:$M$69,0),FALSE),$BD36/VLOOKUP($AM36,'Raw Data Expenditure analysis '!$B$54:$M$65,MATCH($L36,'Raw Data Expenditure analysis '!$B$54:$M$54,0),FALSE)),0) -> 0.008091247431 | AY36: =IF(Inputs!$C$203=Inputs!$Q$204,((Q36)*(HLOOKUP($L36,Inputs!$E$208:$R$210,3,FALSE))),(Q36)) -> 225844.2242 | AZ36: =IF(Inputs!$C$203=Inputs!$Q$204,((R36)*(HLOOKUP($L36,Inputs!$E$214:$R$216,3,FALSE))),(R36)) -> 250376.1575 | BA36: =IF(Inputs!$C$203=Inputs!$Q$204,((S36)*(HLOOKUP($L36,Inputs!$E$220:$R$222,3,FALSE))),(S36)) -> 162249.0845 | BB36: =IF(Inputs!$C$203=Inputs!$Q$204,((T36)*(HLOOKUP($L36,Inputs!$E$226:$R$228,3,FALSE))),(T36)) -> 47636.2585 | BC36: =IF(Inputs!$C$203=Inputs!$Q$204,((U36)*(HLOOKUP($L36,Inputs!$E$226:$R$228,3,FALSE))),(U36)) -> 1905.453 | BD36: 688011.1777 | BE36: =IFERROR(IF(B36="Opex",0,VLOOKUP($AM36,Inputs!$B$46:$R$54,MATCH(L36,Inputs!$B$46:$R$46,0),FALSE)*AV36),0) -> 137877.903 | BF36: =IFERROR(IF(B36="Opex",0,VLOOKUP($AM36,Inputs!$B$101:$R$111,MATCH(L36,Inputs!$B$63:$R$63,0),FALSE))*AX36,0) -> 194846.7267 | BG36: 332724.6297 | BH36: 1020735.807 | BI36: =IFERROR(IF(B36="Opex",0,VLOOKUP($AM36,Inputs!$B$173:$R$181,MATCH(L36,Inputs!$B$123:$R$123,0),FALSE)*AX36),0) -> 235463.3647 | BJ36: 1256199.172 | BK36: Distribution - CAPEX | BL36: =(($BD36)*(HLOOKUP($BL$1,Inputs!$B$32:$R$37,MATCH($BM$1,Inputs!$B$32:$B$37,0),FALSE))) -> 722136.7042 | BM36: =(($BG36)*(HLOOKUP($BL$1,Inputs!$B$32:$R$37,MATCH($BM$1,Inputs!$B$32:$B$37,0),FALSE))) -> 349227.8545 | BN36: 1071364.559 | BO36: 6395.154338 | BP36: 0 | BQ36: 2131.718113 | BR36: 0 | BS36: 4263.436226 | BT36: 14922.02679 | BU36: 121020.3316 | BV36: 159147.4572 | BW36: 0 | BX36: 291715.7996 | BY36: 0 | BZ36: 35366.10159 | CA36: 53049.15239 | CB36: 0 | CC36: 0 | CD36: 0 | CE36: 0 | CF36: 0 | CG36: 0 | CH36: 0 | CI36: 0 | CJ36: 0 | CK36: 0 | CL36: 0 | CM36: 0 | CN36: 0 | CO36: 0 | CP36: 0 | CQ36: 0 | CR36: 0 | CS36: 0 | CT36: 0 | CU36: 0 | CV36: 0 | CW36: 0 | CX36: 0 | CY36: 0 | CZ36: 0 | DA36: 0 | DB36: 0 | DC36: 0 | DD36: 0 | DE36: 0 | DF36: 0 | DG36: 0 | DH36: 0 | DI36: 0 | DJ36: 0 | DK36: 0 | DL36: 0 | DM36: 0 | DN36: 0 | DO36: 0 | DP36: 0 | DQ36: 0 | DR36: 0 | DS36: 0 | DT36: 0 | DU36: 0 | DV36: 0 | DW36: 0 | DX36: 0 | DY36: 0 | DZ36: 0 | EA36: 0 | EB36: 0 | EC36: 0 | ED36: 0 | EE36: 0 | EF36: 0 | EG36: 0 | EH36: 0 | EI36: 0 | EJ36: 0 | EK36: 0 | EL36: 0 | EM36: 0 | EN36: 0 | EO36: 0 | EP36: 0 | EQ36: 0 | ER36: 0 | ES36: 688011.1777 | ET36: 3092.719171 | EU36: 0 | EV36: 1030.90639 | EW36: 0 | EX36: 2061.81278 | EY36: 7216.344732 | EZ36: 58525.85875 | FA36: 76964.27102 | FB36: 0 | FC36: 141074.7885 | FD36: 0 | FE36: 17103.17134 | FF36: 25654.75701 | FG36: 0 | FH36: 0 | FI36: 0 | FJ36: 0 | FK36: 0 | FL36: 0 | FM36: 0 | FN36: 0 | FO36: 0 | FP36: 0 | FQ36: 0 | FR36: 0 | FS36: 0 | FT36: 0 | FU36: 0 | FV36: 0 | FW36: 0 | FX36: 0 | FY36: 0 | FZ36: 0 | GA36: 0 | GB36: 0 | GC36: 0 | GD36: 0 | GE36: 0 | GF36: 0 | GG36: 0 | GH36: 0 | GI36: 0 | GJ36: 0 | GK36: 0 | GL36: 0 | GM36: 0 | GN36: 0 | GO36: 0 | GP36: 0 | GQ36: 0 | GR36: 0 | GS36: 0 | GT36: 0 | GU36: 0 | GV36: 0 | GW36: 0 | GX36: 0 | GY36: 0 | GZ36: 0 | HA36: 0 | HB36: 0 | HC36: 0 | HD36: 0 | HE36: 0 | HF36: 0 | HG36: 0 | HH36: 0 | HI36: 0 | HJ36: 0 | HK36: 0 | HL36: 0 | HM36: 0 | HN36: 0 | HO36: 0 | HP36: 0 | HQ36: 0 | HR36: 0 | HS36: 0 | HT36: 0 | HU36: 0 | HV36: 0 | HW36: 0 | HX36: 332724.6297 | HY36: TRUE | HZ36: TRUE | IA36: 0 | IB36: 0
A37: 1025 | B37: CAPEX | C37: Customer | E37: Standard Control | H37: Customer Initiated Major Works | I37: CMAJC | J37: Customer Initiated Major Works Commercial | K37: D | L37: 2023/24 | M37: 1 | N37: 0 | O37: 952725.113 | Q37: 222556.5855 | R37: 250376.1575 | S37: 162249.0845 | T37: 47636.2585 | U37: 1905.453 | V37: 268001.574 | W37: 4108.43 | Y37: Unit | AD37: CUS | AK37: =IFERROR(IF(AL37="Transmission",VLOOKUP(J37,'INCURRED & COMMISSIONED'!$B:$Z,13,FALSE),""),"") ->  | AL37: Distribution | AM37: Standard Control Services | AN37: Standard Control Services | AO37: Customer Initiated Works | AP37: Customer Initiated Major Works | AQ37: CAPEX | AR37: Network | AS37: Development | AT37: Connection | AU37: =IFERROR($BD37/VLOOKUP("Grand Total",'Raw Data Expenditure analysis '!$A$5:$M$17,MATCH($L37,'Raw Data Expenditure analysis '!$A$5:$M$5,0),FALSE),0) -> 0.004557181997 | AV37: =IFERROR(IF(B37="Capex",$W37/VLOOKUP($AM37,'Raw Data Hrs analysis'!$A$33:$M$42,MATCH($L37,'Raw Data Hrs analysis'!$A$34:$M$34,0),FALSE),0),0) -> 0.01393762183 | AW37: 0 | AX37: =IFERROR(IF(B37="Opex",$BD37/VLOOKUP($AM37,'Raw Data Expenditure analysis '!$B$69:$M$80,MATCH($L37,'Raw Data Expenditure analysis '!$B$69:$M$69,0),FALSE),$BD37/VLOOKUP($AM37,'Raw Data Expenditure analysis '!$B$54:$M$65,MATCH($L37,'Raw Data Expenditure analysis '!$B$54:$M$54,0),FALSE)),0) -> 0.008323424376 | AY37: =IF(Inputs!$C$203=Inputs!$Q$204,((Q37)*(HLOOKUP($L37,Inputs!$E$208:$R$210,3,FALSE))),(Q37)) -> 226950.8609 | AZ37: =IF(Inputs!$C$203=Inputs!$Q$204,((R37)*(HLOOKUP($L37,Inputs!$E$214:$R$216,3,FALSE))),(R37)) -> 250376.1575 | BA37: =IF(Inputs!$C$203=Inputs!$Q$204,((S37)*(HLOOKUP($L37,Inputs!$E$220:$R$222,3,FALSE))),(S37)) -> 162249.0845 | BB37: =IF(Inputs!$C$203=Inputs!$Q$204,((T37)*(HLOOKUP($L37,Inputs!$E$226:$R$228,3,FALSE))),(T37)) -> 47636.2585 | BC37: =IF(Inputs!$C$203=Inputs!$Q$204,((U37)*(HLOOKUP($L37,Inputs!$E$226:$R$228,3,FALSE))),(U37)) -> 1905.453 | BD37: 689117.8144 | BE37: =IFERROR(IF(B37="Opex",0,VLOOKUP($AM37,Inputs!$B$46:$R$54,MATCH(L37,Inputs!$B$46:$R$46,0),FALSE)*AV37),0) -> 132218.1136 | BF37: =IFERROR(IF(B37="Opex",0,VLOOKUP($AM37,Inputs!$B$101:$R$111,MATCH(L37,Inputs!$B$63:$R$63,0),FALSE))*AX37,0) -> 198433.4416 | BG37: 330651.5552 | BH37: 1019769.37 | BI37: =IFERROR(IF(B37="Opex",0,VLOOKUP($AM37,Inputs!$B$173:$R$181,MATCH(L37,Inputs!$B$123:$R$123,0),FALSE)*AX37),0) -> 262893.8965 | BJ37: 1282663.266 | BK37: Distribution - CAPEX | BL37: =(($BD37)*(HLOOKUP($BL$1,Inputs!$B$32:$R$37,MATCH($BM$1,Inputs!$B$32:$B$37,0),FALSE))) -> 723298.2303 | BM37: =(($BG37)*(HLOOKUP($BL$1,Inputs!$B$32:$R$37,MATCH($BM$1,Inputs!$B$32:$B$37,0),FALSE))) -> 347051.9551 | BN37: 1070350.185 | BO37: 6405.440672 | BP37: 0 | BQ37: 2135.146891 | BR37: 0 | BS37: 4270.293781 | BT37: 14946.02823 | BU37: 121214.9876 | BV37: 159403.4391 | BW37: 0 | BX37: 292185.012 | BY37: 0 | BZ37: 35422.98646 | CA37: 53134.47969 | CB37: 0 | CC37: 0 | CD37: 0 | CE37: 0 | CF37: 0 | CG37: 0 | CH37: 0 | CI37: 0 | CJ37: 0 | CK37: 0 | CL37: 0 | CM37: 0 | CN37: 0 | CO37: 0 | CP37: 0 | CQ37: 0 | CR37: 0 | CS37: 0 | CT37: 0 | CU37: 0 | CV37: 0 | CW37: 0 | CX37: 0 | CY37: 0 | CZ37: 0 | DA37: 0 | DB37: 0 | DC37: 0 | DD37: 0 | DE37: 0 | DF37: 0 | DG37: 0 | DH37: 0 | DI37: 0 | DJ37: 0 | DK37: 0 | DL37: 0 | DM37: 0 | DN37: 0 | DO37: 0 | DP37: 0 | DQ37: 0 | DR37: 0 | DS37: 0 | DT37: 0 | DU37: 0 | DV37: 0 | DW37: 0 | DX37: 0 | DY37: 0 | DZ37: 0 | EA37: 0 | EB37: 0 | EC37: 0 | ED37: 0 | EE37: 0 | EF37: 0 | EG37: 0 | EH37: 0 | EI37: 0 | EJ37: 0 | EK37: 0 | EL37: 0 | EM37: 0 | EN37: 0 | EO37: 0 | EP37: 0 | EQ37: 0 | ER37: 0 | ES37: 689117.8144 | ET37: 3073.449671 | EU37: 0 | EV37: 1024.483224 | EW37: 0 | EX37: 2048.966448 | EY37: 7171.382566 | EZ37: 58161.20747 | FA37: 76484.73735 | FB37: 0 | FC37: 140195.8078 | FD37: 0 | FE37: 16996.6083 | FF37: 25494.91245 | FG37: 0 | FH37: 0 | FI37: 0 | FJ37: 0 | FK37: 0 | FL37: 0 | FM37: 0 | FN37: 0 | FO37: 0 | FP37: 0 | FQ37: 0 | FR37: 0 | FS37: 0 | FT37: 0 | FU37: 0 | FV37: 0 | FW37: 0 | FX37: 0 | FY37: 0 | FZ37: 0 | GA37: 0 | GB37: 0 | GC37: 0 | GD37: 0 | GE37: 0 | GF37: 0 | GG37: 0 | GH37: 0 | GI37: 0 | GJ37: 0 | GK37: 0 | GL37: 0 | GM37: 0 | GN37: 0 | GO37: 0 | GP37: 0 | GQ37: 0 | GR37: 0 | GS37: 0 | GT37: 0 | GU37: 0 | GV37: 0 | GW37: 0 | GX37: 0 | GY37: 0 | GZ37: 0 | HA37: 0 | HB37: 0 | HC37: 0 | HD37: 0 | HE37: 0 | HF37: 0 | HG37: 0 | HH37: 0 | HI37: 0 | HJ37: 0 | HK37: 0 | HL37: 0 | HM37: 0 | HN37: 0 | HO37: 0 | HP37: 0 | HQ37: 0 | HR37: 0 | HS37: 0 | HT37: 0 | HU37: 0 | HV37: 0 | HW37: 0 | HX37: 330651.5552 | HY37: TRUE | HZ37: TRUE | IA37: 0 | IB37: 0
A38: 1025 | B38: CAPEX | C38: Customer | E38: Standard Control | H38: Customer Initiated Major Works | I38: CMAJC | J38: Customer Initiated Major Works Commercial | K38: D | L38: 2024/25 | M38: 1 | N38: 0 | O38: 952725.113 | Q38: 222556.5855 | R38: 250376.1575 | S38: 162249.0845 | T38: 47636.2585 | U38: 1905.453 | V38: 268001.574 | W38: 4108.43 | Y38: Unit | AD38: CUS | AK38: =IFERROR(IF(AL38="Transmission",VLOOKUP(J38,'INCURRED & COMMISSIONED'!$B:$Z,13,FALSE),""),"") ->  | AL38: Distribution | AM38: Standard Control Services | AN38: Standard Control Services | AO38: Customer Initiated Works | AP38: Customer Initiated Major Works | AQ38: CAPEX | AR38: Network | AS38: Development | AT38: Connection | AU38: =IFERROR($BD38/VLOOKUP("Grand Total",'Raw Data Expenditure analysis '!$A$5:$M$17,MATCH($L38,'Raw Data Expenditure analysis '!$A$5:$M$5,0),FALSE),0) -> 0.004095798965 | AV38: =IFERROR(IF(B38="Capex",$W38/VLOOKUP($AM38,'Raw Data Hrs analysis'!$A$33:$M$42,MATCH($L38,'Raw Data Hrs analysis'!$A$34:$M$34,0),FALSE),0),0) -> 0.01528010507 | AW38: 0 | AX38: =IFERROR(IF(B38="Opex",$BD38/VLOOKUP($AM38,'Raw Data Expenditure analysis '!$B$69:$M$80,MATCH($L38,'Raw Data Expenditure analysis '!$B$69:$M$69,0),FALSE),$BD38/VLOOKUP($AM38,'Raw Data Expenditure analysis '!$B$54:$M$65,MATCH($L38,'Raw Data Expenditure analysis '!$B$54:$M$54,0),FALSE)),0) -> 0.008433371913 | AY38: =IF(Inputs!$C$203=Inputs!$Q$204,((Q38)*(HLOOKUP($L38,Inputs!$E$208:$R$210,3,FALSE))),(Q38)) -> 224742.9836 | AZ38: =IF(Inputs!$C$203=Inputs!$Q$204,((R38)*(HLOOKUP($L38,Inputs!$E$214:$R$216,3,FALSE))),(R38)) -> 250376.1575 | BA38: =IF(Inputs!$C$203=Inputs!$Q$204,((S38)*(HLOOKUP($L38,Inputs!$E$220:$R$222,3,FALSE))),(S38)) -> 162249.0845 | BB38: =IF(Inputs!$C$203=Inputs!$Q$204,((T38)*(HLOOKUP($L38,Inputs!$E$226:$R$228,3,FALSE))),(T38)) -> 47636.2585 | BC38: =IF(Inputs!$C$203=Inputs!$Q$204,((U38)*(HLOOKUP($L38,Inputs!$E$226:$R$228,3,FALSE))),(U38)) -> 1905.453 | BD38: 686909.9371 | BE38: =IFERROR(IF(B38="Opex",0,VLOOKUP($AM38,Inputs!$B$46:$R$54,MATCH(L38,Inputs!$B$46:$R$46,0),FALSE)*AV38),0) -> 144953.4715 | BF38: =IFERROR(IF(B38="Opex",0,VLOOKUP($AM38,Inputs!$B$101:$R$111,MATCH(L38,Inputs!$B$63:$R$63,0),FALSE))*AX38,0) -> 201054.6306 | BG38: 346008.1021 | BH38: 1032918.039 | BI38: =IFERROR(IF(B38="Opex",0,VLOOKUP($AM38,Inputs!$B$173:$R$181,MATCH(L38,Inputs!$B$123:$R$123,0),FALSE)*AX38),0) -> 332938.3059 | BJ38: 1365856.345 | BK38: Distribution - CAPEX | BL38: =(($BD38)*(HLOOKUP($BL$1,Inputs!$B$32:$R$37,MATCH($BM$1,Inputs!$B$32:$B$37,0),FALSE))) -> 720980.8417 | BM38: =(($BG38)*(HLOOKUP($BL$1,Inputs!$B$32:$R$37,MATCH($BM$1,Inputs!$B$32:$B$37,0),FALSE))) -> 363170.1904 | BN38: 1084151.032 | BO38: 6384.918162 | BP38: 0 | BQ38: 2128.306054 | BR38: 0 | BS38: 4256.612108 | BT38: 14898.14238 | BU38: 120826.6247 | BV38: 158892.7234 | BW38: 0 | BX38: 291248.8751 | BY38: 0 | BZ38: 35309.4941 | CA38: 52964.24115 | CB38: 0 | CC38: 0 | CD38: 0 | CE38: 0 | CF38: 0 | CG38: 0 | CH38: 0 | CI38: 0 | CJ38: 0 | CK38: 0 | CL38: 0 | CM38: 0 | CN38: 0 | CO38: 0 | CP38: 0 | CQ38: 0 | CR38: 0 | CS38: 0 | CT38: 0 | CU38: 0 | CV38: 0 | CW38: 0 | CX38: 0 | CY38: 0 | CZ38: 0 | DA38: 0 | DB38: 0 | DC38: 0 | DD38: 0 | DE38: 0 | DF38: 0 | DG38: 0 | DH38: 0 | DI38: 0 | DJ38: 0 | DK38: 0 | DL38: 0 | DM38: 0 | DN38: 0 | DO38: 0 | DP38: 0 | DQ38: 0 | DR38: 0 | DS38: 0 | DT38: 0 | DU38: 0 | DV38: 0 | DW38: 0 | DX38: 0 | DY38: 0 | DZ38: 0 | EA38: 0 | EB38: 0 | EC38: 0 | ED38: 0 | EE38: 0 | EF38: 0 | EG38: 0 | EH38: 0 | EI38: 0 | EJ38: 0 | EK38: 0 | EL38: 0 | EM38: 0 | EN38: 0 | EO38: 0 | EP38: 0 | EQ38: 0 | ER38: 0 | ES38: 686909.9371 | ET38: 3216.190793 | EU38: 0 | EV38: 1072.063598 | EW38: 0 | EX38: 2144.127195 | EY38: 7504.445183 | EZ38: 60862.40543 | FA38: 80036.94037 | FB38: 0 | FC38: 146706.9626 | FD38: 0 | FE38: 17785.98675 | FF38: 26678.98012 | FG38: 0 | FH38: 0 | FI38: 0 | FJ38: 0 | FK38: 0 | FL38: 0 | FM38: 0 | FN38: 0 | FO38: 0 | FP38: 0 | FQ38: 0 | FR38: 0 | FS38: 0 | FT38: 0 | FU38: 0 | FV38: 0 | FW38: 0 | FX38: 0 | FY38: 0 | FZ38: 0 | GA38: 0 | GB38: 0 | GC38: 0 | GD38: 0 | GE38: 0 | GF38: 0 | GG38: 0 | GH38: 0 | GI38: 0 | GJ38: 0 | GK38: 0 | GL38: 0 | GM38: 0 | GN38: 0 | GO38: 0 | GP38: 0 | GQ38: 0 | GR38: 0 | GS38: 0 | GT38: 0 | GU38: 0 | GV38: 0 | GW38: 0 | GX38: 0 | GY38: 0 | GZ38: 0 | HA38: 0 | HB38: 0 | HC38: 0 | HD38: 0 | HE38: 0 | HF38: 0 | HG38: 0 | HH38: 0 | HI38: 0 | HJ38: 0 | HK38: 0 | HL38: 0 | HM38: 0 | HN38: 0 | HO38: 0 | HP38: 0 | HQ38: 0 | HR38: 0 | HS38: 0 | HT38: 0 | HU38: 0 | HV38: 0 | HW38: 0 | HX38: 346008.1021 | HY38: TRUE | HZ38: TRUE | IA38: 0 | IB38: 0
A39: 1025 | B39: CAPEX | C39: Customer | E39: Standard Control | H39: Customer Initiated Major Works | I39: CMAJC | J39: Customer Initiated Major Works Commercial | K39: D | L39: 2025/26 | M39: 1 | N39: 0 | O39: 952725.113 | Q39: 222556.5855 | R39: 250376.1575 | S39: 162249.0845 | T39: 47636.2585 | U39: 1905.453 | V39: 268001.574 | W39: 4108.43 | Y39: Unit | AD39: CUS | AK39: =IFERROR(IF(AL39="Transmission",VLOOKUP(J39,'INCURRED & COMMISSIONED'!$B:$Z,13,FALSE),""),"") ->  | AL39: Distribution | AM39: Standard Control Services | AN39: Standard Control Services | AO39: Customer Initiated Works | AP39: Customer Initiated Major Works | AQ39: CAPEX | AR39: Network | AS39: Development | AT39: Connection | AU39: =IFERROR($BD39/VLOOKUP("Grand Total",'Raw Data Expenditure analysis '!$A$5:$M$17,MATCH($L39,'Raw Data Expenditure analysis '!$A$5:$M$5,0),FALSE),0) -> 0.004489865389 | AV39: =IFERROR(IF(B39="Capex",$W39/VLOOKUP($AM39,'Raw Data Hrs analysis'!$A$33:$M$42,MATCH($L39,'Raw Data Hrs analysis'!$A$34:$M$34,0),FALSE),0),0) -> 0.01494715435 | AW39: 0 | AX39: =IFERROR(IF(B39="Opex",$BD39/VLOOKUP($AM39,'Raw Data Expenditure analysis '!$B$69:$M$80,MATCH($L39,'Raw Data Expenditure analysis '!$B$69:$M$69,0),FALSE),$BD39/VLOOKUP($AM39,'Raw Data Expenditure analysis '!$B$54:$M$65,MATCH($L39,'Raw Data Expenditure analysis '!$B$54:$M$54,0),FALSE)),0) -> 0.008475889785 | AY39: =IF(Inputs!$C$203=Inputs!$Q$204,((Q39)*(HLOOKUP($L39,Inputs!$E$208:$R$210,3,FALSE))),(Q39)) -> 225844.2242 | AZ39: =IF(Inputs!$C$203=Inputs!$Q$204,((R39)*(HLOOKUP($L39,Inputs!$E$214:$R$216,3,FALSE))),(R39)) -> 250376.1575 | BA39: =IF(Inputs!$C$203=Inputs!$Q$204,((S39)*(HLOOKUP($L39,Inputs!$E$220:$R$222,3,FALSE))),(S39)) -> 162249.0845 | BB39: =IF(Inputs!$C$203=Inputs!$Q$204,((T39)*(HLOOKUP($L39,Inputs!$E$226:$R$228,3,FALSE))),(T39)) -> 47636.2585 | BC39: =IF(Inputs!$C$203=Inputs!$Q$204,((U39)*(HLOOKUP($L39,Inputs!$E$226:$R$228,3,FALSE))),(U39)) -> 1905.453 | BD39: 688011.1777 | BE39: =IFERROR(IF(B39="Opex",0,VLOOKUP($AM39,Inputs!$B$46:$R$54,MATCH(L39,Inputs!$B$46:$R$46,0),FALSE)*AV39),0) -> 141794.9616 | BF39: =IFERROR(IF(B39="Opex",0,VLOOKUP($AM39,Inputs!$B$101:$R$111,MATCH(L39,Inputs!$B$63:$R$63,0),FALSE))*AX39,0) -> 202068.272 | BG39: 343863.2336 | BH39: 1031874.411 | BI39: =IFERROR(IF(B39="Opex",0,VLOOKUP($AM39,Inputs!$B$173:$R$181,MATCH(L39,Inputs!$B$123:$R$123,0),FALSE)*AX39),0) -> 281560.9968 | BJ39: 1313435.408 | BK39: Distribution - CAPEX | BL39: =(($BD39)*(HLOOKUP($BL$1,Inputs!$B$32:$R$37,MATCH($BM$1,Inputs!$B$32:$B$37,0),FALSE))) -> 722136.7042 | BM39: =(($BG39)*(HLOOKUP($BL$1,Inputs!$B$32:$R$37,MATCH($BM$1,Inputs!$B$32:$B$37,0),FALSE))) -> 360918.936 | BN39: 1083055.64 | BO39: 6395.154338 | BP39: 0 | BQ39: 2131.718113 | BR39: 0 | BS39: 4263.436226 | BT39: 14922.02679 | BU39: 121020.3316 | BV39: 159147.4572 | BW39: 0 | BX39: 291715.7996 | BY39: 0 | BZ39: 35366.10159 | CA39: 53049.15239 | CB39: 0 | CC39: 0 | CD39: 0 | CE39: 0 | CF39: 0 | CG39: 0 | CH39: 0 | CI39: 0 | CJ39: 0 | CK39: 0 | CL39: 0 | CM39: 0 | CN39: 0 | CO39: 0 | CP39: 0 | CQ39: 0 | CR39: 0 | CS39: 0 | CT39: 0 | CU39: 0 | CV39: 0 | CW39: 0 | CX39: 0 | CY39: 0 | CZ39: 0 | DA39: 0 | DB39: 0 | DC39: 0 | DD39: 0 | DE39: 0 | DF39: 0 | DG39: 0 | DH39: 0 | DI39: 0 | DJ39: 0 | DK39: 0 | DL39: 0 | DM39: 0 | DN39: 0 | DO39: 0 | DP39: 0 | DQ39: 0 | DR39: 0 | DS39: 0 | DT39: 0 | DU39: 0 | DV39: 0 | DW39: 0 | DX39: 0 | DY39: 0 | DZ39: 0 | EA39: 0 | EB39: 0 | EC39: 0 | ED39: 0 | EE39: 0 | EF39: 0 | EG39: 0 | EH39: 0 | EI39: 0 | EJ39: 0 | EK39: 0 | EL39: 0 | EM39: 0 | EN39: 0 | EO39: 0 | EP39: 0 | EQ39: 0 | ER39: 0 | ES39: 688011.1777 | ET39: 3196.253959 | EU39: 0 | EV39: 1065.417986 | EW39: 0 | EX39: 2130.835972 | EY39: 7457.925903 | EZ39: 60485.12567 | FA39: 79540.79965 | FB39: 0 | FC39: 145797.5414 | FD39: 0 | FE39: 17675.73325 | FF39: 26513.59988 | FG39: 0 | FH39: 0 | FI39: 0 | FJ39: 0 | FK39: 0 | FL39: 0 | FM39: 0 | FN39: 0 | FO39: 0 | FP39: 0 | FQ39: 0 | FR39: 0 | FS39: 0 | FT39: 0 | FU39: 0 | FV39: 0 | FW39: 0 | FX39: 0 | FY39: 0 | FZ39: 0 | GA39: 0 | GB39: 0 | GC39: 0 | GD39: 0 | GE39: 0 | GF39: 0 | GG39: 0 | GH39: 0 | GI39: 0 | GJ39: 0 | GK39: 0 | GL39: 0 | GM39: 0 | GN39: 0 | GO39: 0 | GP39: 0 | GQ39: 0 | GR39: 0 | GS39: 0 | GT39: 0 | GU39: 0 | GV39: 0 | GW39: 0 | GX39: 0 | GY39: 0 | GZ39: 0 | HA39: 0 | HB39: 0 | HC39: 0 | HD39: 0 | HE39: 0 | HF39: 0 | HG39: 0 | HH39: 0 | HI39: 0 | HJ39: 0 | HK39: 0 | HL39: 0 | HM39: 0 | HN39: 0 | HO39: 0 | HP39: 0 | HQ39: 0 | HR39: 0 | HS39: 0 | HT39: 0 | HU39: 0 | HV39: 0 | HW39: 0 | HX39: 343863.2336 | HY39: TRUE | HZ39: TRUE | IA39: 0 | IB39: 0
A40: 1025 | B40: CAPEX | C40: Customer | E40: Standard Control | H40: Customer Initiated Major Works | I40: CMAJC | J40: Customer Initiated Major Works Commercial | K40: D | L40: 2026/27 | M40: 1 | N40: 0 | O40: 952725.113 | Q40: 222556.5855 | R40: 250376.1575 | S40: 162249.0845 | T40: 47636.2585 | U40: 1905.453 | V40: 268001.574 | W40: 4108.43 | Y40: Unit | AD40: CUS | AK40: =IFERROR(IF(AL40="Transmission",VLOOKUP(J40,'INCURRED & COMMISSIONED'!$B:$Z,13,FALSE),""),"") ->  | AL40: Distribution | AM40: Standard Control Services | AN40: Standard Control Services | AO40: Customer Initiated Works | AP40: Customer Initiated Major Works | AQ40: CAPEX | AR40: Network | AS40: Development | AT40: Connection | AU40: =IFERROR($BD40/VLOOKUP("Grand Total",'Raw Data Expenditure analysis '!$A$5:$M$17,MATCH($L40,'Raw Data Expenditure analysis '!$A$5:$M$5,0),FALSE),0) -> 0.00473006852 | AV40: =IFERROR(IF(B40="Capex",$W40/VLOOKUP($AM40,'Raw Data Hrs analysis'!$A$33:$M$42,MATCH($L40,'Raw Data Hrs analysis'!$A$34:$M$34,0),FALSE),0),0) -> 0.0149631015 | AW40: 0 | AX40: =IFERROR(IF(B40="Opex",$BD40/VLOOKUP($AM40,'Raw Data Expenditure analysis '!$B$69:$M$80,MATCH($L40,'Raw Data Expenditure analysis '!$B$69:$M$69,0),FALSE),$BD40/VLOOKUP($AM40,'Raw Data Expenditure analysis '!$B$54:$M$65,MATCH($L40,'Raw Data Expenditure analysis '!$B$54:$M$54,0),FALSE)),0) -> 0.0084191575 | AY40: =IF(Inputs!$C$203=Inputs!$Q$204,((Q40)*(HLOOKUP($L40,Inputs!$E$208:$R$210,3,FALSE))),(Q40)) -> 226950.8609 | AZ40: =IF(Inputs!$C$203=Inputs!$Q$204,((R40)*(HLOOKUP($L40,Inputs!$E$214:$R$216,3,FALSE))),(R40)) -> 250376.1575 | BA40: =IF(Inputs!$C$203=Inputs!$Q$204,((S40)*(HLOOKUP($L40,Inputs!$E$220:$R$222,3,FALSE))),(S40)) -> 162249.0845 | BB40: =IF(Inputs!$C$203=Inputs!$Q$204,((T40)*(HLOOKUP($L40,Inputs!$E$226:$R$228,3,FALSE))),(T40)) -> 47636.2585 | BC40: =IF(Inputs!$C$203=Inputs!$Q$204,((U40)*(HLOOKUP($L40,Inputs!$E$226:$R$228,3,FALSE))),(U40)) -> 1905.453 | BD40: 689117.8144 | BE40: =IFERROR(IF(B40="Opex",0,VLOOKUP($AM40,Inputs!$B$46:$R$54,MATCH(L40,Inputs!$B$46:$R$46,0),FALSE)*AV40),0) -> 141946.2429 | BF40: =IFERROR(IF(B40="Opex",0,VLOOKUP($AM40,Inputs!$B$101:$R$111,MATCH(L40,Inputs!$B$63:$R$63,0),FALSE))*AX40,0) -> 200715.7539 | BG40: 342661.9968 | BH40: 1031779.811 | BI40: =IFERROR(IF(B40="Opex",0,VLOOKUP($AM40,Inputs!$B$173:$R$181,MATCH(L40,Inputs!$B$123:$R$123,0),FALSE)*AX40),0) -> 167804.4032 | BJ40: 1199584.214 | BK40: Distribution - CAPEX | BL40: =(($BD40)*(HLOOKUP($BL$1,Inputs!$B$32:$R$37,MATCH($BM$1,Inputs!$B$32:$B$37,0),FALSE))) -> 723298.2303 | BM40: =(($BG40)*(HLOOKUP($BL$1,Inputs!$B$32:$R$37,MATCH($BM$1,Inputs!$B$32:$B$37,0),FALSE))) -> 359658.1175 | BN40: 1082956.348 | BO40: 6405.440672 | BP40: 0 | BQ40: 2135.146891 | BR40: 0 | BS40: 4270.293781 | BT40: 14946.02823 | BU40: 121214.9876 | BV40: 159403.4391 | BW40: 0 | BX40: 292185.012 | BY40: 0 | BZ40: 35422.98646 | CA40: 53134.47969 | CB40: 0 | CC40: 0 | CD40: 0 | CE40: 0 | CF40: 0 | CG40: 0 | CH40: 0 | CI40: 0 | CJ40: 0 | CK40: 0 | CL40: 0 | CM40: 0 | CN40: 0 | CO40: 0 | CP40: 0 | CQ40: 0 | CR40: 0 | CS40: 0 | CT40: 0 | CU40: 0 | CV40: 0 | CW40: 0 | CX40: 0 | CY40: 0 | CZ40: 0 | DA40: 0 | DB40: 0 | DC40: 0 | DD40: 0 | DE40: 0 | DF40: 0 | DG40: 0 | DH40: 0 | DI40: 0 | DJ40: 0 | DK40: 0 | DL40: 0 | DM40: 0 | DN40: 0 | DO40: 0 | DP40: 0 | DQ40: 0 | DR40: 0 | DS40: 0 | DT40: 0 | DU40: 0 | DV40: 0 | DW40: 0 | DX40: 0 | DY40: 0 | DZ40: 0 | EA40: 0 | EB40: 0 | EC40: 0 | ED40: 0 | EE40: 0 | EF40: 0 | EG40: 0 | EH40: 0 | EI40: 0 | EJ40: 0 | EK40: 0 | EL40: 0 | EM40: 0 | EN40: 0 | EO40: 0 | EP40: 0 | EQ40: 0 | ER40: 0 | ES40: 689117.8144 | ET40: 3185.088304 | EU40: 0 | EV40: 1061.696101 | EW40: 0 | EX40: 2123.392203 | EY40: 7431.872709 | EZ40: 60273.82956 | FA40: 79262.93528 | FB40: 0 | FC40: 145288.2186 | FD40: 0 | FE40: 17613.98562 | FF40: 26420.97843 | FG40: 0 | FH40: 0 | FI40: 0 | FJ40: 0 | FK40: 0 | FL40: 0 | FM40: 0 | FN40: 0 | FO40: 0 | FP40: 0 | FQ40: 0 | FR40: 0 | FS40: 0 | FT40: 0 | FU40: 0 | FV40: 0 | FW40: 0 | FX40: 0 | FY40: 0 | FZ40: 0 | GA40: 0 | GB40: 0 | GC40: 0 | GD40: 0 | GE40: 0 | GF40: 0 | GG40: 0 | GH40: 0 | GI40: 0 | GJ40: 0 | GK40: 0 | GL40: 0 | GM40: 0 | GN40: 0 | GO40: 0 | GP40: 0 | GQ40: 0 | GR40: 0 | GS40: 0 | GT40: 0 | GU40: 0 | GV40: 0 | GW40: 0 | GX40: 0 | GY40: 0 | GZ40: 0 | HA40: 0 | HB40: 0 | HC40: 0 | HD40: 0 | HE40: 0 | HF40: 0 | HG40: 0 | HH40: 0 | HI40: 0 | HJ40: 0 | HK40: 0 | HL40: 0 | HM40: 0 | HN40: 0 | HO40: 0 | HP40: 0 | HQ40: 0 | HR40: 0 | HS40: 0 | HT40: 0 | HU40: 0 | HV40: 0 | HW40: 0 | HX40: 342661.9968 | HY40: TRUE | HZ40: TRUE | IA40: 0 | IB40: 0
A41: 1025 | B41: CAPEX | C41: Customer | E41: Standard Control | H41: Customer Initiated Major Works | I41: CMAJC | J41: Customer Initiated Major Works Commercial | K41: D | L41: 2027/28 | M41: 1 | N41: 0 | O41: 952725.113 | Q41: 222556.5855 | R41: 250376.1575 | S41: 162249.0845 | T41: 47636.2585 | U41: 1905.453 | V41: 268001.574 | W41: 4108.43 | Y41: Unit | AD41: CUS | AK41: =IFERROR(IF(AL41="Transmission",VLOOKUP(J41,'INCURRED & COMMISSIONED'!$B:$Z,13,FALSE),""),"") ->  | AL41: Distribution | AM41: Standard Control Services | AN41: Standard Control Services | AO41: Customer Initiated Works | AP41: Customer Initiated Major Works | AQ41: CAPEX | AR41: Network | AS41: Development | AT41: Connection | AU41: =IFERROR($BD41/VLOOKUP("Grand Total",'Raw Data Expenditure analysis '!$A$5:$M$17,MATCH($L41,'Raw Data Expenditure analysis '!$A$5:$M$5,0),FALSE),0) -> 0.004351941577 | AV41: =IFERROR(IF(B41="Capex",$W41/VLOOKUP($AM41,'Raw Data Hrs analysis'!$A$33:$M$42,MATCH($L41,'Raw Data Hrs analysis'!$A$34:$M$34,0),FALSE),0),0) -> 0.01476954392 | AW41: 0 | AX41: =IFERROR(IF(B41="Opex",$BD41/VLOOKUP($AM41,'Raw Data Expenditure analysis '!$B$69:$M$80,MATCH($L41,'Raw Data Expenditure analysis '!$B$69:$M$69,0),FALSE),$BD41/VLOOKUP($AM41,'Raw Data Expenditure analysis '!$B$54:$M$65,MATCH($L41,'Raw Data Expenditure analysis '!$B$54:$M$54,0),FALSE)),0) -> 0.008429486287 | AY41: =IF(Inputs!$C$203=Inputs!$Q$204,((Q41)*(HLOOKUP($L41,Inputs!$E$208:$R$210,3,FALSE))),(Q41)) -> 224742.9836 | AZ41: =IF(Inputs!$C$203=Inputs!$Q$204,((R41)*(HLOOKUP($L41,Inputs!$E$214:$R$216,3,FALSE))),(R41)) -> 250376.1575 | BA41: =IF(Inputs!$C$203=Inputs!$Q$204,((S41)*(HLOOKUP($L41,Inputs!$E$220:$R$222,3,FALSE))),(S41)) -> 162249.0845 | BB41: =IF(Inputs!$C$203=Inputs!$Q$204,((T41)*(HLOOKUP($L41,Inputs!$E$226:$R$228,3,FALSE))),(T41)) -> 47636.2585 | BC41: =IF(Inputs!$C$203=Inputs!$Q$204,((U41)*(HLOOKUP($L41,Inputs!$E$226:$R$228,3,FALSE))),(U41)) -> 1905.453 | BD41: 686909.9371 | BE41: =IFERROR(IF(B41="Opex",0,VLOOKUP($AM41,Inputs!$B$46:$R$54,MATCH(L41,Inputs!$B$46:$R$46,0),FALSE)*AV41),0) -> 140110.0747 | BF41: =IFERROR(IF(B41="Opex",0,VLOOKUP($AM41,Inputs!$B$101:$R$111,MATCH(L41,Inputs!$B$63:$R$63,0),FALSE))*AX41,0) -> 200961.9958 | BG41: 341072.0706 | BH41: 1027982.008 | BI41: =IFERROR(IF(B41="Opex",0,VLOOKUP($AM41,Inputs!$B$173:$R$181,MATCH(L41,Inputs!$B$123:$R$123,0),FALSE)*AX41),0) -> 209283.0924 | BJ41: 1237265.1 | BK41: Distribution - CAPEX | BL41: =(($BD41)*(HLOOKUP($BL$1,Inputs!$B$32:$R$37,MATCH($BM$1,Inputs!$B$32:$B$37,0),FALSE))) -> 720980.8417 | BM41: =(($BG41)*(HLOOKUP($BL$1,Inputs!$B$32:$R$37,MATCH($BM$1,Inputs!$B$32:$B$37,0),FALSE))) -> 357989.3305 | BN41: 1078970.172 | BO41: 6384.918162 | BP41: 0 | BQ41: 2128.306054 | BR41: 0 | BS41: 4256.612108 | BT41: 14898.14238 | BU41: 120826.6247 | BV41: 158892.7234 | BW41: 0 | BX41: 291248.8751 | BY41: 0 | BZ41: 35309.4941 | CA41: 52964.24115 | CB41: 0 | CC41: 0 | CD41: 0 | CE41: 0 | CF41: 0 | CG41: 0 | CH41: 0 | CI41: 0 | CJ41: 0 | CK41: 0 | CL41: 0 | CM41: 0 | CN41: 0 | CO41: 0 | CP41: 0 | CQ41: 0 | CR41: 0 | CS41: 0 | CT41: 0 | CU41: 0 | CV41: 0 | CW41: 0 | CX41: 0 | CY41: 0 | CZ41: 0 | DA41: 0 | DB41: 0 | DC41: 0 | DD41: 0 | DE41: 0 | DF41: 0 | DG41: 0 | DH41: 0 | DI41: 0 | DJ41: 0 | DK41: 0 | DL41: 0 | DM41: 0 | DN41: 0 | DO41: 0 | DP41: 0 | DQ41: 0 | DR41: 0 | DS41: 0 | DT41: 0 | DU41: 0 | DV41: 0 | DW41: 0 | DX41: 0 | DY41: 0 | DZ41: 0 | EA41: 0 | EB41: 0 | EC41: 0 | ED41: 0 | EE41: 0 | EF41: 0 | EG41: 0 | EH41: 0 | EI41: 0 | EJ41: 0 | EK41: 0 | EL41: 0 | EM41: 0 | EN41: 0 | EO41: 0 | EP41: 0 | EQ41: 0 | ER41: 0 | ES41: 686909.9371 | ET41: 3170.309731 | EU41: 0 | EV41: 1056.76991 | EW41: 0 | EX41: 2113.539821 | EY41: 7397.389372 | EZ41: 59994.16347 | FA41: 78895.16115 | FB41: 0 | FC41: 144614.092 | FD41: 0 | FE41: 17532.25803 | FF41: 26298.38705 | FG41: 0 | FH41: 0 | FI41: 0 | FJ41: 0 | FK41: 0 | FL41: 0 | FM41: 0 | FN41: 0 | FO41: 0 | FP41: 0 | FQ41: 0 | FR41: 0 | FS41: 0 | FT41: 0 | FU41: 0 | FV41: 0 | FW41: 0 | FX41: 0 | FY41: 0 | FZ41: 0 | GA41: 0 | GB41: 0 | GC41: 0 | GD41: 0 | GE41: 0 | GF41: 0 | GG41: 0 | GH41: 0 | GI41: 0 | GJ41: 0 | GK41: 0 | GL41: 0 | GM41: 0 | GN41: 0 | GO41: 0 | GP41: 0 | GQ41: 0 | GR41: 0 | GS41: 0 | GT41: 0 | GU41: 0 | GV41: 0 | GW41: 0 | GX41: 0 | GY41: 0 | GZ41: 0 | HA41: 0 | HB41: 0 | HC41: 0 | HD41: 0 | HE41: 0 | HF41: 0 | HG41: 0 | HH41: 0 | HI41: 0 | HJ41: 0 | HK41: 0 | HL41: 0 | HM41: 0 | HN41: 0 | HO41: 0 | HP41: 0 | HQ41: 0 | HR41: 0 | HS41: 0 | HT41: 0 | HU41: 0 | HV41: 0 | HW41: 0 | HX41: 341072.0706 | HY41: TRUE | HZ41: TRUE | IA41: 0 | IB41: 0
A42: 1025 | B42: CAPEX | C42: Customer | E42: Standard Control | H42: Customer Initiated Major Works | I42: CMAJC | J42: Customer Initiated Major Works Commercial | K42: D | L42: 2028/29 | M42: 1 | N42: 0 | O42: 952725.113 | Q42: 222556.5855 | R42: 250376.1575 | S42: 162249.0845 | T42: 47636.2585 | U42: 1905.453 | V42: 268001.574 | W42: 4108.43 | Y42: Unit | AD42: CUS | AK42: =IFERROR(IF(AL42="Transmission",VLOOKUP(J42,'INCURRED & COMMISSIONED'!$B:$Z,13,FALSE),""),"") ->  | AL42: Distribution | AM42: Standard Control Services | AN42: Standard Control Services | AO42: Customer Initiated Works | AP42: Customer Initiated Major Works | AQ42: CAPEX | AR42: Network | AS42: Development | AT42: Connection | AU42: =IFERROR($BD42/VLOOKUP("Grand Total",'Raw Data Expenditure analysis '!$A$5:$M$17,MATCH($L42,'Raw Data Expenditure analysis '!$A$5:$M$5,0),FALSE),0) -> 0.004726963937 | AV42: =IFERROR(IF(B42="Capex",$W42/VLOOKUP($AM42,'Raw Data Hrs analysis'!$A$33:$M$42,MATCH($L42,'Raw Data Hrs analysis'!$A$34:$M$34,0),FALSE),0),0) -> 0.01363428679 | AW42: 0 | AX42: =IFERROR(IF(B42="Opex",$BD42/VLOOKUP($AM42,'Raw Data Expenditure analysis '!$B$69:$M$80,MATCH($L42,'Raw Data Expenditure analysis '!$B$69:$M$69,0),FALSE),$BD42/VLOOKUP($AM42,'Raw Data Expenditure analysis '!$B$54:$M$65,MATCH($L42,'Raw Data Expenditure analysis '!$B$54:$M$54,0),FALSE)),0) -> 0.008311065005 | AY42: =IF(Inputs!$C$203=Inputs!$Q$204,((Q42)*(HLOOKUP($L42,Inputs!$E$208:$R$210,3,FALSE))),(Q42)) -> 225844.2242 | AZ42: =IF(Inputs!$C$203=Inputs!$Q$204,((R42)*(HLOOKUP($L42,Inputs!$E$214:$R$216,3,FALSE))),(R42)) -> 250376.1575 | BA42: =IF(Inputs!$C$203=Inputs!$Q$204,((S42)*(HLOOKUP($L42,Inputs!$E$220:$R$222,3,FALSE))),(S42)) -> 162249.0845 | BB42: =IF(Inputs!$C$203=Inputs!$Q$204,((T42)*(HLOOKUP($L42,Inputs!$E$226:$R$228,3,FALSE))),(T42)) -> 47636.2585 | BC42: =IF(Inputs!$C$203=Inputs!$Q$204,((U42)*(HLOOKUP($L42,Inputs!$E$226:$R$228,3,FALSE))),(U42)) -> 1905.453 | BD42: 688011.1777 | BE42: =IFERROR(IF(B42="Opex",0,VLOOKUP($AM42,Inputs!$B$46:$R$54,MATCH(L42,Inputs!$B$46:$R$46,0),FALSE)*AV42),0) -> 129340.5505 | BF42: =IFERROR(IF(B42="Opex",0,VLOOKUP($AM42,Inputs!$B$101:$R$111,MATCH(L42,Inputs!$B$63:$R$63,0),FALSE))*AX42,0) -> 198138.7898 | BG42: 327479.3402 | BH42: 1015490.518 | BI42: =IFERROR(IF(B42="Opex",0,VLOOKUP($AM42,Inputs!$B$173:$R$181,MATCH(L42,Inputs!$B$123:$R$123,0),FALSE)*AX42),0) -> 186872.0972 | BJ42: 1202362.615 | BK42: Distribution - CAPEX | BL42: =(($BD42)*(HLOOKUP($BL$1,Inputs!$B$32:$R$37,MATCH($BM$1,Inputs!$B$32:$B$37,0),FALSE))) -> 722136.7042 | BM42: =(($BG42)*(HLOOKUP($BL$1,Inputs!$B$32:$R$37,MATCH($BM$1,Inputs!$B$32:$B$37,0),FALSE))) -> 343722.3974 | BN42: 1065859.102 | BO42: 6395.154338 | BP42: 0 | BQ42: 2131.718113 | BR42: 0 | BS42: 4263.436226 | BT42: 14922.02679 | BU42: 121020.3316 | BV42: 159147.4572 | BW42: 0 | BX42: 291715.7996 | BY42: 0 | BZ42: 35366.10159 | CA42: 53049.15239 | CB42: 0 | CC42: 0 | CD42: 0 | CE42: 0 | CF42: 0 | CG42: 0 | CH42: 0 | CI42: 0 | CJ42: 0 | CK42: 0 | CL42: 0 | CM42: 0 | CN42: 0 | CO42: 0 | CP42: 0 | CQ42: 0 | CR42: 0 | CS42: 0 | CT42: 0 | CU42: 0 | CV42: 0 | CW42: 0 | CX42: 0 | CY42: 0 | CZ42: 0 | DA42: 0 | DB42: 0 | DC42: 0 | DD42: 0 | DE42: 0 | DF42: 0 | DG42: 0 | DH42: 0 | DI42: 0 | DJ42: 0 | DK42: 0 | DL42: 0 | DM42: 0 | DN42: 0 | DO42: 0 | DP42: 0 | DQ42: 0 | DR42: 0 | DS42: 0 | DT42: 0 | DU42: 0 | DV42: 0 | DW42: 0 | DX42: 0 | DY42: 0 | DZ42: 0 | EA42: 0 | EB42: 0 | EC42: 0 | ED42: 0 | EE42: 0 | EF42: 0 | EG42: 0 | EH42: 0 | EI42: 0 | EJ42: 0 | EK42: 0 | EL42: 0 | EM42: 0 | EN42: 0 | EO42: 0 | EP42: 0 | EQ42: 0 | ER42: 0 | ES42: 688011.1777 | ET42: 3043.963516 | EU42: 0 | EV42: 1014.654505 | EW42: 0 | EX42: 2029.309011 | EY42: 7102.581537 | EZ42: 57603.2187 | FA42: 75750.95574 | FB42: 0 | FC42: 138850.7929 | FD42: 0 | FE42: 16833.54572 | FF42: 25250.31858 | FG42: 0 | FH42: 0 | FI42: 0 | FJ42: 0 | FK42: 0 | FL42: 0 | FM42: 0 | FN42: 0 | FO42: 0 | FP42: 0 | FQ42: 0 | FR42: 0 | FS42: 0 | FT42: 0 | FU42: 0 | FV42: 0 | FW42: 0 | FX42: 0 | FY42: 0 | FZ42: 0 | GA42: 0 | GB42: 0 | GC42: 0 | GD42: 0 | GE42: 0 | GF42: 0 | GG42: 0 | GH42: 0 | GI42: 0 | GJ42: 0 | GK42: 0 | GL42: 0 | GM42: 0 | GN42: 0 | GO42: 0 | GP42: 0 | GQ42: 0 | GR42: 0 | GS42: 0 | GT42: 0 | GU42: 0 | GV42: 0 | GW42: 0 | GX42: 0 | GY42: 0 | GZ42: 0 | HA42: 0 | HB42: 0 | HC42: 0 | HD42: 0 | HE42: 0 | HF42: 0 | HG42: 0 | HH42: 0 | HI42: 0 | HJ42: 0 | HK42: 0 | HL42: 0 | HM42: 0 | HN42: 0 | HO42: 0 | HP42: 0 | HQ42: 0 | HR42: 0 | HS42: 0 | HT42: 0 | HU42: 0 | HV42: 0 | HW42: 0 | HX42: 327479.3402 | HY42: TRUE | HZ42: TRUE | IA42: 0 | IB42: 0
A43: 1026 | B43: CAPEX | C43: Customer | E43: Standard Control | H43: CCustomer Initiated Substations | I43: CSUBC | J43: Customer Initiated Substations | K43: D | L43: 2019/20 | M43: 1 | N43: 0 | O43: 1113638.82 | Q43: 136754.8465 | R43: 653037.809 | S43: 142100.316 | T43: 16481.854 | U43: 2227.275 | V43: 163036.72 | W43: 2311.13 | Y43: Unit | AD43: CUS | AK43: =IFERROR(IF(AL43="Transmission",VLOOKUP(J43,'INCURRED & COMMISSIONED'!$B:$Z,13,FALSE),""),"") ->  | AL43: Distribution | AM43: Standard Control Services | AN43: Standard Control Services | AO43: Customer Initiated Works | AP43: CCustomer Initiated Substations | AQ43: CAPEX | AR43: Network | AS43: Development | AT43: Connection | AU43: =IFERROR($BD43/VLOOKUP("Grand Total",'Raw Data Expenditure analysis '!$A$5:$M$17,MATCH($L43,'Raw Data Expenditure analysis '!$A$5:$M$5,0),FALSE),0) -> 0.006183126115 | AV43: =IFERROR(IF(B43="Capex",$W43/VLOOKUP($AM43,'Raw Data Hrs analysis'!$A$33:$M$42,MATCH($L43,'Raw Data Hrs analysis'!$A$34:$M$34,0),FALSE),0),0) -> 0.007468224347 | AW43: 0 | AX43: =IFERROR(IF(B43="Opex",$BD43/VLOOKUP($AM43,'Raw Data Expenditure analysis '!$B$69:$M$80,MATCH($L43,'Raw Data Expenditure analysis '!$B$69:$M$69,0),FALSE),$BD43/VLOOKUP($AM43,'Raw Data Expenditure analysis '!$B$54:$M$65,MATCH($L43,'Raw Data Expenditure analysis '!$B$54:$M$54,0),FALSE)),0) -> 0.01040855459 | AY43: =IF(Inputs!$C$203=Inputs!$Q$204,((Q43)*(HLOOKUP($L43,Inputs!$E$208:$R$210,3,FALSE))),(Q43)) -> 136754.8465 | AZ43: =IF(Inputs!$C$203=Inputs!$Q$204,((R43)*(HLOOKUP($L43,Inputs!$E$214:$R$216,3,FALSE))),(R43)) -> 653037.809 | BA43: =IF(Inputs!$C$203=Inputs!$Q$204,((S43)*(HLOOKUP($L43,Inputs!$E$220:$R$222,3,FALSE))),(S43)) -> 142100.316 | BB43: =IF(Inputs!$C$203=Inputs!$Q$204,((T43)*(HLOOKUP($L43,Inputs!$E$226:$R$228,3,FALSE))),(T43)) -> 16481.854 | BC43: =IF(Inputs!$C$203=Inputs!$Q$204,((U43)*(HLOOKUP($L43,Inputs!$E$226:$R$228,3,FALSE))),(U43)) -> 2227.275 | BD43: 950602.1005 | BE43: =IFERROR(IF(B43="Opex",0,VLOOKUP($AM43,Inputs!$B$46:$R$54,MATCH(L43,Inputs!$B$46:$R$46,0),FALSE)*AV43),0) -> 73382.24117 | BF43: =IFERROR(IF(B43="Opex",0,VLOOKUP($AM43,Inputs!$B$101:$R$111,MATCH(L43,Inputs!$B$63:$R$63,0),FALSE))*AX43,0) -> 257024.5377 | BG43: 330406.7789 | BH43: 1281008.879 | BI43: =IFERROR(IF(B43="Opex",0,VLOOKUP($AM43,Inputs!$B$173:$R$181,MATCH(L43,Inputs!$B$123:$R$123,0),FALSE)*AX43),0) -> 284610.9005 | BJ43: 1565619.78 | BK43: Distribution - CAPEX | BL43: =(($BD43)*(HLOOKUP($BL$1,Inputs!$B$32:$R$37,MATCH($BM$1,Inputs!$B$32:$B$37,0),FALSE))) -> 997752.2023 | BM43: =(($BG43)*(HLOOKUP($BL$1,Inputs!$B$32:$R$37,MATCH($BM$1,Inputs!$B$32:$B$37,0),FALSE))) -> 346795.0377 | BN43: 1344547.24 | BO43: 0 | BP43: 0 | BQ43: 0 | BR43: 0 | BS43: 0 | BT43: 0 | BU43: 0 | BV43: 44211.19725 | BW43: 0 | BX43: 171505.51 | BY43: 0 | BZ43: 0 | CA43: 0 | CB43: 0 | CC43: 171505.51 | CD43: 0 | CE43: 22687.11815 | CF43: 0 | CG43: 26176.23528 | CH43: 257258.2649 | CI43: 257258.2649 | CJ43: 0 | CK43: 0 | CL43: 0 | CM43: 0 | CN43: 0 | CO43: 0 | CP43: 0 | CQ43: 0 | CR43: 0 | CS43: 0 | CT43: 0 | CU43: 0 | CV43: 0 | CW43: 0 | CX43: 0 | CY43: 0 | CZ43: 0 | DA43: 0 | DB43: 0 | DC43: 0 | DD43: 0 | DE43: 0 | DF43: 0 | DG43: 0 | DH43: 0 | DI43: 0 | DJ43: 0 | DK43: 0 | DL43: 0 | DM43: 0 | DN43: 0 | DO43: 0 | DP43: 0 | DQ43: 0 | DR43: 0 | DS43: 0 | DT43: 0 | DU43: 0 | DV43: 0 | DW43: 0 | DX43: 0 | DY43: 0 | DZ43: 0 | EA43: 0 | EB43: 0 | EC43: 0 | ED43: 0 | EE43: 0 | EF43: 0 | EG43: 0 | EH43: 0 | EI43: 0 | EJ43: 0 | EK43: 0 | EL43: 0 | EM43: 0 | EN43: 0 | EO43: 0 | EP43: 0 | EQ43: 0 | ER43: 0 | ES43: 950602.1005 | ET43: 0 | EU43: 0 | EV43: 0 | EW43: 0 | EX43: 0 | EY43: 0 | EZ43: 0 | FA43: 15366.7652 | FB43: 0 | FC43: 59611.25383 | FD43: 0 | FE43: 0 | FF43: 0 | FG43: 0 | FH43: 59611.25383 | FI43: 0 | FJ43: 7885.505013 | FK43: 0 | FL43: 9098.239501 | FM43: 89416.88075 | FN43: 89416.88075 | FO43: 0 | FP43: 0 | FQ43: 0 | FR43: 0 | FS43: 0 | FT43: 0 | FU43: 0 | FV43: 0 | FW43: 0 | FX43: 0 | FY43: 0 | FZ43: 0 | GA43: 0 | GB43: 0 | GC43: 0 | GD43: 0 | GE43: 0 | GF43: 0 | GG43: 0 | GH43: 0 | GI43: 0 | GJ43: 0 | GK43: 0 | GL43: 0 | GM43: 0 | GN43: 0 | GO43: 0 | GP43: 0 | GQ43: 0 | GR43: 0 | GS43: 0 | GT43: 0 | GU43: 0 | GV43: 0 | GW43: 0 | GX43: 0 | GY43: 0 | GZ43: 0 | HA43: 0 | HB43: 0 | HC43: 0 | HD43: 0 | HE43: 0 | HF43: 0 | HG43: 0 | HH43: 0 | HI43: 0 | HJ43: 0 | HK43: 0 | HL43: 0 | HM43: 0 | HN43: 0 | HO43: 0 | HP43: 0 | HQ43: 0 | HR43: 0 | HS43: 0 | HT43: 0 | HU43: 0 | HV43: 0 | HW43: 0 | HX43: 330406.7789 | HY43: TRUE | HZ43: TRUE | IA43: 0 | IB43: 0
A44: 1026 | B44: CAPEX | C44: Customer | E44: Standard Control | H44: CCustomer Initiated Substations | I44: CSUBC | J44: Customer Initiated Substations | K44: D | L44: 2020/21 | M44: 1 | N44: 0 | O44: 1113638.82 | Q44: 136754.8465 | R44: 653037.809 | S44: 142100.316 | T44: 16481.854 | U44: 2227.275 | V44: 163036.72 | W44: 2311.13 | Y44: Unit | AD44: CUS | AK44: =IFERROR(IF(AL44="Transmission",VLOOKUP(J44,'INCURRED & COMMISSIONED'!$B:$Z,13,FALSE),""),"") ->  | AL44: Distribution | AM44: Standard Control Services | AN44: Standard Control Services | AO44: Customer Initiated Works | AP44: CCustomer Initiated Substations | AQ44: CAPEX | AR44: Network | AS44: Development | AT44: Connection | AU44: =IFERROR($BD44/VLOOKUP("Grand Total",'Raw Data Expenditure analysis '!$A$5:$M$17,MATCH($L44,'Raw Data Expenditure analysis '!$A$5:$M$5,0),FALSE),0) -> 0.005513636816 | AV44: =IFERROR(IF(B44="Capex",$W44/VLOOKUP($AM44,'Raw Data Hrs analysis'!$A$33:$M$42,MATCH($L44,'Raw Data Hrs analysis'!$A$34:$M$34,0),FALSE),0),0) -> 0.007468607116 | AW44: 0 | AX44: =IFERROR(IF(B44="Opex",$BD44/VLOOKUP($AM44,'Raw Data Expenditure analysis '!$B$69:$M$80,MATCH($L44,'Raw Data Expenditure analysis '!$B$69:$M$69,0),FALSE),$BD44/VLOOKUP($AM44,'Raw Data Expenditure analysis '!$B$54:$M$65,MATCH($L44,'Raw Data Expenditure analysis '!$B$54:$M$54,0),FALSE)),0) -> 0.01027280406 | AY44: =IF(Inputs!$C$203=Inputs!$Q$204,((Q44)*(HLOOKUP($L44,Inputs!$E$208:$R$210,3,FALSE))),(Q44)) -> 137424.9452 | AZ44: =IF(Inputs!$C$203=Inputs!$Q$204,((R44)*(HLOOKUP($L44,Inputs!$E$214:$R$216,3,FALSE))),(R44)) -> 653037.809 | BA44: =IF(Inputs!$C$203=Inputs!$Q$204,((S44)*(HLOOKUP($L44,Inputs!$E$220:$R$222,3,FALSE))),(S44)) -> 142100.316 | BB44: =IF(Inputs!$C$203=Inputs!$Q$204,((T44)*(HLOOKUP($L44,Inputs!$E$226:$R$228,3,FALSE))),(T44)) -> 16481.854 | BC44: =IF(Inputs!$C$203=Inputs!$Q$204,((U44)*(HLOOKUP($L44,Inputs!$E$226:$R$228,3,FALSE))),(U44)) -> 2227.275 | BD44: 951272.1992 | BE44: =IFERROR(IF(B44="Opex",0,VLOOKUP($AM44,Inputs!$B$46:$R$54,MATCH(L44,Inputs!$B$46:$R$46,0),FALSE)*AV44),0) -> 73019.07221 | BF44: =IFERROR(IF(B44="Opex",0,VLOOKUP($AM44,Inputs!$B$101:$R$111,MATCH(L44,Inputs!$B$63:$R$63,0),FALSE))*AX44,0) -> 252404.0083 | BG44: 325423.0806 | BH44: 1276695.28 | BI44: =IFERROR(IF(B44="Opex",0,VLOOKUP($AM44,Inputs!$B$173:$R$181,MATCH(L44,Inputs!$B$123:$R$123,0),FALSE)*AX44),0) -> 221700.9408 | BJ44: 1498396.221 | BK44: Distribution - CAPEX | BL44: =(($BD44)*(HLOOKUP($BL$1,Inputs!$B$32:$R$37,MATCH($BM$1,Inputs!$B$32:$B$37,0),FALSE))) -> 998455.5381 | BM44: =(($BG44)*(HLOOKUP($BL$1,Inputs!$B$32:$R$37,MATCH($BM$1,Inputs!$B$32:$B$37,0),FALSE))) -> 341564.1467 | BN44: 1340019.685 | BO44: 0 | BP44: 0 | BQ44: 0 | BR44: 0 | BS44: 0 | BT44: 0 | BU44: 0 | BV44: 44242.36262 | BW44: 0 | BX44: 171626.4077 | BY44: 0 | BZ44: 0 | CA44: 0 | CB44: 0 | CC44: 171626.4077 | CD44: 0 | CE44: 22703.11076 | CF44: 0 | CG44: 26194.68744 | CH44: 257439.6115 | CI44: 257439.6115 | CJ44: 0 | CK44: 0 | CL44: 0 | CM44: 0 | CN44: 0 | CO44: 0 | CP44: 0 | CQ44: 0 | CR44: 0 | CS44: 0 | CT44: 0 | CU44: 0 | CV44: 0 | CW44: 0 | CX44: 0 | CY44: 0 | CZ44: 0 | DA44: 0 | DB44: 0 | DC44: 0 | DD44: 0 | DE44: 0 | DF44: 0 | DG44: 0 | DH44: 0 | DI44: 0 | DJ44: 0 | DK44: 0 | DL44: 0 | DM44: 0 | DN44: 0 | DO44: 0 | DP44: 0 | DQ44: 0 | DR44: 0 | DS44: 0 | DT44: 0 | DU44: 0 | DV44: 0 | DW44: 0 | DX44: 0 | DY44: 0 | DZ44: 0 | EA44: 0 | EB44: 0 | EC44: 0 | ED44: 0 | EE44: 0 | EF44: 0 | EG44: 0 | EH44: 0 | EI44: 0 | EJ44: 0 | EK44: 0 | EL44: 0 | EM44: 0 | EN44: 0 | EO44: 0 | EP44: 0 | EQ44: 0 | ER44: 0 | ES44: 951272.1992 | ET44: 0 | EU44: 0 | EV44: 0 | EW44: 0 | EX44: 0 | EY44: 0 | EZ44: 0 | FA44: 15134.98024 | FB44: 0 | FC44: 58712.1061 | FD44: 0 | FE44: 0 | FF44: 0 | FG44: 0 | FH44: 58712.1061 | FI44: 0 | FJ44: 7766.563815 | FK44: 0 | FL44: 8961.005994 | FM44: 88068.15915 | FN44: 88068.15915 | FO44: 0 | FP44: 0 | FQ44: 0 | FR44: 0 | FS44: 0 | FT44: 0 | FU44: 0 | FV44: 0 | FW44: 0 | FX44: 0 | FY44: 0 | FZ44: 0 | GA44: 0 | GB44: 0 | GC44: 0 | GD44: 0 | GE44: 0 | GF44: 0 | GG44: 0 | GH44: 0 | GI44: 0 | GJ44: 0 | GK44: 0 | GL44: 0 | GM44: 0 | GN44: 0 | GO44: 0 | GP44: 0 | GQ44: 0 | GR44: 0 | GS44: 0 | GT44: 0 | GU44: 0 | GV44: 0 | GW44: 0 | GX44: 0 | GY44: 0 | GZ44: 0 | HA44: 0 | HB44: 0 | HC44: 0 | HD44: 0 | HE44: 0 | HF44: 0 | HG44: 0 | HH44: 0 | HI44: 0 | HJ44: 0 | HK44: 0 | HL44: 0 | HM44: 0 | HN44: 0 | HO44: 0 | HP44: 0 | HQ44: 0 | HR44: 0 | HS44: 0 | HT44: 0 | HU44: 0 | HV44: 0 | HW44: 0 | HX44: 325423.0806 | HY44: TRUE | HZ44: TRUE | IA44: 0 | IB44: 0
A45: 1026 | B45: CAPEX | C45: Customer | E45: Standard Control | H45: CCustomer Initiated Substations | I45: CSUBC | J45: Customer Initiated Substations | K45: D | L45: 2021/22 | M45: 1 | N45: 0 | O45: 1113638.82 | Q45: 136754.8465 | R45: 653037.809 | S45: 142100.316 | T45: 16481.854 | U45: 2227.275 | V45: 163036.72 | W45: 2311.13 | Y45: Unit | AD45: CUS | AK45: =IFERROR(IF(AL45="Transmission",VLOOKUP(J45,'INCURRED & COMMISSIONED'!$B:$Z,13,FALSE),""),"") ->  | AL45: Distribution | AM45: Standard Control Services | AN45: Standard Control Services | AO45: Customer Initiated Works | AP45: CCustomer Initiated Substations | AQ45: CAPEX | AR45: Network | AS45: Development | AT45: Connection | AU45: =IFERROR($BD45/VLOOKUP("Grand Total",'Raw Data Expenditure analysis '!$A$5:$M$17,MATCH($L45,'Raw Data Expenditure analysis '!$A$5:$M$5,0),FALSE),0) -> 0.005942938477 | AV45: =IFERROR(IF(B45="Capex",$W45/VLOOKUP($AM45,'Raw Data Hrs analysis'!$A$33:$M$42,MATCH($L45,'Raw Data Hrs analysis'!$A$34:$M$34,0),FALSE),0),0) -> 0.007958160405 | AW45: 0 | AX45: =IFERROR(IF(B45="Opex",$BD45/VLOOKUP($AM45,'Raw Data Expenditure analysis '!$B$69:$M$80,MATCH($L45,'Raw Data Expenditure analysis '!$B$69:$M$69,0),FALSE),$BD45/VLOOKUP($AM45,'Raw Data Expenditure analysis '!$B$54:$M$65,MATCH($L45,'Raw Data Expenditure analysis '!$B$54:$M$54,0),FALSE)),0) -> 0.01073881592 | AY45: =IF(Inputs!$C$203=Inputs!$Q$204,((Q45)*(HLOOKUP($L45,Inputs!$E$208:$R$210,3,FALSE))),(Q45)) -> 138098.3275 | AZ45: =IF(Inputs!$C$203=Inputs!$Q$204,((R45)*(HLOOKUP($L45,Inputs!$E$214:$R$216,3,FALSE))),(R45)) -> 653037.809 | BA45: =IF(Inputs!$C$203=Inputs!$Q$204,((S45)*(HLOOKUP($L45,Inputs!$E$220:$R$222,3,FALSE))),(S45)) -> 142100.316 | BB45: =IF(Inputs!$C$203=Inputs!$Q$204,((T45)*(HLOOKUP($L45,Inputs!$E$226:$R$228,3,FALSE))),(T45)) -> 16481.854 | BC45: =IF(Inputs!$C$203=Inputs!$Q$204,((U45)*(HLOOKUP($L45,Inputs!$E$226:$R$228,3,FALSE))),(U45)) -> 2227.275 | BD45: 951945.5815 | BE45: =IFERROR(IF(B45="Opex",0,VLOOKUP($AM45,Inputs!$B$46:$R$54,MATCH(L45,Inputs!$B$46:$R$46,0),FALSE)*AV45),0) -> 77027.28307 | BF45: =IFERROR(IF(B45="Opex",0,VLOOKUP($AM45,Inputs!$B$101:$R$111,MATCH(L45,Inputs!$B$63:$R$63,0),FALSE))*AX45,0) -> 261215.4351 | BG45: 338242.7182 | BH45: 1290188.3 | BI45: =IFERROR(IF(B45="Opex",0,VLOOKUP($AM45,Inputs!$B$173:$R$181,MATCH(L45,Inputs!$B$123:$R$123,0),FALSE)*AX45),0) -> 149311.133 | BJ45: 1439499.433 | BK45: Distribution - CAPEX | BL45: =(($BD45)*(HLOOKUP($BL$1,Inputs!$B$32:$R$37,MATCH($BM$1,Inputs!$B$32:$B$37,0),FALSE))) -> 999162.3203 | BM45: =(($BG45)*(HLOOKUP($BL$1,Inputs!$B$32:$R$37,MATCH($BM$1,Inputs!$B$32:$B$37,0),FALSE))) -> 355019.6415 | BN45: 1354181.962 | BO45: 0 | BP45: 0 | BQ45: 0 | BR45: 0 | BS45: 0 | BT45: 0 | BU45: 0 | BV45: 44273.6807 | BW45: 0 | BX45: 171747.8978 | BY45: 0 | BZ45: 0 | CA45: 0 | CB45: 0 | CC45: 171747.8978 | CD45: 0 | CE45: 22719.18173 | CF45: 0 | CG45: 26213.23001 | CH45: 257621.8467 | CI45: 257621.8467 | CJ45: 0 | CK45: 0 | CL45: 0 | CM45: 0 | CN45: 0 | CO45: 0 | CP45: 0 | CQ45: 0 | CR45: 0 | CS45: 0 | CT45: 0 | CU45: 0 | CV45: 0 | CW45: 0 | CX45: 0 | CY45: 0 | CZ45: 0 | DA45: 0 | DB45: 0 | DC45: 0 | DD45: 0 | DE45: 0 | DF45: 0 | DG45: 0 | DH45: 0 | DI45: 0 | DJ45: 0 | DK45: 0 | DL45: 0 | DM45: 0 | DN45: 0 | DO45: 0 | DP45: 0 | DQ45: 0 | DR45: 0 | DS45: 0 | DT45: 0 | DU45: 0 | DV45: 0 | DW45: 0 | DX45: 0 | DY45: 0 | DZ45: 0 | EA45: 0 | EB45: 0 | EC45: 0 | ED45: 0 | EE45: 0 | EF45: 0 | EG45: 0 | EH45: 0 | EI45: 0 | EJ45: 0 | EK45: 0 | EL45: 0 | EM45: 0 | EN45: 0 | EO45: 0 | EP45: 0 | EQ45: 0 | ER45: 0 | ES45: 951945.5815 | ET45: 0 | EU45: 0 | EV45: 0 | EW45: 0 | EX45: 0 | EY45: 0 | EZ45: 0 | FA45: 15731.20396 | FB45: 0 | FC45: 61024.99652 | FD45: 0 | FE45: 0 | FF45: 0 | FG45: 0 | FH45: 61024.99652 | FI45: 0 | FJ45: 8072.517939 | FK45: 0 | FL45: 9314.013683 | FM45: 91537.49477 | FN45: 91537.49477 | FO45: 0 | FP45: 0 | FQ45: 0 | FR45: 0 | FS45: 0 | FT45: 0 | FU45: 0 | FV45: 0 | FW45: 0 | FX45: 0 | FY45: 0 | FZ45: 0 | GA45: 0 | GB45: 0 | GC45: 0 | GD45: 0 | GE45: 0 | GF45: 0 | GG45: 0 | GH45: 0 | GI45: 0 | GJ45: 0 | GK45: 0 | GL45: 0 | GM45: 0 | GN45: 0 | GO45: 0 | GP45: 0 | GQ45: 0 | GR45: 0 | GS45: 0 | GT45: 0 | GU45: 0 | GV45: 0 | GW45: 0 | GX45: 0 | GY45: 0 | GZ45: 0 | HA45: 0 | HB45: 0 | HC45: 0 | HD45: 0 | HE45: 0 | HF45: 0 | HG45: 0 | HH45: 0 | HI45: 0 | HJ45: 0 | HK45: 0 | HL45: 0 | HM45: 0 | HN45: 0 | HO45: 0 | HP45: 0 | HQ45: 0 | HR45: 0 | HS45: 0 | HT45: 0 | HU45: 0 | HV45: 0 | HW45: 0 | HX45: 338242.7182 | HY45: TRUE | HZ45: TRUE | IA45: 0 | IB45: 0
A46: 1026 | B46: CAPEX | C46: Customer | E46: Standard Control | H46: CCustomer Initiated Substations | I46: CSUBC | J46: Customer Initiated Substations | K46: D | L46: 2022/23 | M46: 1 | N46: 0 | O46: 1113638.82 | Q46: 136754.8465 | R46: 653037.809 | S46: 142100.316 | T46: 16481.854 | U46: 2227.275 | V46: 163036.72 | W46: 2311.13 | Y46: Unit | AD46: CUS | AK46: =IFERROR(IF(AL46="Transmission",VLOOKUP(J46,'INCURRED & COMMISSIONED'!$B:$Z,13,FALSE),""),"") ->  | AL46: Distribution | AM46: Standard Control Services | AN46: Standard Control Services | AO46: Customer Initiated Works | AP46: CCustomer Initiated Substations | AQ46: CAPEX | AR46: Network | AS46: Development | AT46: Connection | AU46: =IFERROR($BD46/VLOOKUP("Grand Total",'Raw Data Expenditure analysis '!$A$5:$M$17,MATCH($L46,'Raw Data Expenditure analysis '!$A$5:$M$5,0),FALSE),0) -> 0.006141090402 | AV46: =IFERROR(IF(B46="Capex",$W46/VLOOKUP($AM46,'Raw Data Hrs analysis'!$A$33:$M$42,MATCH($L46,'Raw Data Hrs analysis'!$A$34:$M$34,0),FALSE),0),0) -> 0.00809423981 | AW46: 0 | AX46: =IFERROR(IF(B46="Opex",$BD46/VLOOKUP($AM46,'Raw Data Expenditure analysis '!$B$69:$M$80,MATCH($L46,'Raw Data Expenditure analysis '!$B$69:$M$69,0),FALSE),$BD46/VLOOKUP($AM46,'Raw Data Expenditure analysis '!$B$54:$M$65,MATCH($L46,'Raw Data Expenditure analysis '!$B$54:$M$54,0),FALSE)),0) -> 0.01120316456 | AY46: =IF(Inputs!$C$203=Inputs!$Q$204,((Q46)*(HLOOKUP($L46,Inputs!$E$208:$R$210,3,FALSE))),(Q46)) -> 138775.0093 | AZ46: =IF(Inputs!$C$203=Inputs!$Q$204,((R46)*(HLOOKUP($L46,Inputs!$E$214:$R$216,3,FALSE))),(R46)) -> 653037.809 | BA46: =IF(Inputs!$C$203=Inputs!$Q$204,((S46)*(HLOOKUP($L46,Inputs!$E$220:$R$222,3,FALSE))),(S46)) -> 142100.316 | BB46: =IF(Inputs!$C$203=Inputs!$Q$204,((T46)*(HLOOKUP($L46,Inputs!$E$226:$R$228,3,FALSE))),(T46)) -> 16481.854 | BC46: =IF(Inputs!$C$203=Inputs!$Q$204,((U46)*(HLOOKUP($L46,Inputs!$E$226:$R$228,3,FALSE))),(U46)) -> 2227.275 | BD46: 952622.2633 | BE46: =IFERROR(IF(B46="Opex",0,VLOOKUP($AM46,Inputs!$B$46:$R$54,MATCH(L46,Inputs!$B$46:$R$46,0),FALSE)*AV46),0) -> 77560.95588 | BF46: =IFERROR(IF(B46="Opex",0,VLOOKUP($AM46,Inputs!$B$101:$R$111,MATCH(L46,Inputs!$B$63:$R$63,0),FALSE))*AX46,0) -> 269785.3404 | BG46: 347346.2963 | BH46: 1299968.56 | BI46: =IFERROR(IF(B46="Opex",0,VLOOKUP($AM46,Inputs!$B$173:$R$181,MATCH(L46,Inputs!$B$123:$R$123,0),FALSE)*AX46),0) -> 326023.2547 | BJ46: 1625991.814 | BK46: Distribution - CAPEX | BL46: =(($BD46)*(HLOOKUP($BL$1,Inputs!$B$32:$R$37,MATCH($BM$1,Inputs!$B$32:$B$37,0),FALSE))) -> 999872.5657 | BM46: =(($BG46)*(HLOOKUP($BL$1,Inputs!$B$32:$R$37,MATCH($BM$1,Inputs!$B$32:$B$37,0),FALSE))) -> 364574.7594 | BN46: 1364447.325 | BO46: 0 | BP46: 0 | BQ46: 0 | BR46: 0 | BS46: 0 | BT46: 0 | BU46: 0 | BV46: 44305.15224 | BW46: 0 | BX46: 171869.9832 | BY46: 0 | BZ46: 0 | CA46: 0 | CB46: 0 | CC46: 171869.9832 | CD46: 0 | CE46: 22735.33145 | CF46: 0 | CG46: 26231.86345 | CH46: 257804.9748 | CI46: 257804.9748 | CJ46: 0 | CK46: 0 | CL46: 0 | CM46: 0 | CN46: 0 | CO46: 0 | CP46: 0 | CQ46: 0 | CR46: 0 | CS46: 0 | CT46: 0 | CU46: 0 | CV46: 0 | CW46: 0 | CX46: 0 | CY46: 0 | CZ46: 0 | DA46: 0 | DB46: 0 | DC46: 0 | DD46: 0 | DE46: 0 | DF46: 0 | DG46: 0 | DH46: 0 | DI46: 0 | DJ46: 0 | DK46: 0 | DL46: 0 | DM46: 0 | DN46: 0 | DO46: 0 | DP46: 0 | DQ46: 0 | DR46: 0 | DS46: 0 | DT46: 0 | DU46: 0 | DV46: 0 | DW46: 0 | DX46: 0 | DY46: 0 | DZ46: 0 | EA46: 0 | EB46: 0 | EC46: 0 | ED46: 0 | EE46: 0 | EF46: 0 | EG46: 0 | EH46: 0 | EI46: 0 | EJ46: 0 | EK46: 0 | EL46: 0 | EM46: 0 | EN46: 0 | EO46: 0 | EP46: 0 | EQ46: 0 | ER46: 0 | ES46: 952622.2633 | ET46: 0 | EU46: 0 | EV46: 0 | EW46: 0 | EX46: 0 | EY46: 0 | EZ46: 0 | FA46: 16154.59887 | FB46: 0 | FC46: 62667.44376 | FD46: 0 | FE46: 0 | FF46: 0 | FG46: 0 | FH46: 62667.44376 | FI46: 0 | FJ46: 8289.784397 | FK46: 0 | FL46: 9564.694174 | FM46: 94001.16564 | FN46: 94001.16564 | FO46: 0 | FP46: 0 | FQ46: 0 | FR46: 0 | FS46: 0 | FT46: 0 | FU46: 0 | FV46: 0 | FW46: 0 | FX46: 0 | FY46: 0 | FZ46: 0 | GA46: 0 | GB46: 0 | GC46: 0 | GD46: 0 | GE46: 0 | GF46: 0 | GG46: 0 | GH46: 0 | GI46: 0 | GJ46: 0 | GK46: 0 | GL46: 0 | GM46: 0 | GN46: 0 | GO46: 0 | GP46: 0 | GQ46: 0 | GR46: 0 | GS46: 0 | GT46: 0 | GU46: 0 | GV46: 0 | GW46: 0 | GX46: 0 | GY46: 0 | GZ46: 0 | HA46: 0 | HB46: 0 | HC46: 0 | HD46: 0 | HE46: 0 | HF46: 0 | HG46: 0 | HH46: 0 | HI46: 0 | HJ46: 0 | HK46: 0 | HL46: 0 | HM46: 0 | HN46: 0 | HO46: 0 | HP46: 0 | HQ46: 0 | HR46: 0 | HS46: 0 | HT46: 0 | HU46: 0 | HV46: 0 | HW46: 0 | HX46: 347346.2963 | HY46: TRUE | HZ46: TRUE | IA46: 0 | IB46: 0
A47: 1026 | B47: CAPEX | C47: Customer | E47: Standard Control | H47: CCustomer Initiated Substations | I47: CSUBC | J47: Customer Initiated Substations | K47: D | L47: 2023/24 | M47: 1 | N47: 0 | O47: 1113638.82 | Q47: 136754.8465 | R47: 653037.809 | S47: 142100.316 | T47: 16481.854 | U47: 2227.275 | V47: 163036.72 | W47: 2311.13 | Y47: Unit | AD47: CUS | AK47: =IFERROR(IF(AL47="Transmission",VLOOKUP(J47,'INCURRED & COMMISSIONED'!$B:$Z,13,FALSE),""),"") ->  | AL47: Distribution | AM47: Standard Control Services | AN47: Standard Control Services | AO47: Customer Initiated Works | AP47: CCustomer Initiated Substations | AQ47: CAPEX | AR47: Network | AS47: Development | AT47: Connection | AU47: =IFERROR($BD47/VLOOKUP("Grand Total",'Raw Data Expenditure analysis '!$A$5:$M$17,MATCH($L47,'Raw Data Expenditure analysis '!$A$5:$M$5,0),FALSE),0) -> 0.006304251334 | AV47: =IFERROR(IF(B47="Capex",$W47/VLOOKUP($AM47,'Raw Data Hrs analysis'!$A$33:$M$42,MATCH($L47,'Raw Data Hrs analysis'!$A$34:$M$34,0),FALSE),0),0) -> 0.00784038086 | AW47: 0 | AX47: =IFERROR(IF(B47="Opex",$BD47/VLOOKUP($AM47,'Raw Data Expenditure analysis '!$B$69:$M$80,MATCH($L47,'Raw Data Expenditure analysis '!$B$69:$M$69,0),FALSE),$BD47/VLOOKUP($AM47,'Raw Data Expenditure analysis '!$B$54:$M$65,MATCH($L47,'Raw Data Expenditure analysis '!$B$54:$M$54,0),FALSE)),0) -> 0.01151434357 | AY47: =IF(Inputs!$C$203=Inputs!$Q$204,((Q47)*(HLOOKUP($L47,Inputs!$E$208:$R$210,3,FALSE))),(Q47)) -> 139455.0068 | AZ47: =IF(Inputs!$C$203=Inputs!$Q$204,((R47)*(HLOOKUP($L47,Inputs!$E$214:$R$216,3,FALSE))),(R47)) -> 653037.809 | BA47: =IF(Inputs!$C$203=Inputs!$Q$204,((S47)*(HLOOKUP($L47,Inputs!$E$220:$R$222,3,FALSE))),(S47)) -> 142100.316 | BB47: =IF(Inputs!$C$203=Inputs!$Q$204,((T47)*(HLOOKUP($L47,Inputs!$E$226:$R$228,3,FALSE))),(T47)) -> 16481.854 | BC47: =IF(Inputs!$C$203=Inputs!$Q$204,((U47)*(HLOOKUP($L47,Inputs!$E$226:$R$228,3,FALSE))),(U47)) -> 2227.275 | BD47: 953302.2608 | BE47: =IFERROR(IF(B47="Opex",0,VLOOKUP($AM47,Inputs!$B$46:$R$54,MATCH(L47,Inputs!$B$46:$R$46,0),FALSE)*AV47),0) -> 74377.13408 | BF47: =IFERROR(IF(B47="Opex",0,VLOOKUP($AM47,Inputs!$B$101:$R$111,MATCH(L47,Inputs!$B$63:$R$63,0),FALSE))*AX47,0) -> 274506.107 | BG47: 348883.2411 | BH47: 1302185.502 | BI47: =IFERROR(IF(B47="Opex",0,VLOOKUP($AM47,Inputs!$B$173:$R$181,MATCH(L47,Inputs!$B$123:$R$123,0),FALSE)*AX47),0) -> 363678.5186 | BJ47: 1665864.021 | BK47: Distribution - CAPEX | BL47: =(($BD47)*(HLOOKUP($BL$1,Inputs!$B$32:$R$37,MATCH($BM$1,Inputs!$B$32:$B$37,0),FALSE))) -> 1000586.291 | BM47: =(($BG47)*(HLOOKUP($BL$1,Inputs!$B$32:$R$37,MATCH($BM$1,Inputs!$B$32:$B$37,0),FALSE))) -> 366187.9371 | BN47: 1366774.228 | BO47: 0 | BP47: 0 | BQ47: 0 | BR47: 0 | BS47: 0 | BT47: 0 | BU47: 0 | BV47: 44336.77799 | BW47: 0 | BX47: 171992.6669 | BY47: 0 | BZ47: 0 | CA47: 0 | CB47: 0 | CC47: 171992.6669 | CD47: 0 | CE47: 22751.56031 | CF47: 0 | CG47: 26250.58819 | CH47: 257989.0003 | CI47: 257989.0003 | CJ47: 0 | CK47: 0 | CL47: 0 | CM47: 0 | CN47: 0 | CO47: 0 | CP47: 0 | CQ47: 0 | CR47: 0 | CS47: 0 | CT47: 0 | CU47: 0 | CV47: 0 | CW47: 0 | CX47: 0 | CY47: 0 | CZ47: 0 | DA47: 0 | DB47: 0 | DC47: 0 | DD47: 0 | DE47: 0 | DF47: 0 | DG47: 0 | DH47: 0 | DI47: 0 | DJ47: 0 | DK47: 0 | DL47: 0 | DM47: 0 | DN47: 0 | DO47: 0 | DP47: 0 | DQ47: 0 | DR47: 0 | DS47: 0 | DT47: 0 | DU47: 0 | DV47: 0 | DW47: 0 | DX47: 0 | DY47: 0 | DZ47: 0 | EA47: 0 | EB47: 0 | EC47: 0 | ED47: 0 | EE47: 0 | EF47: 0 | EG47: 0 | EH47: 0 | EI47: 0 | EJ47: 0 | EK47: 0 | EL47: 0 | EM47: 0 | EN47: 0 | EO47: 0 | EP47: 0 | EQ47: 0 | ER47: 0 | ES47: 953302.2608 | ET47: 0 | EU47: 0 | EV47: 0 | EW47: 0 | EX47: 0 | EY47: 0 | EZ47: 0 | FA47: 16226.08006 | FB47: 0 | FC47: 62944.73592 | FD47: 0 | FE47: 0 | FF47: 0 | FG47: 0 | FH47: 62944.73592 | FI47: 0 | FJ47: 8326.465201 | FK47: 0 | FL47: 9607.016224 | FM47: 94417.10388 | FN47: 94417.10388 | FO47: 0 | FP47: 0 | FQ47: 0 | FR47: 0 | FS47: 0 | FT47: 0 | FU47: 0 | FV47: 0 | FW47: 0 | FX47: 0 | FY47: 0 | FZ47: 0 | GA47: 0 | GB47: 0 | GC47: 0 | GD47: 0 | GE47: 0 | GF47: 0 | GG47: 0 | GH47: 0 | GI47: 0 | GJ47: 0 | GK47: 0 | GL47: 0 | GM47: 0 | GN47: 0 | GO47: 0 | GP47: 0 | GQ47: 0 | GR47: 0 | GS47: 0 | GT47: 0 | GU47: 0 | GV47: 0 | GW47: 0 | GX47: 0 | GY47: 0 | GZ47: 0 | HA47: 0 | HB47: 0 | HC47: 0 | HD47: 0 | HE47: 0 | HF47: 0 | HG47: 0 | HH47: 0 | HI47: 0 | HJ47: 0 | HK47: 0 | HL47: 0 | HM47: 0 | HN47: 0 | HO47: 0 | HP47: 0 | HQ47: 0 | HR47: 0 | HS47: 0 | HT47: 0 | HU47: 0 | HV47: 0 | HW47: 0 | HX47: 348883.2411 | HY47: TRUE | HZ47: TRUE | IA47: 0 | IB47: 0
A48: 1026 | B48: CAPEX | C48: Customer | E48: Standard Control | H48: CCustomer Initiated Substations | I48: CSUBC | J48: Customer Initiated Substations | K48: D | L48: 2024/25 | M48: 1 | N48: 0 | O48: 1113638.82 | Q48: 136754.8465 | R48: 653037.809 | S48: 142100.316 | T48: 16481.854 | U48: 2227.275 | V48: 163036.72 | W48: 2311.13 | Y48: Unit | AD48: CUS | AK48: =IFERROR(IF(AL48="Transmission",VLOOKUP(J48,'INCURRED & COMMISSIONED'!$B:$Z,13,FALSE),""),"") ->  | AL48: Distribution | AM48: Standard Control Services | AN48: Standard Control Services | AO48: Customer Initiated Works | AP48: CCustomer Initiated Substations | AQ48: CAPEX | AR48: Network | AS48: Development | AT48: Connection | AU48: =IFERROR($BD48/VLOOKUP("Grand Total",'Raw Data Expenditure analysis '!$A$5:$M$17,MATCH($L48,'Raw Data Expenditure analysis '!$A$5:$M$5,0),FALSE),0) -> 0.005676111985 | AV48: =IFERROR(IF(B48="Capex",$W48/VLOOKUP($AM48,'Raw Data Hrs analysis'!$A$33:$M$42,MATCH($L48,'Raw Data Hrs analysis'!$A$34:$M$34,0),FALSE),0),0) -> 0.008595572819 | AW48: 0 | AX48: =IFERROR(IF(B48="Opex",$BD48/VLOOKUP($AM48,'Raw Data Expenditure analysis '!$B$69:$M$80,MATCH($L48,'Raw Data Expenditure analysis '!$B$69:$M$69,0),FALSE),$BD48/VLOOKUP($AM48,'Raw Data Expenditure analysis '!$B$54:$M$65,MATCH($L48,'Raw Data Expenditure analysis '!$B$54:$M$54,0),FALSE)),0) -> 0.01168728343 | AY48: =IF(Inputs!$C$203=Inputs!$Q$204,((Q48)*(HLOOKUP($L48,Inputs!$E$208:$R$210,3,FALSE))),(Q48)) -> 138098.3275 | AZ48: =IF(Inputs!$C$203=Inputs!$Q$204,((R48)*(HLOOKUP($L48,Inputs!$E$214:$R$216,3,FALSE))),(R48)) -> 653037.809 | BA48: =IF(Inputs!$C$203=Inputs!$Q$204,((S48)*(HLOOKUP($L48,Inputs!$E$220:$R$222,3,FALSE))),(S48)) -> 142100.316 | BB48: =IF(Inputs!$C$203=Inputs!$Q$204,((T48)*(HLOOKUP($L48,Inputs!$E$226:$R$228,3,FALSE))),(T48)) -> 16481.854 | BC48: =IF(Inputs!$C$203=Inputs!$Q$204,((U48)*(HLOOKUP($L48,Inputs!$E$226:$R$228,3,FALSE))),(U48)) -> 2227.275 | BD48: 951945.5815 | BE48: =IFERROR(IF(B48="Opex",0,VLOOKUP($AM48,Inputs!$B$46:$R$54,MATCH(L48,Inputs!$B$46:$R$46,0),FALSE)*AV48),0) -> 81541.20105 | BF48: =IFERROR(IF(B48="Opex",0,VLOOKUP($AM48,Inputs!$B$101:$R$111,MATCH(L48,Inputs!$B$63:$R$63,0),FALSE))*AX48,0) -> 278629.0558 | BG48: 360170.2569 | BH48: 1312115.838 | BI48: =IFERROR(IF(B48="Opex",0,VLOOKUP($AM48,Inputs!$B$173:$R$181,MATCH(L48,Inputs!$B$123:$R$123,0),FALSE)*AX48),0) -> 461398.4048 | BJ48: 1773514.243 | BK48: Distribution - CAPEX | BL48: =(($BD48)*(HLOOKUP($BL$1,Inputs!$B$32:$R$37,MATCH($BM$1,Inputs!$B$32:$B$37,0),FALSE))) -> 999162.3203 | BM48: =(($BG48)*(HLOOKUP($BL$1,Inputs!$B$32:$R$37,MATCH($BM$1,Inputs!$B$32:$B$37,0),FALSE))) -> 378034.7916 | BN48: 1377197.112 | BO48: 0 | BP48: 0 | BQ48: 0 | BR48: 0 | BS48: 0 | BT48: 0 | BU48: 0 | BV48: 44273.6807 | BW48: 0 | BX48: 171747.8978 | BY48: 0 | BZ48: 0 | CA48: 0 | CB48: 0 | CC48: 171747.8978 | CD48: 0 | CE48: 22719.18173 | CF48: 0 | CG48: 26213.23001 | CH48: 257621.8467 | CI48: 257621.8467 | CJ48: 0 | CK48: 0 | CL48: 0 | CM48: 0 | CN48: 0 | CO48: 0 | CP48: 0 | CQ48: 0 | CR48: 0 | CS48: 0 | CT48: 0 | CU48: 0 | CV48: 0 | CW48: 0 | CX48: 0 | CY48: 0 | CZ48: 0 | DA48: 0 | DB48: 0 | DC48: 0 | DD48: 0 | DE48: 0 | DF48: 0 | DG48: 0 | DH48: 0 | DI48: 0 | DJ48: 0 | DK48: 0 | DL48: 0 | DM48: 0 | DN48: 0 | DO48: 0 | DP48: 0 | DQ48: 0 | DR48: 0 | DS48: 0 | DT48: 0 | DU48: 0 | DV48: 0 | DW48: 0 | DX48: 0 | DY48: 0 | DZ48: 0 | EA48: 0 | EB48: 0 | EC48: 0 | ED48: 0 | EE48: 0 | EF48: 0 | EG48: 0 | EH48: 0 | EI48: 0 | EJ48: 0 | EK48: 0 | EL48: 0 | EM48: 0 | EN48: 0 | EO48: 0 | EP48: 0 | EQ48: 0 | ER48: 0 | ES48: 951945.5815 | ET48: 0 | EU48: 0 | EV48: 0 | EW48: 0 | EX48: 0 | EY48: 0 | EZ48: 0 | FA48: 16751.02365 | FB48: 0 | FC48: 64981.11412 | FD48: 0 | FE48: 0 | FF48: 0 | FG48: 0 | FH48: 64981.11412 | FI48: 0 | FJ48: 8595.841694 | FK48: 0 | FL48: 9917.820903 | FM48: 97471.67118 | FN48: 97471.67118 | FO48: 0 | FP48: 0 | FQ48: 0 | FR48: 0 | FS48: 0 | FT48: 0 | FU48: 0 | FV48: 0 | FW48: 0 | FX48: 0 | FY48: 0 | FZ48: 0 | GA48: 0 | GB48: 0 | GC48: 0 | GD48: 0 | GE48: 0 | GF48: 0 | GG48: 0 | GH48: 0 | GI48: 0 | GJ48: 0 | GK48: 0 | GL48: 0 | GM48: 0 | GN48: 0 | GO48: 0 | GP48: 0 | GQ48: 0 | GR48: 0 | GS48: 0 | GT48: 0 | GU48: 0 | GV48: 0 | GW48: 0 | GX48: 0 | GY48: 0 | GZ48: 0 | HA48: 0 | HB48: 0 | HC48: 0 | HD48: 0 | HE48: 0 | HF48: 0 | HG48: 0 | HH48: 0 | HI48: 0 | HJ48: 0 | HK48: 0 | HL48: 0 | HM48: 0 | HN48: 0 | HO48: 0 | HP48: 0 | HQ48: 0 | HR48: 0 | HS48: 0 | HT48: 0 | HU48: 0 | HV48: 0 | HW48: 0 | HX48: 360170.2569 | HY48: TRUE | HZ48: TRUE | IA48: 0 | IB48: 0
A49: 1026 | B49: CAPEX | C49: Customer | E49: Standard Control | H49: CCustomer Initiated Substations | I49: CSUBC | J49: Customer Initiated Substations | K49: D | L49: 2025/26 | M49: 1 | N49: 0 | O49: 1113638.82 | Q49: 136754.8465 | R49: 653037.809 | S49: 142100.316 | T49: 16481.854 | U49: 2227.275 | V49: 163036.72 | W49: 2311.13 | Y49: Unit | AD49: CUS | AK49: =IFERROR(IF(AL49="Transmission",VLOOKUP(J49,'INCURRED & COMMISSIONED'!$B:$Z,13,FALSE),""),"") ->  | AL49: Distribution | AM49: Standard Control Services | AN49: Standard Control Services | AO49: Customer Initiated Works | AP49: CCustomer Initiated Substations | AQ49: CAPEX | AR49: Network | AS49: Development | AT49: Connection | AU49: =IFERROR($BD49/VLOOKUP("Grand Total",'Raw Data Expenditure analysis '!$A$5:$M$17,MATCH($L49,'Raw Data Expenditure analysis '!$A$5:$M$5,0),FALSE),0) -> 0.006216680582 | AV49: =IFERROR(IF(B49="Capex",$W49/VLOOKUP($AM49,'Raw Data Hrs analysis'!$A$33:$M$42,MATCH($L49,'Raw Data Hrs analysis'!$A$34:$M$34,0),FALSE),0),0) -> 0.008408276844 | AW49: 0 | AX49: =IFERROR(IF(B49="Opex",$BD49/VLOOKUP($AM49,'Raw Data Expenditure analysis '!$B$69:$M$80,MATCH($L49,'Raw Data Expenditure analysis '!$B$69:$M$69,0),FALSE),$BD49/VLOOKUP($AM49,'Raw Data Expenditure analysis '!$B$54:$M$65,MATCH($L49,'Raw Data Expenditure analysis '!$B$54:$M$54,0),FALSE)),0) -> 0.01173574147 | AY49: =IF(Inputs!$C$203=Inputs!$Q$204,((Q49)*(HLOOKUP($L49,Inputs!$E$208:$R$210,3,FALSE))),(Q49)) -> 138775.0093 | AZ49: =IF(Inputs!$C$203=Inputs!$Q$204,((R49)*(HLOOKUP($L49,Inputs!$E$214:$R$216,3,FALSE))),(R49)) -> 653037.809 | BA49: =IF(Inputs!$C$203=Inputs!$Q$204,((S49)*(HLOOKUP($L49,Inputs!$E$220:$R$222,3,FALSE))),(S49)) -> 142100.316 | BB49: =IF(Inputs!$C$203=Inputs!$Q$204,((T49)*(HLOOKUP($L49,Inputs!$E$226:$R$228,3,FALSE))),(T49)) -> 16481.854 | BC49: =IF(Inputs!$C$203=Inputs!$Q$204,((U49)*(HLOOKUP($L49,Inputs!$E$226:$R$228,3,FALSE))),(U49)) -> 2227.275 | BD49: 952622.2633 | BE49: =IFERROR(IF(B49="Opex",0,VLOOKUP($AM49,Inputs!$B$46:$R$54,MATCH(L49,Inputs!$B$46:$R$46,0),FALSE)*AV49),0) -> 79764.43305 | BF49: =IFERROR(IF(B49="Opex",0,VLOOKUP($AM49,Inputs!$B$101:$R$111,MATCH(L49,Inputs!$B$63:$R$63,0),FALSE))*AX49,0) -> 279784.3129 | BG49: 359548.7459 | BH49: 1312171.009 | BI49: =IFERROR(IF(B49="Opex",0,VLOOKUP($AM49,Inputs!$B$173:$R$181,MATCH(L49,Inputs!$B$123:$R$123,0),FALSE)*AX49),0) -> 389850.1692 | BJ49: 1702021.178 | BK49: Distribution - CAPEX | BL49: =(($BD49)*(HLOOKUP($BL$1,Inputs!$B$32:$R$37,MATCH($BM$1,Inputs!$B$32:$B$37,0),FALSE))) -> 999872.5657 | BM49: =(($BG49)*(HLOOKUP($BL$1,Inputs!$B$32:$R$37,MATCH($BM$1,Inputs!$B$32:$B$37,0),FALSE))) -> 377382.4536 | BN49: 1377255.019 | BO49: 0 | BP49: 0 | BQ49: 0 | BR49: 0 | BS49: 0 | BT49: 0 | BU49: 0 | BV49: 44305.15224 | BW49: 0 | BX49: 171869.9832 | BY49: 0 | BZ49: 0 | CA49: 0 | CB49: 0 | CC49: 171869.9832 | CD49: 0 | CE49: 22735.33145 | CF49: 0 | CG49: 26231.86345 | CH49: 257804.9748 | CI49: 257804.9748 | CJ49: 0 | CK49: 0 | CL49: 0 | CM49: 0 | CN49: 0 | CO49: 0 | CP49: 0 | CQ49: 0 | CR49: 0 | CS49: 0 | CT49: 0 | CU49: 0 | CV49: 0 | CW49: 0 | CX49: 0 | CY49: 0 | CZ49: 0 | DA49: 0 | DB49: 0 | DC49: 0 | DD49: 0 | DE49: 0 | DF49: 0 | DG49: 0 | DH49: 0 | DI49: 0 | DJ49: 0 | DK49: 0 | DL49: 0 | DM49: 0 | DN49: 0 | DO49: 0 | DP49: 0 | DQ49: 0 | DR49: 0 | DS49: 0 | DT49: 0 | DU49: 0 | DV49: 0 | DW49: 0 | DX49: 0 | DY49: 0 | DZ49: 0 | EA49: 0 | EB49: 0 | EC49: 0 | ED49: 0 | EE49: 0 | EF49: 0 | EG49: 0 | EH49: 0 | EI49: 0 | EJ49: 0 | EK49: 0 | EL49: 0 | EM49: 0 | EN49: 0 | EO49: 0 | EP49: 0 | EQ49: 0 | ER49: 0 | ES49: 952622.2633 | ET49: 0 | EU49: 0 | EV49: 0 | EW49: 0 | EX49: 0 | EY49: 0 | EZ49: 0 | FA49: 16722.11803 | FB49: 0 | FC49: 64868.9825 | FD49: 0 | FE49: 0 | FF49: 0 | FG49: 0 | FH49: 64868.9825 | FI49: 0 | FJ49: 8581.008682 | FK49: 0 | FL49: 9900.706679 | FM49: 97303.47376 | FN49: 97303.47376 | FO49: 0 | FP49: 0 | FQ49: 0 | FR49: 0 | FS49: 0 | FT49: 0 | FU49: 0 | FV49: 0 | FW49: 0 | FX49: 0 | FY49: 0 | FZ49: 0 | GA49: 0 | GB49: 0 | GC49: 0 | GD49: 0 | GE49: 0 | GF49: 0 | GG49: 0 | GH49: 0 | GI49: 0 | GJ49: 0 | GK49: 0 | GL49: 0 | GM49: 0 | GN49: 0 | GO49: 0 | GP49: 0 | GQ49: 0 | GR49: 0 | GS49: 0 | GT49: 0 | GU49: 0 | GV49: 0 | GW49: 0 | GX49: 0 | GY49: 0 | GZ49: 0 | HA49: 0 | HB49: 0 | HC49: 0 | HD49: 0 | HE49: 0 | HF49: 0 | HG49: 0 | HH49: 0 | HI49: 0 | HJ49: 0 | HK49: 0 | HL49: 0 | HM49: 0 | HN49: 0 | HO49: 0 | HP49: 0 | HQ49: 0 | HR49: 0 | HS49: 0 | HT49: 0 | HU49: 0 | HV49: 0 | HW49: 0 | HX49: 359548.7459 | HY49: TRUE | HZ49: TRUE | IA49: 0 | IB49: 0
A50: 1026 | B50: CAPEX | C50: Customer | E50: Standard Control | H50: CCustomer Initiated Substations | I50: CSUBC | J50: Customer Initiated Substations | K50: D | L50: 2026/27 | M50: 1 | N50: 0 | O50: 1113638.82 | Q50: 136754.8465 | R50: 653037.809 | S50: 142100.316 | T50: 16481.854 | U50: 2227.275 | V50: 163036.72 | W50: 2311.13 | Y50: Unit | AD50: CUS | AK50: =IFERROR(IF(AL50="Transmission",VLOOKUP(J50,'INCURRED & COMMISSIONED'!$B:$Z,13,FALSE),""),"") ->  | AL50: Distribution | AM50: Standard Control Services | AN50: Standard Control Services | AO50: Customer Initiated Works | AP50: CCustomer Initiated Substations | AQ50: CAPEX | AR50: Network | AS50: Development | AT50: Connection | AU50: =IFERROR($BD50/VLOOKUP("Grand Total",'Raw Data Expenditure analysis '!$A$5:$M$17,MATCH($L50,'Raw Data Expenditure analysis '!$A$5:$M$5,0),FALSE),0) -> 0.006543416698 | AV50: =IFERROR(IF(B50="Capex",$W50/VLOOKUP($AM50,'Raw Data Hrs analysis'!$A$33:$M$42,MATCH($L50,'Raw Data Hrs analysis'!$A$34:$M$34,0),FALSE),0),0) -> 0.008417247649 | AW50: 0 | AX50: =IFERROR(IF(B50="Opex",$BD50/VLOOKUP($AM50,'Raw Data Expenditure analysis '!$B$69:$M$80,MATCH($L50,'Raw Data Expenditure analysis '!$B$69:$M$69,0),FALSE),$BD50/VLOOKUP($AM50,'Raw Data Expenditure analysis '!$B$54:$M$65,MATCH($L50,'Raw Data Expenditure analysis '!$B$54:$M$54,0),FALSE)),0) -> 0.01164677753 | AY50: =IF(Inputs!$C$203=Inputs!$Q$204,((Q50)*(HLOOKUP($L50,Inputs!$E$208:$R$210,3,FALSE))),(Q50)) -> 139455.0068 | AZ50: =IF(Inputs!$C$203=Inputs!$Q$204,((R50)*(HLOOKUP($L50,Inputs!$E$214:$R$216,3,FALSE))),(R50)) -> 653037.809 | BA50: =IF(Inputs!$C$203=Inputs!$Q$204,((S50)*(HLOOKUP($L50,Inputs!$E$220:$R$222,3,FALSE))),(S50)) -> 142100.316 | BB50: =IF(Inputs!$C$203=Inputs!$Q$204,((T50)*(HLOOKUP($L50,Inputs!$E$226:$R$228,3,FALSE))),(T50)) -> 16481.854 | BC50: =IF(Inputs!$C$203=Inputs!$Q$204,((U50)*(HLOOKUP($L50,Inputs!$E$226:$R$228,3,FALSE))),(U50)) -> 2227.275 | BD50: 953302.2608 | BE50: =IFERROR(IF(B50="Opex",0,VLOOKUP($AM50,Inputs!$B$46:$R$54,MATCH(L50,Inputs!$B$46:$R$46,0),FALSE)*AV50),0) -> 79849.53386 | BF50: =IFERROR(IF(B50="Opex",0,VLOOKUP($AM50,Inputs!$B$101:$R$111,MATCH(L50,Inputs!$B$63:$R$63,0),FALSE))*AX50,0) -> 277663.3805 | BG50: 357512.9144 | BH50: 1310815.175 | BI50: =IFERROR(IF(B50="Opex",0,VLOOKUP($AM50,Inputs!$B$173:$R$181,MATCH(L50,Inputs!$B$123:$R$123,0),FALSE)*AX50),0) -> 232134.932 | BJ50: 1542950.107 | BK50: Distribution - CAPEX | BL50: =(($BD50)*(HLOOKUP($BL$1,Inputs!$B$32:$R$37,MATCH($BM$1,Inputs!$B$32:$B$37,0),FALSE))) -> 1000586.291 | BM50: =(($BG50)*(HLOOKUP($BL$1,Inputs!$B$32:$R$37,MATCH($BM$1,Inputs!$B$32:$B$37,0),FALSE))) -> 375245.6443 | BN50: 1375831.936 | BO50: 0 | BP50: 0 | BQ50: 0 | BR50: 0 | BS50: 0 | BT50: 0 | BU50: 0 | BV50: 44336.77799 | BW50: 0 | BX50: 171992.6669 | BY50: 0 | BZ50: 0 | CA50: 0 | CB50: 0 | CC50: 171992.6669 | CD50: 0 | CE50: 22751.56031 | CF50: 0 | CG50: 26250.58819 | CH50: 257989.0003 | CI50: 257989.0003 | CJ50: 0 | CK50: 0 | CL50: 0 | CM50: 0 | CN50: 0 | CO50: 0 | CP50: 0 | CQ50: 0 | CR50: 0 | CS50: 0 | CT50: 0 | CU50: 0 | CV50: 0 | CW50: 0 | CX50: 0 | CY50: 0 | CZ50: 0 | DA50: 0 | DB50: 0 | DC50: 0 | DD50: 0 | DE50: 0 | DF50: 0 | DG50: 0 | DH50: 0 | DI50: 0 | DJ50: 0 | DK50: 0 | DL50: 0 | DM50: 0 | DN50: 0 | DO50: 0 | DP50: 0 | DQ50: 0 | DR50: 0 | DS50: 0 | DT50: 0 | DU50: 0 | DV50: 0 | DW50: 0 | DX50: 0 | DY50: 0 | DZ50: 0 | EA50: 0 | EB50: 0 | EC50: 0 | ED50: 0 | EE50: 0 | EF50: 0 | EG50: 0 | EH50: 0 | EI50: 0 | EJ50: 0 | EK50: 0 | EL50: 0 | EM50: 0 | EN50: 0 | EO50: 0 | EP50: 0 | EQ50: 0 | ER50: 0 | ES50: 953302.2608 | ET50: 0 | EU50: 0 | EV50: 0 | EW50: 0 | EX50: 0 | EY50: 0 | EZ50: 0 | FA50: 16627.43431 | FB50: 0 | FC50: 64501.68232 | FD50: 0 | FE50: 0 | FF50: 0 | FG50: 0 | FH50: 64501.68232 | FI50: 0 | FJ50: 8532.421423 | FK50: 0 | FL50: 9844.647046 | FM50: 96752.52348 | FN50: 96752.52348 | FO50: 0 | FP50: 0 | FQ50: 0 | FR50: 0 | FS50: 0 | FT50: 0 | FU50: 0 | FV50: 0 | FW50: 0 | FX50: 0 | FY50: 0 | FZ50: 0 | GA50: 0 | GB50: 0 | GC50: 0 | GD50: 0 | GE50: 0 | GF50: 0 | GG50: 0 | GH50: 0 | GI50: 0 | GJ50: 0 | GK50: 0 | GL50: 0 | GM50: 0 | GN50: 0 | GO50: 0 | GP50: 0 | GQ50: 0 | GR50: 0 | GS50: 0 | GT50: 0 | GU50: 0 | GV50: 0 | GW50: 0 | GX50: 0 | GY50: 0 | GZ50: 0 | HA50: 0 | HB50: 0 | HC50: 0 | HD50: 0 | HE50: 0 | HF50: 0 | HG50: 0 | HH50: 0 | HI50: 0 | HJ50: 0 | HK50: 0 | HL50: 0 | HM50: 0 | HN50: 0 | HO50: 0 | HP50: 0 | HQ50: 0 | HR50: 0 | HS50: 0 | HT50: 0 | HU50: 0 | HV50: 0 | HW50: 0 | HX50: 357512.9144 | HY50: TRUE | HZ50: TRUE | IA50: 0 | IB50: 0
A51: 1026 | B51: CAPEX | C51: Customer | E51: Standard Control | H51: CCustomer Initiated Substations | I51: CSUBC | J51: Customer Initiated Substations | K51: D | L51: 2027/28 | M51: 1 | N51: 0 | O51: 1113638.82 | Q51: 136754.8465 | R51: 653037.809 | S51: 142100.316 | T51: 16481.854 | U51: 2227.275 | V51: 163036.72 | W51: 2311.13 | Y51: Unit | AD51: CUS | AK51: =IFERROR(IF(AL51="Transmission",VLOOKUP(J51,'INCURRED & COMMISSIONED'!$B:$Z,13,FALSE),""),"") ->  | AL51: Distribution | AM51: Standard Control Services | AN51: Standard Control Services | AO51: Customer Initiated Works | AP51: CCustomer Initiated Substations | AQ51: CAPEX | AR51: Network | AS51: Development | AT51: Connection | AU51: =IFERROR($BD51/VLOOKUP("Grand Total",'Raw Data Expenditure analysis '!$A$5:$M$17,MATCH($L51,'Raw Data Expenditure analysis '!$A$5:$M$5,0),FALSE),0) -> 0.006031084034 | AV51: =IFERROR(IF(B51="Capex",$W51/VLOOKUP($AM51,'Raw Data Hrs analysis'!$A$33:$M$42,MATCH($L51,'Raw Data Hrs analysis'!$A$34:$M$34,0),FALSE),0),0) -> 0.008308365003 | AW51: 0 | AX51: =IFERROR(IF(B51="Opex",$BD51/VLOOKUP($AM51,'Raw Data Expenditure analysis '!$B$69:$M$80,MATCH($L51,'Raw Data Expenditure analysis '!$B$69:$M$69,0),FALSE),$BD51/VLOOKUP($AM51,'Raw Data Expenditure analysis '!$B$54:$M$65,MATCH($L51,'Raw Data Expenditure analysis '!$B$54:$M$54,0),FALSE)),0) -> 0.01168189859 | AY51: =IF(Inputs!$C$203=Inputs!$Q$204,((Q51)*(HLOOKUP($L51,Inputs!$E$208:$R$210,3,FALSE))),(Q51)) -> 138098.3275 | AZ51: =IF(Inputs!$C$203=Inputs!$Q$204,((R51)*(HLOOKUP($L51,Inputs!$E$214:$R$216,3,FALSE))),(R51)) -> 653037.809 | BA51: =IF(Inputs!$C$203=Inputs!$Q$204,((S51)*(HLOOKUP($L51,Inputs!$E$220:$R$222,3,FALSE))),(S51)) -> 142100.316 | BB51: =IF(Inputs!$C$203=Inputs!$Q$204,((T51)*(HLOOKUP($L51,Inputs!$E$226:$R$228,3,FALSE))),(T51)) -> 16481.854 | BC51: =IF(Inputs!$C$203=Inputs!$Q$204,((U51)*(HLOOKUP($L51,Inputs!$E$226:$R$228,3,FALSE))),(U51)) -> 2227.275 | BD51: 951945.5815 | BE51: =IFERROR(IF(B51="Opex",0,VLOOKUP($AM51,Inputs!$B$46:$R$54,MATCH(L51,Inputs!$B$46:$R$46,0),FALSE)*AV51),0) -> 78816.62751 | BF51: =IFERROR(IF(B51="Opex",0,VLOOKUP($AM51,Inputs!$B$101:$R$111,MATCH(L51,Inputs!$B$63:$R$63,0),FALSE))*AX51,0) -> 278500.6791 | BG51: 357317.3066 | BH51: 1309262.888 | BI51: =IFERROR(IF(B51="Opex",0,VLOOKUP($AM51,Inputs!$B$173:$R$181,MATCH(L51,Inputs!$B$123:$R$123,0),FALSE)*AX51),0) -> 290032.3672 | BJ51: 1599295.255 | BK51: Distribution - CAPEX | BL51: =(($BD51)*(HLOOKUP($BL$1,Inputs!$B$32:$R$37,MATCH($BM$1,Inputs!$B$32:$B$37,0),FALSE))) -> 999162.3203 | BM51: =(($BG51)*(HLOOKUP($BL$1,Inputs!$B$32:$R$37,MATCH($BM$1,Inputs!$B$32:$B$37,0),FALSE))) -> 375040.3344 | BN51: 1374202.655 | BO51: 0 | BP51: 0 | BQ51: 0 | BR51: 0 | BS51: 0 | BT51: 0 | BU51: 0 | BV51: 44273.6807 | BW51: 0 | BX51: 171747.8978 | BY51: 0 | BZ51: 0 | CA51: 0 | CB51: 0 | CC51: 171747.8978 | CD51: 0 | CE51: 22719.18173 | CF51: 0 | CG51: 26213.23001 | CH51: 257621.8467 | CI51: 257621.8467 | CJ51: 0 | CK51: 0 | CL51: 0 | CM51: 0 | CN51: 0 | CO51: 0 | CP51: 0 | CQ51: 0 | CR51: 0 | CS51: 0 | CT51: 0 | CU51: 0 | CV51: 0 | CW51: 0 | CX51: 0 | CY51: 0 | CZ51: 0 | DA51: 0 | DB51: 0 | DC51: 0 | DD51: 0 | DE51: 0 | DF51: 0 | DG51: 0 | DH51: 0 | DI51: 0 | DJ51: 0 | DK51: 0 | DL51: 0 | DM51: 0 | DN51: 0 | DO51: 0 | DP51: 0 | DQ51: 0 | DR51: 0 | DS51: 0 | DT51: 0 | DU51: 0 | DV51: 0 | DW51: 0 | DX51: 0 | DY51: 0 | DZ51: 0 | EA51: 0 | EB51: 0 | EC51: 0 | ED51: 0 | EE51: 0 | EF51: 0 | EG51: 0 | EH51: 0 | EI51: 0 | EJ51: 0 | EK51: 0 | EL51: 0 | EM51: 0 | EN51: 0 | EO51: 0 | EP51: 0 | EQ51: 0 | ER51: 0 | ES51: 951945.5815 | ET51: 0 | EU51: 0 | EV51: 0 | EW51: 0 | EX51: 0 | EY51: 0 | EZ51: 0 | FA51: 16618.33686 | FB51: 0 | FC51: 64466.39121 | FD51: 0 | FE51: 0 | FF51: 0 | FG51: 0 | FH51: 64466.39121 | FI51: 0 | FJ51: 8527.753039 | FK51: 0 | FL51: 9839.260698 | FM51: 96699.58682 | FN51: 96699.58682 | FO51: 0 | FP51: 0 | FQ51: 0 | FR51: 0 | FS51: 0 | FT51: 0 | FU51: 0 | FV51: 0 | FW51: 0 | FX51: 0 | FY51: 0 | FZ51: 0 | GA51: 0 | GB51: 0 | GC51: 0 | GD51: 0 | GE51: 0 | GF51: 0 | GG51: 0 | GH51: 0 | GI51: 0 | GJ51: 0 | GK51: 0 | GL51: 0 | GM51: 0 | GN51: 0 | GO51: 0 | GP51: 0 | GQ51: 0 | GR51: 0 | GS51: 0 | GT51: 0 | GU51: 0 | GV51: 0 | GW51: 0 | GX51: 0 | GY51: 0 | GZ51: 0 | HA51: 0 | HB51: 0 | HC51: 0 | HD51: 0 | HE51: 0 | HF51: 0 | HG51: 0 | HH51: 0 | HI51: 0 | HJ51: 0 | HK51: 0 | HL51: 0 | HM51: 0 | HN51: 0 | HO51: 0 | HP51: 0 | HQ51: 0 | HR51: 0 | HS51: 0 | HT51: 0 | HU51: 0 | HV51: 0 | HW51: 0 | HX51: 357317.3066 | HY51: TRUE | HZ51: TRUE | IA51: 0 | IB51: 0
A52: 1026 | B52: CAPEX | C52: Customer | E52: Standard Control | H52: CCustomer Initiated Substations | I52: CSUBC | J52: Customer Initiated Substations | K52: D | L52: 2028/29 | M52: 1 | N52: 0 | O52: 1113638.82 | Q52: 136754.8465 | R52: 653037.809 | S52: 142100.316 | T52: 16481.854 | U52: 2227.275 | V52: 163036.72 | W52: 2311.13 | Y52: Unit | AD52: CUS | AK52: =IFERROR(IF(AL52="Transmission",VLOOKUP(J52,'INCURRED & COMMISSIONED'!$B:$Z,13,FALSE),""),"") ->  | AL52: Distribution | AM52: Standard Control Services | AN52: Standard Control Services | AO52: Customer Initiated Works | AP52: CCustomer Initiated Substations | AQ52: CAPEX | AR52: Network | AS52: Development | AT52: Connection | AU52: =IFERROR($BD52/VLOOKUP("Grand Total",'Raw Data Expenditure analysis '!$A$5:$M$17,MATCH($L52,'Raw Data Expenditure analysis '!$A$5:$M$5,0),FALSE),0) -> 0.006544967916 | AV52: =IFERROR(IF(B52="Capex",$W52/VLOOKUP($AM52,'Raw Data Hrs analysis'!$A$33:$M$42,MATCH($L52,'Raw Data Hrs analysis'!$A$34:$M$34,0),FALSE),0),0) -> 0.007669744702 | AW52: 0 | AX52: =IFERROR(IF(B52="Opex",$BD52/VLOOKUP($AM52,'Raw Data Expenditure analysis '!$B$69:$M$80,MATCH($L52,'Raw Data Expenditure analysis '!$B$69:$M$69,0),FALSE),$BD52/VLOOKUP($AM52,'Raw Data Expenditure analysis '!$B$54:$M$65,MATCH($L52,'Raw Data Expenditure analysis '!$B$54:$M$54,0),FALSE)),0) -> 0.0115075246 | AY52: =IF(Inputs!$C$203=Inputs!$Q$204,((Q52)*(HLOOKUP($L52,Inputs!$E$208:$R$210,3,FALSE))),(Q52)) -> 138775.0093 | AZ52: =IF(Inputs!$C$203=Inputs!$Q$204,((R52)*(HLOOKUP($L52,Inputs!$E$214:$R$216,3,FALSE))),(R52)) -> 653037.809 | BA52: =IF(Inputs!$C$203=Inputs!$Q$204,((S52)*(HLOOKUP($L52,Inputs!$E$220:$R$222,3,FALSE))),(S52)) -> 142100.316 | BB52: =IF(Inputs!$C$203=Inputs!$Q$204,((T52)*(HLOOKUP($L52,Inputs!$E$226:$R$228,3,FALSE))),(T52)) -> 16481.854 | BC52: =IF(Inputs!$C$203=Inputs!$Q$204,((U52)*(HLOOKUP($L52,Inputs!$E$226:$R$228,3,FALSE))),(U52)) -> 2227.275 | BD52: 952622.2633 | BE52: =IFERROR(IF(B52="Opex",0,VLOOKUP($AM52,Inputs!$B$46:$R$54,MATCH(L52,Inputs!$B$46:$R$46,0),FALSE)*AV52),0) -> 72758.40807 | BF52: =IFERROR(IF(B52="Opex",0,VLOOKUP($AM52,Inputs!$B$101:$R$111,MATCH(L52,Inputs!$B$63:$R$63,0),FALSE))*AX52,0) -> 274343.5404 | BG52: 347101.9485 | BH52: 1299724.212 | BI52: =IFERROR(IF(B52="Opex",0,VLOOKUP($AM52,Inputs!$B$173:$R$181,MATCH(L52,Inputs!$B$123:$R$123,0),FALSE)*AX52),0) -> 258743.6454 | BJ52: 1558467.857 | BK52: Distribution - CAPEX | BL52: =(($BD52)*(HLOOKUP($BL$1,Inputs!$B$32:$R$37,MATCH($BM$1,Inputs!$B$32:$B$37,0),FALSE))) -> 999872.5657 | BM52: =(($BG52)*(HLOOKUP($BL$1,Inputs!$B$32:$R$37,MATCH($BM$1,Inputs!$B$32:$B$37,0),FALSE))) -> 364318.2919 | BN52: 1364190.858 | BO52: 0 | BP52: 0 | BQ52: 0 | BR52: 0 | BS52: 0 | BT52: 0 | BU52: 0 | BV52: 44305.15224 | BW52: 0 | BX52: 171869.9832 | BY52: 0 | BZ52: 0 | CA52: 0 | CB52: 0 | CC52: 171869.9832 | CD52: 0 | CE52: 22735.33145 | CF52: 0 | CG52: 26231.86345 | CH52: 257804.9748 | CI52: 257804.9748 | CJ52: 0 | CK52: 0 | CL52: 0 | CM52: 0 | CN52: 0 | CO52: 0 | CP52: 0 | CQ52: 0 | CR52: 0 | CS52: 0 | CT52: 0 | CU52: 0 | CV52: 0 | CW52: 0 | CX52: 0 | CY52: 0 | CZ52: 0 | DA52: 0 | DB52: 0 | DC52: 0 | DD52: 0 | DE52: 0 | DF52: 0 | DG52: 0 | DH52: 0 | DI52: 0 | DJ52: 0 | DK52: 0 | DL52: 0 | DM52: 0 | DN52: 0 | DO52: 0 | DP52: 0 | DQ52: 0 | DR52: 0 | DS52: 0 | DT52: 0 | DU52: 0 | DV52: 0 | DW52: 0 | DX52: 0 | DY52: 0 | DZ52: 0 | EA52: 0 | EB52: 0 | EC52: 0 | ED52: 0 | EE52: 0 | EF52: 0 | EG52: 0 | EH52: 0 | EI52: 0 | EJ52: 0 | EK52: 0 | EL52: 0 | EM52: 0 | EN52: 0 | EO52: 0 | EP52: 0 | EQ52: 0 | ER52: 0 | ES52: 952622.2633 | ET52: 0 | EU52: 0 | EV52: 0 | EW52: 0 | EX52: 0 | EY52: 0 | EZ52: 0 | FA52: 16143.23459 | FB52: 0 | FC52: 62623.35908 | FD52: 0 | FE52: 0 | FF52: 0 | FG52: 0 | FH52: 62623.35908 | FI52: 0 | FJ52: 8283.952781 | FK52: 0 | FL52: 9557.965697 | FM52: 93935.03862 | FN52: 93935.03862 | FO52: 0 | FP52: 0 | FQ52: 0 | FR52: 0 | FS52: 0 | FT52: 0 | FU52: 0 | FV52: 0 | FW52: 0 | FX52: 0 | FY52: 0 | FZ52: 0 | GA52: 0 | GB52: 0 | GC52: 0 | GD52: 0 | GE52: 0 | GF52: 0 | GG52: 0 | GH52: 0 | GI52: 0 | GJ52: 0 | GK52: 0 | GL52: 0 | GM52: 0 | GN52: 0 | GO52: 0 | GP52: 0 | GQ52: 0 | GR52: 0 | GS52: 0 | GT52: 0 | GU52: 0 | GV52: 0 | GW52: 0 | GX52: 0 | GY52: 0 | GZ52: 0 | HA52: 0 | HB52: 0 | HC52: 0 | HD52: 0 | HE52: 0 | HF52: 0 | HG52: 0 | HH52: 0 | HI52: 0 | HJ52: 0 | HK52: 0 | HL52: 0 | HM52: 0 | HN52: 0 | HO52: 0 | HP52: 0 | HQ52: 0 | HR52: 0 | HS52: 0 | HT52: 0 | HU52: 0 | HV52: 0 | HW52: 0 | HX52: 347101.9485 | HY52: TRUE | HZ52: TRUE | IA52: 0 | IB52: 0
A53: 1041 | B53: CAPEX | C53: System Development | E53: Standard Control | H53: HV Feeder Upgrade - Capacity | I53: CAHVF | J53: Install/Augment Ground Mounted Voltage Regulator for Capacity | K53: A | L53: 2019/20 | M53: 0 | N53: 372769.58 | O53: 0 | Q53: 0 | R53: 0 | S53: 0 | T53: 0 | U53: 0 | V53: 0 | W53: 0 | Y53: Unit | AD53: REI | AK53: =IFERROR(IF(AL53="Transmission",VLOOKUP(J53,'INCURRED & COMMISSIONED'!$B:$Z,13,FALSE),""),"") ->  | AL53: Distribution | AM53: Standard Control Services | AN53: Standard Control Services | AO53: Reinforcement | AP53: HV Feeders | AQ53: Capex | AR53: Network | AS53: Development | AT53: Augmentation | AU53: =IFERROR($BD53/VLOOKUP("Grand Total",'Raw Data Expenditure analysis '!$A$5:$M$17,MATCH($L53,'Raw Data Expenditure analysis '!$A$5:$M$5,0),FALSE),0) -> 0 | AV53: =IFERROR(IF(B53="Capex",$W53/VLOOKUP($AM53,'Raw Data Hrs analysis'!$A$33:$M$42,MATCH($L53,'Raw Data Hrs analysis'!$A$34:$M$34,0),FALSE),0),0) -> 0 | AW53: 0 | AX53: =IFERROR(IF(B53="Opex",$BD53/VLOOKUP($AM53,'Raw Data Expenditure analysis '!$B$69:$M$80,MATCH($L53,'Raw Data Expenditure analysis '!$B$69:$M$69,0),FALSE),$BD53/VLOOKUP($AM53,'Raw Data Expenditure analysis '!$B$54:$M$65,MATCH($L53,'Raw Data Expenditure analysis '!$B$54:$M$54,0),FALSE)),0) -> 0 | AY53: =IF(Inputs!$C$203=Inputs!$Q$204,((Q53)*(HLOOKUP($L53,Inputs!$E$208:$R$210,3,FALSE))),(Q53)) -> 0 | AZ53: =IF(Inputs!$C$203=Inputs!$Q$204,((R53)*(HLOOKUP($L53,Inputs!$E$214:$R$216,3,FALSE))),(R53)) -> 0 | BA53: =IF(Inputs!$C$203=Inputs!$Q$204,((S53)*(HLOOKUP($L53,Inputs!$E$220:$R$222,3,FALSE))),(S53)) -> 0 | BB53: =IF(Inputs!$C$203=Inputs!$Q$204,((T53)*(HLOOKUP($L53,Inputs!$E$226:$R$228,3,FALSE))),(T53)) -> 0 | BC53: =IF(Inputs!$C$203=Inputs!$Q$204,((U53)*(HLOOKUP($L53,Inputs!$E$226:$R$228,3,FALSE))),(U53)) -> 0 | BD53: 0 | BE53: =IFERROR(IF(B53="Opex",0,VLOOKUP($AM53,Inputs!$B$46:$R$54,MATCH(L53,Inputs!$B$46:$R$46,0),FALSE)*AV53),0) -> 0 | BF53: =IFERROR(IF(B53="Opex",0,VLOOKUP($AM53,Inputs!$B$101:$R$111,MATCH(L53,Inputs!$B$63:$R$63,0),FALSE))*AX53,0) -> 0 | BG53: 0 | BH53: 0 | BI53: =IFERROR(IF(B53="Opex",0,VLOOKUP($AM53,Inputs!$B$173:$R$181,MATCH(L53,Inputs!$B$123:$R$123,0),FALSE)*AX53),0) -> 0 | BJ53: 0 | BK53: Distribution - CAPEX | BL53: =(($BD53)*(HLOOKUP($BL$1,Inputs!$B$32:$R$37,MATCH($BM$1,Inputs!$B$32:$B$37,0),FALSE))) -> 0 | BM53: =(($BG53)*(HLOOKUP($BL$1,Inputs!$B$32:$R$37,MATCH($BM$1,Inputs!$B$32:$B$37,0),FALSE))) -> 0 | BN53: 0 | BO53: 0 | BP53: 0 | BQ53: 0 | BR53: 0 | BS53: 0 | BT53: 0 | BU53: 0 | BV53: 0 | BW53: 0 | BX53: 0 | BY53: 0 | BZ53: 0 | CA53: 0 | CB53: 0 | CC53: 0 | CD53: 0 | CE53: 0 | CF53: 0 | CG53: 0 | CH53: 0 | CI53: 0 | CJ53: 0 | CK53: 0 | CL53: 0 | CM53: 0 | CN53: 0 | CO53: 0 | CP53: 0 | CQ53: 0 | CR53: 0 | CS53: 0 | CT53: 0 | CU53: 0 | CV53: 0 | CW53: 0 | CX53: 0 | CY53: 0 | CZ53: 0 | DA53: 0 | DB53: 0 | DC53: 0 | DD53: 0 | DE53: 0 | DF53: 0 | DG53: 0 | DH53: 0 | DI53: 0 | DJ53: 0 | DK53: 0 | DL53: 0 | DM53: 0 | DN53: 0 | DO53: 0 | DP53: 0 | DQ53: 0 | DR53: 0 | DS53: 0 | DT53: 0 | DU53: 0 | DV53: 0 | DW53: 0 | DX53: 0 | DY53: 0 | DZ53: 0 | EA53: 0 | EB53: 0 | EC53: 0 | ED53: 0 | EE53: 0 | EF53: 0 | EG53: 0 | EH53: 0 | EI53: 0 | EJ53: 0 | EK53: 0 | EL53: 0 | EM53: 0 | EN53: 0 | EO53: 0 | EP53: 0 | EQ53: 0 | ER53: 0 | ES53: 0 | ET53: 0 | EU53: 0 | EV53: 0 | EW53: 0 | EX53: 0 | EY53: 0 | EZ53: 0 | FA53: 0 | FB53: 0 | FC53: 0 | FD53: 0 | FE53: 0 | FF53: 0 | FG53: 0 | FH53: 0 | FI53: 0 | FJ53: 0 | FK53: 0 | FL53: 0 | FM53: 0 | FN53: 0 | FO53: 0 | FP53: 0 | FQ53: 0 | FR53: 0 | FS53: 0 | FT53: 0 | FU53: 0 | FV53: 0 | FW53: 0 | FX53: 0 | FY53: 0 | FZ53: 0 | GA53: 0 | GB53: 0 | GC53: 0 | GD53: 0 | GE53: 0 | GF53: 0 | GG53: 0 | GH53: 0 | GI53: 0 | GJ53: 0 | GK53: 0 | GL53: 0 | GM53: 0 | GN53: 0 | GO53: 0 | GP53: 0 | GQ53: 0 | GR53: 0 | GS53: 0 | GT53: 0 | GU53: 0 | GV53: 0 | GW53: 0 | GX53: 0 | GY53: 0 | GZ53: 0 | HA53: 0 | HB53: 0 | HC53: 0 | HD53: 0 | HE53: 0 | HF53: 0 | HG53: 0 | HH53: 0 | HI53: 0 | HJ53: 0 | HK53: 0 | HL53: 0 | HM53: 0 | HN53: 0 | HO53: 0 | HP53: 0 | HQ53: 0 | HR53: 0 | HS53: 0 | HT53: 0 | HU53: 0 | HV53: 0 | HW53: 0 | HX53: 0 | HY53: TRUE | HZ53: TRUE | IA53: 0 | IB53: 0
A54: 1041 | B54: CAPEX | C54: System Development | E54: Standard Control | H54: HV Feeder Upgrade - Capacity | I54: CAHVF | J54: Install/Augment Ground Mounted Voltage Regulator for Capacity | K54: A | L54: 2020/21 | M54: 0 | N54: 372769.58 | O54: 0 | Q54: 0 | R54: 0 | S54: 0 | T54: 0 | U54: 0 | V54: 0 | W54: 0 | Y54: Unit | AD54: REI | AK54: =IFERROR(IF(AL54="Transmission",VLOOKUP(J54,'INCURRED & COMMISSIONED'!$B:$Z,13,FALSE),""),"") ->  | AL54: Distribution | AM54: Standard Control Services | AN54: Standard Control Services | AO54: Reinforcement | AP54: HV Feeders | AQ54: Capex | AR54: Network | AS54: Development | AT54: Augmentation | AU54: =IFERROR($BD54/VLOOKUP("Grand Total",'Raw Data Expenditure analysis '!$A$5:$M$17,MATCH($L54,'Raw Data Expenditure analysis '!$A$5:$M$5,0),FALSE),0) -> 0 | AV54: =IFERROR(IF(B54="Capex",$W54/VLOOKUP($AM54,'Raw Data Hrs analysis'!$A$33:$M$42,MATCH($L54,'Raw Data Hrs analysis'!$A$34:$M$34,0),FALSE),0),0) -> 0 | AW54: 0 | AX54: =IFERROR(IF(B54="Opex",$BD54/VLOOKUP($AM54,'Raw Data Expenditure analysis '!$B$69:$M$80,MATCH($L54,'Raw Data Expenditure analysis '!$B$69:$M$69,0),FALSE),$BD54/VLOOKUP($AM54,'Raw Data Expenditure analysis '!$B$54:$M$65,MATCH($L54,'Raw Data Expenditure analysis '!$B$54:$M$54,0),FALSE)),0) -> 0 | AY54: =IF(Inputs!$C$203=Inputs!$Q$204,((Q54)*(HLOOKUP($L54,Inputs!$E$208:$R$210,3,FALSE))),(Q54)) -> 0 | AZ54: =IF(Inputs!$C$203=Inputs!$Q$204,((R54)*(HLOOKUP($L54,Inputs!$E$214:$R$216,3,FALSE))),(R54)) -> 0 | BA54: =IF(Inputs!$C$203=Inputs!$Q$204,((S54)*(HLOOKUP($L54,Inputs!$E$220:$R$222,3,FALSE))),(S54)) -> 0 | BB54: =IF(Inputs!$C$203=Inputs!$Q$204,((T54)*(HLOOKUP($L54,Inputs!$E$226:$R$228,3,FALSE))),(T54)) -> 0 | BC54: =IF(Inputs!$C$203=Inputs!$Q$204,((U54)*(HLOOKUP($L54,Inputs!$E$226:$R$228,3,FALSE))),(U54)) -> 0 | BD54: 0 | BE54: =IFERROR(IF(B54="Opex",0,VLOOKUP($AM54,Inputs!$B$46:$R$54,MATCH(L54,Inputs!$B$46:$R$46,0),FALSE)*AV54),0) -> 0 | BF54: =IFERROR(IF(B54="Opex",0,VLOOKUP($AM54,Inputs!$B$101:$R$111,MATCH(L54,Inputs!$B$63:$R$63,0),FALSE))*AX54,0) -> 0 | BG54: 0 | BH54: 0 | BI54: =IFERROR(IF(B54="Opex",0,VLOOKUP($AM54,Inputs!$B$173:$R$181,MATCH(L54,Inputs!$B$123:$R$123,0),FALSE)*AX54),0) -> 0 | BJ54: 0 | BK54: Distribution - CAPEX | BL54: =(($BD54)*(HLOOKUP($BL$1,Inputs!$B$32:$R$37,MATCH($BM$1,Inputs!$B$32:$B$37,0),FALSE))) -> 0 | BM54: =(($BG54)*(HLOOKUP($BL$1,Inputs!$B$32:$R$37,MATCH($BM$1,Inputs!$B$32:$B$37,0),FALSE))) -> 0 | BN54: 0 | BO54: 0 | BP54: 0 | BQ54: 0 | BR54: 0 | BS54: 0 | BT54: 0 | BU54: 0 | BV54: 0 | BW54: 0 | BX54: 0 | BY54: 0 | BZ54: 0 | CA54: 0 | CB54: 0 | CC54: 0 | CD54: 0 | CE54: 0 | CF54: 0 | CG54: 0 | CH54: 0 | CI54: 0 | CJ54: 0 | CK54: 0 | CL54: 0 | CM54: 0 | CN54: 0 | CO54: 0 | CP54: 0 | CQ54: 0 | CR54: 0 | CS54: 0 | CT54: 0 | CU54: 0 | CV54: 0 | CW54: 0 | CX54: 0 | CY54: 0 | CZ54: 0 | DA54: 0 | DB54: 0 | DC54: 0 | DD54: 0 | DE54: 0 | DF54: 0 | DG54: 0 | DH54: 0 | DI54: 0 | DJ54: 0 | DK54: 0 | DL54: 0 | DM54: 0 | DN54: 0 | DO54: 0 | DP54: 0 | DQ54: 0 | DR54: 0 | DS54: 0 | DT54: 0 | DU54: 0 | DV54: 0 | DW54: 0 | DX54: 0 | DY54: 0 | DZ54: 0 | EA54: 0 | EB54: 0 | EC54: 0 | ED54: 0 | EE54: 0 | EF54: 0 | EG54: 0 | EH54: 0 | EI54: 0 | EJ54: 0 | EK54: 0 | EL54: 0 | EM54: 0 | EN54: 0 | EO54: 0 | EP54: 0 | EQ54: 0 | ER54: 0 | ES54: 0 | ET54: 0 | EU54: 0 | EV54: 0 | EW54: 0 | EX54: 0 | EY54: 0 | EZ54: 0 | FA54: 0 | FB54: 0 | FC54: 0 | FD54: 0 | FE54: 0 | FF54: 0 | FG54: 0 | FH54: 0 | FI54: 0 | FJ54: 0 | FK54: 0 | FL54: 0 | FM54: 0 | FN54: 0 | FO54: 0 | FP54: 0 | FQ54: 0 | FR54: 0 | FS54: 0 | FT54: 0 | FU54: 0 | FV54: 0 | FW54: 0 | FX54: 0 | FY54: 0 | FZ54: 0 | GA54: 0 | GB54: 0 | GC54: 0 | GD54: 0 | GE54: 0 | GF54: 0 | GG54: 0 | GH54: 0 | GI54: 0 | GJ54: 0 | GK54: 0 | GL54: 0 | GM54: 0 | GN54: 0 | GO54: 0 | GP54: 0 | GQ54: 0 | GR54: 0 | GS54: 0 | GT54: 0 | GU54: 0 | GV54: 0 | GW54: 0 | GX54: 0 | GY54: 0 | GZ54: 0 | HA54: 0 | HB54: 0 | HC54: 0 | HD54: 0 | HE54: 0 | HF54: 0 | HG54: 0 | HH54: 0 | HI54: 0 | HJ54: 0 | HK54: 0 | HL54: 0 | HM54: 0 | HN54: 0 | HO54: 0 | HP54: 0 | HQ54: 0 | HR54: 0 | HS54: 0 | HT54: 0 | HU54: 0 | HV54: 0 | HW54: 0 | HX54: 0 | HY54: TRUE | HZ54: TRUE | IA54: 0 | IB54: 0
A55: 1041 | B55: CAPEX | C55: System Development | E55: Standard Control | H55: HV Feeder Upgrade - Capacity | I55: CAHVF | J55: Install/Augment Ground Mounted Voltage Regulator for Capacity | K55: A | L55: 2021/22 | M55: 0 | N55: 372769.58 | O55: 0 | Q55: 0 | R55: 0 | S55: 0 | T55: 0 | U55: 0 | V55: 0 | W55: 0 | Y55: Unit | AD55: REI | AK55: =IFERROR(IF(AL55="Transmission",VLOOKUP(J55,'INCURRED & COMMISSIONED'!$B:$Z,13,FALSE),""),"") ->  | AL55: Distribution | AM55: Standard Control Services | AN55: Standard Control Services | AO55: Reinforcement | AP55: HV Feeders | AQ55: Capex | AR55: Network | AS55: Development | AT55: Augmentation | AU55: =IFERROR($BD55/VLOOKUP("Grand Total",'Raw Data Expenditure analysis '!$A$5:$M$17,MATCH($L55,'Raw Data Expenditure analysis '!$A$5:$M$5,0),FALSE),0) -> 0 | AV55: =IFERROR(IF(B55="Capex",$W55/VLOOKUP($AM55,'Raw Data Hrs analysis'!$A$33:$M$42,MATCH($L55,'Raw Data Hrs analysis'!$A$34:$M$34,0),FALSE),0),0) -> 0 | AW55: 0 | AX55: =IFERROR(IF(B55="Opex",$BD55/VLOOKUP($AM55,'Raw Data Expenditure analysis '!$B$69:$M$80,MATCH($L55,'Raw Data Expenditure analysis '!$B$69:$M$69,0),FALSE),$BD55/VLOOKUP($AM55,'Raw Data Expenditure analysis '!$B$54:$M$65,MATCH($L55,'Raw Data Expenditure analysis '!$B$54:$M$54,0),FALSE)),0) -> 0 | AY55: =IF(Inputs!$C$203=Inputs!$Q$204,((Q55)*(HLOOKUP($L55,Inputs!$E$208:$R$210,3,FALSE))),(Q55)) -> 0 | AZ55: =IF(Inputs!$C$203=Inputs!$Q$204,((R55)*(HLOOKUP($L55,Inputs!$E$214:$R$216,3,FALSE))),(R55)) -> 0 | BA55: =IF(Inputs!$C$203=Inputs!$Q$204,((S55)*(HLOOKUP($L55,Inputs!$E$220:$R$222,3,FALSE))),(S55)) -> 0 | BB55: =IF(Inputs!$C$203=Inputs!$Q$204,((T55)*(HLOOKUP($L55,Inputs!$E$226:$R$228,3,FALSE))),(T55)) -> 0 | BC55: =IF(Inputs!$C$203=Inputs!$Q$204,((U55)*(HLOOKUP($L55,Inputs!$E$226:$R$228,3,FALSE))),(U55)) -> 0 | BD55: 0 | BE55: =IFERROR(IF(B55="Opex",0,VLOOKUP($AM55,Inputs!$B$46:$R$54,MATCH(L55,Inputs!$B$46:$R$46,0),FALSE)*AV55),0) -> 0 | BF55: =IFERROR(IF(B55="Opex",0,VLOOKUP($AM55,Inputs!$B$101:$R$111,MATCH(L55,Inputs!$B$63:$R$63,0),FALSE))*AX55,0) -> 0 | BG55: 0 | BH55: 0 | BI55: =IFERROR(IF(B55="Opex",0,VLOOKUP($AM55,Inputs!$B$173:$R$181,MATCH(L55,Inputs!$B$123:$R$123,0),FALSE)*AX55),0) -> 0 | BJ55: 0 | BK55: Distribution - CAPEX | BL55: =(($BD55)*(HLOOKUP($BL$1,Inputs!$B$32:$R$37,MATCH($BM$1,Inputs!$B$32:$B$37,0),FALSE))) -> 0 | BM55: =(($BG55)*(HLOOKUP($BL$1,Inputs!$B$32:$R$37,MATCH($BM$1,Inputs!$B$32:$B$37,0),FALSE))) -> 0 | BN55: 0 | BO55: 0 | BP55: 0 | BQ55: 0 | BR55: 0 | BS55: 0 | BT55: 0 | BU55: 0 | BV55: 0 | BW55: 0 | BX55: 0 | BY55: 0 | BZ55: 0 | CA55: 0 | CB55: 0 | CC55: 0 | CD55: 0 | CE55: 0 | CF55: 0 | CG55: 0 | CH55: 0 | CI55: 0 | CJ55: 0 | CK55: 0 | CL55: 0 | CM55: 0 | CN55: 0 | CO55: 0 | CP55: 0 | CQ55: 0 | CR55: 0 | CS55: 0 | CT55: 0 | CU55: 0 | CV55: 0 | CW55: 0 | CX55: 0 | CY55: 0 | CZ55: 0 | DA55: 0 | DB55: 0 | DC55: 0 | DD55: 0 | DE55: 0 | DF55: 0 | DG55: 0 | DH55: 0 | DI55: 0 | DJ55: 0 | DK55: 0 | DL55: 0 | DM55: 0 | DN55: 0 | DO55: 0 | DP55: 0 | DQ55: 0 | DR55: 0 | DS55: 0 | DT55: 0 | DU55: 0 | DV55: 0 | DW55: 0 | DX55: 0 | DY55: 0 | DZ55: 0 | EA55: 0 | EB55: 0 | EC55: 0 | ED55: 0 | EE55: 0 | EF55: 0 | EG55: 0 | EH55: 0 | EI55: 0 | EJ55: 0 | EK55: 0 | EL55: 0 | EM55: 0 | EN55: 0 | EO55: 0 | EP55: 0 | EQ55: 0 | ER55: 0 | ES55: 0 | ET55: 0 | EU55: 0 | EV55: 0 | EW55: 0 | EX55: 0 | EY55: 0 | EZ55: 0 | FA55: 0 | FB55: 0 | FC55: 0 | FD55: 0 | FE55: 0 | FF55: 0 | FG55: 0 | FH55: 0 | FI55: 0 | FJ55: 0 | FK55: 0 | FL55: 0 | FM55: 0 | FN55: 0 | FO55: 0 | FP55: 0 | FQ55: 0 | FR55: 0 | FS55: 0 | FT55: 0 | FU55: 0 | FV55: 0 | FW55: 0 | FX55: 0 | FY55: 0 | FZ55: 0 | GA55: 0 | GB55: 0 | GC55: 0 | GD55: 0 | GE55: 0 | GF55: 0 | GG55: 0 | GH55: 0 | GI55: 0 | GJ55: 0 | GK55: 0 | GL55: 0 | GM55: 0 | GN55: 0 | GO55: 0 | GP55: 0 | GQ55: 0 | GR55: 0 | GS55: 0 | GT55: 0 | GU55: 0 | GV55: 0 | GW55: 0 | GX55: 0 | GY55: 0 | GZ55: 0 | HA55: 0 | HB55: 0 | HC55: 0 | HD55: 0 | HE55: 0 | HF55: 0 | HG55: 0 | HH55: 0 | HI55: 0 | HJ55: 0 | HK55: 0 | HL55: 0 | HM55: 0 | HN55: 0 | HO55: 0 | HP55: 0 | HQ55: 0 | HR55: 0 | HS55: 0 | HT55: 0 | HU55: 0 | HV55: 0 | HW55: 0 | HX55: 0 | HY55: TRUE | HZ55: TRUE | IA55: 0 | IB55: 0
A56: 1041 | B56: CAPEX | C56: System Development | E56: Standard Control | H56: HV Feeder Upgrade - Capacity | I56: CAHVF | J56: Install/Augment Ground Mounted Voltage Regulator for Capacity | K56: A | L56: 2022/23 | M56: 0 | N56: 372769.58 | O56: 0 | Q56: 0 | R56: 0 | S56: 0 | T56: 0 | U56: 0 | V56: 0 | W56: 0 | Y56: Unit | AD56: REI | AK56: =IFERROR(IF(AL56="Transmission",VLOOKUP(J56,'INCURRED & COMMISSIONED'!$B:$Z,13,FALSE),""),"") ->  | AL56: Distribution | AM56: Standard Control Services | AN56: Standard Control Services | AO56: Reinforcement | AP56: HV Feeders | AQ56: Capex | AR56: Network | AS56: Development | AT56: Augmentation | AU56: =IFERROR($BD56/VLOOKUP("Grand Total",'Raw Data Expenditure analysis '!$A$5:$M$17,MATCH($L56,'Raw Data Expenditure analysis '!$A$5:$M$5,0),FALSE),0) -> 0 | AV56: =IFERROR(IF(B56="Capex",$W56/VLOOKUP($AM56,'Raw Data Hrs analysis'!$A$33:$M$42,MATCH($L56,'Raw Data Hrs analysis'!$A$34:$M$34,0),FALSE),0),0) -> 0 | AW56: 0 | AX56: =IFERROR(IF(B56="Opex",$BD56/VLOOKUP($AM56,'Raw Data Expenditure analysis '!$B$69:$M$80,MATCH($L56,'Raw Data Expenditure analysis '!$B$69:$M$69,0),FALSE),$BD56/VLOOKUP($AM56,'Raw Data Expenditure analysis '!$B$54:$M$65,MATCH($L56,'Raw Data Expenditure analysis '!$B$54:$M$54,0),FALSE)),0) -> 0 | AY56: =IF(Inputs!$C$203=Inputs!$Q$204,((Q56)*(HLOOKUP($L56,Inputs!$E$208:$R$210,3,FALSE))),(Q56)) -> 0 | AZ56: =IF(Inputs!$C$203=Inputs!$Q$204,((R56)*(HLOOKUP($L56,Inputs!$E$214:$R$216,3,FALSE))),(R56)) -> 0 | BA56: =IF(Inputs!$C$203=Inputs!$Q$204,((S56)*(HLOOKUP($L56,Inputs!$E$220:$R$222,3,FALSE))),(S56)) -> 0 | BB56: =IF(Inputs!$C$203=Inputs!$Q$204,((T56)*(HLOOKUP($L56,Inputs!$E$226:$R$228,3,FALSE))),(T56)) -> 0 | BC56: =IF(Inputs!$C$203=Inputs!$Q$204,((U56)*(HLOOKUP($L56,Inputs!$E$226:$R$228,3,FALSE))),(U56)) -> 0 | BD56: 0 | BE56: =IFERROR(IF(B56="Opex",0,VLOOKUP($AM56,Inputs!$B$46:$R$54,MATCH(L56,Inputs!$B$46:$R$46,0),FALSE)*AV56),0) -> 0 | BF56: =IFERROR(IF(B56="Opex",0,VLOOKUP($AM56,Inputs!$B$101:$R$111,MATCH(L56,Inputs!$B$63:$R$63,0),FALSE))*AX56,0) -> 0 | BG56: 0 | BH56: 0 | BI56: =IFERROR(IF(B56="Opex",0,VLOOKUP($AM56,Inputs!$B$173:$R$181,MATCH(L56,Inputs!$B$123:$R$123,0),FALSE)*AX56),0) -> 0 | BJ56: 0 | BK56: Distribution - CAPEX | BL56: =(($BD56)*(HLOOKUP($BL$1,Inputs!$B$32:$R$37,MATCH($BM$1,Inputs!$B$32:$B$37,0),FALSE))) -> 0 | BM56: =(($BG56)*(HLOOKUP($BL$1,Inputs!$B$32:$R$37,MATCH($BM$1,Inputs!$B$32:$B$37,0),FALSE))) -> 0 | BN56: 0 | BO56: 0 | BP56: 0 | BQ56: 0 | BR56: 0 | BS56: 0 | BT56: 0 | BU56: 0 | BV56: 0 | BW56: 0 | BX56: 0 | BY56: 0 | BZ56: 0 | CA56: 0 | CB56: 0 | CC56: 0 | CD56: 0 | CE56: 0 | CF56: 0 | CG56: 0 | CH56: 0 | CI56: 0 | CJ56: 0 | CK56: 0 | CL56: 0 | CM56: 0 | CN56: 0 | CO56: 0 | CP56: 0 | CQ56: 0 | CR56: 0 | CS56: 0 | CT56: 0 | CU56: 0 | CV56: 0 | CW56: 0 | CX56: 0 | CY56: 0 | CZ56: 0 | DA56: 0 | DB56: 0 | DC56: 0 | DD56: 0 | DE56: 0 | DF56: 0 | DG56: 0 | DH56: 0 | DI56: 0 | DJ56: 0 | DK56: 0 | DL56: 0 | DM56: 0 | DN56: 0 | DO56: 0 | DP56: 0 | DQ56: 0 | DR56: 0 | DS56: 0 | DT56: 0 | DU56: 0 | DV56: 0 | DW56: 0 | DX56: 0 | DY56: 0 | DZ56: 0 | EA56: 0 | EB56: 0 | EC56: 0 | ED56: 0 | EE56: 0 | EF56: 0 | EG56: 0 | EH56: 0 | EI56: 0 | EJ56: 0 | EK56: 0 | EL56: 0 | EM56: 0 | EN56: 0 | EO56: 0 | EP56: 0 | EQ56: 0 | ER56: 0 | ES56: 0 | ET56: 0 | EU56: 0 | EV56: 0 | EW56: 0 | EX56: 0 | EY56: 0 | EZ56: 0 | FA56: 0 | FB56: 0 | FC56: 0 | FD56: 0 | FE56: 0 | FF56: 0 | FG56: 0 | FH56: 0 | FI56: 0 | FJ56: 0 | FK56: 0 | FL56: 0 | FM56: 0 | FN56: 0 | FO56: 0 | FP56: 0 | FQ56: 0 | FR56: 0 | FS56: 0 | FT56: 0 | FU56: 0 | FV56: 0 | FW56: 0 | FX56: 0 | FY56: 0 | FZ56: 0 | GA56: 0 | GB56: 0 | GC56: 0 | GD56: 0 | GE56: 0 | GF56: 0 | GG56: 0 | GH56: 0 | GI56: 0 | GJ56: 0 | GK56: 0 | GL56: 0 | GM56: 0 | GN56: 0 | GO56: 0 | GP56: 0 | GQ56: 0 | GR56: 0 | GS56: 0 | GT56: 0 | GU56: 0 | GV56: 0 | GW56: 0 | GX56: 0 | GY56: 0 | GZ56: 0 | HA56: 0 | HB56: 0 | HC56: 0 | HD56: 0 | HE56: 0 | HF56: 0 | HG56: 0 | HH56: 0 | HI56: 0 | HJ56: 0 | HK56: 0 | HL56: 0 | HM56: 0 | HN56: 0 | HO56: 0 | HP56: 0 | HQ56: 0 | HR56: 0 | HS56: 0 | HT56: 0 | HU56: 0 | HV56: 0 | HW56: 0 | HX56: 0 | HY56: TRUE | HZ56: TRUE | IA56: 0 | IB56: 0
A57: 1041 | B57: CAPEX | C57: System Development | E57: Standard Control | H57: HV Feeder Upgrade - Capacity | I57: CAHVF | J57: Install/Augment Ground Mounted Voltage Regulator for Capacity | K57: A | L57: 2023/24 | M57: 1 | N57: 372769.58 | O57: 354131.101 | Q57: 67886.9335 | R57: 117075.739 | S57: 84176.9635 | T57: 11403.021 | U57: 5170.318 | V57: 68418.126 | W57: 1170.72 | Y57: Unit | AD57: REI | AK57: =IFERROR(IF(AL57="Transmission",VLOOKUP(J57,'INCURRED & COMMISSIONED'!$B:$Z,13,FALSE),""),"") ->  | AL57: Distribution | AM57: Standard Control Services | AN57: Standard Control Services | AO57: Reinforcement | AP57: HV Feeders | AQ57: Capex | AR57: Network | AS57: Development | AT57: Augmentation | AU57: =IFERROR($BD57/VLOOKUP("Grand Total",'Raw Data Expenditure analysis '!$A$5:$M$17,MATCH($L57,'Raw Data Expenditure analysis '!$A$5:$M$5,0),FALSE),0) -> 0.001898303056 | AV57: =IFERROR(IF(B57="Capex",$W57/VLOOKUP($AM57,'Raw Data Hrs analysis'!$A$33:$M$42,MATCH($L57,'Raw Data Hrs analysis'!$A$34:$M$34,0),FALSE),0),0) -> 0.00397160293 | AW57: 0 | AX57: =IFERROR(IF(B57="Opex",$BD57/VLOOKUP($AM57,'Raw Data Expenditure analysis '!$B$69:$M$80,MATCH($L57,'Raw Data Expenditure analysis '!$B$69:$M$69,0),FALSE),$BD57/VLOOKUP($AM57,'Raw Data Expenditure analysis '!$B$54:$M$65,MATCH($L57,'Raw Data Expenditure analysis '!$B$54:$M$54,0),FALSE)),0) -> 0.00346713867 | AY57: =IF(Inputs!$C$203=Inputs!$Q$204,((Q57)*(HLOOKUP($L57,Inputs!$E$208:$R$210,3,FALSE))),(Q57)) -> 69227.32917 | AZ57: =IF(Inputs!$C$203=Inputs!$Q$204,((R57)*(HLOOKUP($L57,Inputs!$E$214:$R$216,3,FALSE))),(R57)) -> 117075.739 | BA57: =IF(Inputs!$C$203=Inputs!$Q$204,((S57)*(HLOOKUP($L57,Inputs!$E$220:$R$222,3,FALSE))),(S57)) -> 84176.9635 | BB57: =IF(Inputs!$C$203=Inputs!$Q$204,((T57)*(HLOOKUP($L57,Inputs!$E$226:$R$228,3,FALSE))),(T57)) -> 11403.021 | BC57: =IF(Inputs!$C$203=Inputs!$Q$204,((U57)*(HLOOKUP($L57,Inputs!$E$226:$R$228,3,FALSE))),(U57)) -> 5170.318 | BD57: 287053.3707 | BE57: =IFERROR(IF(B57="Opex",0,VLOOKUP($AM57,Inputs!$B$46:$R$54,MATCH(L57,Inputs!$B$46:$R$46,0),FALSE)*AV57),0) -> 37676.28753 | BF57: =IFERROR(IF(B57="Opex",0,VLOOKUP($AM57,Inputs!$B$101:$R$111,MATCH(L57,Inputs!$B$63:$R$63,0),FALSE))*AX57,0) -> 82657.83742 | BG57: 120334.125 | BH57: 407387.4956 | BI57: =IFERROR(IF(B57="Opex",0,VLOOKUP($AM57,Inputs!$B$173:$R$181,MATCH(L57,Inputs!$B$123:$R$123,0),FALSE)*AX57),0) -> 109508.9657 | BJ57: 516896.4614 | BK57: Distribution - CAPEX | BL57: =(($BD57)*(HLOOKUP($BL$1,Inputs!$B$32:$R$37,MATCH($BM$1,Inputs!$B$32:$B$37,0),FALSE))) -> 301291.2896 | BM57: =(($BG57)*(HLOOKUP($BL$1,Inputs!$B$32:$R$37,MATCH($BM$1,Inputs!$B$32:$B$37,0),FALSE))) -> 126302.7276 | BN57: 427594.0173 | BO57: 0 | BP57: 0 | BQ57: 0 | BR57: 0 | BS57: 0 | BT57: 11482.13483 | BU57: 4305.80056 | BV57: 144961.9522 | BW57: 0 | BX57: 126303.4831 | BY57: 0 | BZ57: 0 | CA57: 0 | CB57: 0 | CC57: 0 | CD57: 0 | CE57: 0 | CF57: 0 | CG57: 0 | CH57: 0 | CI57: 0 | CJ57: 0 | CK57: 0 | CL57: 0 | CM57: 0 | CN57: 0 | CO57: 0 | CP57: 0 | CQ57: 0 | CR57: 0 | CS57: 0 | CT57: 0 | CU57: 0 | CV57: 0 | CW57: 0 | CX57: 0 | CY57: 0 | CZ57: 0 | DA57: 0 | DB57: 0 | DC57: 0 | DD57: 0 | DE57: 0 | DF57: 0 | DG57: 0 | DH57: 0 | DI57: 0 | DJ57: 0 | DK57: 0 | DL57: 0 | DM57: 0 | DN57: 0 | DO57: 0 | DP57: 0 | DQ57: 0 | DR57: 0 | DS57: 0 | DT57: 0 | DU57: 0 | DV57: 0 | DW57: 0 | DX57: 0 | DY57: 0 | DZ57: 0 | EA57: 0 | EB57: 0 | EC57: 0 | ED57: 0 | EE57: 0 | EF57: 0 | EG57: 0 | EH57: 0 | EI57: 0 | EJ57: 0 | EK57: 0 | EL57: 0 | EM57: 0 | EN57: 0 | EO57: 0 | EP57: 0 | EQ57: 0 | ER57: 0 | ES57: 287053.3707 | ET57: 0 | EU57: 0 | EV57: 0 | EW57: 0 | EX57: 0 | EY57: 4813.364998 | EZ57: 1805.011874 | FA57: 60768.7331 | FB57: 0 | FC57: 52947.01498 | FD57: 0 | FE57: 0 | FF57: 0 | FG57: 0 | FH57: 0 | FI57: 0 | FJ57: 0 | FK57: 0 | FL57: 0 | FM57: 0 | FN57: 0 | FO57: 0 | FP57: 0 | FQ57: 0 | FR57: 0 | FS57: 0 | FT57: 0 | FU57: 0 | FV57: 0 | FW57: 0 | FX57: 0 | FY57: 0 | FZ57: 0 | GA57: 0 | GB57: 0 | GC57: 0 | GD57: 0 | GE57: 0 | GF57: 0 | GG57: 0 | GH57: 0 | GI57: 0 | GJ57: 0 | GK57: 0 | GL57: 0 | GM57: 0 | GN57: 0 | GO57: 0 | GP57: 0 | GQ57: 0 | GR57: 0 | GS57: 0 | GT57: 0 | GU57: 0 | GV57: 0 | GW57: 0 | GX57: 0 | GY57: 0 | GZ57: 0 | HA57: 0 | HB57: 0 | HC57: 0 | HD57: 0 | HE57: 0 | HF57: 0 | HG57: 0 | HH57: 0 | HI57: 0 | HJ57: 0 | HK57: 0 | HL57: 0 | HM57: 0 | HN57: 0 | HO57: 0 | HP57: 0 | HQ57: 0 | HR57: 0 | HS57: 0 | HT57: 0 | HU57: 0 | HV57: 0 | HW57: 0 | HX57: 120334.125 | HY57: TRUE | HZ57: TRUE | IA57: 0 | IB57: 0
A58: 1041 | B58: CAPEX | C58: System Development | E58: Standard Control | H58: HV Feeder Upgrade - Capacity | I58: CAHVF | J58: Install/Augment Ground Mounted Voltage Regulator for Capacity | K58: A | L58: 2024/25 | M58: 0 | N58: 372769.58 | O58: 0 | Q58: 0 | R58: 0 | S58: 0 | T58: 0 | U58: 0 | V58: 0 | W58: 0 | Y58: Unit | AD58: REI | AK58: =IFERROR(IF(AL58="Transmission",VLOOKUP(J58,'INCURRED & COMMISSIONED'!$B:$Z,13,FALSE),""),"") ->  | AL58: Distribution | AM58: Standard Control Services | AN58: Standard Control Services | AO58: Reinforcement | AP58: HV Feeders | AQ58: Capex | AR58: Network | AS58: Development | AT58: Augmentation | AU58: =IFERROR($BD58/VLOOKUP("Grand Total",'Raw Data Expenditure analysis '!$A$5:$M$17,MATCH($L58,'Raw Data Expenditure analysis '!$A$5:$M$5,0),FALSE),0) -> 0 | AV58: =IFERROR(IF(B58="Capex",$W58/VLOOKUP($AM58,'Raw Data Hrs analysis'!$A$33:$M$42,MATCH($L58,'Raw Data Hrs analysis'!$A$34:$M$34,0),FALSE),0),0) -> 0 | AW58: 0 | AX58: =IFERROR(IF(B58="Opex",$BD58/VLOOKUP($AM58,'Raw Data Expenditure analysis '!$B$69:$M$80,MATCH($L58,'Raw Data Expenditure analysis '!$B$69:$M$69,0),FALSE),$BD58/VLOOKUP($AM58,'Raw Data Expenditure analysis '!$B$54:$M$65,MATCH($L58,'Raw Data Expenditure analysis '!$B$54:$M$54,0),FALSE)),0) -> 0 | AY58: =IF(Inputs!$C$203=Inputs!$Q$204,((Q58)*(HLOOKUP($L58,Inputs!$E$208:$R$210,3,FALSE))),(Q58)) -> 0 | AZ58: =IF(Inputs!$C$203=Inputs!$Q$204,((R58)*(HLOOKUP($L58,Inputs!$E$214:$R$216,3,FALSE))),(R58)) -> 0 | BA58: =IF(Inputs!$C$203=Inputs!$Q$204,((S58)*(HLOOKUP($L58,Inputs!$E$220:$R$222,3,FALSE))),(S58)) -> 0 | BB58: =IF(Inputs!$C$203=Inputs!$Q$204,((T58)*(HLOOKUP($L58,Inputs!$E$226:$R$228,3,FALSE))),(T58)) -> 0 | BC58: =IF(Inputs!$C$203=Inputs!$Q$204,((U58)*(HLOOKUP($L58,Inputs!$E$226:$R$228,3,FALSE))),(U58)) -> 0 | BD58: 0 | BE58: =IFERROR(IF(B58="Opex",0,VLOOKUP($AM58,Inputs!$B$46:$R$54,MATCH(L58,Inputs!$B$46:$R$46,0),FALSE)*AV58),0) -> 0 | BF58: =IFERROR(IF(B58="Opex",0,VLOOKUP($AM58,Inputs!$B$101:$R$111,MATCH(L58,Inputs!$B$63:$R$63,0),FALSE))*AX58,0) -> 0 | BG58: 0 | BH58: 0 | BI58: =IFERROR(IF(B58="Opex",0,VLOOKUP($AM58,Inputs!$B$173:$R$181,MATCH(L58,Inputs!$B$123:$R$123,0),FALSE)*AX58),0) -> 0 | BJ58: 0 | BK58: Distribution - CAPEX | BL58: =(($BD58)*(HLOOKUP($BL$1,Inputs!$B$32:$R$37,MATCH($BM$1,Inputs!$B$32:$B$37,0),FALSE))) -> 0 | BM58: =(($BG58)*(HLOOKUP($BL$1,Inputs!$B$32:$R$37,MATCH($BM$1,Inputs!$B$32:$B$37,0),FALSE))) -> 0 | BN58: 0 | BO58: 0 | BP58: 0 | BQ58: 0 | BR58: 0 | BS58: 0 | BT58: 0 | BU58: 0 | BV58: 0 | BW58: 0 | BX58: 0 | BY58: 0 | BZ58: 0 | CA58: 0 | CB58: 0 | CC58: 0 | CD58: 0 | CE58: 0 | CF58: 0 | CG58: 0 | CH58: 0 | CI58: 0 | CJ58: 0 | CK58: 0 | CL58: 0 | CM58: 0 | CN58: 0 | CO58: 0 | CP58: 0 | CQ58: 0 | CR58: 0 | CS58: 0 | CT58: 0 | CU58: 0 | CV58: 0 | CW58: 0 | CX58: 0 | CY58: 0 | CZ58: 0 | DA58: 0 | DB58: 0 | DC58: 0 | DD58: 0 | DE58: 0 | DF58: 0 | DG58: 0 | DH58: 0 | DI58: 0 | DJ58: 0 | DK58: 0 | DL58: 0 | DM58: 0 | DN58: 0 | DO58: 0 | DP58: 0 | DQ58: 0 | DR58: 0 | DS58: 0 | DT58: 0 | DU58: 0 | DV58: 0 | DW58: 0 | DX58: 0 | DY58: 0 | DZ58: 0 | EA58: 0 | EB58: 0 | EC58: 0 | ED58: 0 | EE58: 0 | EF58: 0 | EG58: 0 | EH58: 0 | EI58: 0 | EJ58: 0 | EK58: 0 | EL58: 0 | EM58: 0 | EN58: 0 | EO58: 0 | EP58: 0 | EQ58: 0 | ER58: 0 | ES58: 0 | ET58: 0 | EU58: 0 | EV58: 0 | EW58: 0 | EX58: 0 | EY58: 0 | EZ58: 0 | FA58: 0 | FB58: 0 | FC58: 0 | FD58: 0 | FE58: 0 | FF58: 0 | FG58: 0 | FH58: 0 | FI58: 0 | FJ58: 0 | FK58: 0 | FL58: 0 | FM58: 0 | FN58: 0 | FO58: 0 | FP58: 0 | FQ58: 0 | FR58: 0 | FS58: 0 | FT58: 0 | FU58: 0 | FV58: 0 | FW58: 0 | FX58: 0 | FY58: 0 | FZ58: 0 | GA58: 0 | GB58: 0 | GC58: 0 | GD58: 0 | GE58: 0 | GF58: 0 | GG58: 0 | GH58: 0 | GI58: 0 | GJ58: 0 | GK58: 0 | GL58: 0 | GM58: 0 | GN58: 0 | GO58: 0 | GP58: 0 | GQ58: 0 | GR58: 0 | GS58: 0 | GT58: 0 | GU58: 0 | GV58: 0 | GW58: 0 | GX58: 0 | GY58: 0 | GZ58: 0 | HA58: 0 | HB58: 0 | HC58: 0 | HD58: 0 | HE58: 0 | HF58: 0 | HG58: 0 | HH58: 0 | HI58: 0 | HJ58: 0 | HK58: 0 | HL58: 0 | HM58: 0 | HN58: 0 | HO58: 0 | HP58: 0 | HQ58: 0 | HR58: 0 | HS58: 0 | HT58: 0 | HU58: 0 | HV58: 0 | HW58: 0 | HX58: 0 | HY58: TRUE | HZ58: TRUE | IA58: 0 | IB58: 0
A59: 1041 | B59: CAPEX | C59: System Development | E59: Standard Control | H59: HV Feeder Upgrade - Capacity | I59: CAHVF | J59: Install/Augment Ground Mounted Voltage Regulator for Capacity | K59: A | L59: 2025/26 | M59: 1 | N59: 372769.58 | O59: 354131.101 | Q59: 67886.9335 | R59: 117075.739 | S59: 84176.9635 | T59: 11403.021 | U59: 5170.318 | V59: 68418.126 | W59: 1170.72 | Y59: Unit | AD59: REI | AK59: =IFERROR(IF(AL59="Transmission",VLOOKUP(J59,'INCURRED & COMMISSIONED'!$B:$Z,13,FALSE),""),"") ->  | AL59: Distribution | AM59: Standard Control Services | AN59: Standard Control Services | AO59: Reinforcement | AP59: HV Feeders | AQ59: Capex | AR59: Network | AS59: Development | AT59: Augmentation | AU59: =IFERROR($BD59/VLOOKUP("Grand Total",'Raw Data Expenditure analysis '!$A$5:$M$17,MATCH($L59,'Raw Data Expenditure analysis '!$A$5:$M$5,0),FALSE),0) -> 0.00187106756 | AV59: =IFERROR(IF(B59="Capex",$W59/VLOOKUP($AM59,'Raw Data Hrs analysis'!$A$33:$M$42,MATCH($L59,'Raw Data Hrs analysis'!$A$34:$M$34,0),FALSE),0),0) -> 0.004259274843 | AW59: 0 | AX59: =IFERROR(IF(B59="Opex",$BD59/VLOOKUP($AM59,'Raw Data Expenditure analysis '!$B$69:$M$80,MATCH($L59,'Raw Data Expenditure analysis '!$B$69:$M$69,0),FALSE),$BD59/VLOOKUP($AM59,'Raw Data Expenditure analysis '!$B$54:$M$65,MATCH($L59,'Raw Data Expenditure analysis '!$B$54:$M$54,0),FALSE)),0) -> 0.003532168794 | AY59: =IF(Inputs!$C$203=Inputs!$Q$204,((Q59)*(HLOOKUP($L59,Inputs!$E$208:$R$210,3,FALSE))),(Q59)) -> 68889.76931 | AZ59: =IF(Inputs!$C$203=Inputs!$Q$204,((R59)*(HLOOKUP($L59,Inputs!$E$214:$R$216,3,FALSE))),(R59)) -> 117075.739 | BA59: =IF(Inputs!$C$203=Inputs!$Q$204,((S59)*(HLOOKUP($L59,Inputs!$E$220:$R$222,3,FALSE))),(S59)) -> 84176.9635 | BB59: =IF(Inputs!$C$203=Inputs!$Q$204,((T59)*(HLOOKUP($L59,Inputs!$E$226:$R$228,3,FALSE))),(T59)) -> 11403.021 | BC59: =IF(Inputs!$C$203=Inputs!$Q$204,((U59)*(HLOOKUP($L59,Inputs!$E$226:$R$228,3,FALSE))),(U59)) -> 5170.318 | BD59: 286715.8108 | BE59: =IFERROR(IF(B59="Opex",0,VLOOKUP($AM59,Inputs!$B$46:$R$54,MATCH(L59,Inputs!$B$46:$R$46,0),FALSE)*AV59),0) -> 40405.26369 | BF59: =IFERROR(IF(B59="Opex",0,VLOOKUP($AM59,Inputs!$B$101:$R$111,MATCH(L59,Inputs!$B$63:$R$63,0),FALSE))*AX59,0) -> 84208.17905 | BG59: 124613.4427 | BH59: 411329.2535 | BI59: =IFERROR(IF(B59="Opex",0,VLOOKUP($AM59,Inputs!$B$173:$R$181,MATCH(L59,Inputs!$B$123:$R$123,0),FALSE)*AX59),0) -> 117335.2877 | BJ59: 528664.5413 | BK59: Distribution - CAPEX | BL59: =(($BD59)*(HLOOKUP($BL$1,Inputs!$B$32:$R$37,MATCH($BM$1,Inputs!$B$32:$B$37,0),FALSE))) -> 300936.9867 | BM59: =(($BG59)*(HLOOKUP($BL$1,Inputs!$B$32:$R$37,MATCH($BM$1,Inputs!$B$32:$B$37,0),FALSE))) -> 130794.3006 | BN59: 431731.2873 | BO59: 0 | BP59: 0 | BQ59: 0 | BR59: 0 | BS59: 0 | BT59: 11468.63243 | BU59: 4300.737162 | BV59: 144791.4845 | BW59: 0 | BX59: 126154.9568 | BY59: 0 | BZ59: 0 | CA59: 0 | CB59: 0 | CC59: 0 | CD59: 0 | CE59: 0 | CF59: 0 | CG59: 0 | CH59: 0 | CI59: 0 | CJ59: 0 | CK59: 0 | CL59: 0 | CM59: 0 | CN59: 0 | CO59: 0 | CP59: 0 | CQ59: 0 | CR59: 0 | CS59: 0 | CT59: 0 | CU59: 0 | CV59: 0 | CW59: 0 | CX59: 0 | CY59: 0 | CZ59: 0 | DA59: 0 | DB59: 0 | DC59: 0 | DD59: 0 | DE59: 0 | DF59: 0 | DG59: 0 | DH59: 0 | DI59: 0 | DJ59: 0 | DK59: 0 | DL59: 0 | DM59: 0 | DN59: 0 | DO59: 0 | DP59: 0 | DQ59: 0 | DR59: 0 | DS59: 0 | DT59: 0 | DU59: 0 | DV59: 0 | DW59: 0 | DX59: 0 | DY59: 0 | DZ59: 0 | EA59: 0 | EB59: 0 | EC59: 0 | ED59: 0 | EE59: 0 | EF59: 0 | EG59: 0 | EH59: 0 | EI59: 0 | EJ59: 0 | EK59: 0 | EL59: 0 | EM59: 0 | EN59: 0 | EO59: 0 | EP59: 0 | EQ59: 0 | ER59: 0 | ES59: 286715.8108 | ET59: 0 | EU59: 0 | EV59: 0 | EW59: 0 | EX59: 0 | EY59: 4984.537709 | EZ59: 1869.201641 | FA59: 62929.78858 | FB59: 0 | FC59: 54829.9148 | FD59: 0 | FE59: 0 | FF59: 0 | FG59: 0 | FH59: 0 | FI59: 0 | FJ59: 0 | FK59: 0 | FL59: 0 | FM59: 0 | FN59: 0 | FO59: 0 | FP59: 0 | FQ59: 0 | FR59: 0 | FS59: 0 | FT59: 0 | FU59: 0 | FV59: 0 | FW59: 0 | FX59: 0 | FY59: 0 | FZ59: 0 | GA59: 0 | GB59: 0 | GC59: 0 | GD59: 0 | GE59: 0 | GF59: 0 | GG59: 0 | GH59: 0 | GI59: 0 | GJ59: 0 | GK59: 0 | GL59: 0 | GM59: 0 | GN59: 0 | GO59: 0 | GP59: 0 | GQ59: 0 | GR59: 0 | GS59: 0 | GT59: 0 | GU59: 0 | GV59: 0 | GW59: 0 | GX59: 0 | GY59: 0 | GZ59: 0 | HA59: 0 | HB59: 0 | HC59: 0 | HD59: 0 | HE59: 0 | HF59: 0 | HG59: 0 | HH59: 0 | HI59: 0 | HJ59: 0 | HK59: 0 | HL59: 0 | HM59: 0 | HN59: 0 | HO59: 0 | HP59: 0 | HQ59: 0 | HR59: 0 | HS59: 0 | HT59: 0 | HU59: 0 | HV59: 0 | HW59: 0 | HX59: 124613.4427 | HY59: TRUE | HZ59: TRUE | IA59: 0 | IB59: 0
A60: 1041 | B60: CAPEX | C60: System Development | E60: Standard Control | H60: HV Feeder Upgrade - Capacity | I60: CAHVF | J60: Install/Augment Ground Mounted Voltage Regulator for Capacity | K60: A | L60: 2026/27 | M60: 0 | N60: 372769.58 | O60: 0 | Q60: 0 | R60: 0 | S60: 0 | T60: 0 | U60: 0 | V60: 0 | W60: 0 | Y60: Unit | AD60: REI | AK60: =IFERROR(IF(AL60="Transmission",VLOOKUP(J60,'INCURRED & COMMISSIONED'!$B:$Z,13,FALSE),""),"") ->  | AL60: Distribution | AM60: Standard Control Services | AN60: Standard Control Services | AO60: Reinforcement | AP60: HV Feeders | AQ60: Capex | AR60: Network | AS60: Development | AT60: Augmentation | AU60: =IFERROR($BD60/VLOOKUP("Grand Total",'Raw Data Expenditure analysis '!$A$5:$M$17,MATCH($L60,'Raw Data Expenditure analysis '!$A$5:$M$5,0),FALSE),0) -> 0 | AV60: =IFERROR(IF(B60="Capex",$W60/VLOOKUP($AM60,'Raw Data Hrs analysis'!$A$33:$M$42,MATCH($L60,'Raw Data Hrs analysis'!$A$34:$M$34,0),FALSE),0),0) -> 0 | AW60: 0 | AX60: =IFERROR(IF(B60="Opex",$BD60/VLOOKUP($AM60,'Raw Data Expenditure analysis '!$B$69:$M$80,MATCH($L60,'Raw Data Expenditure analysis '!$B$69:$M$69,0),FALSE),$BD60/VLOOKUP($AM60,'Raw Data Expenditure analysis '!$B$54:$M$65,MATCH($L60,'Raw Data Expenditure analysis '!$B$54:$M$54,0),FALSE)),0) -> 0 | AY60: =IF(Inputs!$C$203=Inputs!$Q$204,((Q60)*(HLOOKUP($L60,Inputs!$E$208:$R$210,3,FALSE))),(Q60)) -> 0 | AZ60: =IF(Inputs!$C$203=Inputs!$Q$204,((R60)*(HLOOKUP($L60,Inputs!$E$214:$R$216,3,FALSE))),(R60)) -> 0 | BA60: =IF(Inputs!$C$203=Inputs!$Q$204,((S60)*(HLOOKUP($L60,Inputs!$E$220:$R$222,3,FALSE))),(S60)) -> 0 | BB60: =IF(Inputs!$C$203=Inputs!$Q$204,((T60)*(HLOOKUP($L60,Inputs!$E$226:$R$228,3,FALSE))),(T60)) -> 0 | BC60: =IF(Inputs!$C$203=Inputs!$Q$204,((U60)*(HLOOKUP($L60,Inputs!$E$226:$R$228,3,FALSE))),(U60)) -> 0 | BD60: 0 | BE60: =IFERROR(IF(B60="Opex",0,VLOOKUP($AM60,Inputs!$B$46:$R$54,MATCH(L60,Inputs!$B$46:$R$46,0),FALSE)*AV60),0) -> 0 | BF60: =IFERROR(IF(B60="Opex",0,VLOOKUP($AM60,Inputs!$B$101:$R$111,MATCH(L60,Inputs!$B$63:$R$63,0),FALSE))*AX60,0) -> 0 | BG60: 0 | BH60: 0 | BI60: =IFERROR(IF(B60="Opex",0,VLOOKUP($AM60,Inputs!$B$173:$R$181,MATCH(L60,Inputs!$B$123:$R$123,0),FALSE)*AX60),0) -> 0 | BJ60: 0 | BK60: Distribution - CAPEX | BL60: =(($BD60)*(HLOOKUP($BL$1,Inputs!$B$32:$R$37,MATCH($BM$1,Inputs!$B$32:$B$37,0),FALSE))) -> 0 | BM60: =(($BG60)*(HLOOKUP($BL$1,Inputs!$B$32:$R$37,MATCH($BM$1,Inputs!$B$32:$B$37,0),FALSE))) -> 0 | BN60: 0 | BO60: 0 | BP60: 0 | BQ60: 0 | BR60: 0 | BS60: 0 | BT60: 0 | BU60: 0 | BV60: 0 | BW60: 0 | BX60: 0 | BY60: 0 | BZ60: 0 | CA60: 0 | CB60: 0 | CC60: 0 | CD60: 0 | CE60: 0 | CF60: 0 | CG60: 0 | CH60: 0 | CI60: 0 | CJ60: 0 | CK60: 0 | CL60: 0 | CM60: 0 | CN60: 0 | CO60: 0 | CP60: 0 | CQ60: 0 | CR60: 0 | CS60: 0 | CT60: 0 | CU60: 0 | CV60: 0 | CW60: 0 | CX60: 0 | CY60: 0 | CZ60: 0 | DA60: 0 | DB60: 0 | DC60: 0 | DD60: 0 | DE60: 0 | DF60: 0 | DG60: 0 | DH60: 0 | DI60: 0 | DJ60: 0 | DK60: 0 | DL60: 0 | DM60: 0 | DN60: 0 | DO60: 0 | DP60: 0 | DQ60: 0 | DR60: 0 | DS60: 0 | DT60: 0 | DU60: 0 | DV60: 0 | DW60: 0 | DX60: 0 | DY60: 0 | DZ60: 0 | EA60: 0 | EB60: 0 | EC60: 0 | ED60: 0 | EE60: 0 | EF60: 0 | EG60: 0 | EH60: 0 | EI60: 0 | EJ60: 0 | EK60: 0 | EL60: 0 | EM60: 0 | EN60: 0 | EO60: 0 | EP60: 0 | EQ60: 0 | ER60: 0 | ES60: 0 | ET60: 0 | EU60: 0 | EV60: 0 | EW60: 0 | EX60: 0 | EY60: 0 | EZ60: 0 | FA60: 0 | FB60: 0 | FC60: 0 | FD60: 0 | FE60: 0 | FF60: 0 | FG60: 0 | FH60: 0 | FI60: 0 | FJ60: 0 | FK60: 0 | FL60: 0 | FM60: 0 | FN60: 0 | FO60: 0 | FP60: 0 | FQ60: 0 | FR60: 0 | FS60: 0 | FT60: 0 | FU60: 0 | FV60: 0 | FW60: 0 | FX60: 0 | FY60: 0 | FZ60: 0 | GA60: 0 | GB60: 0 | GC60: 0 | GD60: 0 | GE60: 0 | GF60: 0 | GG60: 0 | GH60: 0 | GI60: 0 | GJ60: 0 | GK60: 0 | GL60: 0 | GM60: 0 | GN60: 0 | GO60: 0 | GP60: 0 | GQ60: 0 | GR60: 0 | GS60: 0 | GT60: 0 | GU60: 0 | GV60: 0 | GW60: 0 | GX60: 0 | GY60: 0 | GZ60: 0 | HA60: 0 | HB60: 0 | HC60: 0 | HD60: 0 | HE60: 0 | HF60: 0 | HG60: 0 | HH60: 0 | HI60: 0 | HJ60: 0 | HK60: 0 | HL60: 0 | HM60: 0 | HN60: 0 | HO60: 0 | HP60: 0 | HQ60: 0 | HR60: 0 | HS60: 0 | HT60: 0 | HU60: 0 | HV60: 0 | HW60: 0 | HX60: 0 | HY60: TRUE | HZ60: TRUE | IA60: 0 | IB60: 0
A61: 1041 | B61: CAPEX | C61: System Development | E61: Standard Control | H61: HV Feeder Upgrade - Capacity | I61: CAHVF | J61: Install/Augment Ground Mounted Voltage Regulator for Capacity | K61: A | L61: 2027/28 | M61: 1 | N61: 372769.58 | O61: 354131.101 | Q61: 67886.9335 | R61: 117075.739 | S61: 84176.9635 | T61: 11403.021 | U61: 5170.318 | V61: 68418.126 | W61: 1170.72 | Y61: Unit | AD61: REI | AK61: =IFERROR(IF(AL61="Transmission",VLOOKUP(J61,'INCURRED & COMMISSIONED'!$B:$Z,13,FALSE),""),"") ->  | AL61: Distribution | AM61: Standard Control Services | AN61: Standard Control Services | AO61: Reinforcement | AP61: HV Feeders | AQ61: Capex | AR61: Network | AS61: Development | AT61: Augmentation | AU61: =IFERROR($BD61/VLOOKUP("Grand Total",'Raw Data Expenditure analysis '!$A$5:$M$17,MATCH($L61,'Raw Data Expenditure analysis '!$A$5:$M$5,0),FALSE),0) -> 0.001814369705 | AV61: =IFERROR(IF(B61="Capex",$W61/VLOOKUP($AM61,'Raw Data Hrs analysis'!$A$33:$M$42,MATCH($L61,'Raw Data Hrs analysis'!$A$34:$M$34,0),FALSE),0),0) -> 0.00420866376 | AW61: 0 | AX61: =IFERROR(IF(B61="Opex",$BD61/VLOOKUP($AM61,'Raw Data Expenditure analysis '!$B$69:$M$80,MATCH($L61,'Raw Data Expenditure analysis '!$B$69:$M$69,0),FALSE),$BD61/VLOOKUP($AM61,'Raw Data Expenditure analysis '!$B$54:$M$65,MATCH($L61,'Raw Data Expenditure analysis '!$B$54:$M$54,0),FALSE)),0) -> 0.003514340503 | AY61: =IF(Inputs!$C$203=Inputs!$Q$204,((Q61)*(HLOOKUP($L61,Inputs!$E$208:$R$210,3,FALSE))),(Q61)) -> 68553.85541 | AZ61: =IF(Inputs!$C$203=Inputs!$Q$204,((R61)*(HLOOKUP($L61,Inputs!$E$214:$R$216,3,FALSE))),(R61)) -> 117075.739 | BA61: =IF(Inputs!$C$203=Inputs!$Q$204,((S61)*(HLOOKUP($L61,Inputs!$E$220:$R$222,3,FALSE))),(S61)) -> 84176.9635 | BB61: =IF(Inputs!$C$203=Inputs!$Q$204,((T61)*(HLOOKUP($L61,Inputs!$E$226:$R$228,3,FALSE))),(T61)) -> 11403.021 | BC61: =IF(Inputs!$C$203=Inputs!$Q$204,((U61)*(HLOOKUP($L61,Inputs!$E$226:$R$228,3,FALSE))),(U61)) -> 5170.318 | BD61: 286379.8969 | BE61: =IFERROR(IF(B61="Opex",0,VLOOKUP($AM61,Inputs!$B$46:$R$54,MATCH(L61,Inputs!$B$46:$R$46,0),FALSE)*AV61),0) -> 39925.14578 | BF61: =IFERROR(IF(B61="Opex",0,VLOOKUP($AM61,Inputs!$B$101:$R$111,MATCH(L61,Inputs!$B$63:$R$63,0),FALSE))*AX61,0) -> 83783.14615 | BG61: 123708.2919 | BH61: 410088.1888 | BI61: =IFERROR(IF(B61="Opex",0,VLOOKUP($AM61,Inputs!$B$173:$R$181,MATCH(L61,Inputs!$B$123:$R$123,0),FALSE)*AX61),0) -> 87252.29785 | BJ61: 497340.4867 | BK61: Distribution - CAPEX | BL61: =(($BD61)*(HLOOKUP($BL$1,Inputs!$B$32:$R$37,MATCH($BM$1,Inputs!$B$32:$B$37,0),FALSE))) -> 300584.4114 | BM61: =(($BG61)*(HLOOKUP($BL$1,Inputs!$B$32:$R$37,MATCH($BM$1,Inputs!$B$32:$B$37,0),FALSE))) -> 129844.2541 | BN61: 430428.6655 | BO61: 0 | BP61: 0 | BQ61: 0 | BR61: 0 | BS61: 0 | BT61: 11455.19588 | BU61: 4295.698454 | BV61: 144621.8479 | BW61: 0 | BX61: 126007.1546 | BY61: 0 | BZ61: 0 | CA61: 0 | CB61: 0 | CC61: 0 | CD61: 0 | CE61: 0 | CF61: 0 | CG61: 0 | CH61: 0 | CI61: 0 | CJ61: 0 | CK61: 0 | CL61: 0 | CM61: 0 | CN61: 0 | CO61: 0 | CP61: 0 | CQ61: 0 | CR61: 0 | CS61: 0 | CT61: 0 | CU61: 0 | CV61: 0 | CW61: 0 | CX61: 0 | CY61: 0 | CZ61: 0 | DA61: 0 | DB61: 0 | DC61: 0 | DD61: 0 | DE61: 0 | DF61: 0 | DG61: 0 | DH61: 0 | DI61: 0 | DJ61: 0 | DK61: 0 | DL61: 0 | DM61: 0 | DN61: 0 | DO61: 0 | DP61: 0 | DQ61: 0 | DR61: 0 | DS61: 0 | DT61: 0 | DU61: 0 | DV61: 0 | DW61: 0 | DX61: 0 | DY61: 0 | DZ61: 0 | EA61: 0 | EB61: 0 | EC61: 0 | ED61: 0 | EE61: 0 | EF61: 0 | EG61: 0 | EH61: 0 | EI61: 0 | EJ61: 0 | EK61: 0 | EL61: 0 | EM61: 0 | EN61: 0 | EO61: 0 | EP61: 0 | EQ61: 0 | ER61: 0 | ES61: 286379.8969 | ET61: 0 | EU61: 0 | EV61: 0 | EW61: 0 | EX61: 0 | EY61: 4948.331677 | EZ61: 1855.624379 | FA61: 62472.68742 | FB61: 0 | FC61: 54431.64845 | FD61: 0 | FE61: 0 | FF61: 0 | FG61: 0 | FH61: 0 | FI61: 0 | FJ61: 0 | FK61: 0 | FL61: 0 | FM61: 0 | FN61: 0 | FO61: 0 | FP61: 0 | FQ61: 0 | FR61: 0 | FS61: 0 | FT61: 0 | FU61: 0 | FV61: 0 | FW61: 0 | FX61: 0 | FY61: 0 | FZ61: 0 | GA61: 0 | GB61: 0 | GC61: 0 | GD61: 0 | GE61: 0 | GF61: 0 | GG61: 0 | GH61: 0 | GI61: 0 | GJ61: 0 | GK61: 0 | GL61: 0 | GM61: 0 | GN61: 0 | GO61: 0 | GP61: 0 | GQ61: 0 | GR61: 0 | GS61: 0 | GT61: 0 | GU61: 0 | GV61: 0 | GW61: 0 | GX61: 0 | GY61: 0 | GZ61: 0 | HA61: 0 | HB61: 0 | HC61: 0 | HD61: 0 | HE61: 0 | HF61: 0 | HG61: 0 | HH61: 0 | HI61: 0 | HJ61: 0 | HK61: 0 | HL61: 0 | HM61: 0 | HN61: 0 | HO61: 0 | HP61: 0 | HQ61: 0 | HR61: 0 | HS61: 0 | HT61: 0 | HU61: 0 | HV61: 0 | HW61: 0 | HX61: 123708.2919 | HY61: TRUE | HZ61: TRUE | IA61: 0 | IB61: 0
